{"text_format":"1","workbook":"xlsx","n_sheets":16,"sheets":["Title","Instructions","Definitions","1a) Project Info","1b) Non-Inf Program Info","2) Model Inputs","3) Results","Journey Quality","Intersection Delay","Intersection Safety","Auto Accident Costs","Health - Absenteeism","Health - Reduced Mortality","Emissions","Final Calculations","PARAMETERS"],"not_rendered":{"charts":0,"images":10,"macros":0,"external_links":0,"defined_names":609,"comments":0,"pivot_tables":0},"unopened":[],"bounds":{"document_bytes":16777216,"sheet_cells":100000,"rows_first":2000,"rows_last":500,"rows_between":2000,"halvings":0,"cell_chars":16384,"cell_head_chars":4096},"cells_cut":0,"cells_raw":0,"read":"whole","date_system":"1900"}

{"sheet":"Title","index":0,"n_rows":29,"n_cols":3,"rows_kept":29,"cut":false,"hidden":false,"merged":[]}
[]
[null,null,"California Active Transportation\nBenefit/Cost Analysis Model\n(Cal-B/C AT) Version 6.0"]
[]
[]
[]
[]
[]
[]
[]
[]
[]
[]
[]
[]
[]
[]
[]
[]
[]
[]
[]
[null,"Office of Transportation Economics"]
[null,"Division of Transportation Planning"]
[null,"February 2017"]
[]
[]
[null,"For questions and comments, please contact:"]
[]
[null,"Rose Agacer","(916) 651-6014; rose.agacer@dot.ca.gov"]

{"sheet":"Instructions","index":1,"n_rows":0,"n_cols":0,"rows_kept":0,"cut":false,"hidden":false,"merged":[]}

{"sheet":"Definitions","index":2,"n_rows":34,"n_cols":6,"rows_kept":34,"cut":false,"hidden":false,"merged":[[8,2,8,10],[18,2,18,10],[21,2,21,10],[22,2,22,10],[19,2,19,10],[11,2,11,10],[12,2,12,10],[1,1,1,10],[4,2,4,10],[5,2,5,10],[6,2,6,10],[7,2,7,10],[13,2,13,10],[14,2,14,10],[17,2,17,10],[26,2,26,3],[26,4,26,5],[20,2,20,10],[25,1,25,10]]}
[null,"Definitions"]
[null,"Several definitions require clarification in evaluating facility use, either improved existing or new facilities. This section provides definitions for terms that are used in this tool with respect to “trip types” and “user types). In addition, not all users benefit from projects in the same way. Definitions about benefit categories are elaborated upon below. Relevance of benefit categories depends on trip purpose and type of project (i.e., existing facility upgrade and new construction)."]
[]
[null,"Trip Types","Definitions"]
[null,"Trips","One-way travel to a destination for commuting, or other purposes"]
[null,"Roundtrips","One-way trips with return journeys – most trips have a return journey using the same mode, but not all do "]
[null,"Existing Trips","Baseline trips, either on an existing facility or unmarked street, where the project will create a new facility with specific improvements"]
[null,"Induced Trips","Additional trips above the baseline that arise because of the improvements to existing or new facilities"]
[null,"Trip Forecasts","Forecasts are developed for existing facilities and new locations (if applicable), model users determine numbers of current and induced trips, and other characteristics (e.g., roundtrip probability, purpose, distance, etc.) "]
[]
[null,"Trip Purposes","Definitions"]
[null,"Commute to Work ","Users who are taking the facility to or from work. These users are primarily adult or young-adult aged. Use by college students would be classified under \"other destinations\""]
[null,"Safe Route to School","Users who are school-aged, i.e. 18 or under years old, and taking the facility to or from school."]
[null,"Other Destinations","Users who are taking the facility to reach a variety of other destinations besides work, such as shopping, meeting friends, college classes, etc. These are trips that would be otherwise taken by some type of motor vehicle"]
[null,"Recreational","Users who are taking the facility purely as a loop-trip for exercise purposes. These trips would not be otherwise taken by motor vehicle since the purpose is for fitness and recreation."]
[]
[null,"Benefit Categories","Definitions"]
[null,"Journey Quality","Improvements in the quality of the trip for pedestrians and cyclists that arise from a greater feeling of safety, comfort, aesthetics, and other types of improvements. Improvements to existing and new facilities can generate benefits for current trips and induced trips. Benefits to induced users are estimated using \"rule of half\" approximation. Journey quality is assumed to have a zero value for existing users along routes where there is no existing facility. The value of journey quality includes the perception of safety improvement and thus, to avoid double counting, additional accident reduction value along the routes is excluded. However, safety improvements at intersections along existing facilities generate additional benefits that are discussed below. "]
[null,"Time Savings \n(at Improved Intersections of Existing Facilities Only)","Improvements to existing intersections (e.g. lights, bridges, etc.) can lead to time savings for trips by reducing waiting time at intersections, for say a break in vehicular traffic. Time savings benefits can arise for existing and induced pedestrians and cyclists at each intersection that they cross. The number of intersections crossed by users of a facility on each trip is determined by the total length of the existing facility the average distance traveled per user type, and the number of intersections with improvements. Benefits to induced users are estimated using \"rule of half\" approximation."]
[null,"Safety Improvements  \n(at Improved Intersections of Existing Facilities Only)","Improvements to existing intersections (e.g. lights, bridges, etc.) can lead to reduced accidents at intersections. Benefits can arise for existing and induced pedestrians and cyclists at each intersection crossed. The number of intersections crossed per trip is determined by the total length of the existing facility, the average distance traveled per user type, and the number of intersections with improvements. The magnitude of impacts is determined by the percent reduction in existing accidents due to specific safety measures. Induced trips benefits apply \"rule of half\" approximation."]
[null,"Auto Accident Costs and  Auto Emissions","Some of the induced pedestrian and cycling trips entail diversions from auto use. Benefits from reduced auto use include reduced frequency of accidents and level of auto emissions. Benefits are estimated for each diverted auto trip by using standard methods and data for estimating the value of auto use externalities.  "]
[null,"Health Benefits for Commuters \n(Reduced Absenteeism)","Health benefits related to reduced absenteeism are generated by induced walking and cycling commuters. The benefits are monetized by higher productivity due to fewer sick days. Benefits to these induced users are not estimated using \"rule of half\" approximation since the value is observed by the employer."]
[null,"Health Benefits \n(Reduced Mortality)","Health benefits related to improved long-term health and reduced risk of disease and early death. These benefits are derived from parameters established by the World Health Organization (WHO) and formalized in their online HEAT tool and documentation. Benefits are derived from reduced mortality risk in populations that range from 20-64 for cyclists and 20-74 for pedestrians. Reduced mortality risk depends on the amount of cycling (average distance) undertaken over a one year period."]
[]
[null,"Benefit Categories by Facility Type"]
[null,"The matrix below indicates the applicability of benefits by to different types of trips and projects. Projects include existing facility improvements and new  construction. Trips differ between current trips already being taken and new, induced trips that arise because of improvements."]
[null,null,"Existing Facility Improvement",null,"New Construction"]
[null,"Benefit Categories by Facility Type","Existing Trips","Induced Trips","Existing Trips","Induced Trips"]
[null,"Journey Quality","Yes","Yes","Yes","Yes"]
[null,"Time Savings \n(at improved intersections of existing facilities only)","Yes","Yes"]
[null,"Safety Improvements  \n(at improved intersections of existing facilities only)","Yes","Yes"]
[null,"Auto Accident Costs and  Auto Emissions",null,"Yes",null,"Yes"]
[null,"Health Benefits for Commuters \n(Reduced Absenteeism)",null,"Yes \n(commuters only)",null,"Yes \n(commuters only)"]
[null,"Health Benefits \n(Reduced Mortality)",null,"Yes \n(age dependent)",null,"Yes \n(age dependent)"]

{"sheet":"1a) Project Info","index":3,"n_rows":130,"n_cols":42,"rows_kept":130,"cut":false,"hidden":false,"merged":[[9,4,9,5],[89,22,89,32],[50,23,50,32],[53,24,53,28],[54,24,54,26],[54,27,54,28],[54,31,54,32],[6,37,6,42],[6,23,6,32],[45,22,45,32],[10,24,10,26],[9,24,9,28],[10,31,10,32],[10,27,10,28]]}
[]
[null,null,"District: ",null,"HQ",null,null,null,null,null,null,null,null,null,null,null,null,null,null,null,null,"Enter all project and program costs (in today's dollars) in the two tables shown below .  Costs during construction should be entered in the first row."]
[null,null,null,null,null,null,null,"EA:",null,null,null,null,null,null,null,null,null,null,null,null,null,"Project costs (including maintenance and operating costs) should be net of costs without project."]
[null,null,"PROJECT:",null,"Hypothetical Project",null,null,"PPNO:"]
[]
[]
[null,null,"1A","PROJECT AND SITE CHARACTERISTICS",null,null,null,null,null,null,null,null,"1D","GENERAL USER CHARACTERISTICS (BASED ON PROJECT LOCATION)",null,null,null,null,null,null,null,null,"1F","PROJECT COSTS AND REQUESTED FUNDS (enter in thousands of dollars)",null,null,null,null,null,null,null,null,null,null,null,null,"1H","DATA CHECKS - PROJECT LENGTH, DAILY TRIPS"]
[]
[null,null,"Type of Project",null,null,null,null,null,null,null,null,null,"Cycling",null,null,null,null,null,null,null,null,null,"Col. no."]
[null,null,null,null,"Existing facility upgrade only = 1 \nNew facility only, no existing facility work = 2\nExisting facility upgrade and new facility extension = 3",null,null,null,null,null,null,null,null,"Trip Purpose",null,null,"No Build","Build",null,null,null,null,null,null,"DIRECT PROJECT COSTS",null,null,null,null,null,null,"TOTAL COSTS (in dollars)",null,null,null,null,null,null,null,null,"No Build Project Length","Build Project Length"]
[null,null,null,null,null,null,null,null,null,null,null,null,null,null,"Commuting Trip Purpose (%)",null,{"$f":"IF(ProjLoc=1,PARAMETERS!AJ71,IF(ProjLoc=2,PARAMETERS!AK71,PARAMETERS!AL71))","v":7.0000000000000007E-2},{"$f":"Q11","v":7.0000000000000007E-2},null,null,null,null,null,null,"INITIAL COSTS",null,null,"SUBSEQUENT COSTS",null,null,null,null,null,null,null,null,null,null,null,"Existing Facility Length Check",{"$f":"IF(G39=ProjLenEX,\"OK\",\"Not OK\")","v":"OK"},{"$f":"IF(H39=G39,\"OK\",\"Not OK\")","v":"OK"}]
[null,null,null,"Total Project Length",null,null,null,null,"Project Type Data Check",null,null,null,null,null,"Recreational Trip Purpose (%)",null,{"$f":"IF(ProjLoc=1,PARAMETERS!AJ72,IF(ProjLoc=2,PARAMETERS!AK72,PARAMETERS!AL72))","v":0.15},{"$f":"Q12","v":0.15},null,null,null,null,"Year","Construction","Project",null,null,"Maint./",null,null,null,"Constant ","Present",null,null,null,null,null,null,"New Facility Length Check",{"$f":"IF(Q34=H14,\"OK\",\"Not OK\")","v":"OK"},{"$f":"IF(R39=Q34,\"OK\",\"Not OK\")","v":"OK"}]
[null,null,null,null,"Total Existing Facility Length (miles)",null,null,null,{"$f":"IF(AND(OR(ProjType=1,ProjType=3),ProjLenEX=0),\"Not OK\",IF(AND(ProjType=2,ProjLenEX>0),\"Not OK\",\"OK\"))","v":"OK"},null,null,null,null,null,"Other Destinations Trip Purpose (%)",null,{"$f":"IF(ProjLoc=1,PARAMETERS!AJ73,IF(ProjLoc=2,PARAMETERS!AK73,PARAMETERS!AL73))","v":0.78},{"$f":"Q13","v":0.78},null,null,null,null,null,"Years","Support","R / W","Construction","Op.","Rehab.",null,null,"Dollars","Value"]
[null,null,null,null,"Total New Facility Length (miles)",null,null,null,{"$f":"IF(AND(OR(ProjType=2,ProjType=3),ProjLenNEW=0),\"Not OK\",IF(AND(ProjType=1,ProjLenNEW>0),\"Not OK\",\"OK\"))","v":"OK"},null,null,null,null,"General Trip Characteristics",null,null,null,null,null,null,null,null,"Infrastructure Program Costs",null,null,null,null,null,null,null,null,null,null,null,null,null,null,null,null,null,"Cycling Daily Trips per Mile","Pedestrian Daily Trips per Mile"]
[null,null,null,null,null,null,null,null,null,null,null,null,null,null,"Overall Average Distance Traveled / Trip (mi)",null,{"$f":"IF(ProjLoc=1,PARAMETERS!AJ60,IF(ProjLoc=2,PARAMETERS!AK60,PARAMETERS!AL60))","v":2.48},{"$f":"TAvMiCycNB","v":2.48},null,null,null,null,1,{"$f":"IF(AA15>0,1,0)","v":0},null,null,null,"<-- Must enter a cost",null,null,null,{"$f":"SUM(Y15:AA15)*1000","v":0},{"$f":"AF15/(1+DiscRate)^($W15-1)","v":0},null,null,null,null,null,null,"Existing Facility Users",{"$f":"IFERROR(ADT0CycEX/G39,\"NA\")","v":"NA"},{"$f":"IFERROR(ADT0PedEX/G39,\"NA\")","v":"NA"}]
[null,null,"Characteristics",null,null,null,null,null,null,null,null,null,null,null,"Children - SRTS - Distance Traveled / Trip (mi)",null,{"$f":"IF(ProjLoc=1,PARAMETERS!AJ61,IF(ProjLoc=2,PARAMETERS!AK61,PARAMETERS!AL61))","v":1.1200000000000001},{"$f":"TAvMiCycNBSRTS","v":1.1200000000000001},null,null,null,null,2,{"$f":"IF(AA16>0,1,0)","v":0},null,null,null,"",null,null,null,{"$f":"SUM(Y16:AA16)*1000","v":0},0,null,null,null,null,null,null,"New Facility Users",{"$f":"IFERROR(ADT0CycNew/Q39,\"NA\")","v":"NA"},{"$f":"IFERROR(ADT0PedNew/Q39,\"NA\")","v":"NA"}]
[null,null,null,"Project Location (enter 1 for So. Cal., 2 for No. Cal., or 3 for rural)",null,null,null,null,null,null,null,null,null,null,null,null,null,null,null,null,null,null,3,0,null,null,null,null,null,null,null,0,0]
[null,null,null,null,null,null,null,null,null,null,null,null,"Pedestrian",null,null,null,null,null,null,null,null,null,4,0,null,null,null,null,null,null,null,0,0,null,null,null,null,null,null,null,"Safety Measures - Existing only"]
[null,null,null,"Safe Route to School? (enter 1 for Yes, 0 for No)",null,null,null,null,null,null,null,null,null,"Trip Purpose",null,null,null,null,null,null,null,null,5,0,null,null,null,null,null,null,null,0,0,null,null,null,null,null,null,"Existing Facility Characteristics",{"$f":"IF(AND(ProjLenEX=0,SUM(H116:H130)>0),\"Not OK\", \"OK\")","v":"OK"}]
[null,null,null,null,null,null,null,null,null,null,null,null,null,null,"Commuting Trip Purpose (%)",null,{"$f":"IF(ProjLoc=1,PARAMETERS!AJ74,IF(ProjLoc=2,PARAMETERS!AK74,PARAMETERS!AL74))","v":0.04},{"$f":"Q20","v":0.04},null,null,null,null,6,0,null,null,null,"",null,null,null,0,0]
[null,null,null,"Programmatic Initiatives? (enter 1 for Yes, 0 for No)",null,null,null,null,null,null,null,null,null,null,"Recreational Trip Purpose (%)",null,{"$f":"IF(ProjLoc=1,PARAMETERS!AJ75,IF(ProjLoc=2,PARAMETERS!AK75,PARAMETERS!AL75))","v":0.15},{"$f":"PerRecPedNB","v":0.15},null,null,null,null,7,0,null,null,null,"",null,null,null,0,0]
[null,null,null,null,null,null,null,null,null,null,null,null,null,null,"Other Destination Trip Purpose (%)",null,{"$f":"IF(ProjLoc=1,PARAMETERS!AJ76,IF(ProjLoc=2,PARAMETERS!AK76,PARAMETERS!AL76))","v":0.81},{"$f":"PerODPedNB","v":0.81},null,null,null,null,8,0,null,null,null,"",null,null,null,0,0]
[null,null,null,"Construction ",null,null,null,null,"Constr. Years Data Check",null,null,null,null,"General Trip Characteristics",null,null,null,null,null,null,null,null,"Annual Infrastructure O&M Costs"]
[null,null,null,null,"Length of Construction Period (years)",null,null,null,{"$f":"IF(SUM(X15:X22)=Construct, \"OK\",\"Not OK\")","v":"OK"},null,null,null,null,null,"Overall Average Distance Traveled / Trip (mi)",null,{"$f":"IF(ProjLoc=1,PARAMETERS!AJ62,IF(ProjLoc=2,PARAMETERS!AK62,PARAMETERS!AL62))","v":0.69},{"$f":"TAvMiPedNB","v":0.69},null,null,null,null,1,null,null,null,null,null,null,null,null,{"$f":"SUM(AB24:AC24)*1000","v":0},{"$f":"$AF24/(1+DiscRate)^($W24+Construct-1)","v":0}]
[null,null,null,null,null,null,null,null,null,null,null,null,null,null,"Children - SRTS - Distance Traveled / Trip (mi)",null,{"$f":"IF(ProjLoc=1,PARAMETERS!AJ63,IF(ProjLoc=2,PARAMETERS!AK63,PARAMETERS!AL63))","v":0.56999999999999995},{"$f":"TAvMiPedNBSRTS","v":0.56999999999999995},null,null,null,null,2,null,null,null,null,null,null,null,null,{"$f":"SUM(AB25:AC25)*1000","v":0},0]
[null,null,null,null,null,null,null,null,null,null,null,null,null,null,null,null,null,null,null,null,null,null,3,null,null,null,null,null,null,null,null,{"$f":"SUM(AB26:AC26)*1000","v":0},0]
[null,null,null,null,null,null,null,null,null,null,null,null,null,null,null,null,null,null,null,null,null,null,4,null,null,null,null,null,null,null,null,0,0]
[null,null,null,null,null,null,null,null,null,null,null,null,null,null,null,null,null,null,null,null,null,null,5,null,null,null,null,null,null,null,null,0,0]
[null,null,null,null,null,null,null,null,null,null,null,null,null,null,null,null,null,null,null,null,null,null,6,null,null,null,null,null,null,null,null,0,0]
[null,null,"1B","EXISTING SEGMENT IMPROVEMENTS AND TRIP VOLUME",null,null,null,null,null,null,null,null,"1E","NEW FACILITY IMPROVEMENTS AND TRIP VOLUME",null,null,null,null,null,null,null,null,7,null,null,null,null,null,null,null,null,0,0]
[null,null,null,null,null,null,null,null,null,null,null,null,null,null,null,null,null,null,null,null,null,null,8,null,null,null,null,null,null,null,null,0,0]
[null,null,"Improvement Characteristics",null,null,null,null,null,null,null,null,null,"Improvement Characteristics",null,null,null,null,null,null,null,null,null,9,null,null,null,null,null,null,null,null,0,0]
[null,null,null,"Existing Facility Length, if Applicable",null,"Class ","No Build","Build","Project Length Data Check",null,null,null,null,"New Facility Length",null,"Class ","No Build","Build","Project Length Data Check",null,null,null,10,null,null,null,null,null,null,null,null,0,0]
[null,null,null,null,null,null,null,null,null,null,null,null,null,null,"No Facility",0,{"$f":"ProjLenNEW","v":0},null,{"$f":"IF(OR(AO12=\"Not OK\",AP12=\"Not OK\"),\"Not OK\",\"OK\")","v":"OK"},null,null,null,11,null,null,null,null,null,null,null,null,0,0]
[null,null,null,null,"Bike Paths (miles) ","I",null,null,{"$f":"IF(OR(AO11=\"Not OK\",AP11=\"Not OK\"),\"Not OK\",\"OK\")","v":"OK"},null,null,null,null,null,"Bike Paths (miles) ","I",null,null,null,null,null,null,12,null,null,null,null,null,null,null,null,0,0]
[null,null,null,null,"Bike Lanes (miles) ","II",null,null,null,null,null,null,null,null,"Bike Lanes (miles) ","II",null,null,null,null,null,null,13,null,null,null,null,null,null,null,null,0,0]
[null,null,null,null,"Bike Route (miles) ","III",null,null,null,null,null,null,null,null,"Bike Route (miles) ","III",null,null,null,null,null,null,14,null,null,null,null,null,null,null,null,0,0]
[null,null,null,null,"Separated Bikeways, Cycle Tracks (miles) ","IV",null,null,null,null,null,null,null,null,"Separated Bikeways, Cycle Tracks (miles) ","IV",null,null,null,null,null,null,15,null,null,null,null,null,null,null,null,0,0]
[null,null,null,null,"Total ",null,{"$f":"SUM(G35:G38)","v":0},{"$f":"SUM(H35:H38)","v":0},null,null,null,null,null,null,"Total ",null,{"$f":"SUM(Q34:Q38)","v":0},{"$f":"SUM(R34:R38)","v":0},null,null,null,null,16,null,null,null,null,null,null,null,null,0,0]
[null,null,null,null,null,null,null,null,null,null,null,null,null,null,null,null,null,null,null,null,null,null,17,null,null,null,null,null,null,null,null,0,0]
[null,null,null,"Pedestrian Improvements",null,null,"Yes =1 or No=0","Yes =1 or No=0",null,null,null,null,null,"Pedestrian Improvements",null,null,null,"Yes =1",null,null,null,null,18,null,null,null,null,null,null,null,null,0,0]
[null,null,null,null,"Street Lighting ",null,null,null,null,null,null,null,null,null,"Street Lighting ",null,null,null,null,null,null,null,19,null,null,null,null,null,null,null,null,0,0]
[null,null,null,null,"Curb Level ",null,null,null,null,null,null,null,null,null,"Curb Level ",null,null,null,null,null,null,null,20,null,null,null,null,null,null,null,null,0,0]
[null,null,null,null,"Crowding ",null,null,null,null,null,null,null,null,null,"Crowding ",null,null,null,null,null,null,null,"Total",null,{"$f":"SUM(Y15:Y22)","v":0},{"$f":"SUM(Z15:Z22)","v":0},{"$f":"SUM(AA15:AA22)","v":0},{"$f":"SUM(AB24:AB43)","v":0},{"$f":"SUM(AC24:AC43)","v":0},null,null,{"$f":"SUM(AF15:AF43)","v":0},{"$f":"SUM(AG15:AG43)","v":0}]
[null,null,null,null,"Pavement Evenness ",null,null,null,null,null,null,null,null,null,"Pavement Evenness "]
[null,null,null,null,"Information Panels ",null,null,null,null,null,null,null,null,null,"Information Panels ",null,null,null,null,null,null,null,"ATP REQUESTED FUNDS"]
[null,null,null,null,"Benches ",null,null,null,null,null,null,null,null,null,"Benches ",null,null,null,null,null,null,null,"Total "]
[null,null,null,null,"Directional Signage ",null,null,null,null,null,null,null,null,null,"Directional Signage "]
[]
[null,null,"Trip Data - Adults",null,null,null,null,null,null,null,null,null,"Trip Data - Adults"]
[null,null,null,"Cycling",null,null,null,null,null,null,null,null,null,"Cycling",null,null,"No Build","Build",null,null,null,null,"1G","PROGRAM COSTS AND REQUESTED FUNDS (enter in thousands of dollars)"]
[null,null,null,null,"Daily Trips - Current",null,null,null,null,null,null,null,null,null,"Daily Trips - Current"]
[null,null,null,null,"Projected Annual Growth Rates from Year 1 (%)",null,null,null,null,null,null,null,null,null,"Projected Annual Growth Rates from Year 1 (%)"]
[null,null,null,null,null,null,null,null,null,null,null,null,null,null,null,null,null,null,null,null,null,null,null,null,"DIRECT PROJECT COSTS"]
[null,null,null,null,"Daily Trips - Year 1 (post-construction)",null,{"$f":"ADT0CycEX*(1+$G$53)^Construct","v":0},{"$f":"ADT0CycEX*(1+$H$53)^Construct","v":0},null,null,null,null,null,null,"Daily Trips - Year 1 (post-construction)",null,{"$f":"ADT0CycNew*(1+$Q$53)^Construct","v":0},{"$f":"ADT0CycNew*(1+$R$53)^Construct","v":0},null,null,null,null,null,null,"INITIAL COSTS",null,null,"SUBSEQUENT COSTS",null,null,null,"TOTAL COSTS (in dollars)"]
[null,null,null,null,"Daily Trips - Year 20 (post-construction)",null,{"$f":"ADT1CycNBEX*(1+$G$53)^20","v":0},{"$f":"ADT1CycBEX*(1+$H$53)^20","v":0},null,null,null,null,null,null,"Daily Trips - Year 20 (post-construction)",null,{"$f":"ADT1CycNBNew*(1+$Q$53)^20","v":0},{"$f":"ADT1CycBNew*(1+$R$53)^20","v":0},null,null,null,null,"Year","Construction","Project",null,null,"Maint./",null,null,null,"Constant ","Present"]
[null,null,null,null,null,null,null,null,null,null,null,null,null,null,null,null,null,null,null,null,null,null,null,"Years","Support","R / W","Construction","Op.","Rehab.",null,null,"Dollars","Value"]
[null,null,null,"Pedestrian",null,null,null,null,null,null,null,null,null,"Pedestrian",null,null,null,null,null,null,null,null,"Non-Infrastructure Program Costs"]
[null,null,null,null,"Daily Trips - Current",null,null,null,null,null,null,null,null,null,"Daily Trips - Current",null,null,null,null,null,null,null,1,null,null,null,null,"<-- Must enter a cost",null,null,null,{"$f":"SUM(Y59:AA59)*1000","v":0},{"$f":"AF59/(1+DiscRate)^($W59-1)","v":0}]
[null,null,null,null,"Projected Annual Growth Rates from Year 1 (%)",null,null,null,null,null,null,null,null,null,"Projected Annual Growth Rates from Year 1 (%)",null,null,null,null,null,null,null,2,null,null,null,null,null,null,null,null,{"$f":"SUM(Y60:AA60)*1000","v":0},0]
[null,null,null,null,null,null,null,null,null,null,null,null,null,null,null,null,null,null,null,null,null,null,3,null,null,null,null,null,null,null,null,0,0]
[null,null,null,null,"Daily Trips - Year 1 (post-construction)",null,{"$f":"ADT0PedEX*(1+$G$60)^Construct","v":0},{"$f":"ADT0PedEX*(1+$H$60)^Construct","v":0},null,null,null,null,null,null,"Daily Trips - Year 1 (post-construction)",null,{"$f":"ADT0PedNew*(1+$Q$60)^Construct","v":0},{"$f":"ADT0PedNew*(1+$R$60)^Construct","v":0},null,null,null,null,4,null,null,null,null,null,null,null,null,0,0]
[null,null,null,null,"Daily Trips - Year 20 (post-construction)",null,{"$f":"ADT1PedNBEX*(1+$G$60)^20","v":0},{"$f":"ADT1PedBEX*(1+$H$60)^20","v":0},null,null,null,null,null,null,"Daily Trips - Year 20 (post-construction)",null,{"$f":"ADT1PedNBNew*(1+$Q$60)^20","v":0},{"$f":"ADT1PedBNew*(1+$R$60)^20","v":0},null,null,null,null,5,null,null,null,null,"",null,null,null,0,0]
[null,null,null,null,null,null,null,null,null,null,null,null,null,null,null,null,null,null,null,null,null,null,6,null,null,null,null,"",null,null,null,0,0]
[null,null,"Trip Data - Children - SRTS",null,null,null,null,null,null,null,null,null,"Trip Data - Children - SRTS",null,null,null,null,null,null,null,null,null,7,null,null,null,null,"",null,null,null,0,0]
[null,null,null,"Cycling",null,null,null,null,null,null,null,null,null,"Cycling",null,null,"No Build","Build",null,null,null,null,8,null,null,null,null,"",null,null,null,0,0]
[null,null,null,null,"Daily Trips - Current",null,null,null,null,null,null,null,null,null,"Daily Trips - Current",null,null,null,null,null,null,null,"Annual Non-Infrastructure O&M Costs"]
[null,null,null,null,"Projected Annual Growth Rates from Year 1 (%)",null,null,null,null,null,null,null,null,null,"Projected Annual Growth Rates from Year 1 (%)",null,null,null,null,null,null,null,1,null,null,null,null,null,null,null,null,{"$f":"SUM(AB68:AC68)*1000","v":0},{"$f":"$AF68/(1+DiscRate)^($W68-1)","v":0}]
[null,null,null,null,null,null,null,null,null,null,null,null,null,null,null,null,null,null,null,null,null,null,2,null,null,null,null,null,null,null,null,{"$f":"SUM(AB69:AC69)*1000","v":0},0]
[null,null,null,null,"Daily Trips - Year 1 (post-construction)",null,{"$f":"ADT0CycEX_SRTS*(1+$G$68)^Construct","v":0},{"$f":"ADT0CycEX_SRTS*(1+$H$68)^Construct","v":0},null,null,null,null,null,null,"Daily Trips - Year 1 (post-construction)",null,{"$f":"ADT0CycNew_SRTS*(1+$Q$68)^Construct","v":0},{"$f":"ADT0CycNew_SRTS*(1+$R$68)^Construct","v":0},null,null,null,null,3,null,null,null,null,null,null,null,null,{"$f":"SUM(AB70:AC70)*1000","v":0},0]
[null,null,null,null,"Daily Trips - Year 20 (post-construction)",null,{"$f":"ADT1CycNBEX_SRTS*(1+$G$68)^20","v":0},{"$f":"ADT1CycBEX_SRTS*(1+$H$68)^20","v":0},null,null,null,null,null,null,"Daily Trips - Year 20 (post-construction)",null,{"$f":"ADT1CycNBNew_SRTS*(1+$Q$68)^20","v":0},{"$f":"ADT1CycBNew_SRTS*(1+$R$68)^20","v":0},null,null,null,null,4,null,null,null,null,null,null,null,null,0,0]
[null,null,null,null,null,null,null,null,null,null,null,null,null,null,null,null,null,null,null,null,null,null,5,null,null,null,null,null,null,null,null,0,0]
[null,null,null,"Pedestrian",null,null,null,null,null,null,null,null,null,"Pedestrian",null,null,null,null,null,null,null,null,6,null,null,null,null,null,null,null,null,0,0]
[null,null,null,null,"Daily Trips - Current",null,null,null,null,null,null,null,null,null,"Daily Trips - Current",null,null,null,null,null,null,null,7,null,null,null,null,null,null,null,null,0,0]
[null,null,null,null,"Projected Annual Growth Rates from Year 1 (%)",null,null,null,null,null,null,null,null,null,"Projected Annual Growth Rates from Year 1 (%)",null,null,null,null,null,null,null,8,null,null,null,null,null,null,null,null,0,0]
[null,null,null,null,null,null,null,null,null,null,null,null,null,null,null,null,null,null,null,null,null,null,9,null,null,null,null,null,null,null,null,0,0]
[null,null,null,null,"Daily Trips - Year 1 (post-construction)",null,{"$f":"ADT0PedEX_SRTS*(1+$G$75)^Construct","v":0},{"$f":"ADT0PedEX_SRTS*(1+$H$75)^Construct","v":0},null,null,null,null,null,null,"Daily Trips - Year 1 (post-construction)",null,{"$f":"ADT0PedNew_SRTS*(1+$Q$75)^Construct","v":0},{"$f":"ADT0PedNew_SRTS*(1+$R$75)^Construct","v":0},null,null,null,null,10,null,null,null,null,null,null,null,null,0,0]
[null,null,null,null,"Daily Trips - Year 20 (post-construction)",null,{"$f":"ADT1PedNBEX_SRTS*(1+$G$75)^20","v":0},{"$f":"ADT1PedBEX_SRTS*(1+$H$75)^20","v":0},null,null,null,null,null,null,"Daily Trips - Year 20 (post-construction)",null,{"$f":"ADT1PedNBNew_SRTS*(1+$Q$75)^20","v":0},{"$f":"ADT1PedBNew_SRTS*(1+$R$75)^20","v":0},null,null,null,null,11,null,null,null,null,null,null,null,null,0,0]
[null,null,null,null,null,null,null,null,null,null,null,null,null,null,null,null,null,null,null,null,null,null,12,null,null,null,null,null,null,null,null,0,0]
[null,null,null,null,null,null,null,null,null,null,null,null,null,null,null,null,null,null,null,null,null,null,13,null,null,null,null,null,null,null,null,0,0]
[null,null,null,null,null,null,null,null,null,null,null,null,null,null,null,null,null,null,null,null,null,null,14,null,null,null,null,null,null,null,null,0,0]
[null,null,null,null,null,null,null,null,null,null,null,null,null,null,null,null,null,null,null,null,null,null,15,null,null,null,null,null,null,null,null,0,0]
[null,null,"1C","INTERSECTION IMPROVEMENTS - TIME SAVINGS AND ACCIDENT REDUCTION DATA",null,null,null,null,null,null,null,null,null,null,null,null,null,null,null,null,null,null,16,null,null,null,null,null,null,null,null,0,0]
[null,null,null,null,null,null,null,null,null,null,null,null,null,null,null,null,null,null,null,null,null,null,17,null,null,null,null,null,null,null,null,0,0]
[null,null,"Reduced Delay Due to Intersection Improvements",null,null,null,null,null,null,null,null,null,null,null,null,null,null,null,null,null,null,null,18,null,null,null,null,null,null,null,null,0,0]
[null,null,null,"Time Savings Parameters",null,null,null,null,null,null,null,null,null,null,null,null,null,null,null,null,null,null,19,null,null,null,null,null,null,null,null,0,0]
[null,null,null,null,"Number of Improved Intersections",null,null,null,null,null,null,null,null,null,null,null,null,null,null,null,null,null,20,null,null,null,null,null,null,null,null,0,0]
[null,null,null,null,"Time Savings per Improved Intersection (min.)",null,null,null,null,null,null,null,null,null,null,null,null,null,null,null,null,null,"Total",null,{"$f":"SUM(Y59:Y66)","v":0},{"$f":"SUM(Z59:Z66)","v":0},{"$f":"SUM(AA59:AA66)","v":0},{"$f":"SUM(AB68:AB87)","v":0},{"$f":"SUM(AC68:AC87)","v":0},null,null,{"$f":"SUM(AF59:AF87)","v":0},{"$f":"SUM(AG59:AG87)","v":0}]
[null,null,null,null,"Intersection improvements on SRTS? (enter 1 for Yes, 0 for No)"]
[null,null,null,null,null,null,null,null,null,null,null,null,null,null,null,null,null,null,null,null,null,null,"ATP REQUESTED FUNDS"]
[null,null,"Accident Rate - Current Conditions",null,null,null,null,null,null,null,null,null,null,null,null,null,null,null,null,null,null,null,"Total "]
[]
[null,null,null,"Cyclists",null,null,"Count (No.)","Rate per Year"]
[null,null,null,null,"Number of Years of Data"]
[]
[null,null,null,null,"Existing Conditions"]
[null,null,null,null,"Total Number of Accidents (Tot)",null,{"$f":"SUM(G98:G100)","v":0},{"$f":"IFERROR(G97/$G$94,0)","v":0}]
[null,null,null,null,"Number of Fatal Accidents (Fat)",null,null,{"$f":"IFERROR(G98/$G$94,0)","v":0}]
[null,null,null,null,"Number of Injury Accidents (Inj)",null,null,{"$f":"IFERROR(G99/$G$94,0)","v":0}]
[null,null,null,null,"Number of \\Property Damage Only (PDO) Accidents",null,null,{"$f":"IFERROR(G100/$G$94,0)","v":0}]
[null,null,null,null,"Annual Growth Rate in Accidents (%/year)"]
[]
[null,null,null,"Pedestrians",null,null,"Count (No.)","Rate per Year"]
[null,null,null,null,"Number of Years of Data"]
[]
[null,null,null,null,"Existing Conditions"]
[null,null,null,null,"Total Number of Accidents (Tot)",null,{"$f":"SUM(G108:G110)","v":0},{"$f":"IFERROR(G107/$G$104,0)","v":0}]
[null,null,null,null,"Number of Fatal Accidents (Fat)",null,null,{"$f":"IFERROR(G108/$G$104,0)","v":0}]
[null,null,null,null,"Number of Injury Accidents (Inj)",null,null,{"$f":"IFERROR(G109/$G$104,0)","v":0}]
[null,null,null,null,"Number of \\Property Damage Only (PDO) Accidents",null,null,{"$f":"IFERROR(G110/$G$104,0)","v":0}]
[null,null,null,null,"Annual Growth Rate in Accidents (%/year)"]
[]
[null,null,"Safety Countermeasures (improvements to existing facilities only)"]
[]
[null,null,null,"Signalized Intersection",null,null,null,"Yes =1"]
[null,null,null,null,"Pedestrian Countdown Signal Heads"]
[null,null,null,null,"Pedestrian Crossing"]
[null,null,null,null,"Advance Stop Bar before Crosswalk"]
[null,null,null,null,"Install Overpass/Underpass"]
[null,null,null,"Unsignalized Intersection"]
[null,null,null,null,"Raised Medians/Refuge Islands"]
[null,null,null,null,"Pedestrian Crossing (new signs and markings only)"]
[null,null,null,null,"Pedestrian Crossing (safety features/curb extensions)"]
[null,null,null,null,"Pedestrian Signals"]
[null,null,null,"Roadways - these issues may not be used to influence benefits"]
[null,null,null,null,"Bike Lanes"]
[null,null,null,null,"Sidewalk/Pathway (to avoid walking along roadway)"]
[null,null,null,null,"Pedestrian Crossing (with enhanced safety features)"]
[null,null,null,null,"Pedestrian Crossing"]
[null,null,null,"Other Reduction Factor Countermeasures"]

{"sheet":"1b) Non-Inf Program Info","index":4,"n_rows":86,"n_cols":9,"rows_kept":86,"cut":false,"hidden":false,"merged":[]}
[]
[null,null,"District: ",null,{"$f":"'1a) Project Info'!E2","v":"HQ"}]
[null,null,null,null,null,null,null,"EA:",{"$f":"'1a) Project Info'!I3","v":0}]
[null,null,"PROJECT:",null,{"$f":"'1a) Project Info'!E4","v":"Hypothetical Project"},null,null,"PPNO:",{"$f":"'1a) Project Info'!I4","v":0}]
[]
[]
[null,null,"1I","NON-INFRASTRUCTURE PROGRAM CHARACTERISTICS"]
[]
[]
[null,null,"Programmatic Initiatives?",null,null,null,null,{"$f":"IF('1a) Project Info'!H21=1,\"Yes\",\"No\")","v":"No"}]
[]
[null,null,"Scale of Initiative"]
[null,null,null,"Participants / Beneficiaries",null,null,null,null,"Data Check on Initiative"]
[null,null,null,null,"Numbers of People Reached per Year",null,null,null,{"$f":"IF(AND(H10=\"No\",H14>0),\"Not Ok\",\"OK\")","v":"OK"}]
[null,null,null,null,"Average Percentage of Current Active Bicyclists Reached per Year"]
[null,null,null,null,"Average Percentage of Current Active Pedestrians Reached per Year"]
[]
[null,null,"Scoring Criteria"]
[null,null,null,"Total Number of Criteria",null,null,null,null,4]
[null,null,null,"Total Criteria Weight Sum",null,null,null,null,{"$f":"IF(SUM(I23,I34,I45,I56)<>1,\"Not Correct\",SUM(I23,I34,I45,I56))","v":1}]
[]
[null,null,null,null,null,null,null,null,"Criteria Weight"]
[null,null,null,"1) Target Audience",null,null,null,null,0.25]
[]
[null,null,null,null,"Indicators",null,null,"(mark as %; sum must equal 100%)","Indicator Weight"]
[null,null,null,null,"Younger than 10","`",null,null,0.1]
[null,null,null,null,"10-12",null,null,null,0.2]
[null,null,null,null,"13-24",null,null,null,0.25]
[null,null,null,null,"25-55",null,null,null,0.15]
[null,null,null,null,"55+",null,null,null,0.05]
[null,null,null,null,"Indicator-Weighted Score",null,null,{"$f":"IF(SUM($H$26:$H$30)<>100%,\"Sum must equal 100%\",SUMPRODUCT(I26:I30,H26:H30))","v":"Sum must equal 100%"}]
[]
[null,null,null,null,null,null,null,null,"Criteria Weight"]
[null,null,null,"2) Characteristics Promotional Effort",null,null,null,null,0.25]
[]
[null,null,null,null,"Indicators",null,null,"(enter 1 for Yes on all that apply)","Indicator Weight"]
[null,null,null,null,"Effort Targets 5 E's or 5 P's",null,null,null,0.05]
[null,null,null,null,"Knowledgeable Staff/Educator",null,null,null,0.05]
[null,null,null,null,"Partnership/Volunteers",null,null,null,0.05]
[null,null,null,null,"Creates Community Ownership/Relationship",null,null,null,0.05]
[null,null,null,null,"Part of Bigger Effort (e.g., political support)",null,null,null,0.05]
[null,null,null,null,"Indicator-Weighted Score",null,null,{"$f":"SUMPRODUCT(I37:I41,H37:H41)","v":0}]
[]
[null,null,null,null,null,null,null,null,"Criteria Weight"]
[null,null,null,"3) Type of Impact and Messaging",null,null,null,null,0.25]
[]
[null,null,null,null,"Indicators",null,null,"(enter 1 for Yes on all that apply)","Indicator Weight"]
[null,null,null,null,"Outreach is Hands-on (self-efficacy)",null,null,null,0.05]
[null,null,null,null,"Overcome Barriers (e.g., dist., time, etc.)",null,null,null,0.05]
[null,null,null,null,"Eliminates Hazards/Threats (speed, crime, etc.)",null,null,null,0.05]
[null,null,null,null,"Connected or Addresses Connectivity Challenges",null,null,null,0.05]
[null,null,null,null,"Creating Value in Using Active Transportation",null,null,null,0.05]
[null,null,null,null,"Indicator-Weighted Score",null,null,{"$f":"SUMPRODUCT(I48:I52,H48:H52)","v":0}]
[]
[null,null,null,null,null,null,null,null,"Criteria Weight"]
[null,null,null,"4) Frequency of Outreach Effort",null,null,null,null,0.25]
[]
[null,null,null,null,"Indicators",null,null,"(enter 1 for Yes for only one option)","Indicator Weight"]
[null,null,null,null,"One Day",null,null,null,0.05]
[null,null,null,null,"One Month",null,null,null,0.1]
[null,null,null,null,"One Year",null,null,null,0.15]
[null,null,null,null,"Multiple Years",null,null,null,0.2]
[null,null,null,null,"Continuous Effort",null,null,null,0.25]
[null,null,null,null,"Indicator-Weighted Score",null,null,{"$f":"IF(SUM(H59:H63)>1,\"Choose Only 1 Option\",SUMPRODUCT(I59:I63,H59:H63))","v":0}]
[]
[null,null,null,"Projected New Active Transportation Cyclists"]
[null,null,null,null,"Number of Potential New Facility Users",null,null,{"$f":"$H$14*(1-$H$15)","v":0}]
[null,null,null,null,"Weighted Impact Score of Outreach",null,null,{"$f":"IFERROR(($H$42*$I$34+$H$53*$I$45+$H$64*$I$56+$H$31*$I$23)*$I$19,\"\")","v":""}]
[null,null,null,null,"Program Impact Score",null,null,{"$f":"IFERROR(H67*H68,\"\")","v":""}]
[null,null,null,null,"Years of Outreach",null,null,{"$f":"20-COUNTBLANK('1a) Project Info'!$AB$68:$AB$87)","v":0}]
[null,null,null,null,"Multi-year Program Impact Score",null,null,{"$f":"IFERROR(H70*H69,\"\")","v":""}]
[]
[null,null,null,"Cost Effectiveness"]
[null,null,null,null,"Total Discounted Cost",null,null,{"$f":"'1a) Project Info'!$AG$88","v":0}]
[null,null,null,null,"Cost per Program Impact Score",null,null,{"$f":"IFERROR(H74/H71,\"\")","v":""}]
[]
[null,null,null,"Projected New Active Transportation Pedestrians"]
[null,null,null,null,"Number of Potential New Facility Users",null,null,{"$f":"$H$14*(1-$H$16)","v":0}]
[null,null,null,null,"Weighted Impact Score of Outreach",null,null,{"$f":"IFERROR(($H$42*$I$34+$H$53*$I$45+$H$64*$I$56+$H$31*$I$23)*$I$19,\"\")","v":""}]
[null,null,null,null,"Program Impact Score",null,null,{"$f":"IFERROR(H78*H79,\"\")","v":""}]
[null,null,null,null,"Years of Outreach",null,null,{"$f":"20-COUNTBLANK('1a) Project Info'!$AB$68:$AB$87)","v":0}]
[null,null,null,null,"Multi-year Program Impact Score",null,null,{"$f":"IFERROR(H81*H80,\"\")","v":""}]
[]
[null,null,null,"Cost Effectiveness"]
[null,null,null,null,"Total Discounted Cost",null,null,{"$f":"'1a) Project Info'!$AG$88","v":0}]
[null,null,null,null,"Cost per Program Impact Score",null,null,{"$f":"IFERROR(H85/H82,\"\")","v":""}]

{"sheet":"2) Model Inputs","index":5,"n_rows":166,"n_cols":20,"rows_kept":166,"cut":false,"hidden":false,"merged":[]}
[]
[]
[null,null,"2A",null,"ACTIVE TRANSPORTATION DAILY VOLUME INPUTS - CYCLING - Existing Facility Segment",null,null,null,null,null,null,null,null,"2E",null,"ACTIVE TRANSPORTATION DAILY VOLUME INPUTS - PEDESTRIAN - Existing Facility Segment"]
[]
[null,null,null,null,null,"Calculated \nby Model","Changed \nby User","Used for \nProj. Eval.","Reason for Change",null,null,null,null,null,null,null,"Calculated \nby Model","Changed \nby User","Used for \nProj. Eval.","Reason for Change"]
[null,null,"No Build - Cycling",null,null,null,null,null,null,null,null,null,null,"No Build - Pedestrian"]
[null,null,null,"Year 1",null,null,null,null,null,null,null,null,null,null,"Year 1"]
[null,null,null,null,"Annual Trips - Commuting",{"$f":"ADT1CycNBEX*PerCommCycNB*CycleDays","v":0},null,{"$f":"IF(ISNUMBER(G8),G8,F8)","v":0},null,null,null,null,null,null,null,"Annual Trips - Commuting",{"$f":"ADT1PedNBEX*PerCommPedNB*CycleDays","v":0},null,{"$f":"IF(ISNUMBER(R8),R8,Q8)","v":0}]
[null,null,null,null,"Annual Trips - Other Destinations",{"$f":"ADT1CycNBEX*PerODCycNB*CycleDays","v":0},null,0,null,null,null,null,null,null,null,"Annual Trips - Other Destinations",{"$f":"ADT1PedNBEX*PerODPedNB*WalkDays","v":0},null,0]
[null,null,null,null,"Annual Trips - Recreational",{"$f":"ADT1CycNBEX*PerRecCycNB*CycleDays","v":0},null,{"$f":"IF(ISNUMBER(G10),G10,F10)*RecBen","v":0},{"$f":"IF(RecBen=0,\"Recreational Users not Included in Benefits\",\"\")","v":"Recreational Users not Included in Benefits"},null,null,null,null,null,null,"Annual Trips - Recreational",{"$f":"ADT1PedNBEX*PerRecPedNB*WalkDays","v":0},null,{"$f":"IF(ISNUMBER(R10),R10,Q10)*RecBen","v":0},{"$f":"IF(RecBen=0,\"Recreational Users not Included in Benefits\",\"\")","v":"Recreational Users not Included in Benefits"}]
[null,null,null,null,"Users - Commuting ",{"$f":"H8/(1+RTCycNB)","v":0},null,0,null,null,null,null,null,null,null,"Users - Commuting ",{"$f":"S8/(1+RTPedNB)","v":0},null,0]
[null,null,null,null,"Users - Other Destinations ",{"$f":"H9/(1+RTCycNB)","v":0},null,0,null,null,null,null,null,null,null,"Users - Other Destinations ",{"$f":"S9/(1+RTPedNB)","v":0},null,0]
[null,null,null,null,"Users - Recreational ",{"$f":"H10/2","v":0},null,{"$f":"IF(ISNUMBER(G13),G13,F13)*RecBen","v":0},{"$f":"IF(RecBen=0,\"Recreational Users not Included in Benefits\",\"\")","v":"Recreational Users not Included in Benefits"},null,null,null,null,null,null,"Users - Recreational ",{"$f":"S10/2","v":0},null,{"$f":"IF(ISNUMBER(R13),R13,Q13)*RecBen","v":0},{"$f":"IF(RecBen=0,\"Recreational Users not Included in Benefits\",\"\")","v":"Recreational Users not Included in Benefits"}]
[null,null,null,null,"Total Miles - Commuting ",{"$f":"H8*TAvMiCycNB*(1+RTCycNB)","v":0},null,0,null,null,null,null,null,null,null,"Total Miles - Commuting ",{"$f":"S8*TAvMiPedNB*(1+RTPedNB)","v":0},null,0]
[null,null,null,null,"Total Miles - Other Destinations ",{"$f":"H9*TAvMiCycNB*(1+RTCycNB)","v":0},null,0,null,null,null,null,null,null,null,"Total Miles - Other Destinations ",{"$f":"S9*TAvMiPedNB*(1+RTPedNB)","v":0},null,0]
[null,null,null,null,"Total Miles - Recreational ",{"$f":"H10*TAvMiCycNB","v":0},null,{"$f":"IF(ISNUMBER(G16),G16,F16)*RecBen","v":0},{"$f":"IF(RecBen=0,\"Recreational Users not Included in Benefits\",\"\")","v":"Recreational Users not Included in Benefits"},null,null,null,null,null,null,"Total Miles - Recreational ",{"$f":"S10*TAvMiPedNB","v":0},null,{"$f":"IF(ISNUMBER(R16),R16,Q16)*RecBen","v":0},{"$f":"IF(RecBen=0,\"Recreational Users not Included in Benefits\",\"\")","v":"Recreational Users not Included in Benefits"}]
[]
[null,null,null,"Year 20",null,null,null,null,null,null,null,null,null,null,"Year 20"]
[null,null,null,null,"Trips - Commuting",{"$f":"ADT20CycNBEX*PerCommCycNB*CycleDays","v":0},null,{"$f":"IF(ISNUMBER(G19),G19,F19)","v":0},null,null,null,null,null,null,null,"Annual Trips - Commuting",{"$f":"ADT20PedNBEX*PerCommPedNB*CycleDays","v":0},null,{"$f":"IF(ISNUMBER(R19),R19,Q19)","v":0}]
[null,null,null,null,"Trips - Other Destinations",{"$f":"ADT20CycNBEX*PerODCycNB*CycleDays","v":0},null,0,null,null,null,null,null,null,null,"Annual Trips - Other Destinations",{"$f":"ADT20PedNBEX*PerODPedNB*WalkDays","v":0},null,0]
[null,null,null,null,"Trips - Recreational",{"$f":"ADT20CycNBEX*PerRecCycNB*CycleDays","v":0},null,{"$f":"IF(ISNUMBER(G21),G21,F21)*RecBen","v":0},{"$f":"IF(RecBen=0,\"Recreational Users not Included in Benefits\",\"\")","v":"Recreational Users not Included in Benefits"},null,null,null,null,null,null,"Annual Trips - Recreational",{"$f":"ADT20PedNBEX*PerRecPedNB*WalkDays","v":0},null,{"$f":"IF(ISNUMBER(R21),R21,Q21)*RecBen","v":0},{"$f":"IF(RecBen=0,\"Recreational Users not Included in Benefits\",\"\")","v":"Recreational Users not Included in Benefits"}]
[null,null,null,null,"Users - Commuting ",{"$f":"H19/(1+RTCycNB)","v":0},null,0,null,null,null,null,null,null,null,"Users - Commuting ",{"$f":"S19/(1+RTPedNB)","v":0},null,0]
[null,null,null,null,"Users - Other Destinations ",{"$f":"H20/(1+RTCycNB)","v":0},null,0,null,null,null,null,null,null,null,"Users - Other Destinations ",{"$f":"S20/(1+RTPedNB)","v":0},null,0]
[null,null,null,null,"Users - Recreational ",{"$f":"H21/2","v":0},null,{"$f":"IF(ISNUMBER(G24),G24,F24)*RecBen","v":0},{"$f":"IF(RecBen=0,\"Recreational Users not Included in Benefits\",\"\")","v":"Recreational Users not Included in Benefits"},null,null,null,null,null,null,"Users - Recreational ",{"$f":"S21/2","v":0},null,{"$f":"IF(ISNUMBER(R24),R24,Q24)*RecBen","v":0},{"$f":"IF(RecBen=0,\"Recreational Users not Included in Benefits\",\"\")","v":"Recreational Users not Included in Benefits"}]
[null,null,null,null,"Total Miles - Commuting ",{"$f":"H19*TAvMiCycNB*(1+RTCycNB)","v":0},null,0,null,null,null,null,null,null,null,"Total Miles - Commuting ",{"$f":"S19*TAvMiPedNB*(1+RTPedNB)","v":0},null,0]
[null,null,null,null,"Total Miles - Other Destinations ",{"$f":"H20*TAvMiCycNB*(1+RTCycNB)","v":0},null,0,null,null,null,null,null,null,null,"Total Miles - Other Destinations ",{"$f":"S20*TAvMiPedNB*(1+RTPedNB)","v":0},null,0]
[null,null,null,null,"Total Miles - Recreational ",{"$f":"H21*TAvMiCycNB","v":0},null,{"$f":"IF(ISNUMBER(G27),G27,F27)*RecBen","v":0},{"$f":"IF(RecBen=0,\"Recreational Users not Included in Benefits\",\"\")","v":"Recreational Users not Included in Benefits"},null,null,null,null,null,null,"Total Miles - Recreational ",{"$f":"S21*TAvMiPedNB","v":0},null,{"$f":"IF(ISNUMBER(R27),R27,Q27)*RecBen","v":0},{"$f":"IF(RecBen=0,\"Recreational Users not Included in Benefits\",\"\")","v":"Recreational Users not Included in Benefits"}]
[]
[]
[null,null,"Build - Cycling",null,null,null,null,null,null,null,null,null,null,"Build - Pedestrian"]
[null,null,null,"Year 1",null,null,null,null,null,null,null,null,null,null,"Year 1"]
[]
[null,null,null,null,"Annual Trips - Commuting",{"$f":"ADT1CycBEX*PerCommCycB*CycleDays","v":0},null,{"$f":"IF(ISNUMBER(G33),G33,F33)","v":0},null,null,null,null,null,null,null,"Annual Trips - Commuting",{"$f":"ADT1PedBEX*PerCommPedB*CycleDays","v":0},null,{"$f":"IF(ISNUMBER(R33),R33,Q33)","v":0}]
[null,null,null,null,"Annual Trips - Other Destinations",{"$f":"ADT1CycBEX*PerODCycB*CycleDays","v":0},null,0,null,null,null,null,null,null,null,"Annual Trips - Other Destinations",{"$f":"ADT1PedBEX*PerODPedB*WalkDays","v":0},null,0]
[null,null,null,null,"Annual Trips - Recreational",{"$f":"ADT1CycBEX*PerRecCycB*CycleDays","v":0},null,{"$f":"IF(ISNUMBER(G35),G35,F35)*RecBen","v":0},{"$f":"IF(RecBen=0,\"Recreational Users not Included in Benefits\",\"\")","v":"Recreational Users not Included in Benefits"},null,null,null,null,null,null,"Annual Trips - Recreational",{"$f":"ADT1PedBEX*PerRecPedB*WalkDays","v":0},null,{"$f":"IF(ISNUMBER(R35),R35,Q35)*RecBen","v":0},{"$f":"IF(RecBen=0,\"Recreational Users not Included in Benefits\",\"\")","v":"Recreational Users not Included in Benefits"}]
[null,null,null,null,"Users - Commuting ",{"$f":"H33/(1+RTCycNB)","v":0},null,0,null,null,null,null,null,null,null,"Users - Commuting ",{"$f":"S33/(1+RTPedNB)","v":0},null,0]
[null,null,null,null,"Users - Other Destinations ",{"$f":"H34/(1+RTCycNB)","v":0},null,0,null,null,null,null,null,null,null,"Users - Other Destinations ",{"$f":"S34/(1+RTPedNB)","v":0},null,0]
[null,null,null,null,"Users - Recreational ",{"$f":"H35/2","v":0},null,{"$f":"IF(ISNUMBER(G38),G38,F38)*RecBen","v":0},{"$f":"IF(RecBen=0,\"Recreational Users not Included in Benefits\",\"\")","v":"Recreational Users not Included in Benefits"},null,null,null,null,null,null,"Users - Recreational ",{"$f":"S35/2","v":0},null,{"$f":"IF(ISNUMBER(R38),R38,Q38)*RecBen","v":0},{"$f":"IF(RecBen=0,\"Recreational Users not Included in Benefits\",\"\")","v":"Recreational Users not Included in Benefits"}]
[null,null,null,null,"Total Miles - Commuting ",{"$f":"H33*TAvMiCycB*(1+RTCycNB)","v":0},null,0,null,null,null,null,null,null,null,"Total Miles - Commuting ",{"$f":"S33*TAvMiPedB*(1+RTPedNB)","v":0},null,0]
[null,null,null,null,"Total Miles - Other Destinations ",{"$f":"H34*TAvMiCycB*(1+RTCycNB)","v":0},null,0,null,null,null,null,null,null,null,"Total Miles - Other Destinations ",{"$f":"S34*TAvMiPedB*(1+RTPedNB)","v":0},null,0]
[null,null,null,null,"Total Miles - Recreational ",{"$f":"H35*TAvMiCycB","v":0},null,{"$f":"IF(ISNUMBER(G41),G41,F41)*RecBen","v":0},{"$f":"IF(RecBen=0,\"Recreational Users not Included in Benefits\",\"\")","v":"Recreational Users not Included in Benefits"},null,null,null,null,null,null,"Total Miles - Recreational ",{"$f":"S35*TAvMiPedB","v":0},null,{"$f":"IF(ISNUMBER(R41),R41,Q41)*RecBen","v":0},{"$f":"IF(RecBen=0,\"Recreational Users not Included in Benefits\",\"\")","v":"Recreational Users not Included in Benefits"}]
[]
[null,null,null,"Year 20",null,null,null,null,null,null,null,null,null,null,"Year 20"]
[null,null,null,null,"Annual Trips - Commuting",{"$f":"ADT20CycBEX*PerCommCycB*CycleDays","v":0},null,{"$f":"IF(ISNUMBER(G44),G44,F44)","v":0},null,null,null,null,null,null,null,"Annual Trips - Commuting",{"$f":"ADT20PedBEX*PerCommPedB*CycleDays","v":0},null,{"$f":"IF(ISNUMBER(R44),R44,Q44)","v":0}]
[null,null,null,null,"Annual Trips - Other Destinations",{"$f":"ADT20CycBEX*PerODCycB*CycleDays","v":0},null,0,null,null,null,null,null,null,null,"Annual Trips - Other Destinations",{"$f":"ADT20PedBEX*PerODPedB*WalkDays","v":0},null,0]
[null,null,null,null,"Annual Trips - Recreational",{"$f":"ADT20CycBEX*PerRecCycB*CycleDays","v":0},null,{"$f":"IF(ISNUMBER(G46),G46,F46)*RecBen","v":0},{"$f":"IF(RecBen=0,\"Recreational Users not Included in Benefits\",\"\")","v":"Recreational Users not Included in Benefits"},null,null,null,null,null,null,"Annual Trips - Recreational",{"$f":"ADT20PedBEX*PerRecPedB*WalkDays","v":0},null,{"$f":"IF(ISNUMBER(R46),R46,Q46)*RecBen","v":0},{"$f":"IF(RecBen=0,\"Recreational Users not Included in Benefits\",\"\")","v":"Recreational Users not Included in Benefits"}]
[null,null,null,null,"Users - Commuting ",{"$f":"H44/(1+RTCycNB)","v":0},null,0,null,null,null,null,null,null,null,"Users - Commuting ",{"$f":"S44/(1+RTPedNB)","v":0},null,0]
[null,null,null,null,"Users - Other Destinations ",{"$f":"H45/(1+RTCycNB)","v":0},null,0,null,null,null,null,null,null,null,"Users - Other Destinations ",{"$f":"S45/(1+RTPedNB)","v":0},null,0]
[null,null,null,null,"Users - Recreational ",{"$f":"H46/2","v":0},null,{"$f":"IF(ISNUMBER(G49),G49,F49)*RecBen","v":0},{"$f":"IF(RecBen=0,\"Recreational Users not Included in Benefits\",\"\")","v":"Recreational Users not Included in Benefits"},null,null,null,null,null,null,"Users - Recreational ",{"$f":"S46/2","v":0},null,{"$f":"IF(ISNUMBER(R49),R49,Q49)*RecBen","v":0},{"$f":"IF(RecBen=0,\"Recreational Users not Included in Benefits\",\"\")","v":"Recreational Users not Included in Benefits"}]
[null,null,null,null,"Total Miles - Commuting ",{"$f":"H44*TAvMiCycB*(1+RTCycNB)","v":0},null,0,null,null,null,null,null,null,null,"Total Miles - Commuting ",{"$f":"S44*TAvMiPedB*(1+RTPedNB)","v":0},null,0]
[null,null,null,null,"Total Miles - Other Destinations ",{"$f":"H45*TAvMiCycB*(1+RTCycNB)","v":0},null,0,null,null,null,null,null,null,null,"Total Miles - Other Destinations ",{"$f":"S45*TAvMiPedB*(1+RTPedNB)","v":0},null,0]
[null,null,null,null,"Total Miles - Recreational ",{"$f":"H46*TAvMiCycB","v":0},null,{"$f":"IF(ISNUMBER(G52),G52,F52)*RecBen","v":0},{"$f":"IF(RecBen=0,\"Recreational Users not Included in Benefits\",\"\")","v":"Recreational Users not Included in Benefits"},null,null,null,null,null,null,"Total Miles - Recreational ",{"$f":"S46*TAvMiPedB","v":0},null,{"$f":"IF(ISNUMBER(R52),R52,Q52)*RecBen","v":0},{"$f":"IF(RecBen=0,\"Recreational Users not Included in Benefits\",\"\")","v":"Recreational Users not Included in Benefits"}]
[]
[]
[]
[]
[]
[null,null,"2B",null,"ACTIVE TRANSPORTATION DAILY VOLUME INPUTS - CYCLING - New Facility Segment",null,null,null,null,null,null,null,null,"2F",null,"ACTIVE TRANSPORTATION DAILY VOLUME INPUTS - PEDESTRIAN - New Facility Segment"]
[]
[null,null,null,null,null,"Calculated \nby Model",null,"Used for \nProj. Eval.","Reason for Change",null,null,null,null,null,null,null,"Calculated \nby Model",null,"Used for \nProj. Eval.","Reason for Change"]
[null,null,"No Build - Cycling",null,null,null,null,null,null,null,null,null,null,"No Build - Pedestrian"]
[null,null,null,"Year 1",null,null,null,null,null,null,null,null,null,null,"Year 1"]
[null,null,null,null,"Annual Trips - Commuting",{"$f":"ADT1CycNBNew*PerCommCycNB*CycleDays","v":0},null,{"$f":"IF(ISNUMBER(G63),G63,F63)","v":0},null,null,null,null,null,null,null,"Annual Trips - Commuting",{"$f":"ADT1PedNBNew*PerCommPedNB*CycleDays","v":0},null,{"$f":"IF(ISNUMBER(R63),R63,Q63)","v":0}]
[null,null,null,null,"Annual Trips - Other Destinations",{"$f":"ADT1CycNBNew*PerODCycNB*CycleDays","v":0},null,0,null,null,null,null,null,null,null,"Annual Trips - Other Destinations",{"$f":"ADT1PedNBNew*PerODPedNB*WalkDays","v":0},null,0]
[null,null,null,null,"Annual Trips - Recreational",{"$f":"ADT1CycNBNew*PerRecCycNB*CycleDays","v":0},null,{"$f":"IF(ISNUMBER(G65),G65,F65)*RecBen","v":0},{"$f":"IF(RecBen=0,\"Recreational Users not Included in Benefits\",\"\")","v":"Recreational Users not Included in Benefits"},null,null,null,null,null,null,"Annual Trips - Recreational",{"$f":"ADT1PedNBNew*PerRecPedNB*WalkDays","v":0},null,{"$f":"IF(ISNUMBER(R65),R65,Q65)*RecBen","v":0},{"$f":"IF(RecBen=0,\"Recreational Users not Included in Benefits\",\"\")","v":"Recreational Users not Included in Benefits"}]
[null,null,null,null,"Users - Commuting ",{"$f":"H63/(1+RTCycNB)","v":0},null,0,null,null,null,null,null,null,null,"Users - Commuting ",{"$f":"S63/(1+RTPedNB)","v":0},null,0]
[null,null,null,null,"Users - Other Destinations ",{"$f":"H64/(1+RTCycNB)","v":0},null,0,null,null,null,null,null,null,null,"Users - Other Destinations ",{"$f":"S64/(1+RTPedNB)","v":0},null,0]
[null,null,null,null,"Users - Recreational ",{"$f":"H65/2","v":0},null,{"$f":"IF(ISNUMBER(G68),G68,F68)*RecBen","v":0},{"$f":"IF(RecBen=0,\"Recreational Users not Included in Benefits\",\"\")","v":"Recreational Users not Included in Benefits"},null,null,null,null,null,null,"Users - Recreational ",{"$f":"S65/2","v":0},null,{"$f":"IF(ISNUMBER(R68),R68,Q68)*RecBen","v":0},{"$f":"IF(RecBen=0,\"Recreational Users not Included in Benefits\",\"\")","v":"Recreational Users not Included in Benefits"}]
[null,null,null,null,"Total Miles - Commuting ",{"$f":"H63*TAvMiCycNB*(1+RTCycNB)","v":0},null,0,null,null,null,null,null,null,null,"Total Miles - Commuting ",{"$f":"S63*TAvMiPedNB*(1+RTPedNB)","v":0},null,0]
[null,null,null,null,"Total Miles - Other Destinations ",{"$f":"H64*TAvMiCycNB*(1+RTCycNB)","v":0},null,0,null,null,null,null,null,null,null,"Total Miles - Other Destinations ",{"$f":"S64*TAvMiPedNB*(1+RTPedNB)","v":0},null,0]
[null,null,null,null,"Total Miles - Recreational ",{"$f":"H65*TAvMiCycNB","v":0},null,{"$f":"IF(ISNUMBER(G71),G71,F71)*RecBen","v":0},{"$f":"IF(RecBen=0,\"Recreational Users not Included in Benefits\",\"\")","v":"Recreational Users not Included in Benefits"},null,null,null,null,null,null,"Total Miles - Recreational ",{"$f":"S65*TAvMiPedNB","v":0},null,{"$f":"IF(ISNUMBER(R71),R71,Q71)*RecBen","v":0},{"$f":"IF(RecBen=0,\"Recreational Users not Included in Benefits\",\"\")","v":"Recreational Users not Included in Benefits"}]
[]
[null,null,null,"Year 20",null,null,null,null,null,null,null,null,null,null,"Year 20"]
[null,null,null,null,"Trips - Commuting",{"$f":"ADT20CycNBNew*PerCommCycNB*CycleDays","v":0},null,{"$f":"IF(ISNUMBER(G74),G74,F74)","v":0},null,null,null,null,null,null,null,"Annual Trips - Commuting",{"$f":"ADT20PedNBNew*PerCommPedNB*CycleDays","v":0},null,{"$f":"IF(ISNUMBER(R74),R74,Q74)","v":0}]
[null,null,null,null,"Trips - Other Destinations",{"$f":"ADT20CycNBNew*PerODCycNB*CycleDays","v":0},null,0,null,null,null,null,null,null,null,"Annual Trips - Other Destinations",{"$f":"ADT20PedNBNew*PerODPedNB*WalkDays","v":0},null,0]
[null,null,null,null,"Trips - Recreational",{"$f":"ADT20CycNBNew*PerRecCycNB*CycleDays","v":0},null,{"$f":"IF(ISNUMBER(G76),G76,F76)*RecBen","v":0},{"$f":"IF(RecBen=0,\"Recreational Users not Included in Benefits\",\"\")","v":"Recreational Users not Included in Benefits"},null,null,null,null,null,null,"Annual Trips - Recreational",{"$f":"ADT20PedNBNew*PerRecPedNB*WalkDays","v":0},null,{"$f":"IF(ISNUMBER(R76),R76,Q76)*RecBen","v":0},{"$f":"IF(RecBen=0,\"Recreational Users not Included in Benefits\",\"\")","v":"Recreational Users not Included in Benefits"}]
[null,null,null,null,"Users - Commuting ",{"$f":"H74/(1+RTCycNB)","v":0},null,0,null,null,null,null,null,null,null,"Users - Commuting ",{"$f":"S74/(1+RTPedNB)","v":0},null,0]
[null,null,null,null,"Users - Other Destinations ",{"$f":"H75/(1+RTCycNB)","v":0},null,0,null,null,null,null,null,null,null,"Users - Other Destinations ",{"$f":"S75/(1+RTPedNB)","v":0},null,0]
[null,null,null,null,"Users - Recreational ",{"$f":"H76/2","v":0},null,{"$f":"IF(ISNUMBER(G79),G79,F79)*RecBen","v":0},{"$f":"IF(RecBen=0,\"Recreational Users not Included in Benefits\",\"\")","v":"Recreational Users not Included in Benefits"},null,null,null,null,null,null,"Users - Recreational ",{"$f":"S76/2","v":0},null,{"$f":"IF(ISNUMBER(R79),R79,Q79)*RecBen","v":0},{"$f":"IF(RecBen=0,\"Recreational Users not Included in Benefits\",\"\")","v":"Recreational Users not Included in Benefits"}]
[null,null,null,null,"Total Miles - Commuting ",{"$f":"H74*TAvMiCycNB*(1+RTCycNB)","v":0},null,0,null,null,null,null,null,null,null,"Total Miles - Commuting ",{"$f":"S74*TAvMiPedNB*(1+RTPedNB)","v":0},null,0]
[null,null,null,null,"Total Miles - Other Destinations ",{"$f":"H75*TAvMiCycNB*(1+RTCycNB)","v":0},null,0,null,null,null,null,null,null,null,"Total Miles - Other Destinations ",{"$f":"S75*TAvMiPedNB*(1+RTPedNB)","v":0},null,0]
[null,null,null,null,"Total Miles - Recreational ",{"$f":"H76*TAvMiCycNB","v":0},null,{"$f":"IF(ISNUMBER(G82),G82,F82)*RecBen","v":0},{"$f":"IF(RecBen=0,\"Recreational Users not Included in Benefits\",\"\")","v":"Recreational Users not Included in Benefits"},null,null,null,null,null,null,"Total Miles - Recreational ",{"$f":"S76*TAvMiPedNB","v":0},null,{"$f":"IF(ISNUMBER(R82),R82,Q82)*RecBen","v":0},{"$f":"IF(RecBen=0,\"Recreational Users not Included in Benefits\",\"\")","v":"Recreational Users not Included in Benefits"}]
[]
[]
[null,null,"Build - Cycling",null,null,null,null,null,null,null,null,null,null,"Build - Pedestrian"]
[null,null,null,"Year 1",null,null,null,null,null,null,null,null,null,null,"Year 1"]
[]
[null,null,null,null,"Annual Trips - Commuting",{"$f":"ADT1CycBNew*PerCommCycB*CycleDays","v":0},null,{"$f":"IF(ISNUMBER(G88),G88,F88)","v":0},null,null,null,null,null,null,null,"Annual Trips - Commuting",{"$f":"ADT1PedBNew*PerCommPedB*CycleDays","v":0},null,{"$f":"IF(ISNUMBER(R88),R88,Q88)","v":0}]
[null,null,null,null,"Annual Trips - Other Destinations",{"$f":"ADT1CycBNew*PerODCycB*CycleDays","v":0},null,0,null,null,null,null,null,null,null,"Annual Trips - Other Destinations",{"$f":"ADT1PedBNew*PerODPedB*WalkDays","v":0},null,0]
[null,null,null,null,"Annual Trips - Recreational",{"$f":"ADT1CycBNew*PerRecCycB*CycleDays","v":0},null,{"$f":"IF(ISNUMBER(G90),G90,F90)*RecBen","v":0},{"$f":"IF(RecBen=0,\"Recreational Users not Included in Benefits\",\"\")","v":"Recreational Users not Included in Benefits"},null,null,null,null,null,null,"Annual Trips - Recreational",{"$f":"ADT1PedBNew*PerRecPedB*WalkDays","v":0},null,{"$f":"IF(ISNUMBER(R90),R90,Q90)*RecBen","v":0},{"$f":"IF(RecBen=0,\"Recreational Users not Included in Benefits\",\"\")","v":"Recreational Users not Included in Benefits"}]
[null,null,null,null,"Users - Commuting ",{"$f":"H88/(1+RTCycNB)","v":0},null,0,null,null,null,null,null,null,null,"Users - Commuting ",{"$f":"S88/(1+RTPedNB)","v":0},null,0]
[null,null,null,null,"Users - Other Destinations ",{"$f":"H89/(1+RTCycNB)","v":0},null,0,null,null,null,null,null,null,null,"Users - Other Destinations ",{"$f":"S89/(1+RTPedNB)","v":0},null,0]
[null,null,null,null,"Users - Recreational ",{"$f":"H90/2","v":0},null,{"$f":"IF(ISNUMBER(G93),G93,F93)*RecBen","v":0},{"$f":"IF(RecBen=0,\"Recreational Users not Included in Benefits\",\"\")","v":"Recreational Users not Included in Benefits"},null,null,null,null,null,null,"Users - Recreational ",{"$f":"S90/2","v":0},null,{"$f":"IF(ISNUMBER(R93),R93,Q93)*RecBen","v":0},{"$f":"IF(RecBen=0,\"Recreational Users not Included in Benefits\",\"\")","v":"Recreational Users not Included in Benefits"}]
[null,null,null,null,"Total Miles - Commuting ",{"$f":"H88*TAvMiCycB*(1+RTCycNB)","v":0},null,0,null,null,null,null,null,null,null,"Total Miles - Commuting ",{"$f":"S88*TAvMiPedB*(1+RTPedNB)","v":0},null,0]
[null,null,null,null,"Total Miles - Other Destinations ",{"$f":"H89*TAvMiCycB*(1+RTCycNB)","v":0},null,0,null,null,null,null,null,null,null,"Total Miles - Other Destinations ",{"$f":"S89*TAvMiPedB*(1+RTPedNB)","v":0},null,0]
[null,null,null,null,"Total Miles - Recreational ",{"$f":"H90*TAvMiCycB","v":0},null,{"$f":"IF(ISNUMBER(G96),G96,F96)*RecBen","v":0},{"$f":"IF(RecBen=0,\"Recreational Users not Included in Benefits\",\"\")","v":"Recreational Users not Included in Benefits"},null,null,null,null,null,null,"Total Miles - Recreational ",{"$f":"S90*TAvMiPedB","v":0},null,{"$f":"IF(ISNUMBER(R96),R96,Q96)*RecBen","v":0},{"$f":"IF(RecBen=0,\"Recreational Users not Included in Benefits\",\"\")","v":"Recreational Users not Included in Benefits"}]
[]
[null,null,null,"Year 20",null,null,null,null,null,null,null,null,null,null,"Year 20"]
[null,null,null,null,"Annual Trips - Commuting",{"$f":"ADT20CycBNew*PerCommCycB*CycleDays","v":0},null,{"$f":"IF(ISNUMBER(G99),G99,F99)","v":0},null,null,null,null,null,null,null,"Annual Trips - Commuting",{"$f":"ADT20PedBNew*PerCommPedB*CycleDays","v":0},null,{"$f":"IF(ISNUMBER(R99),R99,Q99)","v":0}]
[null,null,null,null,"Annual Trips - Other Destinations",{"$f":"ADT20CycBNew*PerODCycB*CycleDays","v":0},null,0,null,null,null,null,null,null,null,"Annual Trips - Other Destinations",{"$f":"ADT20PedBNew*PerODPedB*WalkDays","v":0},null,0]
[null,null,null,null,"Annual Trips - Recreational",{"$f":"ADT20CycBNew*PerRecCycB*CycleDays","v":0},null,{"$f":"IF(ISNUMBER(G101),G101,F101)*RecBen","v":0},{"$f":"IF(RecBen=0,\"Recreational Users not Included in Benefits\",\"\")","v":"Recreational Users not Included in Benefits"},null,null,null,null,null,null,"Annual Trips - Recreational",{"$f":"ADT20PedBNew*PerRecPedB*WalkDays","v":0},null,{"$f":"IF(ISNUMBER(R101),R101,Q101)*RecBen","v":0},{"$f":"IF(RecBen=0,\"Recreational Users not Included in Benefits\",\"\")","v":"Recreational Users not Included in Benefits"}]
[null,null,null,null,"Users - Commuting ",{"$f":"H99/(1+RTCycNB)","v":0},null,0,null,null,null,null,null,null,null,"Users - Commuting ",{"$f":"S99/(1+RTPedNB)","v":0},null,0]
[null,null,null,null,"Users - Other Destinations ",{"$f":"H100/(1+RTCycNB)","v":0},null,0,null,null,null,null,null,null,null,"Users - Other Destinations ",{"$f":"S100/(1+RTPedNB)","v":0},null,0]
[null,null,null,null,"Users - Recreational ",{"$f":"H101/2","v":0},null,{"$f":"IF(ISNUMBER(G104),G104,F104)*RecBen","v":0},{"$f":"IF(RecBen=0,\"Recreational Users not Included in Benefits\",\"\")","v":"Recreational Users not Included in Benefits"},null,null,null,null,null,null,"Users - Recreational ",{"$f":"S101/2","v":0},null,{"$f":"IF(ISNUMBER(R104),R104,Q104)*RecBen","v":0},{"$f":"IF(RecBen=0,\"Recreational Users not Included in Benefits\",\"\")","v":"Recreational Users not Included in Benefits"}]
[null,null,null,null,"Total Miles - Commuting ",{"$f":"H99*TAvMiCycB*(1+RTCycNB)","v":0},null,0,null,null,null,null,null,null,null,"Total Miles - Commuting ",{"$f":"S99*TAvMiPedB*(1+RTPedNB)","v":0},null,0]
[null,null,null,null,"Total Miles - Other Destinations ",{"$f":"H100*TAvMiCycB*(1+RTCycNB)","v":0},null,0,null,null,null,null,null,null,null,"Total Miles - Other Destinations ",{"$f":"S100*TAvMiPedB*(1+RTPedNB)","v":0},null,0]
[null,null,null,null,"Total Miles - Recreational ",{"$f":"H101*TAvMiCycB","v":0},null,{"$f":"IF(ISNUMBER(G107),G107,F107)*RecBen","v":0},{"$f":"IF(RecBen=0,\"Recreational Users not Included in Benefits\",\"\")","v":"Recreational Users not Included in Benefits"},null,null,null,null,null,null,"Total Miles - Recreational ",{"$f":"S101*TAvMiPedB","v":0},null,{"$f":"IF(ISNUMBER(R107),R107,Q107)*RecBen","v":0},{"$f":"IF(RecBen=0,\"Recreational Users not Included in Benefits\",\"\")","v":"Recreational Users not Included in Benefits"}]
[]
[]
[]
[]
[null,null,"2C",null,"ACTIVE TRANSPORTATION DAILY VOLUME INPUTS - CYCLING - New Safe Routes To School",null,null,null,null,null,null,null,null,"2G",null,"ACTIVE TRANSPORTATION DAILY VOLUME INPUTS - PEDESTRIAN -  New Safe Routes To School"]
[]
[null,null,null,null,null,"Calculated \nby Model","Changed \nby User","Used for \nProj. Eval.","Reason for Change",null,null,null,null,null,null,null,"Calculated \nby Model","Changed \nby User","Used for \nProj. Eval.","Reason for Change"]
[null,null,"No Build - Cycling",null,null,null,null,null,null,null,null,null,null,"No Build - Pedestrian"]
[null,null,null,"Year 1",null,null,null,null,null,null,null,null,null,null,"Year 1"]
[null,null,null,null,"Annual Trips - SRTS",{"$f":"ADT1CycNBNew_SRTS*SchDays","v":0},null,{"$f":"IF(ISNUMBER(G117),G117,F117)","v":0},null,null,null,null,null,null,null,"Annual Trips - SRTS",{"$f":"ADT1PedNBNew_SRTS*SchDays","v":0},null,{"$f":"IF(ISNUMBER(R117),R117,Q117)","v":0}]
[null,null,null,null,"SRTS Users",{"$f":"ADT1CycNBNew_SRTS*SchDays/(1+RTCycNB)","v":0},null,{"$f":"IF(ISNUMBER(G118),G118,F118)","v":0},null,null,null,null,null,null,null,"SRTS Users",{"$f":"ADT1PedNBNew_SRTS*SchDays/(1+RTPedNB)","v":0},null,{"$f":"IF(ISNUMBER(R118),R118,Q118)","v":0}]
[null,null,null,null,"Total Miles - SRTS",{"$f":"H118*TAvMiCycNBSRTS*(1+RTCycNB)","v":0},null,{"$f":"IF(ISNUMBER(G119),G119,F119)","v":0},null,null,null,null,null,null,null,"Total Miles - SRTS",{"$f":"S118*TAvMiPedNBSRTS*(1+RTPedNB)","v":0},null,{"$f":"IF(ISNUMBER(R119),R119,Q119)","v":0}]
[]
[null,null,null,"Year 20",null,null,null,null,null,null,null,null,null,null,"Year 20"]
[null,null,null,null,"Annual Trips - SRTS",{"$f":"ADT20CycNBNew_SRTS*SchDays","v":0},null,{"$f":"IF(ISNUMBER(G122),G122,F122)","v":0},null,null,null,null,null,null,null,"Annual Trips - SRTS",{"$f":"ADT20PedNBNew_SRTS*SchDays","v":0},null,{"$f":"IF(ISNUMBER(R122),R122,Q122)","v":0}]
[null,null,null,null,"SRTS Users",{"$f":"ADT20CycNBNew_SRTS*SchDays/(1+RTCycNB)","v":0},null,{"$f":"IF(ISNUMBER(G123),G123,F123)","v":0},null,null,null,null,null,null,null,"SRTS Users",{"$f":"ADT20PedNBNew_SRTS*SchDays/(1+RTPedNB)","v":0},null,{"$f":"IF(ISNUMBER(R123),R123,Q123)","v":0}]
[null,null,null,null,"Total Miles - SRTS",{"$f":"H123*TAvMiCycNBSRTS*(1+RTCycNB)","v":0},null,{"$f":"IF(ISNUMBER(G124),G124,F124)","v":0},null,null,null,null,null,null,null,"Total Miles - SRTS",{"$f":"S123*TAvMiPedNBSRTS*(1+RTPedNB)","v":0},null,{"$f":"IF(ISNUMBER(R124),R124,Q124)","v":0}]
[]
[null,null,"Build - Cycling",null,null,null,null,null,null,null,null,null,null,"Build - Pedestrian"]
[null,null,null,"Year 1",null,null,null,null,null,null,null,null,null,null,"Year 1"]
[null,null,null,null,"Annual Trips - SRTS",{"$f":"ADT1CycBNew_SRTS*SchDays","v":0},null,{"$f":"IF(ISNUMBER(G128),G128,F128)","v":0},null,null,null,null,null,null,null,"Annual Trips - SRTS",{"$f":"ADT1PedBNew_SRTS*SchDays","v":0},null,{"$f":"IF(ISNUMBER(R128),R128,Q128)","v":0}]
[null,null,null,null,"SRTS Users",{"$f":"ADT1CycBNew_SRTS*SchDays/(1+RTCycNB)","v":0},null,{"$f":"IF(ISNUMBER(G129),G129,F129)","v":0},null,null,null,null,null,null,null,"SRTS Users",{"$f":"ADT1PedBNew_SRTS*SchDays/(1+RTPedNB)","v":0},null,{"$f":"IF(ISNUMBER(R129),R129,Q129)","v":0}]
[null,null,null,null,"Total Miles - SRTS",{"$f":"H129*TAvMiCycNBSRTS*(1+RTCycNB)","v":0},null,{"$f":"IF(ISNUMBER(G130),G130,F130)","v":0},null,null,null,null,null,null,null,"Total Miles - SRTS",{"$f":"S129*TAvMiPedNBSRTS*(1+RTPedNB)","v":0},null,{"$f":"IF(ISNUMBER(R130),R130,Q130)","v":0}]
[]
[null,null,null,"Year 20",null,null,null,null,null,null,null,null,null,null,"Year 20"]
[null,null,null,null,"Annual Trips - SRTS",{"$f":"ADT20CycBNew_SRTS*SchDays","v":0},null,{"$f":"IF(ISNUMBER(G133),G133,F133)","v":0},null,null,null,null,null,null,null,"Annual Trips - SRTS",{"$f":"ADT20PedBNew_SRTS*SchDays","v":0},null,{"$f":"IF(ISNUMBER(R133),R133,Q133)","v":0}]
[null,null,null,null,"SRTS Users",{"$f":"ADT20CycBNew_SRTS*SchDays/(1+RTCycNB)","v":0},null,{"$f":"IF(ISNUMBER(G134),G134,F134)","v":0},null,null,null,null,null,null,null,"SRTS Users",{"$f":"ADT20PedBNew_SRTS*SchDays/(1+RTPedNB)","v":0},null,{"$f":"IF(ISNUMBER(R134),R134,Q134)","v":0}]
[null,null,null,null,"Total Miles - SRTS",{"$f":"H134*TAvMiCycNBSRTS*(1+RTCycNB)","v":0},null,{"$f":"IF(ISNUMBER(G135),G135,F135)","v":0},null,null,null,null,null,null,null,"Total Miles - SRTS",{"$f":"S134*TAvMiPedNBSRTS*(1+RTPedNB)","v":0},null,{"$f":"IF(ISNUMBER(R135),R135,Q135)","v":0}]
[]
[]
[]
[]
[null,null,"2D",null,"ACTIVE TRANSPORTATION DAILY VOLUME INPUTS - CYCLING - Existing Safe Routes To School",null,null,null,null,null,null,null,null,"2H",null,"ACTIVE TRANSPORTATION DAILY VOLUME INPUTS - PEDESTRIAN - Existing Safe Routes To School"]
[]
[null,null,null,null,null,"Calculated \nby Model","Changed \nby User","Used for \nProj. Eval.","Reason for Change",null,null,null,null,null,null,null,"Calculated \nby Model","Changed \nby User","Used for \nProj. Eval.","Reason for Change"]
[null,null,"No Build - Cycling",null,null,null,null,null,null,null,null,null,null,"No Build - Pedestrian"]
[null,null,null,"Year 1",null,null,null,null,null,null,null,null,null,null,"Year 1"]
[null,null,null,null,"Annual Trips - SRTS",{"$f":"ADT1CycNBEX_SRTS*SchDays","v":0},null,{"$f":"IF(ISNUMBER(G145),G145,F145)","v":0},null,null,null,null,null,null,null,"Annual Trips - SRTS",{"$f":"ADT1PedNBEX_SRTS*SchDays","v":0},null,{"$f":"IF(ISNUMBER(R145),R145,Q145)","v":0}]
[null,null,null,null,"SRTS Users",{"$f":"ADT1CycNBEX_SRTS*SchDays/(1+RTCycNB)","v":0},null,{"$f":"IF(ISNUMBER(G146),G146,F146)","v":0},null,null,null,null,null,null,null,"SRTS Users",{"$f":"ADT1PedNBEX_SRTS*SchDays/(1+RTPedNB)","v":0},null,{"$f":"IF(ISNUMBER(R146),R146,Q146)","v":0}]
[null,null,null,null,"Total Miles - SRTS",{"$f":"H146*TAvMiCycNBSRTS*(1+RTCycNB)","v":0},null,{"$f":"IF(ISNUMBER(G147),G147,F147)","v":0},null,null,null,null,null,null,null,"Total Miles - SRTS",{"$f":"S146*TAvMiPedNBSRTS*(1+RTPedNB)","v":0},null,{"$f":"IF(ISNUMBER(R147),R147,Q147)","v":0}]
[]
[null,null,null,"Year 20",null,null,null,null,null,null,null,null,null,null,"Year 20"]
[null,null,null,null,"Annual Trips - SRTS",{"$f":"ADT20CycNBEX_SRTS*SchDays","v":0},null,{"$f":"IF(ISNUMBER(G150),G150,F150)","v":0},null,null,null,null,null,null,null,"Annual Trips - SRTS",{"$f":"ADT20PedNBEX_SRTS*SchDays","v":0},null,{"$f":"IF(ISNUMBER(R150),R150,Q150)","v":0}]
[null,null,null,null,"SRTS Users",{"$f":"ADT20CycNBEX_SRTS*SchDays/(1+RTCycNB)","v":0},null,{"$f":"IF(ISNUMBER(G151),G151,F151)","v":0},null,null,null,null,null,null,null,"SRTS Users",{"$f":"ADT20PedNBEX_SRTS*SchDays/(1+RTPedNB)","v":0},null,{"$f":"IF(ISNUMBER(R151),R151,Q151)","v":0}]
[null,null,null,null,"Total Miles - SRTS",{"$f":"H151*TAvMiCycNBSRTS*(1+RTCycNB)","v":0},null,{"$f":"IF(ISNUMBER(G152),G152,F152)","v":0},null,null,null,null,null,null,null,"Total Miles - SRTS",{"$f":"S151*TAvMiPedNBSRTS*(1+RTPedNB)","v":0},null,{"$f":"IF(ISNUMBER(R152),R152,Q152)","v":0}]
[]
[null,null,"Build - Cycling",null,null,null,null,null,null,null,null,null,null,"Build - Pedestrian"]
[null,null,null,"Year 1",null,null,null,null,null,null,null,null,null,null,"Year 1"]
[null,null,null,null,"Annual Trips - SRTS",{"$f":"ADT1CycBEX_SRTS*SchDays","v":0},null,{"$f":"IF(ISNUMBER(G156),G156,F156)","v":0},null,null,null,null,null,null,null,"Annual Trips - SRTS",{"$f":"ADT1PedBEX_SRTS*SchDays","v":0},null,{"$f":"IF(ISNUMBER(R156),R156,Q156)","v":0}]
[null,null,null,null,"SRTS Users",{"$f":"ADT1CycBEX_SRTS*SchDays/(1+RTCycNB)","v":0},null,{"$f":"IF(ISNUMBER(G157),G157,F157)","v":0},null,null,null,null,null,null,null,"SRTS Users",{"$f":"ADT1PedBEX_SRTS*SchDays/(1+RTPedNB)","v":0},null,{"$f":"IF(ISNUMBER(R157),R157,Q157)","v":0}]
[null,null,null,null,"Total Miles - SRTS",{"$f":"H157*TAvMiCycNBSRTS*(1+RTCycNB)","v":0},null,{"$f":"IF(ISNUMBER(G158),G158,F158)","v":0},null,null,null,null,null,null,null,"Total Miles - SRTS",{"$f":"S157*TAvMiPedNBSRTS*(1+RTPedNB)","v":0},null,{"$f":"IF(ISNUMBER(R158),R158,Q158)","v":0}]
[]
[null,null,null,"Year 20",null,null,null,null,null,null,null,null,null,null,"Year 20"]
[null,null,null,null,"Annual Trips - SRTS",{"$f":"ADT20CycBEX_SRTS*SchDays","v":0},null,{"$f":"IF(ISNUMBER(G161),G161,F161)","v":0},null,null,null,null,null,null,null,"Annual Trips - SRTS",{"$f":"ADT20PedBEX_SRTS*SchDays","v":0},null,{"$f":"IF(ISNUMBER(R161),R161,Q161)","v":0}]
[null,null,null,null,"SRTS Users",{"$f":"ADT20CycBEX_SRTS*SchDays/(1+RTCycNB)","v":0},null,{"$f":"IF(ISNUMBER(G162),G162,F162)","v":0},null,null,null,null,null,null,null,"SRTS Users",{"$f":"ADT20PedBEX_SRTS*SchDays/(1+RTPedNB)","v":0},null,{"$f":"IF(ISNUMBER(R162),R162,Q162)","v":0}]
[null,null,null,null,"Total Miles - SRTS",{"$f":"H162*TAvMiCycNBSRTS*(1+RTCycNB)","v":0},null,{"$f":"IF(ISNUMBER(G163),G163,F163)","v":0},null,null,null,null,null,null,null,"Total Miles - SRTS",{"$f":"S162*TAvMiPedNBSRTS*(1+RTPedNB)","v":0},null,{"$f":"IF(ISNUMBER(R163),R163,Q163)","v":0}]
[]
[null,null,"PROPORTIONS OF SRTS IN TOTAL BENEFITS",null,null,null,null,null,null,null,null,null,null,"PROPORTIONS OF SRTS IN TOTAL BENEFITS"]
[null,null,null,null,"SRTS Trip-Mile / Total Trip-Mile",{"$f":"IF(ProjType=2,$H$119/(SUM($H$14:$H$16,$H$119)),IF(OR(ProjType=1,ProjType=3),$H$147/(SUM($H$14:$H$16,$H$147))))","v":false},null,{"$f":"IF(ISNUMBER(G166),G166,F166)","v":false},null,null,null,null,null,null,null,"SRTS Trip-Mile / Total Trip-Mile",{"$f":"IF(ProjType=2,$S$119/(SUM($S$14:$S$16,$S$119)),IF(OR(ProjType=1,ProjType=3),$S$147/(SUM($S$14:$S$16,$S$147))))","v":false},null,{"$f":"IF(ISNUMBER(R166),R166,Q166)","v":false}]

{"sheet":"3) Results","index":6,"n_rows":36,"n_cols":16,"rows_kept":36,"cut":false,"hidden":false,"merged":[[24,4,24,6],[25,4,25,6],[31,5,36,8]]}
[]
[null,"District: ",null,null,{"$f":"'1a) Project Info'!E2","v":"HQ"}]
[null,null,null,null,null,null,null,null,null,null,null,null,null,null,"EA:",{"$f":"'1a) Project Info'!I3","v":0}]
[null,"PROJECT:",null,null,{"$f":"ProjName","v":"Hypothetical Project"},null,null,null,null,null,null,null,null,null,"PPNO:",{"$f":"'1a) Project Info'!I4","v":0}]
[]
[]
[]
[null,null,null,3,"INVESTMENT ANALYSIS"]
[null,null,null,null,"SUMMARY RESULTS"]
[]
[null,null,null,null,null,null,null,null,null,null,null,null,null,null,"Average","Total Over"]
[null,null,null,null,"Life-Cycle Costs (mil. $) ",null,null,{"$f":"lifecyclecost/1000000","v":0},null,null,null,"ITEMIZED BENEFITS (mil. $)",null,null,"Annual","20 Years"]
[null,null,null,null,"Life-Cycle Benefits (mil. $) ",null,null,{"$f":"lifecyclebenefits/1000000","v":0},null,null,null,"     Journey Quality",null,null,{"$f":"P13/20","v":0},{"$f":"('Final Calculations'!C56)/1000000","v":0}]
[null,null,null,null,"Net Present Value (mil. $)",null,null,{"$f":"NetPresentValue/1000000","v":0},null,null,null,"     Additional Delay Savings",null,null,0,{"$f":"('Final Calculations'!D56)/1000000","v":0}]
[null,null,null,null,null,null,null,null,null,null,null,"     Additional Safety Benefits",null,null,0,{"$f":"('Final Calculations'!E56)/1000000","v":0}]
[null,null,null,null,null,null,null,null,null,null,null,"     Health Benefits",null,null,0,{"$f":"('Final Calculations'!F56)/1000000","v":0}]
[null,null,null,null,"Benefit / Cost Ratio:",null,null,{"$f":"IF(lifecyclecost=0,\"N/A\",lifecyclebenefits/lifecyclecost)","v":"N/A"},null,null,null,"     Emission Cost Savings",null,null,0,{"$f":"('Final Calculations'!G56)/1000000","v":0}]
[null,null,null,null,null,null,null,null,null,null,null,"TOTAL BENEFITS",null,null,0,{"$f":"SUM(P13:P17)","v":0}]
[null,null,null,null,"Rate of Return on Investment:",null,null,{"$f":"IFERROR(ReturnOnInvest,0)","v":"N/A"}]
[null,null,null,null,null,null,null,null,null,null,null,"CO2 Emissions Saved (tons)",null,null,{"$f":"P20/20","v":0},{"$f":"'Final Calculations'!C59","v":0}]
[null,null,null,null,"Payback Period:",null,null,{"$f":"payback","v":"N/A"},null,null,null,"CO2 Emissions Saved (mil. $)",null,null,{"$f":"P21/20","v":0},{"$f":"('Final Calculations'!C60)/1000000","v":0}]
[]
[null,null,null,null,null,null,null,null,null,null,null,"SRTS-Specific Benefits (mil. $)"]
[null,null,null,null,"Non-Infrastructure Implementation Cost ",null,null,null,null,null,null,"     Journey Quality",null,null,{"$f":"IF($P$33=\"Yes\",P24/20,\"NA\")","v":"NA"},{"$f":"IF($P$33=\"Yes\",'Final Calculations'!N56/1000000,\"NA\")","v":"NA"}]
[null,null,null,null,"   Per Bike Program Impact Score",null,null,{"$f":"IF($P$35=\"Yes\",'1b) Non-Inf Program Info'!$H$75,\"NA\")","v":"NA"},null,null,null,"     Additional Delay Savings",null,null,{"$f":"IF($P$33=\"Yes\",P25/20,\"NA\")","v":"NA"},{"$f":"IF($P$33=\"Yes\",'Final Calculations'!O56/1000000,\"NA\")","v":"NA"}]
[null,null,null,null,"   Per Ped Program Impact Score",null,null,{"$f":"IF($P$35=\"Yes\",'1b) Non-Inf Program Info'!$H$86,\"NA\")","v":"NA"},null,null,null,"     Additional Safety Benefits",null,null,{"$f":"IF($P$33=\"Yes\",P26/20,\"NA\")","v":"NA"},{"$f":"IF($P$33=\"Yes\",'Final Calculations'!P56/1000000,\"NA\")","v":"NA"}]
[null,null,null,null,null,null,null,null,null,null,null,"TOTAL SRTS BENEFITS",null,null,{"$f":"IF($P$33=\"Yes\",P27/20,\"NA\")","v":"NA"},{"$f":"IF($P$33=\"Yes\",SUM(P24:P26),\"NA\")","v":"NA"}]
[]
[]
[]
[]
[null,null,null,null,null,"Factors that Differentiate Benefits and Performance Measures"]
[null,null,null,null,null,null,null,null,null,null,null,"Safe Route to School?",null,null,null,{"$f":"IF('1a) Project Info'!H19=1,\"Yes\",\"No\")","v":"No"}]
[null,null,null,null,null,null,null,null,null,null,null,"Intersection improvements on SRTS?",null,null,null,{"$f":"IF('1a) Project Info'!H89=1,\"Yes\",\"No\")","v":"No"}]
[null,null,null,null,null,null,null,null,null,null,null,"Programmatic Initiatives?",null,null,null,{"$f":"IF('1a) Project Info'!H21=1,\"Yes\",\"No\")","v":"No"}]
[null,null,null,null,null,null,null,null,null,null,null,"Recreational Benefits? (enter 1 for Yes, 0 for No)"]

{"sheet":"Journey Quality","index":7,"n_rows":165,"n_cols":26,"rows_kept":165,"cut":false,"hidden":false,"merged":[[19,2,19,5],[19,6,19,8],[19,13,19,16],[19,17,19,19],[20,2,20,5],[20,6,20,8],[20,13,20,16],[20,17,20,19],[51,2,51,5],[51,6,51,8],[51,13,51,16],[51,17,51,19],[52,2,52,5],[52,6,52,8],[52,13,52,16],[52,17,52,19],[80,2,80,10],[80,13,80,21],[85,2,85,5],[85,6,85,8],[85,13,85,16],[85,17,85,19],[86,2,86,5],[86,6,86,8],[86,13,86,16],[86,17,86,19],[116,1,116,10],[116,12,116,21],[153,6,153,7],[153,17,153,18],[121,2,121,5],[121,6,121,8],[121,13,121,16],[121,17,121,19],[122,2,122,5],[122,6,122,8],[122,13,122,16],[122,17,122,19]]}
[null,"Journey Quality Benefits"]
[]
[null,"This sheet calculates journey quality benefits for cyclists and pedestrians who travel to a destination. Recreational users are not included."]
[]
[null,"Formulas:"]
[]
[null,"Avg. Annual Trips = Avg. Daily Trips x Annual Days in Year, by purpose",null,null,null,null,null,"Value of Journey Quality =  Time-Value of Improvement  x  Avg. Value of Time "]
[null,"trips / yr. ",null,null,null,null,null,"       $ / year ",null,"$/hour  "]
[]
[null,"Time-Value of Imp. = (1 - Facility Preference Factor) x Distance per Trip (Mi.)  / Travel Speed (MPH) ",null,null,null,null,null,"Value of Journey Quality  for Induced trips applies rule of half"]
[null,"trip - hrs / yr. ",null,"trips / yr.  x  miles",null,"miles/hour "]
[]
[]
[]
[null,"A","CYCLING BENEFITS",null,null,null,null,null,null,null,null,null,"B","PEDESTRIAN BENEFITS",null,null,null,null,null,null,null,null,null,"C","TOTAL"]
[]
[]
[null,"Existing Facility",null,null,null,null,null,null,null,null,null,null,"Existing Facility",null,null,null,null,null,null,null,null,null,null,"Existing Facility"]
[]
[null,null,"AVERAGE ANNUAL VOLUME",null,null,null,"JOURNEY QUALITY VALUE",null,null,null,null,null,null,"ANNUAL PERSON-MILES",null,null,null,"JOURNEY QUALITY VALUE"]
[null,null,"(trips/yr.)",null,null,null,"($)",null,null,null,null,null,null,"(trip-miles/yr.)",null,null,null,"($)"]
[null,"Year","Total Trips, Existing Facility (Baseline)","Total Trips, Improved Facility","Existing Trips, Improved Facility","Induced Trips, Improved Facility","Existing Trip-Miles, Existing Facility","Existing Trip-Miles, Improved Facility","Induced Trip-Miles, Improved Facility","\nConstant\nDollars","\nPresent\nValue",null,"Year","Total Trips, Existing Facility (Baseline)","Total Trips, Improved Facility","Existing Trips, Improved Facility","Induced Trips, Improved Facility","Existing Trip-Miles, Existing Facility","Existing Trip-Miles, Improved Facility","Induced Trip-Miles, Improved Facility","\nConstant\nDollars","\nPresent\nValue",null,"Year","\nConstant\nDollars","\nPresent\nValue"]
[null,1,{"$f":"IF(OR(ProjType=1,ProjType=3),TrComCyc1NBEX+TrODCyc1NBEX+TrRecCyc1NBEX*RecBen,0)","v":0},{"$f":"IF(OR(ProjType=1,ProjType=3),TrComCyc1BEX+TrODCyc1BEX+TrRecCyc1BEX*RecBen,0)","v":0},{"$f":"C23","v":0},{"$f":"D23-C23","v":0},{"$f":"E23*JQValperMiCycNBEx*ValTimeAT*TAvMiCycNB","v":0},{"$f":"E23*JQValperMiCycBEx*ValTimeAT*TAvMiCycB","v":0},{"$f":"F23*(JQValperMiCycBEx-JQValperMiCycNBEx)*ValTimeAT*TAvMiCycB*1/2","v":0},{"$f":"((H23-G23)+(I23))*(1+TTUprater)^($B23+Construct-1)","v":0},{"$f":"$J23/(1+DiscRate)^($B23+Construct-1)","v":0},null,1,{"$f":"IF(OR(ProjType=1,ProjType=3),TrComPed1NBEX+TrODPed1NBEX+TrRecPed1NBEX*RecBen,0)","v":0},{"$f":"IF(OR(ProjType=1,ProjType=3),TrComPed1BEX+TrODPed1BEX+TrRecPed1BEX*RecBen,0)","v":0},{"$f":"N23","v":0},{"$f":"O23-N23","v":0},{"$f":"P23*JQValperMiPedNBEx*TAvMiPedNB","v":0},{"$f":"P23*JQValperMiPedBEx*TAvMiPedB","v":0},{"$f":"Q23*(JQValperMiPedBEx-JQValperMiPedNBEx)*TAvMiPedB*1/2","v":0},{"$f":"(S23-R23+T23)*(1+TTUprater)^($B23+Construct-1)","v":0},{"$f":"$U23/(1+DiscRate)^($B23+Construct-1)","v":0},null,1,{"$f":"U23+J23","v":0},{"$f":"V23+K23","v":0}]
[null,20,{"$f":"IF(OR(ProjType=1,ProjType=3),TrComCyc20NBEX+TrODCyc20NBEX+TrRecCyc20NBEX*RecBen,0)","v":0},{"$f":"IF(OR(ProjType=1,ProjType=3),TrComCyc20BEX+TrODCyc20BEX+TrRecCyc20BEX*RecBen,0)","v":0},{"$f":"C24","v":0},{"$f":"D24-C24","v":0},{"$f":"E24*JQValperMiCycNBEx*ValTimeAT*TAvMiCycNB","v":0},{"$f":"E24*JQValperMiCycBEx*ValTimeAT*TAvMiCycB","v":0},{"$f":"F24*(JQValperMiCycBEx-JQValperMiCycNBEx)*ValTimeAT*TAvMiCycB*1/2","v":0},{"$f":"((H24-G24)+(I24))*(1+TTUprater)^($B24+Construct-1)","v":0},{"$f":"$J24/(1+DiscRate)^($B24+Construct-1)","v":0},null,20,{"$f":"IF(OR(ProjType=1,ProjType=3),TrComPed20NBEX+TrODPed20NBEX+TrRecPed20NBEX*RecBen,0)","v":0},{"$f":"IF(OR(ProjType=1,ProjType=3),TrComPed20BEX+TrODPed20BEX+TrRecPed20BEX*RecBen,0)","v":0},{"$f":"N24","v":0},{"$f":"O24-N24","v":0},{"$f":"P24*JQValperMiPedNBEx*TAvMiPedNB","v":0},{"$f":"P24*JQValperMiPedBEx*TAvMiPedB","v":0},{"$f":"Q24*(JQValperMiPedBEx-JQValperMiPedNBEx)*TAvMiPedB*1/2","v":0},{"$f":"(S24-R24+T24)*(1+TTUprater)^($B24+Construct-1)","v":0},{"$f":"$U24/(1+DiscRate)^($B24+Construct-1)","v":0},null,20,{"$f":"U24+J24","v":0},{"$f":"V24+K24","v":0}]
[]
[null,1,{"$f":"TREND(C$23:C$24,$B$23:$B$24,$B26)","v":0},{"$f":"TREND(D$23:D$24,$B$23:$B$24,$B26)","v":0},{"$f":"TREND(E$23:E$24,$B$23:$B$24,$B26)","v":0},{"$f":"TREND(F$23:F$24,$B$23:$B$24,$B26)","v":0},{"$f":"E26*JQValperMiCycNBEx*ValTimeAT*TAvMiCycNB","v":0},{"$f":"E26*JQValperMiCycBEx*ValTimeAT*TAvMiCycB","v":0},{"$f":"F26*(JQValperMiCycBEx-JQValperMiCycNBEx)*ValTimeAT*TAvMiCycB*1/2","v":0},{"$f":"((H26-G26)+(I26))*(1+TTUprater)^($B26+Construct-1)","v":0},{"$f":"$J26/(1+DiscRate)^($B26+Construct-1)","v":0},null,1,{"$f":"TREND(N$23:N$24,$M$23:$M$24,$M26)","v":0},{"$f":"TREND(O$23:O$24,$M$23:$M$24,$M26)","v":0},{"$f":"TREND(P$23:P$24,$M$23:$M$24,$M26)","v":0},{"$f":"TREND(Q$23:Q$24,$M$23:$M$24,$M26)","v":0},{"$f":"P26*JQValperMiPedNBEx*TAvMiPedNB","v":0},{"$f":"P26*JQValperMiPedBEx*TAvMiPedB","v":0},{"$f":"Q26*(JQValperMiPedBEx-JQValperMiPedNBEx)*TAvMiPedB*1/2","v":0},{"$f":"(S26-R26+T26)*(1+TTUprater)^($B26+Construct-1)","v":0},{"$f":"$U26/(1+DiscRate)^($B26+Construct-1)","v":0},null,1,{"$f":"U26+J26","v":0},0]
[null,2,{"$f":"TREND(C$23:C$24,$B$23:$B$24,$B27)","v":0},0,0,{"$f":"TREND(F$23:F$24,$B$23:$B$24,$B27)","v":0},0,0,0,0,0,null,2,{"$f":"TREND(N$23:N$24,$M$23:$M$24,$M27)","v":0},0,0,0,0,0,0,0,0,null,2,0,0]
[null,3,0,0,0,{"$f":"TREND(F$23:F$24,$B$23:$B$24,$B28)","v":0},0,0,0,0,0,null,3,0,0,0,0,0,0,0,0,0,null,3,0,0]
[null,4,0,0,0,{"$f":"TREND(F$23:F$24,$B$23:$B$24,$B29)","v":0},0,0,0,0,0,null,4,0,0,0,0,0,0,0,0,0,null,4,0,0]
[null,5,0,0,0,0,0,0,0,0,0,null,5,0,0,0,0,0,0,0,0,0,null,5,0,0]
[null,6,0,0,0,0,0,0,0,0,0,null,6,0,0,0,0,0,0,0,0,0,null,6,0,0]
[null,7,0,0,0,0,0,0,0,0,0,null,7,0,0,0,0,0,0,0,0,0,null,7,0,0]
[null,8,0,0,0,0,0,0,0,0,0,null,8,0,0,0,0,0,0,0,0,0,null,8,0,0]
[null,9,0,0,0,0,0,0,0,0,0,null,9,0,0,0,0,0,0,0,0,0,null,9,0,0]
[null,10,0,0,0,0,0,0,0,0,0,null,10,0,0,0,0,0,0,0,0,0,null,10,0,0]
[null,11,0,0,0,0,0,0,0,0,0,null,11,0,0,0,0,0,0,0,0,0,null,11,0,0]
[null,12,0,0,0,0,0,0,0,0,0,null,12,0,0,0,0,0,0,0,0,0,null,12,0,0]
[null,13,0,0,0,0,0,0,0,0,0,null,13,0,0,0,0,0,0,0,0,0,null,13,0,0]
[null,14,0,0,0,0,0,0,0,0,0,null,14,0,0,0,0,0,0,0,0,0,null,14,0,0]
[null,15,0,0,0,0,0,0,0,0,0,null,15,0,0,0,0,0,0,0,0,0,null,15,0,0]
[null,16,0,0,0,0,0,0,0,0,0,null,16,0,0,0,0,0,0,0,0,0,null,16,0,0]
[null,17,0,0,0,0,0,0,0,0,0,null,17,0,0,0,0,0,0,0,0,0,null,17,0,0]
[null,18,0,0,0,0,0,0,0,0,0,null,18,0,0,0,0,0,0,0,0,0,null,18,0,0]
[null,19,0,0,0,0,0,0,0,0,0,null,19,0,0,0,0,0,0,0,0,0,null,19,0,0]
[null,20,0,0,0,0,0,0,0,0,0,null,20,0,0,0,0,0,0,0,0,0,null,20,0,0]
[]
[null,"Total",null,null,null,null,null,null,null,null,{"$f":"SUM(K26:K45)","v":0},null,"Total",null,null,null,null,null,null,null,null,{"$f":"SUM(V26:V45)","v":0},null,"Total",null,{"$f":"SUM(Z26:Z45)","v":0}]
[]
[]
[null,"New Facility",null,null,null,null,null,null,null,null,null,null,"New Facility",null,null,null,null,null,null,null,null,null,null,"New Facility"]
[]
[null,null,"AVERAGE ANNUAL VOLUME",null,null,null,"JOURNEY QUALITY VALUE",null,null,null,null,null,null,"ANNUAL PERSON-TRIPS",null,null,null,"JOURNEY QUALITY VALUE"]
[null,null,"(trips/yr.)",null,null,null,"($)",null,null,null,null,null,null,"(trips/yr.)",null,null,null,"($)"]
[null,"Year","Total Trips, \nNo Facility (Baseline)","Total Trips, \nNew Facility","Existing Trips, New Facility","Induced Trips, New Facility",null,"Existing Trips, New Facility","Induced Trips, New Facility","\nConstant\nDollars","\nPresent\nValue",null,"Year","Total Trips, \nNo Facility (Baseline)","Total Trips, \nNew Facility","Existing Trips, New Facility","Induced Trips, New Facility",null,"Existing Trips, New Facility","Induced Trips, New Facility","\nConstant\nDollars","\nPresent\nValue",null,"Year","\nConstant\nDollars","\nPresent\nValue"]
[null,1,{"$f":"IF(ProjType>1,TrComCyc1NBNew+TrODCyc1NBNew+TrRecCyc1NBNew,0)","v":0},{"$f":"IF(ProjType>1,TrComCyc1BNew+TrODCyc1BNew+TrRecCyc1BNew,0)","v":0},{"$f":"C55","v":0},{"$f":"D55-C55","v":0},null,{"$f":"E55*JQValperMiCycBNew*ValTimeAT*TAvMiCycB","v":0},{"$f":"F55*JQValperMiCycBNew*ValTimeAT*TAvMiCycB*1/2","v":0},{"$f":"(I55+H55)*(1+TTUprater)^($B23+Construct-1)","v":0},{"$f":"$J55/(1+DiscRate)^($B55+Construct-1)","v":0},null,1,{"$f":"IF(ProjType>1,TrComPed1NBNew+TrODPed1NBNew+TrRecPed1NBNew*RecBen,0)","v":0},{"$f":"IF(ProjType>1,TrComPed1BNew+TrODPed1BNew+TrRecPed1BNew*RecBen,0)","v":0},{"$f":"N55","v":0},{"$f":"O55-N55","v":0},null,{"$f":"P55*JQValperMiPedBNew*TAvMiPedB","v":0},{"$f":"Q55*JQValperMiPedBNew*TAvMiPedB*1/2","v":0},{"$f":"(S55+T55)*(1+TTUprater)^($B55+Construct-1)","v":0},{"$f":"$U55/(1+DiscRate)^($B55+Construct-1)","v":0},null,1,{"$f":"U55+J55","v":0},{"$f":"V55+K55","v":0}]
[null,20,{"$f":"IF(ProjType>1,TrComCyc20NBNew+TrODCyc20NBNew+TrRecCyc20NBNew,0)","v":0},{"$f":"IF(ProjType>1,TrComCyc20BNew+TrODCyc20BNew+TrRecCyc20BNew,0)","v":0},{"$f":"C56","v":0},{"$f":"D56-C56","v":0},null,{"$f":"E56*JQValperMiCycBNew*ValTimeAT*TAvMiCycB","v":0},{"$f":"F56*JQValperMiCycBNew*ValTimeAT*TAvMiCycB*1/2","v":0},{"$f":"(I56+H56)*(1+TTUprater)^($B24+Construct-1)","v":0},{"$f":"$J56/(1+DiscRate)^($B56+Construct-1)","v":0},null,20,{"$f":"IF(ProjType>1,TrComPed20NBNew+TrODPed20NBNew+TrRecPed20NBNew*RecBen,0)","v":0},{"$f":"IF(ProjType>1,TrComPed20BNew+TrODPed20BNew+TrRecPed20BNew*RecBen,0)","v":0},{"$f":"N56","v":0},{"$f":"O56-N56","v":0},null,{"$f":"P56*JQValperMiPedBNew*TAvMiPedB","v":0},{"$f":"Q56*JQValperMiPedBNew*TAvMiPedB*1/2","v":0},{"$f":"(S56+T56)*(1+TTUprater)^($B56+Construct-1)","v":0},{"$f":"$U56/(1+DiscRate)^($B56+Construct-1)","v":0},null,20,{"$f":"U56+J56","v":0},{"$f":"V56+K56","v":0}]
[]
[null,1,{"$f":"TREND(C$55:C$56,$B$55:$B$56,$B58)","v":0},{"$f":"TREND(D$55:D$56,$B$55:$B$56,$B58)","v":0},{"$f":"TREND(E$55:E$56,$B$55:$B$56,$B58)","v":0},{"$f":"TREND(F$55:F$56,$B$55:$B$56,$B58)","v":0},null,{"$f":"E58*JQValperMiCycBNew*ValTimeAT*TAvMiCycB","v":0},{"$f":"F58*JQValperMiCycBNew*ValTimeAT*TAvMiCycB*1/2","v":0},{"$f":"(I58+H58)*(1+TTUprater)^($B26+Construct-1)","v":0},{"$f":"$J58/(1+DiscRate)^($B58+Construct-1)","v":0},null,1,{"$f":"TREND(N$55:N$56,$M$55:$M$56,$M58)","v":0},{"$f":"TREND(O$55:O$56,$M$55:$M$56,$M58)","v":0},{"$f":"TREND(P$55:P$56,$M$55:$M$56,$M58)","v":0},{"$f":"TREND(Q$55:Q$56,$M$55:$M$56,$M58)","v":0},null,{"$f":"P58*JQValperMiPedBNew*TAvMiPedB","v":0},{"$f":"Q58*JQValperMiPedBNew*TAvMiPedB*1/2","v":0},{"$f":"(S58+T58)*(1+TTUprater)^($B58+Construct-1)","v":0},{"$f":"$U58/(1+DiscRate)^($B58+Construct-1)","v":0},null,1,{"$f":"U58+J58","v":0},0]
[null,2,{"$f":"TREND(C$55:C$56,$B$55:$B$56,$B59)","v":0},0,0,0,null,0,0,0,0,null,2,{"$f":"TREND(N$55:N$56,$M$55:$M$56,$M59)","v":0},0,0,0,null,0,0,0,0,null,2,0,0]
[null,3,0,0,0,0,null,0,0,0,0,null,3,0,0,0,0,null,0,0,0,0,null,3,0,0]
[null,4,0,0,0,0,null,0,0,0,0,null,4,0,0,0,0,null,0,0,0,0,null,4,0,0]
[null,5,0,0,0,0,null,0,0,0,0,null,5,0,0,0,0,null,0,0,0,0,null,5,0,0]
[null,6,0,0,0,0,null,0,0,0,0,null,6,0,0,0,0,null,0,0,0,0,null,6,0,0]
[null,7,0,0,0,0,null,0,0,0,0,null,7,0,0,0,0,null,0,0,0,0,null,7,0,0]
[null,8,0,0,0,0,null,0,0,0,0,null,8,0,0,0,0,null,0,0,0,0,null,8,0,0]
[null,9,0,0,0,0,null,0,0,0,0,null,9,0,0,0,0,null,0,0,0,0,null,9,0,0]
[null,10,0,0,0,0,null,0,0,0,0,null,10,0,0,0,0,null,0,0,0,0,null,10,0,0]
[null,11,0,0,0,0,null,0,0,0,0,null,11,0,0,0,0,null,0,0,0,0,null,11,0,0]
[null,12,0,0,0,0,null,0,0,0,0,null,12,0,0,0,0,null,0,0,0,0,null,12,0,0]
[null,13,0,0,0,0,null,0,0,0,0,null,13,0,0,0,0,null,0,0,0,0,null,13,0,0]
[null,14,0,0,0,0,null,0,0,0,0,null,14,0,0,0,0,null,0,0,0,0,null,14,0,0]
[null,15,0,0,0,0,null,0,0,0,0,null,15,0,0,0,0,null,0,0,0,0,null,15,0,0]
[null,16,0,0,0,0,null,0,0,0,0,null,16,0,0,0,0,null,0,0,0,0,null,16,0,0]
[null,17,0,0,0,0,null,0,0,0,0,null,17,0,0,0,0,null,0,0,0,0,null,17,0,0]
[null,18,0,0,0,0,null,0,0,0,0,null,18,0,0,0,0,null,0,0,0,0,null,18,0,0]
[null,19,0,0,0,0,null,0,0,0,0,null,19,0,0,0,0,null,0,0,0,0,null,19,0,0]
[null,20,0,0,0,0,null,0,0,0,0,null,20,0,0,0,0,null,0,0,0,0,null,20,0,0]
[]
[null,"Total",null,null,null,null,null,null,null,null,{"$f":"SUM(K58:K77)","v":0},null,"Total",null,null,null,null,null,null,null,null,{"$f":"SUM(V58:V77)","v":0},null,"Total",null,{"$f":"SUM(Z58:Z77)","v":0}]
[]
[null,"D","CYCLING BENEFITS - SRTS",null,null,null,null,null,null,null,null,null,"E","PEDESTRIAN BENEFITS - SRTS",null,null,null,null,null,null,null,null,null,"F","TOTAL"]
[]
[]
[null,"Existing SRTS Facility",null,null,null,null,null,null,null,null,null,null,"Existing SRTS Facility",null,null,null,null,null,null,null,null,null,null,"Existing SRTS Facility"]
[]
[null,null,"AVERAGE ANNUAL VOLUME",null,null,null,"JOURNEY QUALITY VALUE",null,null,null,null,null,null,"ANNUAL PERSON-MILES",null,null,null,"JOURNEY QUALITY VALUE"]
[null,null,"(trips/yr.)",null,null,null,"($)",null,null,null,null,null,null,"(trip-miles/yr.)",null,null,null,"($)"]
[null,"Year","Total Trips, Existing Facility (Baseline)","Total Trips, Improved Facility","Existing Trips, Improved Facility","Induced Trips, Improved Facility","Existing Trips, Existing Facility","Existing Trips, Improved Facility","Induced Trips, Improved Facility","\nConstant\nDollars","\nPresent\nValue",null,"Year","Total Trips, Existing Facility (Baseline)","Total Trips, Improved Facility","Existing Trips, Improved Facility","Induced Trips, Improved Facility","Existing Trips, Existing Facility","Existing Trips, Improved Facility","Induced Trips, Improved Facility","\nConstant\nDollars","\nPresent\nValue",null,"Year","\nConstant\nDollars","\nPresent\nValue"]
[null,1,{"$f":"IF(AND(OR(ProjType=1,ProjType=3),SRTSProj=1),TrSRTSCyc1NBEx,0)","v":0},{"$f":"IF(AND(OR(ProjType=1,ProjType=3),SRTSProj=1),TrSRTSCyc1BEx,0)","v":0},{"$f":"C89","v":0},{"$f":"D89-C89","v":0},{"$f":"E89*JQValperMiCycNBEx*ValTimeChild*TAvMiCycNBSRTS","v":0},{"$f":"E89*JQValperMiCycBEx*ValTimeChild*TAvMiCycBSRTS","v":0},{"$f":"F89*(JQValperMiCycBEx-JQValperMiCycNBEx)*ValTimeChild*TAvMiCycBSRTS*1/2","v":0},{"$f":"((H89-G89)+(I89))*(1+TTUprater)^($B89+Construct-1)","v":0},{"$f":"$J89/(1+DiscRate)^($B89+Construct-1)","v":0},null,1,{"$f":"IF(AND(OR(ProjType=1,ProjType=3),SRTSProj=1),TrSRTSPed1NBEx,0)","v":0},{"$f":"IF(AND(OR(ProjType=1,ProjType=3),SRTSProj=1),TrSRTSPed1BEx,0)","v":0},{"$f":"N89","v":0},{"$f":"O89-N89","v":0},{"$f":"P89*JQValperMiPedNBEx*TAvMiPedNBSRTS","v":0},{"$f":"P89*JQValperMiPedBEx*TAvMiPedBSRTS","v":0},{"$f":"Q89*(JQValperMiPedBEx-JQValperMiPedNBEx)*TAvMiPedBSRTS*1/2","v":0},{"$f":"(S89-R89+T89)*(1+TTUprater)^($B89+Construct-1)","v":0},{"$f":"$U89/(1+DiscRate)^($B89+Construct-1)","v":0},null,1,{"$f":"U89+J89","v":0},{"$f":"V89+K89","v":0}]
[null,20,{"$f":"IF(AND(OR(ProjType=1,ProjType=3),SRTSProj=1),TrSRTSCyc20NBEx,0)","v":0},{"$f":"IF(AND(OR(ProjType=1,ProjType=3),SRTSProj=1),TrSRTSCyc20BEx,0)","v":0},{"$f":"C90","v":0},{"$f":"D90-C90","v":0},{"$f":"E90*JQValperMiCycNBEx*ValTimeChild*TAvMiCycNBSRTS","v":0},{"$f":"E90*JQValperMiCycBEx*ValTimeChild*TAvMiCycBSRTS","v":0},{"$f":"F90*(JQValperMiCycBEx-JQValperMiCycNBEx)*ValTimeChild*TAvMiCycBSRTS*1/2","v":0},{"$f":"((H90-G90)+(I90))*(1+TTUprater)^($B90+Construct-1)","v":0},{"$f":"$J90/(1+DiscRate)^($B90+Construct-1)","v":0},null,20,{"$f":"IF(AND(OR(ProjType=1,ProjType=3),SRTSProj=1),TrSRTSPed20NBEx,0)","v":0},{"$f":"IF(AND(OR(ProjType=1,ProjType=3),SRTSProj=1),TrSRTSPed20BEx,0)","v":0},{"$f":"N90","v":0},{"$f":"O90-N90","v":0},{"$f":"P90*JQValperMiPedNBEx*TAvMiPedNBSRTS","v":0},{"$f":"P90*JQValperMiPedBEx*TAvMiPedBSRTS","v":0},{"$f":"Q90*(JQValperMiPedBEx-JQValperMiPedNBEx)*TAvMiPedBSRTS*1/2","v":0},{"$f":"(S90-R90+T90)*(1+TTUprater)^($B90+Construct-1)","v":0},{"$f":"$U90/(1+DiscRate)^($B90+Construct-1)","v":0},null,20,{"$f":"U90+J90","v":0},{"$f":"V90+K90","v":0}]
[]
[null,1,{"$f":"TREND(C$89:C$90,$B$89:$B$90,$B92)","v":0},{"$f":"TREND(D$89:D$90,$B$89:$B$90,$B92)","v":0},{"$f":"TREND(E$89:E$90,$B$89:$B$90,$B92)","v":0},{"$f":"TREND(F$89:F$90,$B$89:$B$90,$B92)","v":0},{"$f":"E92*JQValperMiCycNBEx*ValTimeChild*TAvMiCycNB","v":0},{"$f":"E92*JQValperMiCycBEx*ValTimeChild*TAvMiCycB","v":0},{"$f":"F92*(JQValperMiCycBEx-JQValperMiCycNBEx)*ValTimeChild*TAvMiCycB*1/2","v":0},{"$f":"((H92-G92)+(I92))*(1+TTUprater)^($B92+Construct-1)","v":0},{"$f":"$J92/(1+DiscRate)^($B92+Construct-1)","v":0},null,1,{"$f":"TREND(N$89:N$90,$M$89:$M$90,$M92)","v":0},{"$f":"TREND(O$89:O$90,$M$89:$M$90,$M92)","v":0},{"$f":"TREND(P$89:P$90,$M$89:$M$90,$M92)","v":0},{"$f":"TREND(Q$89:Q$90,$M$89:$M$90,$M92)","v":0},{"$f":"P92*JQValperMiPedNBEx*TAvMiPedNBSRTS","v":0},{"$f":"P92*JQValperMiPedBEx*TAvMiPedBSRTS","v":0},{"$f":"Q92*(JQValperMiPedBEx-JQValperMiPedNBEx)*TAvMiPedBSRTS*1/2","v":0},{"$f":"(S92-R92+T92)*(1+TTUprater)^($B92+Construct-1)","v":0},{"$f":"$U92/(1+DiscRate)^($B92+Construct-1)","v":0},null,1,{"$f":"U92+J92","v":0},0]
[null,2,{"$f":"TREND(C$89:C$90,$B$89:$B$90,$B93)","v":0},0,0,0,0,0,0,0,0,null,2,{"$f":"TREND(N$89:N$90,$M$89:$M$90,$M93)","v":0},0,0,0,0,0,0,0,0,null,2,0,0]
[null,3,0,0,0,0,0,0,0,0,0,null,3,0,0,0,0,0,0,0,0,0,null,3,0,0]
[null,4,0,0,0,0,0,0,0,0,0,null,4,0,0,0,0,0,0,0,0,0,null,4,0,0]
[null,5,0,0,0,0,0,0,0,0,0,null,5,0,0,0,0,0,0,0,0,0,null,5,0,0]
[null,6,0,0,0,0,0,0,0,0,0,null,6,0,0,0,0,0,0,0,0,0,null,6,0,0]
[null,7,0,0,0,0,0,0,0,0,0,null,7,0,0,0,0,0,0,0,0,0,null,7,0,0]
[null,8,0,0,0,0,0,0,0,0,0,null,8,0,0,0,0,0,0,0,0,0,null,8,0,0]
[null,9,0,0,0,0,0,0,0,0,0,null,9,0,0,0,0,0,0,0,0,0,null,9,0,0]
[null,10,0,0,0,0,0,0,0,0,0,null,10,0,0,0,0,0,0,0,0,0,null,10,0,0]
[null,11,0,0,0,0,0,0,0,0,0,null,11,0,0,0,0,0,0,0,0,0,null,11,0,0]
[null,12,0,0,0,0,0,0,0,0,0,null,12,0,0,0,0,0,0,0,0,0,null,12,0,0]
[null,13,0,0,0,0,0,0,0,0,0,null,13,0,0,0,0,0,0,0,0,0,null,13,0,0]
[null,14,0,0,0,0,0,0,0,0,0,null,14,0,0,0,0,0,0,0,0,0,null,14,0,0]
[null,15,0,0,0,0,0,0,0,0,0,null,15,0,0,0,0,0,0,0,0,0,null,15,0,0]
[null,16,0,0,0,0,0,0,0,0,0,null,16,0,0,0,0,0,0,0,0,0,null,16,0,0]
[null,17,0,0,0,0,0,0,0,0,0,null,17,0,0,0,0,0,0,0,0,0,null,17,0,0]
[null,18,0,0,0,0,0,0,0,0,0,null,18,0,0,0,0,0,0,0,0,0,null,18,0,0]
[null,19,0,0,0,0,0,0,0,0,0,null,19,0,0,0,0,0,0,0,0,0,null,19,0,0]
[null,20,0,0,0,0,0,0,0,0,0,null,20,0,0,0,0,0,0,0,0,0,null,20,0,0]
[]
[null,"Total",null,null,null,null,null,null,null,null,{"$f":"SUM(K92:K111)","v":0},null,"Total",null,null,null,null,null,null,null,null,{"$f":"SUM(V92:V111)","v":0},null,"Total",null,{"$f":"SUM(Z92:Z111)","v":0}]
[]
[]
[]
[null,"CYCLING BENEFITS - SRTS",null,null,null,null,null,null,null,null,null,null,"PEDESTRIAN BENEFITS - SRTS",null,null,null,null,null,null,null,null,null,null,"C","TOTAL"]
[]
[]
[null,"New SRTS Facility",null,null,null,null,null,null,null,null,null,null,"New SRTS Facility",null,null,null,null,null,null,null,null,null,null,"New SRTS Facility"]
[]
[null,null,"AVERAGE ANNUAL VOLUME",null,null,null,"JOURNEY QUALITY VALUE",null,null,null,null,null,null,"ANNUAL PERSON-MILES",null,null,null,"JOURNEY QUALITY VALUE"]
[null,null,"(trips/yr.)",null,null,null,"($)",null,null,null,null,null,null,"(trip-miles/yr.)",null,null,null,"($)"]
[null,"Year","Total Trips, \nNo Facility (Baseline)","Total Trips, \nNew Facility","Existing Trips, New Facility","Induced Trips, New Facility",null,"Existing Trips, New Facility","Induced Trips, New Facility","\nConstant\nDollars","\nPresent\nValue",null,"Year","Total Trips, \nNo Facility (Baseline)","Total Trips, \nNew Facility","Existing Trips, New Facility","Induced Trips, New Facility",null,"Existing Trips, New Facility","Induced Trips, New Facility","\nConstant\nDollars","\nPresent\nValue",null,"Year","\nConstant\nDollars","\nPresent\nValue"]
[null,1,{"$f":"IF(AND(ProjType>1,SRTSProj=1),TrSRTSCyc1NBNew,0)","v":0},{"$f":"IF(AND(ProjType>1,SRTSProj=1),TrSRTSCyc1BNew,0)","v":0},{"$f":"C125","v":0},{"$f":"D125-C125","v":0},null,{"$f":"E125*JQValperMiCycBNew*ValTimeChild*TAvMiCycBSRTS","v":0},{"$f":"F125*JQValperMiCycBNew*ValTimeChild*TAvMiCycBSRTS*1/2","v":0},{"$f":"((H125-G125)+(I125))*(1+TTUprater)^($B125+Construct-1)","v":0},{"$f":"$J125/(1+DiscRate)^($B125+Construct-1)","v":0},null,1,{"$f":"IF(AND(ProjType>1,SRTSProj=1),TrSRTSPed1NBNew,0)","v":0},{"$f":"IF(AND(ProjType>1,SRTSProj=1),TrSRTSPed1BNew,0)","v":0},{"$f":"N125","v":0},{"$f":"O125-N125","v":0},null,{"$f":"P125*JQValperMiPedBNew*TAvMiPedBSRTS","v":0},{"$f":"Q125*JQValperMiPedBNew*TAvMiPedBSRTS*1/2","v":0},{"$f":"(S125-R125+T125)*(1+TTUprater)^($B125+Construct-1)","v":0},{"$f":"$U125/(1+DiscRate)^($B125+Construct-1)","v":0},null,1,{"$f":"U125+J125","v":0},{"$f":"V125+K125","v":0}]
[null,20,{"$f":"IF(AND(ProjType>1,SRTSProj=1),TrSRTSCyc20NBNew,0)","v":0},{"$f":"IF(AND(ProjType>1,SRTSProj=1),TrSRTSCyc20BNew,0)","v":0},{"$f":"C126","v":0},{"$f":"D126-C126","v":0},null,{"$f":"E126*JQValperMiCycBNew*ValTimeChild*TAvMiCycBSRTS","v":0},{"$f":"F126*JQValperMiCycBNew*ValTimeChild*TAvMiCycBSRTS*1/2","v":0},{"$f":"((H126-G126)+(I126))*(1+TTUprater)^($B126+Construct-1)","v":0},{"$f":"$J126/(1+DiscRate)^($B126+Construct-1)","v":0},null,20,{"$f":"IF(AND(ProjType>1,SRTSProj=1),TrSRTSPed20NBNew,0)","v":0},{"$f":"IF(AND(ProjType>1,SRTSProj=1),TrSRTSPed20BNew,0)","v":0},{"$f":"N126","v":0},{"$f":"O126-N126","v":0},null,{"$f":"P126*JQValperMiPedBNew*TAvMiPedBSRTS","v":0},{"$f":"Q126*JQValperMiPedBNew*TAvMiPedBSRTS*1/2","v":0},{"$f":"(S126-R126+T126)*(1+TTUprater)^($B126+Construct-1)","v":0},{"$f":"$U126/(1+DiscRate)^($B126+Construct-1)","v":0},null,20,{"$f":"U126+J126","v":0},{"$f":"V126+K126","v":0}]
[]
[null,1,{"$f":"TREND(C$125:C$126,$B$125:$B$126,$B128)","v":0},{"$f":"TREND(D$125:D$126,$B$125:$B$126,$B128)","v":0},{"$f":"TREND(E$125:E$126,$B$125:$B$126,$B128)","v":0},{"$f":"TREND(F$125:F$126,$B$125:$B$126,$B128)","v":0},null,{"$f":"E128*JQValperMiCycBNew*ValTimeChild*TAvMiCycBSRTS","v":0},{"$f":"F128*JQValperMiCycBNew*ValTimeChild*TAvMiCycBSRTS*1/2","v":0},{"$f":"((H128-G128)+(I128))*(1+TTUprater)^($B128+Construct-1)","v":0},{"$f":"$J128/(1+DiscRate)^($B128+Construct-1)","v":0},null,1,{"$f":"TREND(N$125:N$126,$M$125:$M$126,$M128)","v":0},{"$f":"TREND(O$125:O$126,$M$125:$M$126,$M128)","v":0},{"$f":"TREND(P$125:P$126,$M$125:$M$126,$M128)","v":0},{"$f":"TREND(Q$125:Q$126,$M$125:$M$126,$M128)","v":0},null,{"$f":"P128*JQValperMiPedBNew*TAvMiPedBSRTS","v":0},{"$f":"Q128*JQValperMiPedBNew*TAvMiPedBSRTS*1/2","v":0},{"$f":"(S128-R128+T128)*(1+TTUprater)^($B128+Construct-1)","v":0},{"$f":"$U128/(1+DiscRate)^($B128+Construct-1)","v":0},null,1,{"$f":"U128+J128","v":0},0]
[null,2,{"$f":"TREND(C$125:C$126,$B$125:$B$126,$B129)","v":0},0,0,0,null,0,0,0,0,null,2,{"$f":"TREND(N$125:N$126,$M$125:$M$126,$M129)","v":0},{"$f":"TREND(O$125:O$126,$M$125:$M$126,$M129)","v":0},0,0,null,0,0,0,0,null,2,0,0]
[null,3,0,0,0,0,null,0,0,0,0,null,3,{"$f":"TREND(N$125:N$126,$M$125:$M$126,$M130)","v":0},0,0,0,null,0,0,0,0,null,3,0,0]
[null,4,0,0,0,0,null,0,0,0,0,null,4,{"$f":"TREND(N$125:N$126,$M$125:$M$126,$M131)","v":0},0,0,0,null,0,0,0,0,null,4,0,0]
[null,5,0,0,0,0,null,0,0,0,0,null,5,0,0,0,0,null,0,0,0,0,null,5,0,0]
[null,6,0,0,0,0,null,0,0,0,0,null,6,0,0,0,0,null,0,0,0,0,null,6,0,0]
[null,7,0,0,0,0,null,0,0,0,0,null,7,0,0,0,0,null,0,0,0,0,null,7,0,0]
[null,8,0,0,0,0,null,0,0,0,0,null,8,0,0,0,0,null,0,0,0,0,null,8,0,0]
[null,9,0,0,0,0,null,0,0,0,0,null,9,0,0,0,0,null,0,0,0,0,null,9,0,0]
[null,10,0,0,0,0,null,0,0,0,0,null,10,0,0,0,0,null,0,0,0,0,null,10,0,0]
[null,11,0,0,0,0,null,0,0,0,0,null,11,0,0,0,0,null,0,0,0,0,null,11,0,0]
[null,12,0,0,0,0,null,0,0,0,0,null,12,0,0,0,0,null,0,0,0,0,null,12,0,0]
[null,13,0,0,0,0,null,0,0,0,0,null,13,0,0,0,0,null,0,0,0,0,null,13,0,0]
[null,14,0,0,0,0,null,0,0,0,0,null,14,0,0,0,0,null,0,0,0,0,null,14,0,0]
[null,15,0,0,0,0,null,0,0,0,0,null,15,0,0,0,0,null,0,0,0,0,null,15,0,0]
[null,16,0,0,0,0,null,0,0,0,0,null,16,0,0,0,0,null,0,0,0,0,null,16,0,0]
[null,17,0,0,0,0,null,0,0,0,0,null,17,0,0,0,0,null,0,0,0,0,null,17,0,0]
[null,18,0,0,0,0,null,0,0,0,0,null,18,0,0,0,0,null,0,0,0,0,null,18,0,0]
[null,19,0,0,0,0,null,0,0,0,0,null,19,0,0,0,0,null,0,0,0,0,null,19,0,0]
[null,20,0,0,0,0,null,0,0,0,0,null,20,0,0,0,0,null,0,0,0,0,null,20,0,0]
[]
[null,"Total",null,null,null,null,null,null,null,null,{"$f":"SUM(K128:K147)","v":0},null,"Total",null,null,null,null,null,null,null,null,{"$f":"SUM(V128:V147)","v":0},null,"Total",null,{"$f":"SUM(Z128:Z147)","v":0}]
[]
[]
[null,null,null,"Computation of Journey Quality Parameters - Cycling",null,null,null,null,null,null,null,null,null,null,null,"Computation of Journey Quality Parameters - Cycling"]
[]
[null,null,null,null,null,null,"Improved Facility",null,"New Facility",null,null,null,null,null,null,null,null,"Improved Facility",null,"New Facility"]
[null,null,null,null,null,null,"Existing","Build","Build",null,null,null,null,null,null,null,null,"No Build","Build","Build"]
[null,null,null,null,null,"Facility Type","Percent of Facility","Percent of Facility","Percent of Facility",null,null,null,null,null,null,null,"Amenities","Presence / Absence ","Presence / Absence ","Presence / Absence "]
[null,null,null,null,null,"Class I - Bike Paths, if any",{"$f":"IFERROR('1a) Project Info'!G35/'1a) Project Info'!$H$39,0)","v":0},{"$f":"IFERROR('1a) Project Info'!H35/'1a) Project Info'!$H$39,0)","v":0},{"$f":"IFERROR('1a) Project Info'!R35/'1a) Project Info'!$R$39,0)","v":0},null,null,null,null,null,null,null,"Street Lighting ",{"$f":"'1a) Project Info'!G42","v":0},{"$f":"'1a) Project Info'!H42","v":0},{"$f":"'1a) Project Info'!R42","v":0},"Yes =1 or No=0"]
[null,null,null,null,null,"Class II - Bike Lanes, if any",{"$f":"IFERROR('1a) Project Info'!G36/'1a) Project Info'!$H$39,0)","v":0},{"$f":"IFERROR('1a) Project Info'!H36/'1a) Project Info'!$H$39,0)","v":0},{"$f":"IFERROR('1a) Project Info'!R36/'1a) Project Info'!$R$39,0)","v":0},null,null,null,null,null,null,null,"Curb Level ",{"$f":"'1a) Project Info'!G43","v":0},{"$f":"'1a) Project Info'!H43","v":0},{"$f":"'1a) Project Info'!R43","v":0},"Yes =1 or No=0"]
[null,null,null,null,null,"Class III - Bike Route, if any",{"$f":"IFERROR('1a) Project Info'!G37/'1a) Project Info'!$H$39,0)","v":0},{"$f":"IFERROR('1a) Project Info'!H37/'1a) Project Info'!$H$39,0)","v":0},{"$f":"IFERROR('1a) Project Info'!R37/'1a) Project Info'!$R$39,0)","v":0},null,null,null,null,null,null,null,"Crowding ",{"$f":"'1a) Project Info'!G44","v":0},{"$f":"'1a) Project Info'!H44","v":0},{"$f":"'1a) Project Info'!R44","v":0},"Yes =1 or No=0"]
[null,null,null,null,null,"Class IV - Separated bikeways, cycle tracks, if any",{"$f":"IFERROR('1a) Project Info'!G38/'1a) Project Info'!$H$39,0)","v":0},{"$f":"IFERROR('1a) Project Info'!H38/'1a) Project Info'!$H$39,0)","v":0},{"$f":"IFERROR('1a) Project Info'!R38/'1a) Project Info'!$R$39,0)","v":0},null,null,null,null,null,null,null,"Pavement Evenness ",{"$f":"'1a) Project Info'!G45","v":0},{"$f":"'1a) Project Info'!H45","v":0},{"$f":"'1a) Project Info'!R45","v":0},"Yes =1 or No=0"]
[null,null,null,null,null,null,null,null,null,null,null,null,null,null,null,null,"Information Panels ",{"$f":"'1a) Project Info'!G46","v":0},{"$f":"'1a) Project Info'!H46","v":0},{"$f":"'1a) Project Info'!R46","v":0},"Yes =1 or No=0"]
[null,null,null,null,null,null,null,null,null,null,null,null,null,null,null,null,"Benches ",{"$f":"'1a) Project Info'!G47","v":0},{"$f":"'1a) Project Info'!H47","v":0},{"$f":"'1a) Project Info'!R47","v":0},"Yes =1 or No=0"]
[null,null,null,null,null,"Facility Preference Factor (Pro-rated) - New Segment",{"$f":"SUMPRODUCT('Journey Quality'!G157:G160,JQValCyc)","v":0},{"$f":"SUMPRODUCT('Journey Quality'!H157:H160,JQValCyc)","v":0},{"$f":"SUMPRODUCT('Journey Quality'!I157:I160,JQValCyc)","v":0},"miles of road / miles of facility",null,null,null,null,null,null,"Directional Signage ",{"$f":"'1a) Project Info'!G48","v":0},{"$f":"'1a) Project Info'!H48","v":0},{"$f":"'1a) Project Info'!R48","v":0},"Yes =1 or No=0"]
[]
[null,null,null,null,null,"Journey Quality per Avg Trip Distance",{"$f":"IF(OR(ProjType=1,ProjType=3),((1-'Journey Quality'!G$163)/CycSpeed),0)","v":0},{"$f":"IF(OR(ProjType=1,ProjType=3),((1-'Journey Quality'!H$163)/CycSpeed),0)","v":0},{"$f":"IF(ProjType>1,((1-'Journey Quality'!$I$163)/CycSpeed),0)","v":0},"hrs / mile of avg trip distance",null,null,null,null,null,null,"All measures",{"$f":"IF(OR(ProjType=1,ProjType=3),SUMPRODUCT(R157:R163,JQValPed),0)","v":0},{"$f":"IF(OR(ProjType=1,ProjType=3),SUMPRODUCT(S157:S163,JQValPed),0)","v":0},{"$f":"IF(ProjType>1,SUMPRODUCT(T157:T163,JQValPed),0)","v":0},"Value ($/Mi)"]

{"sheet":"Intersection Delay","index":8,"n_rows":94,"n_cols":28,"rows_kept":94,"cut":false,"hidden":false,"merged":[[19,8,19,9],[20,8,20,9],[19,20,19,21],[20,20,20,21],[19,2,19,5],[20,2,20,5],[19,6,19,7],[20,6,20,7],[19,14,19,17],[20,14,20,17],[20,18,20,19],[19,18,19,19],[56,20,56,21],[57,2,57,5],[57,6,57,7],[57,8,57,9],[57,14,57,17],[57,18,57,19],[57,20,57,21],[56,2,56,5],[56,6,56,7],[56,8,56,9],[56,14,56,17],[56,18,56,19]]}
[null,"Intersection Delay Benefits"]
[]
[null,"This sheet calculates total reduction in intersection delay due to improvements at intersections on an existing bike/pedestrian facility."]
[]
[null,"Formulas:"]
[]
[null,"Avg. Annual Trips = Avg. Daily Trips x Annual Days in Year, by purpose",null,null,null,null,null,"Value of Time Savings =  Travel Time Reduction  x  Avg. Value of Time "]
[null,"trips / yr. ",null,null,null,null,null,"       $ / year ",null,"$/hour  "]
[]
[null,"Time Saved = # of intersections crossed per trip x time savings per intersection x Avg. Annual Trips",null,null,null,null,null,"Value of Journey Quality  for Induced trips applies rule of half"]
[null,"trip-hrs / yr. ",null,"trip / yr.  x  miles",null,"miles/hour "]
[]
[]
[]
[null,"A","CYCLING BENEFITS",null,null,null,null,null,null,null,null,null,null,"B","PEDESTRIAN BENEFITS",null,null,null,null,null,null,null,null,null,null,"C","TOTAL"]
[]
[]
[null,"Existing Facility",null,null,null,null,null,null,null,null,null,null,null,"Existing Facility",null,null,null,null,null,null,null,null,null,null,null,"Existing Facility"]
[]
[null,null,"AVERAGE ANNUAL VOLUME",null,null,null,"TRAVEL TIME SAVED",null,"VALUE OF TIME SAVINGS",null,null,null,null,null,"AVERAGE ANNUAL VOLUME",null,null,null,"TRAVEL TIME SAVED",null,"VALUE OF TIME SAVINGS"]
[null,null,"(trips/yr.)",null,null,null,"(hours/yr.)",null,"($/year)",null,null,null,null,null,"(trips/yr.)",null,null,null,"(hours/yr.)",null,"($/year)"]
[null,"Year","Total Trips, Existing Facility (Baseline)","Total Trips, Improved Facility","Existing Trips, Existing Facility","Induced Trips, Existing Facility","Existing Trips","Induced Trips","Existing Trips","Induced Trips","\nConstant\nDollars","\nPresent\nValue",null,"Year","Total Trips, Existing Facility (Baseline)","Total Trips, Improved Facility","Existing Trips, Existing Facility","Induced Trips, Existing Facility","Existing Trips","Induced Trips","Existing Trips","Induced Trips","\nConstant\nDollars","\nPresent\nValue",null,"Year","\nConstant\nDollars","\nPresent\nValue"]
[null,1,{"$f":"IF(OR(ProjType=1, ProjType=3),TrComCyc1NBEX+TrODCyc1NBEX+TrRecCyc1NBEX*RecBen,0)","v":0},{"$f":"IF(OR(ProjType=1, ProjType=3),TrComCyc1BEX+TrODCyc1BEX+TrRecCyc1BEX*RecBen,0)","v":0},{"$f":"C23","v":0},{"$f":"D23-C23","v":0},{"$f":"E23*'Intersection Delay'!$E$94","v":0},{"$f":"F23*'Intersection Delay'!$E$94","v":0},{"$f":"G23*ValTimeAT","v":0},{"$f":"H23*ValTimeAT/2","v":0},{"$f":"I23*(1+TTUprater)^($B23+Construct-1)","v":0},{"$f":"$K23/(1+DiscRate)^($B23+Construct-1)","v":0},null,1,{"$f":"IF(OR(ProjType=1, ProjType=3),TrComPed1NBEX+TrODPed1NBEX+TrRecPed1NBEX*RecBen,0)","v":0},{"$f":"IF(OR(ProjType=1, ProjType=3),TrComPed1BEX+TrODPed1BEX+TrRecPed1BEX*RecBen,0)","v":0},{"$f":"O23","v":0},{"$f":"P23-O23","v":0},{"$f":"Q23*'Intersection Delay'!$Q$94","v":0},{"$f":"R23*'Intersection Delay'!$Q$94","v":0},{"$f":"S23*ValTimeAT","v":0},{"$f":"T23*ValTimeAT/2","v":0},{"$f":"U23*(1+TTUprater)^($B23+Construct-1)","v":0},{"$f":"$W23/(1+DiscRate)^($B23+Construct-1)","v":0},null,1,{"$f":"W23+K23","v":0},{"$f":"X23+L23","v":0}]
[null,20,{"$f":"IF(OR(ProjType=1, ProjType=3),TrComCyc20NBEX+TrODCyc20NBEX+TrRecCyc20NBEX*RecBen,0)","v":0},{"$f":"IF(OR(ProjType=1, ProjType=3),TrComCyc20BEX+TrODCyc20BEX+TrRecCyc20BEX*RecBen,0)","v":0},{"$f":"C24","v":0},{"$f":"D24-C24","v":0},{"$f":"E24*'Intersection Delay'!$E$94","v":0},{"$f":"F24*'Intersection Delay'!$E$94","v":0},{"$f":"G24*ValTimeAT","v":0},{"$f":"H24*ValTimeAT/2","v":0},{"$f":"I24*(1+TTUprater)^($B23+Construct-1)","v":0},{"$f":"$K24/(1+DiscRate)^($B24+Construct-1)","v":0},null,20,{"$f":"IF(OR(ProjType=1, ProjType=3),TrComPed20NBEX+TrODPed20NBEX+TrRecPed20NBEX*RecBen,0)","v":0},{"$f":"IF(OR(ProjType=1, ProjType=3),TrComPed20BEX+TrODPed20BEX+TrRecPed20BEX*RecBen,0)","v":0},{"$f":"O24","v":0},{"$f":"P24-O24","v":0},{"$f":"Q24*'Intersection Delay'!$Q$94","v":0},{"$f":"R24*'Intersection Delay'!$Q$94","v":0},{"$f":"S24*ValTimeAT","v":0},{"$f":"T24*ValTimeAT/2","v":0},{"$f":"U24*(1+TTUprater)^($B23+Construct-1)","v":0},{"$f":"$W24/(1+DiscRate)^($B24+Construct-1)","v":0},null,20,{"$f":"W24+K24","v":0},{"$f":"X24+L24","v":0}]
[]
[null,1,{"$f":"TREND(C$23:C$24,$B$23:$B$24,$B26)","v":0},{"$f":"TREND(D$23:D$24,$B$23:$B$24,$B26)","v":0},{"$f":"C26","v":0},{"$f":"D26-C26","v":0},{"$f":"E26*'Intersection Delay'!$E$94","v":0},{"$f":"F26*'Intersection Delay'!$E$94","v":0},{"$f":"G26*ValTimeAT","v":0},{"$f":"H26*ValTimeAT/2","v":0},{"$f":"I26*(1+TTUprater)^($B23+Construct-1)","v":0},{"$f":"$K26/(1+DiscRate)^($B26+Construct-1)","v":0},null,1,{"$f":"TREND(O$23:O$24,$B$23:$B$24,$B26)","v":0},{"$f":"TREND(P$23:P$24,$B$23:$B$24,$B26)","v":0},{"$f":"TREND(Q$23:Q$24,$B$23:$B$24,$B26)","v":0},{"$f":"P26-O26","v":0},{"$f":"Q26*'Intersection Delay'!$Q$94","v":0},{"$f":"R26*'Intersection Delay'!$Q$94","v":0},{"$f":"S26*ValTimeAT","v":0},{"$f":"T26*ValTimeAT/2","v":0},{"$f":"U26*(1+TTUprater)^($B23+Construct-1)","v":0},{"$f":"$W26/(1+DiscRate)^($B26+Construct-1)","v":0},null,1,{"$f":"W26+K26","v":0},{"$f":"X26+L26","v":0}]
[null,2,{"$f":"TREND(C$23:C$24,$B$23:$B$24,$B27)","v":0},0,0,0,{"$f":"E27*'Intersection Delay'!$E$94","v":0},{"$f":"F27*'Intersection Delay'!$E$94","v":0},0,0,0,0,null,2,{"$f":"TREND(O$23:O$24,$B$23:$B$24,$B27)","v":0},0,0,0,{"$f":"Q27*'Intersection Delay'!$Q$94","v":0},{"$f":"R27*'Intersection Delay'!$Q$94","v":0},0,0,0,0,null,2,0,0]
[null,3,0,0,0,0,{"$f":"E28*'Intersection Delay'!$E$94","v":0},{"$f":"F28*'Intersection Delay'!$E$94","v":0},0,0,0,0,null,3,0,0,0,0,{"$f":"Q28*'Intersection Delay'!$Q$94","v":0},{"$f":"R28*'Intersection Delay'!$Q$94","v":0},0,0,0,0,null,3,0,0]
[null,4,0,0,0,0,{"$f":"E29*'Intersection Delay'!$E$94","v":0},{"$f":"F29*'Intersection Delay'!$E$94","v":0},0,0,0,0,null,4,0,0,0,0,{"$f":"Q29*'Intersection Delay'!$Q$94","v":0},{"$f":"R29*'Intersection Delay'!$Q$94","v":0},0,0,0,0,null,4,0,0]
[null,5,0,0,0,0,{"$f":"E30*'Intersection Delay'!$E$94","v":0},{"$f":"F30*'Intersection Delay'!$E$94","v":0},0,0,0,0,null,5,0,0,0,0,{"$f":"Q30*'Intersection Delay'!$Q$94","v":0},{"$f":"R30*'Intersection Delay'!$Q$94","v":0},0,0,0,0,null,5,0,0]
[null,6,0,0,0,0,{"$f":"E31*'Intersection Delay'!$E$94","v":0},{"$f":"F31*'Intersection Delay'!$E$94","v":0},0,0,0,0,null,6,0,0,0,0,{"$f":"Q31*'Intersection Delay'!$Q$94","v":0},{"$f":"R31*'Intersection Delay'!$Q$94","v":0},0,0,0,0,null,6,0,0]
[null,7,0,0,0,0,{"$f":"E32*'Intersection Delay'!$E$94","v":0},{"$f":"F32*'Intersection Delay'!$E$94","v":0},0,0,0,0,null,7,0,0,0,0,{"$f":"Q32*'Intersection Delay'!$Q$94","v":0},{"$f":"R32*'Intersection Delay'!$Q$94","v":0},0,0,0,0,null,7,0,0]
[null,8,0,0,0,0,{"$f":"E33*'Intersection Delay'!$E$94","v":0},{"$f":"F33*'Intersection Delay'!$E$94","v":0},0,0,0,0,null,8,0,0,0,0,{"$f":"Q33*'Intersection Delay'!$Q$94","v":0},{"$f":"R33*'Intersection Delay'!$Q$94","v":0},0,0,0,0,null,8,0,0]
[null,9,0,0,0,0,{"$f":"E34*'Intersection Delay'!$E$94","v":0},{"$f":"F34*'Intersection Delay'!$E$94","v":0},0,0,0,0,null,9,0,0,0,0,{"$f":"Q34*'Intersection Delay'!$Q$94","v":0},{"$f":"R34*'Intersection Delay'!$Q$94","v":0},0,0,0,0,null,9,0,0]
[null,10,0,0,0,0,{"$f":"E35*'Intersection Delay'!$E$94","v":0},{"$f":"F35*'Intersection Delay'!$E$94","v":0},0,0,0,0,null,10,0,0,0,0,{"$f":"Q35*'Intersection Delay'!$Q$94","v":0},{"$f":"R35*'Intersection Delay'!$Q$94","v":0},0,0,0,0,null,10,0,0]
[null,11,0,0,0,0,{"$f":"E36*'Intersection Delay'!$E$94","v":0},{"$f":"F36*'Intersection Delay'!$E$94","v":0},0,0,0,0,null,11,0,0,0,0,{"$f":"Q36*'Intersection Delay'!$Q$94","v":0},{"$f":"R36*'Intersection Delay'!$Q$94","v":0},0,0,0,0,null,11,0,0]
[null,12,0,0,0,0,{"$f":"E37*'Intersection Delay'!$E$94","v":0},{"$f":"F37*'Intersection Delay'!$E$94","v":0},0,0,0,0,null,12,0,0,0,0,{"$f":"Q37*'Intersection Delay'!$Q$94","v":0},{"$f":"R37*'Intersection Delay'!$Q$94","v":0},0,0,0,0,null,12,0,0]
[null,13,0,0,0,0,{"$f":"E38*'Intersection Delay'!$E$94","v":0},{"$f":"F38*'Intersection Delay'!$E$94","v":0},0,0,0,0,null,13,0,0,0,0,{"$f":"Q38*'Intersection Delay'!$Q$94","v":0},{"$f":"R38*'Intersection Delay'!$Q$94","v":0},0,0,0,0,null,13,0,0]
[null,14,0,0,0,0,{"$f":"E39*'Intersection Delay'!$E$94","v":0},{"$f":"F39*'Intersection Delay'!$E$94","v":0},0,0,0,0,null,14,0,0,0,0,{"$f":"Q39*'Intersection Delay'!$Q$94","v":0},{"$f":"R39*'Intersection Delay'!$Q$94","v":0},0,0,0,0,null,14,0,0]
[null,15,0,0,0,0,{"$f":"E40*'Intersection Delay'!$E$94","v":0},{"$f":"F40*'Intersection Delay'!$E$94","v":0},0,0,0,0,null,15,0,0,0,0,{"$f":"Q40*'Intersection Delay'!$Q$94","v":0},{"$f":"R40*'Intersection Delay'!$Q$94","v":0},0,0,0,0,null,15,0,0]
[null,16,0,0,0,0,{"$f":"E41*'Intersection Delay'!$E$94","v":0},{"$f":"F41*'Intersection Delay'!$E$94","v":0},0,0,0,0,null,16,0,0,0,0,{"$f":"Q41*'Intersection Delay'!$Q$94","v":0},{"$f":"R41*'Intersection Delay'!$Q$94","v":0},0,0,0,0,null,16,0,0]
[null,17,0,0,0,0,{"$f":"E42*'Intersection Delay'!$E$94","v":0},{"$f":"F42*'Intersection Delay'!$E$94","v":0},0,0,0,0,null,17,0,0,0,0,{"$f":"Q42*'Intersection Delay'!$Q$94","v":0},{"$f":"R42*'Intersection Delay'!$Q$94","v":0},0,0,0,0,null,17,0,0]
[null,18,0,0,0,0,{"$f":"E43*'Intersection Delay'!$E$94","v":0},{"$f":"F43*'Intersection Delay'!$E$94","v":0},0,0,0,0,null,18,0,0,0,0,{"$f":"Q43*'Intersection Delay'!$Q$94","v":0},{"$f":"R43*'Intersection Delay'!$Q$94","v":0},0,0,0,0,null,18,0,0]
[null,19,0,0,0,0,{"$f":"E44*'Intersection Delay'!$E$94","v":0},{"$f":"F44*'Intersection Delay'!$E$94","v":0},0,0,0,0,null,19,0,0,0,0,{"$f":"Q44*'Intersection Delay'!$Q$94","v":0},{"$f":"R44*'Intersection Delay'!$Q$94","v":0},0,0,0,0,null,19,0,0]
[null,20,0,0,0,0,{"$f":"E45*'Intersection Delay'!$E$94","v":0},{"$f":"F45*'Intersection Delay'!$E$94","v":0},0,0,0,0,null,20,0,0,0,0,{"$f":"Q45*'Intersection Delay'!$Q$94","v":0},{"$f":"R45*'Intersection Delay'!$Q$94","v":0},0,0,0,0,null,20,0,0]
[]
[null,"Total",null,null,null,null,null,null,null,null,null,{"$f":"SUM(L26:L45)","v":0},null,"Total",null,null,null,null,null,null,null,null,null,{"$f":"SUM(X26:X45)","v":0},null,"Total",null,{"$f":"SUM(AB26:AB45)","v":0}]
[]
[]
[]
[]
[null,"D","CYCLING BENEFITS",null,null,null,null,null,null,null,null,null,null,"E","PEDESTRIAN BENEFITS - SRTS",null,null,null,null,null,null,null,null,null,null,"F","TOTAL"]
[]
[]
[null,"Existing SRTS Facility",null,null,null,null,null,null,null,null,null,null,null,"Existing SRTS Facility",null,null,null,null,null,null,null,null,null,null,null,"Existing Facility"]
[]
[null,null,"AVERAGE ANNUAL VOLUME",null,null,null,"TRAVEL TIME SAVED",null,"VALUE OF TIME SAVINGS",null,null,null,null,null,"AVERAGE ANNUAL VOLUME",null,null,null,"TRAVEL TIME SAVED",null,"VALUE OF TIME SAVINGS"]
[null,null,"(trips/yr.)",null,null,null,"(hours/yr.)",null,"($/year)",null,null,null,null,null,"(trips/yr.)",null,null,null,"(hours/yr.)",null,"($/year)"]
[null,"Year","Total Trips, Existing Facility (Baseline)","Total Trips, Improved Facility","Existing Trips, Existing Facility","Induced Trips, Existing Facility","Existing Trips","Induced Trips","Existing Trips","Induced Trips","\nConstant\nDollars","\nPresent\nValue",null,"Year","Total Trips, Existing Facility (Baseline)","Total Trips, Improved Facility","Existing Trips, Existing Facility","Induced Trips, Existing Facility","Existing Trips","Induced Trips","Existing Trips","Induced Trips","\nConstant\nDollars","\nPresent\nValue",null,"Year","\nConstant\nDollars","\nPresent\nValue"]
[null,1,{"$f":"IF(AND(OR(ProjType=1, ProjType=3),SRTSProj=1),TrSRTSCyc1NBEx,0)","v":0},{"$f":"IF(AND(OR(ProjType=1, ProjType=3),SRTSProj=1),TrSRTSCyc1BEx,0)","v":0},{"$f":"C60","v":0},{"$f":"D60-C60","v":0},{"$f":"E60*'Intersection Delay'!$E$94","v":0},{"$f":"F60*'Intersection Delay'!$E$94","v":0},{"$f":"G60*ValTimeAT","v":0},{"$f":"H60*ValTimeAT/2","v":0},{"$f":"I60*(1+TTUprater)^($B60+Construct-1)","v":0},{"$f":"$K60/(1+DiscRate)^($B60+Construct-1)","v":0},null,1,{"$f":"IF(AND(OR(ProjType=1, ProjType=3),SRTSProj=1),TrSRTSPed1NBEx,0)","v":0},{"$f":"IF(AND(OR(ProjType=1, ProjType=3),SRTSProj=1),TrSRTSPed1BEx,0)","v":0},{"$f":"O60","v":0},{"$f":"P60-O60","v":0},{"$f":"Q60*'Intersection Delay'!$Q$94","v":0},{"$f":"R60*'Intersection Delay'!$Q$94","v":0},{"$f":"S60*ValTimeAT","v":0},{"$f":"T60*ValTimeAT/2","v":0},{"$f":"U60*(1+TTUprater)^($B60+Construct-1)","v":0},{"$f":"$W60/(1+DiscRate)^($B60+Construct-1)","v":0},null,1,{"$f":"W60+K60","v":0},{"$f":"X60+L60","v":0}]
[null,20,{"$f":"IF(AND(OR(ProjType=1, ProjType=3),SRTSProj=1),TrSRTSCyc20NBEx,0)","v":0},{"$f":"IF(AND(OR(ProjType=1, ProjType=3),SRTSProj=1),TrSRTSCyc20BEx,0)","v":0},{"$f":"C61","v":0},{"$f":"D61-C61","v":0},{"$f":"E61*'Intersection Delay'!$E$94","v":0},{"$f":"F61*'Intersection Delay'!$E$94","v":0},{"$f":"G61*ValTimeAT","v":0},{"$f":"H61*ValTimeAT/2","v":0},{"$f":"I61*(1+TTUprater)^($B60+Construct-1)","v":0},{"$f":"$K61/(1+DiscRate)^($B61+Construct-1)","v":0},null,20,{"$f":"IF(AND(OR(ProjType=1, ProjType=3),SRTSProj=1),TrSRTSPed20NBEx,0)","v":0},{"$f":"IF(AND(OR(ProjType=1, ProjType=3),SRTSProj=1),TrSRTSPed20BEx,0)","v":0},{"$f":"O61","v":0},{"$f":"P61-O61","v":0},{"$f":"Q61*'Intersection Delay'!$Q$94","v":0},{"$f":"R61*'Intersection Delay'!$Q$94","v":0},{"$f":"S61*ValTimeAT","v":0},{"$f":"T61*ValTimeAT/2","v":0},{"$f":"U61*(1+TTUprater)^($B60+Construct-1)","v":0},{"$f":"$W61/(1+DiscRate)^($B61+Construct-1)","v":0},null,20,{"$f":"W61+K61","v":0},{"$f":"X61+L61","v":0}]
[]
[null,1,{"$f":"TREND(C$60:C$61,$B$60:$B$61,$B63)","v":0},{"$f":"TREND(D$60:D$61,$B$60:$B$61,$B63)","v":0},{"$f":"C63","v":0},{"$f":"D63-C63","v":0},{"$f":"E63*'Intersection Delay'!$E$94","v":0},{"$f":"F63*'Intersection Delay'!$E$94","v":0},{"$f":"G63*ValTimeAT","v":0},{"$f":"H63*ValTimeAT/2","v":0},{"$f":"I63*(1+TTUprater)^($B60+Construct-1)","v":0},{"$f":"$K63/(1+DiscRate)^($B63+Construct-1)","v":0},null,1,{"$f":"TREND(O$23:O$24,$B$23:$B$24,$B63)","v":0},{"$f":"TREND(P$23:P$24,$B$23:$B$24,$B63)","v":0},{"$f":"TREND(Q$23:Q$24,$B$23:$B$24,$B63)","v":0},{"$f":"P63-O63","v":0},{"$f":"Q63*'Intersection Delay'!$Q$94","v":0},{"$f":"R63*'Intersection Delay'!$Q$94","v":0},{"$f":"S63*ValTimeAT","v":0},{"$f":"T63*ValTimeAT/2","v":0},{"$f":"U63*(1+TTUprater)^($B60+Construct-1)","v":0},{"$f":"$W63/(1+DiscRate)^($B63+Construct-1)","v":0},null,1,{"$f":"W63+K63","v":0},{"$f":"X63+L63","v":0}]
[null,2,{"$f":"TREND(C$60:C$61,$B$60:$B$61,$B64)","v":0},0,0,0,{"$f":"E64*'Intersection Delay'!$E$94","v":0},{"$f":"F64*'Intersection Delay'!$E$94","v":0},0,0,0,0,null,2,{"$f":"TREND(O$23:O$24,$B$23:$B$24,$B64)","v":0},0,0,0,{"$f":"Q64*'Intersection Delay'!$Q$94","v":0},{"$f":"R64*'Intersection Delay'!$Q$94","v":0},0,0,0,0,null,2,0,0]
[null,3,0,0,0,0,{"$f":"E65*'Intersection Delay'!$E$94","v":0},{"$f":"F65*'Intersection Delay'!$E$94","v":0},0,0,0,0,null,3,0,0,0,0,{"$f":"Q65*'Intersection Delay'!$Q$94","v":0},{"$f":"R65*'Intersection Delay'!$Q$94","v":0},0,0,0,0,null,3,0,0]
[null,4,0,0,0,0,{"$f":"E66*'Intersection Delay'!$E$94","v":0},{"$f":"F66*'Intersection Delay'!$E$94","v":0},0,0,0,0,null,4,0,0,0,0,{"$f":"Q66*'Intersection Delay'!$Q$94","v":0},{"$f":"R66*'Intersection Delay'!$Q$94","v":0},0,0,0,0,null,4,0,0]
[null,5,0,0,0,0,{"$f":"E67*'Intersection Delay'!$E$94","v":0},{"$f":"F67*'Intersection Delay'!$E$94","v":0},0,0,0,0,null,5,0,0,0,0,{"$f":"Q67*'Intersection Delay'!$Q$94","v":0},{"$f":"R67*'Intersection Delay'!$Q$94","v":0},0,0,0,0,null,5,0,0]
[null,6,0,0,0,0,{"$f":"E68*'Intersection Delay'!$E$94","v":0},{"$f":"F68*'Intersection Delay'!$E$94","v":0},0,0,0,0,null,6,0,0,0,0,{"$f":"Q68*'Intersection Delay'!$Q$94","v":0},{"$f":"R68*'Intersection Delay'!$Q$94","v":0},0,0,0,0,null,6,0,0]
[null,7,0,0,0,0,{"$f":"E69*'Intersection Delay'!$E$94","v":0},{"$f":"F69*'Intersection Delay'!$E$94","v":0},0,0,0,0,null,7,0,0,0,0,{"$f":"Q69*'Intersection Delay'!$Q$94","v":0},{"$f":"R69*'Intersection Delay'!$Q$94","v":0},0,0,0,0,null,7,0,0]
[null,8,0,0,0,0,{"$f":"E70*'Intersection Delay'!$E$94","v":0},{"$f":"F70*'Intersection Delay'!$E$94","v":0},0,0,0,0,null,8,0,0,0,0,{"$f":"Q70*'Intersection Delay'!$Q$94","v":0},{"$f":"R70*'Intersection Delay'!$Q$94","v":0},0,0,0,0,null,8,0,0]
[null,9,0,0,0,0,{"$f":"E71*'Intersection Delay'!$E$94","v":0},{"$f":"F71*'Intersection Delay'!$E$94","v":0},0,0,0,0,null,9,0,0,0,0,{"$f":"Q71*'Intersection Delay'!$Q$94","v":0},{"$f":"R71*'Intersection Delay'!$Q$94","v":0},0,0,0,0,null,9,0,0]
[null,10,0,0,0,0,{"$f":"E72*'Intersection Delay'!$E$94","v":0},{"$f":"F72*'Intersection Delay'!$E$94","v":0},0,0,0,0,null,10,0,0,0,0,{"$f":"Q72*'Intersection Delay'!$Q$94","v":0},{"$f":"R72*'Intersection Delay'!$Q$94","v":0},0,0,0,0,null,10,0,0]
[null,11,0,0,0,0,{"$f":"E73*'Intersection Delay'!$E$94","v":0},{"$f":"F73*'Intersection Delay'!$E$94","v":0},0,0,0,0,null,11,0,0,0,0,{"$f":"Q73*'Intersection Delay'!$Q$94","v":0},{"$f":"R73*'Intersection Delay'!$Q$94","v":0},0,0,0,0,null,11,0,0]
[null,12,0,0,0,0,{"$f":"E74*'Intersection Delay'!$E$94","v":0},{"$f":"F74*'Intersection Delay'!$E$94","v":0},0,0,0,0,null,12,0,0,0,0,{"$f":"Q74*'Intersection Delay'!$Q$94","v":0},{"$f":"R74*'Intersection Delay'!$Q$94","v":0},0,0,0,0,null,12,0,0]
[null,13,0,0,0,0,{"$f":"E75*'Intersection Delay'!$E$94","v":0},{"$f":"F75*'Intersection Delay'!$E$94","v":0},0,0,0,0,null,13,0,0,0,0,{"$f":"Q75*'Intersection Delay'!$Q$94","v":0},{"$f":"R75*'Intersection Delay'!$Q$94","v":0},0,0,0,0,null,13,0,0]
[null,14,0,0,0,0,{"$f":"E76*'Intersection Delay'!$E$94","v":0},{"$f":"F76*'Intersection Delay'!$E$94","v":0},0,0,0,0,null,14,0,0,0,0,{"$f":"Q76*'Intersection Delay'!$Q$94","v":0},{"$f":"R76*'Intersection Delay'!$Q$94","v":0},0,0,0,0,null,14,0,0]
[null,15,0,0,0,0,{"$f":"E77*'Intersection Delay'!$E$94","v":0},{"$f":"F77*'Intersection Delay'!$E$94","v":0},0,0,0,0,null,15,0,0,0,0,{"$f":"Q77*'Intersection Delay'!$Q$94","v":0},{"$f":"R77*'Intersection Delay'!$Q$94","v":0},0,0,0,0,null,15,0,0]
[null,16,0,0,0,0,{"$f":"E78*'Intersection Delay'!$E$94","v":0},{"$f":"F78*'Intersection Delay'!$E$94","v":0},0,0,0,0,null,16,0,0,0,0,{"$f":"Q78*'Intersection Delay'!$Q$94","v":0},{"$f":"R78*'Intersection Delay'!$Q$94","v":0},0,0,0,0,null,16,0,0]
[null,17,0,0,0,0,{"$f":"E79*'Intersection Delay'!$E$94","v":0},{"$f":"F79*'Intersection Delay'!$E$94","v":0},0,0,0,0,null,17,0,0,0,0,{"$f":"Q79*'Intersection Delay'!$Q$94","v":0},{"$f":"R79*'Intersection Delay'!$Q$94","v":0},0,0,0,0,null,17,0,0]
[null,18,0,0,0,0,{"$f":"E80*'Intersection Delay'!$E$94","v":0},{"$f":"F80*'Intersection Delay'!$E$94","v":0},0,0,0,0,null,18,0,0,0,0,{"$f":"Q80*'Intersection Delay'!$Q$94","v":0},{"$f":"R80*'Intersection Delay'!$Q$94","v":0},0,0,0,0,null,18,0,0]
[null,19,0,0,0,0,{"$f":"E81*'Intersection Delay'!$E$94","v":0},{"$f":"F81*'Intersection Delay'!$E$94","v":0},0,0,0,0,null,19,0,0,0,0,{"$f":"Q81*'Intersection Delay'!$Q$94","v":0},{"$f":"R81*'Intersection Delay'!$Q$94","v":0},0,0,0,0,null,19,0,0]
[null,20,0,0,0,0,{"$f":"E82*'Intersection Delay'!$E$94","v":0},{"$f":"F82*'Intersection Delay'!$E$94","v":0},0,0,0,0,null,20,0,0,0,0,{"$f":"Q82*'Intersection Delay'!$Q$94","v":0},{"$f":"R82*'Intersection Delay'!$Q$94","v":0},0,0,0,0,null,20,0,0]
[]
[null,"Total",null,null,null,null,null,null,null,null,null,{"$f":"SUM(L63:L82)","v":0},null,"Total",null,null,null,null,null,null,null,null,null,{"$f":"SUM(X63:X82)","v":0},null,"Total",null,{"$f":"SUM(AB63:AB82)","v":0}]
[]
[]
[]
[null,null,"Computation of Travel Time Parameters - Cycling",null,null,null,null,null,null,null,null,null,null,null,"Computation of Travel Time Parameters - Pedestrian"]
[]
[null,null,null,"Average Number of Intersections Crossed per Trip (#)",{"$f":"IFERROR('1a) Project Info'!H87/'1a) Project Info'!H13*TAvMiCycNB,0)","v":0},null,null,null,null,null,null,null,null,null,null,"Average Number of Intersections Crossed per Trip",{"$f":"IFERROR('1a) Project Info'!H87/'1a) Project Info'!H13*TAvMiPedNB,0)","v":0}]
[]
[null,null,null,"Total Time Savings per Trip (min)",{"$f":"E90*'1a) Project Info'!H88","v":0},null,null,null,null,null,null,null,null,null,null,"Total Time Savings per Trip (min)",{"$f":"Q90*'1a) Project Info'!H88","v":0}]
[]
[null,null,null,"Total Time Savings per Trip (hr)",{"$f":"E92/60","v":0},null,null,null,null,null,null,null,null,null,null,"Total Time Savings per Trip (hr)",{"$f":"Q92/60","v":0}]

{"sheet":"Intersection Safety","index":9,"n_rows":82,"n_cols":43,"rows_kept":82,"cut":false,"hidden":false,"merged":[[9,9,9,14],[6,9,6,14],[6,1,6,7],[9,1,9,7],[14,2,14,16],[14,19,14,33],[14,40,14,42],[19,27,19,30],[19,2,19,5],[19,6,19,9],[19,10,19,13],[19,19,19,22],[19,23,19,26],[78,10,78,11],[78,27,78,28],[20,27,20,30],[20,2,20,5],[20,6,20,9],[20,10,20,13],[20,19,20,22],[20,23,20,26]]}
[null,"Intersection Safety Benefits"]
[]
[null,"This sheet calculates safety benefits associated with intersection improvements along a bike/pedestrian facility."]
[]
[null,"Formulas:"]
[]
[null,"Baseline Ave. Ann. Accidents by Type = Sum of total Accidents by Type / Years of Accident Data",null,null,null,null,null,null,null,"Value of Accident Reduction by Type =  Reduced # of accidents by Type x Value of Accident by Type"]
[null,"Accidents / yr.",null,null,null,null,null,null,null,"       $ / year ",null,"$/accident"]
[]
[null,"Reduction in Acc. by Type = Crash Modification Factor(s) x Baseline Ave. Ann. Acc. by Type (see calculations, below)",null,null,null,null,null,null,null,"Value of Accident Reduction all types =  Sum of Value of Accidents by Type"]
[null,"vehicle-hrs / yr. ",null,"vehicles / yr.  x  miles",null,"miles/hour ",null,null,null,"       $ / year ",null,"$/accident"]
[]
[]
[]
[null,"A","CYCLING BENEFITS",null,null,null,null,null,null,null,null,null,null,null,null,null,null,null,"B","PEDESTRIAN BENEFITS",null,null,null,null,null,null,null,null,null,null,null,null,null,null,null,"C","TOTAL",null,null,"D","SRTS Benefits Share"]
[]
[]
[null,"Existing Facility",null,null,null,null,null,null,null,null,null,null,null,null,null,null,null,null,"Existing Facility",null,null,null,null,null,null,null,null,null,null,null,null,null,null,null,null,"Existing Facility",null,null,null,"Existing Facility"]
[]
[null,null,"EXISTING ACCIDENT RATE AT AFFECTED INTERSECTIONS",null,null,null,"NEW ACCIDENT RATE AT AFFECTED INTERSECTIONS",null,null,null,"ACCIDENT REDUCTION AT AFFECTED INTERSECTIONS",null,null,null,"SAFETY VALUE",null,null,null,null,"EXISTING ACCIDENT RATE AT AFFECTED INTERSECTIONS",null,null,null,"NEW ACCIDENT RATE AT AFFECTED INTERSECTIONS",null,null,null,"ACCIDENT REDUCTION AT AFFECTED INTERSECTIONS",null,null,null,"SAFETY VALUE",null,null,null,null,null,null,null,null,"Share of Cycling Benefits","Share of Ped Benefits","Sum of Benefits"]
[null,null,"(events/yr.)",null,null,null,"(events/yr.)",null,null,null,"(events/yr.)",null,null,null,"($)",null,null,null,null,"(events/yr.)",null,null,null,"(events/yr.)",null,null,null,"(events/yr.)",null,null,null,"($)",null,null,null,null,null,null,null,null,{"$f":"'2) Model Inputs'!$H$166","v":false},{"$f":"'2) Model Inputs'!$S$166","v":false}]
[null,"Year","Fatalities","Injuries","Property Damage Only","Total","Fatalities","Injuries","Property Damage Only","Total","Fatalities","Injuries","Property Damage Only","Total","Total","Constant\nDollars","Present\nValue",null,"Year","Fatalities","Injuries","Property Damage Only","Total","Fatalities","Injuries","Property Damage Only","Total","Fatalities","Injuries","Property Damage Only","Total","Total","Constant\nDollars","Present\nValue",null,null,"Dollars","Value",null,"Year","SRTS Cycling Benefits - Present Value","SRTS Ped Benefits - Present Value"]
[null,1,{"$f":"IF(OR(ProjType=1, ProjType=3),FatCycYr,0)","v":0},{"$f":"IF(OR(ProjType=1, ProjType=3),InjCycYr,0)","v":0},{"$f":"IF(OR(ProjType=1, ProjType=3),PdoCycYr,0)","v":0},{"$f":"SUM(C23:E23)","v":0},{"$f":"C23*(1-$K$82)","v":0},0,0,{"$f":"SUM(G23:I23)","v":0},{"$f":"C23-G23","v":0},0,0,0,{"$f":"L82","v":0},{"$f":"O23","v":0},{"$f":"$P23/(1+DiscRate)^($B23+Construct-1)","v":0},null,1,{"$f":"IF(OR(ProjType=1, ProjType=3),FatPedYr,0)","v":0},{"$f":"IF(OR(ProjType=1, ProjType=3),InjPedYr,0)","v":0},{"$f":"IF(OR(ProjType=1, ProjType=3),PdoPedYr,0)","v":0},{"$f":"SUM(T23:V23)","v":0},{"$f":"T23*(1-$K$82)","v":0},0,0,{"$f":"SUM(X23:Z23)","v":0},{"$f":"T23-X23","v":0},0,0,0,{"$f":"AC82","v":0},{"$f":"AF23","v":0},{"$f":"$AG23/(1+DiscRate)^($B23+Construct-1)","v":0},null,1,{"$f":"AG23+P23","v":0},{"$f":"AH23+Q23","v":0},null,1,{"$f":"$AO$21*Q23","v":0},{"$f":"$AP$21*AH23","v":0},{"$f":"SUM(AO23:AP23)","v":0}]
[null,20,{"$f":"C45","v":0},{"$f":"D45","v":0},{"$f":"E45","v":0},{"$f":"SUM(C24:E24)","v":0},0,0,0,{"$f":"SUM(G24:I24)","v":0},0,0,0,0,{"$f":"O45","v":0},{"$f":"O24","v":0},{"$f":"$P24/(1+DiscRate)^($B24+Construct-1)","v":0},null,20,{"$f":"T45","v":0},{"$f":"U45","v":0},{"$f":"V45","v":0},{"$f":"SUM(T24:V24)","v":0},0,0,0,{"$f":"SUM(X24:Z24)","v":0},0,0,0,0,{"$f":"AF45","v":0},{"$f":"AF24","v":0},{"$f":"$AG24/(1+DiscRate)^($B24+Construct-1)","v":0},null,20,{"$f":"AG24+P24","v":0},{"$f":"AH24+Q24","v":0},null,20,{"$f":"$AO$21*Q24","v":0},{"$f":"$AP$21*AH24","v":0},{"$f":"SUM(AO24:AP24)","v":0}]
[]
[null,1,{"$f":"C23","v":0},{"$f":"D23","v":0},{"$f":"E23","v":0},{"$f":"SUM(C26:E26)","v":0},{"$f":"C26*(1-$K$82)","v":0},{"$f":"D26*(1-$K$82)","v":0},{"$f":"E26*(1-$K$82)","v":0},{"$f":"SUM(G26:I26)","v":0},{"$f":"C26-G26","v":0},{"$f":"D26-H26","v":0},{"$f":"E26-I26","v":0},{"$f":"F26-J26","v":0},{"$f":"O23","v":0},{"$f":"O26","v":0},{"$f":"$P26/(1+DiscRate)^($B26+Construct-1)","v":0},null,1,{"$f":"T23","v":0},{"$f":"U23","v":0},{"$f":"V23","v":0},{"$f":"SUM(T26:V26)","v":0},{"$f":"T26*(1-$K$82)","v":0},{"$f":"U26*(1-$K$82)","v":0},{"$f":"V26*(1-$K$82)","v":0},{"$f":"SUM(X26:Z26)","v":0},{"$f":"T26-X26","v":0},{"$f":"U26-Y26","v":0},{"$f":"V26-Z26","v":0},{"$f":"W26-AA26","v":0},{"$f":"AF23","v":0},{"$f":"AF26","v":0},{"$f":"$AG26/(1+DiscRate)^($B26+Construct-1)","v":0},null,1,{"$f":"AG26+P26","v":0},{"$f":"AH26+Q26","v":0},null,1,{"$f":"$AO$21*Q26","v":0},{"$f":"$AP$21*AH26","v":0},{"$f":"SUM(AO26:AP26)","v":0}]
[null,2,{"$f":"C26*(1+AccCycGrowth)","v":0},{"$f":"D26*(1+AccCycGrowth)","v":0},{"$f":"E26*(1+AccCycGrowth)","v":0},0,0,0,0,0,0,0,0,0,{"$f":"O26*(1+AccCycGrowth)","v":0},{"$f":"O27","v":0},0,null,2,{"$f":"T26*(1+AccPedGrowth)","v":0},{"$f":"U26*(1+AccPedGrowth)","v":0},{"$f":"V26*(1+AccPedGrowth)","v":0},0,0,0,0,0,0,0,0,0,{"$f":"AF26*(1+AccPedGrowth)","v":0},{"$f":"AF27","v":0},0,null,2,0,0,null,2,0,0,{"$f":"SUM(AO27:AP27)","v":0}]
[null,3,0,0,0,0,0,0,0,0,0,0,0,0,0,{"$f":"O28","v":0},0,null,3,0,0,0,0,0,0,0,0,0,0,0,0,0,0,0,null,3,0,0,null,3,0,0,0]
[null,4,0,0,0,0,0,0,0,0,0,0,0,0,0,{"$f":"O29","v":0},0,null,4,0,0,0,0,0,0,0,0,0,0,0,0,0,0,0,null,4,0,0,null,4,0,0,0]
[null,5,0,0,0,0,0,0,0,0,0,0,0,0,0,0,0,null,5,0,0,0,0,0,0,0,0,0,0,0,0,0,0,0,null,5,0,0,null,5,0,0,0]
[null,6,0,0,0,0,0,0,0,0,0,0,0,0,0,0,0,null,6,0,0,0,0,0,0,0,0,0,0,0,0,0,0,0,null,6,0,0,null,6,0,0,0]
[null,7,0,0,0,0,0,0,0,0,0,0,0,0,0,0,0,null,7,0,0,0,0,0,0,0,0,0,0,0,0,0,0,0,null,7,0,0,null,7,0,0,0]
[null,8,0,0,0,0,0,0,0,0,0,0,0,0,0,0,0,null,8,0,0,0,0,0,0,0,0,0,0,0,0,0,0,0,null,8,0,0,null,8,0,0,0]
[null,9,0,0,0,0,0,0,0,0,0,0,0,0,0,0,0,null,9,0,0,0,0,0,0,0,0,0,0,0,0,0,0,0,null,9,0,0,null,9,0,0,0]
[null,10,0,0,0,0,0,0,0,0,0,0,0,0,0,0,0,null,10,0,0,0,0,0,0,0,0,0,0,0,0,0,0,0,null,10,0,0,null,10,0,0,0]
[null,11,0,0,0,0,0,0,0,0,0,0,0,0,0,0,0,null,11,0,0,0,0,0,0,0,0,0,0,0,0,0,0,0,null,11,0,0,null,11,0,0,0]
[null,12,0,0,0,0,0,0,0,0,0,0,0,0,0,0,0,null,12,0,0,0,0,0,0,0,0,0,0,0,0,0,0,0,null,12,0,0,null,12,0,0,0]
[null,13,0,0,0,0,0,0,0,0,0,0,0,0,0,0,0,null,13,0,0,0,0,0,0,0,0,0,0,0,0,0,0,0,null,13,0,0,null,13,0,0,0]
[null,14,0,0,0,0,0,0,0,0,0,0,0,0,0,0,0,null,14,0,0,0,0,0,0,0,0,0,0,0,0,0,0,0,null,14,0,0,null,14,0,0,0]
[null,15,0,0,0,0,0,0,0,0,0,0,0,0,0,0,0,null,15,0,0,0,0,0,0,0,0,0,0,0,0,0,0,0,null,15,0,0,null,15,0,0,0]
[null,16,0,0,0,0,0,0,0,0,0,0,0,0,0,0,0,null,16,0,0,0,0,0,0,0,0,0,0,0,0,0,0,0,null,16,0,0,null,16,0,0,0]
[null,17,0,0,0,0,0,0,0,0,0,0,0,0,0,0,0,null,17,0,0,0,0,0,0,0,0,0,0,0,0,0,0,0,null,17,0,0,null,17,0,0,0]
[null,18,0,0,0,0,0,0,0,0,0,0,0,0,0,0,0,null,18,0,0,0,0,0,0,0,0,0,0,0,0,0,0,0,null,18,0,0,null,18,0,0,0]
[null,19,0,0,0,0,0,0,0,0,0,0,0,0,0,0,0,null,19,0,0,0,0,0,0,0,0,0,0,0,0,0,0,0,null,19,0,0,null,19,0,0,0]
[null,20,0,0,0,0,0,0,0,0,0,0,0,0,0,0,0,null,20,0,0,0,0,0,0,0,0,0,0,0,0,0,0,0,null,20,0,0,null,20,0,0,0]
[]
[null,"Total",null,null,null,null,null,null,null,null,null,null,null,null,null,null,{"$f":"SUM(Q26:Q45)","v":0},null,"Total",null,null,null,null,null,null,null,null,null,null,null,null,null,null,{"$f":"SUM(AH26:AH45)","v":0},null,"Total",null,{"$f":"SUM(AL26:AL45)","v":0},null,"Total",{"$f":"SUM(AO26:AO45)","v":0},{"$f":"SUM(AP26:AP45)","v":0},0]
[]
[]
[null,null,"Intersection Safety Improvements - Cycling",null,null,null,null,null,null,null,null,null,null,null,null,null,null,null,null,"Intersection Safety Improvements - Pedestrian"]
[]
[null,null,null,null,null,null,null,"Fatalities","Injuries","Property Damage Only",null,"Total",null,null,null,null,null,null,null,null,null,null,null,null,"Fatalities","Injuries","Property Damage Only",null,"Total"]
[null,null,null,null,null,null,"Baseline Frequency",{"$f":"FatCycYr","v":0},{"$f":"InjCycYr","v":0},{"$f":"PdoCycYr","v":0},null,{"$f":"SUM(H53:J53)","v":0},null,null,null,null,null,null,null,null,null,null,null,"Baseline Frequency",{"$f":"FatPedYr","v":0},{"$f":"InjPedYr","v":0},{"$f":"PdoPedYr","v":0},null,{"$f":"SUM(Y53:AA53)","v":0}]
[null,null,null,null,null,null,"Cost per Collision (Vc)",{"$f":"HwyFatCost","v":10800000},{"$f":"HwyInjCost","v":148800},{"$f":"HwyPDOCost","v":9700},null,{"$f":"SUMPRODUCT(H53:J53,H54:J54)","v":0},null,null,null,null,null,null,null,null,null,null,null,"Cost per Collision (Vc)",{"$f":"HwyFatCost","v":10800000},{"$f":"HwyInjCost","v":148800},{"$f":"HwyPDOCost","v":9700},null,{"$f":"SUMPRODUCT(Y53:AA53,Y54:AA54)","v":0}]
[]
[]
[null,null,null,null,null,null,"Measures","Applicable","Collision Reduction Factors (CRFs)","Potential Cost Reduction","Estimated Impact (%) - Pc","Estimated Impact ($)",null,null,null,null,null,null,null,null,null,null,null,"Measures","Applicable","Collision Reduction Factors (CRFs)","Potential Cost Reduction","Estimated Impact (%) - Pc","Estimated Impact ($)"]
[null,null,null,null,null,null,"SIGNALIZED INTERSECTION COUNTERMEASURES",null,null,null,null,null,null,null,null,null,null,null,null,null,null,null,null,"SIGNALIZED INTERSECTION COUNTERMEASURES"]
[null,null,null,null,null,null,"Install pedestrian countdown signal heads",{"$f":"'1a) Project Info'!H116","v":0},0.25,{"$f":"($L$54*I59)","v":0},{"$f":"I59*$H59","v":0},0,null,null,null,null,null,null,null,null,null,null,null,"Install pedestrian countdown signal heads",{"$f":"'1a) Project Info'!H116","v":0},0.25,{"$f":"($AC$54*Z59)","v":0},{"$f":"Z59*$H59","v":0},0]
[null,null,null,null,null,null,"Install pedestrian crossing",{"$f":"'1a) Project Info'!H117","v":0},0.25,{"$f":"($L$54*I60)","v":0},0,0,null,null,null,null,null,null,null,null,null,null,null,"Install pedestrian crossing",{"$f":"'1a) Project Info'!H117","v":0},0.25,{"$f":"($AC$54*Z60)","v":0},0,0]
[null,null,null,null,null,null,"Install advance stop bar before crosswalk (bicycle box)",{"$f":"'1a) Project Info'!H118","v":0},0.15,{"$f":"($L$54*I61)","v":0},0,0,null,null,null,null,null,null,null,null,null,null,null,"Install advance stop bar before crosswalk (bicycle box)",{"$f":"'1a) Project Info'!H118","v":0},0.15,{"$f":"($AC$54*Z61)","v":0},0,0]
[null,null,null,null,null,null,"Install pedestrian overpass/ underpass",{"$f":"'1a) Project Info'!H119","v":0},0.75,{"$f":"($L$54*I62)","v":0},0,0,null,null,null,null,null,null,null,null,null,null,null,"Install pedestrian overpass/ underpass",{"$f":"'1a) Project Info'!H119","v":0},0.75,{"$f":"($AC$54*Z62)","v":0},0,0]
[]
[null,null,null,null,null,null,"UNSIGNALIZED INTERESECTION COUNTERMEASURES",null,null,null,null,null,null,null,null,null,null,null,null,null,null,null,null,"UNSIGNALIZED INTERESECTION COUNTERMEASURES"]
[null,null,null,null,null,null,"Install raised medians/ refuge islands",{"$f":"'1a) Project Info'!H121","v":0},0.45,{"$f":"($L$54*I65)","v":0},{"$f":"I65*$H65","v":0},0,null,null,null,null,null,null,null,null,null,null,null,"Install raised medians/ refuge islands",{"$f":"'1a) Project Info'!H121","v":0},0.45,{"$f":"($AC$54*Z65)","v":0},{"$f":"Z65*$H65","v":0},0]
[null,null,null,null,null,null,"Install pedestrian  crossings (new signs and markings only",{"$f":"'1a) Project Info'!H122","v":0},0.25,{"$f":"($L$54*I66)","v":0},0,0,null,null,null,null,null,null,null,null,null,null,null,"Install pedestrian  crossings (new signs and markings only",{"$f":"'1a) Project Info'!H122","v":0},0.25,{"$f":"($AC$54*Z66)","v":0},0,0]
[null,null,null,null,null,null,"Install pedestrian crossing (with enhanced safety measures/ curb extensions",{"$f":"'1a) Project Info'!H123","v":0},0.35,{"$f":"($L$54*I67)","v":0},0,0,null,null,null,null,null,null,null,null,null,null,null,"Install pedestrian crossing (with enhanced safety measures/ curb extensions",{"$f":"'1a) Project Info'!H123","v":0},0.35,{"$f":"($AC$54*Z67)","v":0},0,0]
[null,null,null,null,null,null,"Install pedestrian signal",{"$f":"'1a) Project Info'!H124","v":0},0.55000000000000004,{"$f":"($L$54*I68)","v":0},0,0,null,null,null,null,null,null,null,null,null,null,null,"Install pedestrian signal",{"$f":"'1a) Project Info'!H124","v":0},0.55000000000000004,{"$f":"($AC$54*Z68)","v":0},0,0]
[]
[null,null,null,null,null,null,"ROADWAY COUNTERMEASURES",null,null,null,null,null,null,null,null,null,null,null,null,null,null,null,null,"ROADWAY COUNTERMEASURES"]
[null,null,null,null,null,null,"Install bike lanes",{"$f":"'1a) Project Info'!H126","v":0},0.35,{"$f":"($L$54*I71)","v":0},{"$f":"I71*$H71","v":0},0,null,null,null,null,null,null,null,null,null,null,null,"Install bike lanes",{"$f":"'1a) Project Info'!H126","v":0},0.35,{"$f":"($AC$54*Z71)","v":0},{"$f":"Z71*$H71","v":0},0]
[null,null,null,null,null,null,"Install sidewalk/       pathway (to avoid walking along roadways",{"$f":"'1a) Project Info'!H127","v":0},0.8,{"$f":"($L$54*I72)","v":0},0,0,null,null,null,null,null,null,null,null,null,null,null,"Install sidewalk/       pathway (to avoid walking along roadways",{"$f":"'1a) Project Info'!H127","v":0},0.8,{"$f":"($AC$54*Z72)","v":0},0,0]
[null,null,null,null,null,null,"Install pedestrian crossing (with enhanced safety measures",{"$f":"'1a) Project Info'!H128","v":0},0.3,{"$f":"($L$54*I73)","v":0},0,0,null,null,null,null,null,null,null,null,null,null,null,"Install pedestrian crossing (with enhanced safety measures",{"$f":"'1a) Project Info'!H128","v":0},0.3,{"$f":"($AC$54*Z73)","v":0},0,0]
[null,null,null,null,null,null,"Install Pedestrian crossing",{"$f":"'1a) Project Info'!H129","v":0},0.35,{"$f":"($L$54*I74)","v":0},0,0,null,null,null,null,null,null,null,null,null,null,null,"Install Pedestrian crossing",{"$f":"'1a) Project Info'!H129","v":0},0.35,{"$f":"($AC$54*Z74)","v":0},0,0]
[]
[null,null,null,null,null,null,"OTHER REDUCTION FACTOR ",{"$f":"'1a) Project Info'!H130","v":0},0.1,{"$f":"($L$54*I76)","v":0},{"$f":"I76*$H76","v":0},{"$f":"J76*$H76","v":0},null,null,null,null,null,null,null,null,null,null,null,"OTHER REDUCTION FACTOR ",{"$f":"'1a) Project Info'!H130","v":0},0.1,{"$f":"($AC$54*Z76)","v":0},{"$f":"Z76*$H76","v":0},{"$f":"AA76*$H76","v":0}]
[]
[null,null,null,null,null,null,"TOTAL",null,null,null,null,null,null,null,null,null,null,null,null,null,null,null,null,"TOTAL"]
[null,null,null,null,null,null,null,null,null,"TOTAL MEASURES",{"$f":"IF(OR(ProjType=1, ProjType=3),SUM(H59:H76),0)","v":0},null,null,null,null,null,null,null,null,null,null,null,null,null,null,null,"TOTAL MEASURES",{"$f":"IF(OR(ProjType=1, ProjType=3),SUM(Y59:Y76),0)","v":0}]
[null,null,null,null,null,null,null,null,null,"Average of highest measures (if 2 or fewer)",{"$f":"IFERROR(IF(K79<3,SUMIF(K58:K76,\">0\")/K79,\"\"),0)","v":0},{"$f":"IFERROR(IF(K79<3,SUMIF(L58:L76,\">0\")/K79,\"\"),0)","v":0},null,null,null,null,null,null,null,null,null,null,null,null,null,null,"Average of highest measures (if 2 or fewer)",{"$f":"IFERROR(IF(AB79<3,SUMIF(AB58:AB76,\">0\")/AB79,\"\"),0)","v":0},{"$f":"IFERROR(IF(AB79<3,SUMIF(AC58:AC76,\">0\")/AB79,\"\"),0)","v":0}]
[null,null,null,null,null,null,null,null,null,"Average of 3 highest measures (if 3 or more)",{"$f":"IFERROR(IF(K79>2,AVERAGE(LARGE(K58:K76, {1,2,3})),\"\"),0)","v":""},{"$f":"IFERROR(IF(K79>2,AVERAGE(LARGE(L58:L76, {1,2,3})),\"\"),0)","v":""},null,null,null,null,null,null,null,null,null,null,null,null,null,null,"Average of 3 highest measures (if 3 or more)",{"$f":"IFERROR(IF(AB79>2,AVERAGE(LARGE(AB58:AB76, {1,2,3})),\"\"),0)","v":""},{"$f":"IFERROR(IF(AB79>2,AVERAGE(LARGE(AC58:AC76, {1,2,3})),\"\"),0)","v":""}]
[null,null,null,null,null,null,null,null,null,"TOTAL ANNUAL IMPACT",{"$f":"MAX(K81,K80)","v":0},{"$f":"MAX(L81,L80)","v":0},null,null,null,null,null,null,null,null,null,null,null,null,null,null,"TOTAL ANNUAL IMPACT",{"$f":"MAX(AB81,AB80)","v":0},{"$f":"MAX(AC81,AC80)","v":0}]

{"sheet":"Auto Accident Costs","index":10,"n_rows":47,"n_cols":8,"rows_kept":47,"cut":false,"hidden":false,"merged":[[14,2,14,7]]}
[null,"Accident Reduction Benefits"]
[]
[null,"This sheet calculates benefits of avoided accidents on highways due to a mode shift in trips to active transportation modes."]
[]
[null,"Formulas:"]
[]
[null,"Vehicle-Miles Traveled = Affected Length x Avg Volume / Vehicle Occupancy",null,null,null,null,"Transit Acc Cost = Veh-Miles x Acc Cost/Mile"]
[null,"veh-miles/yr.",null,"miles","vehicles/yr."]
[]
[null,"Hwy Acc Cost = (VMT x Rate x Cost/Mile) by Acc Type",null,null,null,null,"Transit Acc Cost/Mile from PARAMETERS"]
[]
[]
[]
[]
[null,"A","REDUCED ACCIDENT BENEFITS - HIGHWAY USERS"]
[]
[]
[null,"Total"]
[]
[null,null,"AVERAGE ANNUAL VOLUME",null,"REDUCED VMT","ACCIDENT BENEFITS"]
[null,null,"(trip-miles/yr.)",null,"(veh-miles/yr.)","($/yr.)"]
[null,"Year","Induced Trips, \nCycling","Induced Trips, \nPedestrians","Induced Trips, Cyclists, Pedestrians","Induced Trips","Constant\nDollars","Present\nValue"]
[null,1,{"$f":"IF(OR(ProjType=1,ProjType=3),((TrComCyc1BEX-TrComCyc1NBEX)+(TrODCyc1BEX-TrODCyc1NBEX))*TAvMiCycNB,0)+IF(ProjType>1,((TrComCyc1BNew-TrComCyc1NBNew)+(TrODCyc1BNew-TrODCyc1NBNew))*TAvMiCycNB,0)","v":0},{"$f":"IF(OR(ProjType=1,ProjType=3),((TrComPed1BEX-TrComPed1NBEX)+(TrODPed1BEX-TrODPed1NBEX))*TAvMiPedNB,0)+IF(ProjType>1,((TrComPed1BNew-TrComPed1NBNew)+(TrODPed1BNew-TrODPed1NBNew))*TAvMiPedNB,0)","v":0},{"$f":"(D23*DivCycAutoNB+C23*DivPedAutoNB)/VehOcc","v":0},{"$f":"(E23*NonFwyAccRate*AvgAccCost/1000000)","v":0},{"$f":"SUM(F23:F23)","v":0},{"$f":"$G23/(1+DiscRate)^($B23+Construct-1)","v":0}]
[null,20,{"$f":"IF(OR(ProjType=1,ProjType=3),((TrComCyc20BEX-TrComCyc20NBEX)+(TrODCyc20BEX-TrODCyc20NBEX))*TAvMiCycNB,0)+IF(ProjType>1,((TrComCyc20BNew-TrComCyc20NBNew)+(TrODCyc20BNew-TrODCyc20NBNew))*TAvMiCycNB,0)","v":0},{"$f":"IF(OR(ProjType=1,ProjType=3),((TrComPed20BEX-TrComPed20NBEX)+(TrODPed20BEX-TrODPed20NBEX))*TAvMiPedNB,0)+IF(ProjType>1,((TrComPed20BNew-TrComPed20NBNew)+(TrODPed20BNew-TrODPed20NBNew))*TAvMiPedNB,0)","v":0},{"$f":"(D24*DivCycAutoNB+C24*DivPedAutoNB)/VehOcc","v":0},{"$f":"(E24*NonFwyAccRate*AvgAccCost/1000000)","v":0},{"$f":"SUM($F24:$F24)","v":0},{"$f":"$G24/(1+DiscRate)^($B24+Construct-1)","v":0}]
[]
[null,1,{"$f":"TREND(C$23:C$24,$B$23:$B$24,$B26)","v":0},{"$f":"TREND(D$23:D$24,$B$23:$B$24,$B26)","v":0},{"$f":"(D26*DivCycAutoNB+C26*DivPedAutoNB)/VehOcc","v":0},{"$f":"(E26*NonFwyAccRate*AvgAccCost/1000000)","v":0},{"$f":"TREND(G$23:G$24,$B$23:$B$24,$B26)","v":0},{"$f":"$G26/(1+DiscRate)^($B26+Construct-1)","v":0}]
[null,2,{"$f":"TREND(C$23:C$24,$B$23:$B$24,$B27)","v":0},0,0,0,0,0]
[null,3,0,0,0,0,0,0]
[null,4,0,0,0,0,0,0]
[null,5,0,0,0,0,0,0]
[null,6,0,0,0,0,0,0]
[null,7,0,0,0,0,0,0]
[null,8,0,0,0,0,0,0]
[null,9,0,0,0,0,0,0]
[null,10,0,0,0,0,0,0]
[null,11,0,0,0,0,0,0]
[null,12,0,0,0,0,0,0]
[null,13,0,0,0,0,0,0]
[null,14,0,0,0,0,0,0]
[null,15,0,0,0,0,0,0]
[null,16,0,0,0,0,0,0]
[null,17,0,0,0,0,0,0]
[null,18,0,0,0,0,0,0]
[null,19,0,0,0,0,0,0]
[null,20,0,0,0,0,0,0]
[]
[null,"Total",null,null,null,null,null,{"$f":"SUM(H26:H45)","v":0}]

{"sheet":"Health - Absenteeism","index":11,"n_rows":47,"n_cols":22,"rows_kept":47,"cut":false,"hidden":false,"merged":[[19,2,19,4],[20,2,20,4],[19,11,19,13],[20,11,20,13]]}
[null,"Health Benefits - Reduced Absenteeism"]
[]
[null,"This sheet calculates the benefits to employers of improved health of employees who use active transportation modes. Benefits are based on the value of reduced work absences."]
[]
[null,"Formulas:"]
[null,null,null,null,null,null,null,"Value of Short-Term Health = Reduced Days of Work Absences x  Avg. Value of Time per Day "]
[null,"Avg. Ann. Commuters = Avg. Daily Trips / Roundtrip Factor x Commuting Purpose (%) x  Annual Days",null,null,null,null,null,"       $ / year ",null,"# of days / year",null,"$ / day "]
[null,"# / year","#/day'             ","%","#",null,null,"Avg. Value of Time per Day, based on state average wage rate and 8 hour day"]
[]
[null,"Reduced Days of Work Absences = Avg. Ann. Commuters x Short-term sick leave coverage x Reduction in sick days",null,null,null,null,null,"Only applicable for induced riders"]
[null,"# / yr. ","# / year","(%)","(%)"]
[]
[]
[]
[null,"A","CYCLING BENEFITS",null,null,null,null,null,null,null,"B","PEDESTRIAN BENEFITS ",null,null,null,null,null,null,null,"C","TOTAL"]
[]
[]
[null,"Total",null,null,null,null,null,null,null,null,"Total",null,null,null,null,null,null,null,null,"Total"]
[]
[null,null,"COMMUTER TRIPS",null,null,"REDUCTION IN ABSENTEEISM","VALUE OF REDUCED ABSENTEEISM",null,null,null,null,"NEW COMMUTERS",null,null,"REDUCTION IN ABSENTEEISM","VALUE OF REDUCED ABSENTEEISM"]
[null,null,"(trips/yr.)",null,null,"(days)","($/day)",null,null,null,null,"(trips/yr.)",null,null,"(days)","($/day)"]
[null,"Year","Total Commuters, Existing + New Facility (Baseline)","Total Commuters, Improved + New Facility","Induced Commuters, Existing Facility","Induced Commuters","Induced Commuters","Constant\nDollars","Present\nValue",null,"Year","Total Commuters, Existing Facility (Baseline)","Total Commuters, Improved Facility","Induced Commuters, Existing Facility","Induced Commuters","Induced Commuters","Constant\nDollars","Present\nValue",null,"Year","Constant\nDollars","Present\nValue"]
[null,1,{"$f":"IF(OR(ProjType=1,ProjType=3),UserComCyc1NBEX,0)+IF(ProjType>1,UserComCyc1NBNew,0)","v":0},{"$f":"IF(OR(ProjType=1,ProjType=3),UserComCyc1BEX,0)+IF(ProjType>1,UserComCyc1BNew,0)","v":0},{"$f":"D23-C23","v":0},{"$f":"E23*AnnSickDays*PerSickDaysLeave*PerSickDaysRed","v":0},{"$f":"WageStatewide*8","v":218.7112540192926},{"$f":"G23*F23*(1+TTUprater)^($B23+Construct-1)","v":0},{"$f":"$H23/(1+DiscRate)^($B23+Construct-1)","v":0},null,1,{"$f":"IF(OR(ProjType=1,ProjType=3),UserComPed1NBEX,0)+IF(ProjType>1,UserComPed1NBNew,0)","v":0},{"$f":"IF(OR(ProjType=1,ProjType=3),UserComPed1BEX,0)+IF(ProjType>1,UserComPed1BNew,0)","v":0},{"$f":"M23-L23","v":0},{"$f":"N23*AnnSickDays*PerSickDaysLeave*PerSickDaysRed","v":0},{"$f":"WageStatewide*8","v":218.7112540192926},{"$f":"P23*O23","v":0},{"$f":"$Q23/(1+DiscRate)^($K23+Construct-1)","v":0},null,1,{"$f":"Q23+H23","v":0},{"$f":"R23+I23","v":0}]
[null,20,{"$f":"IF(OR(ProjType=1,ProjType=3),UserComCyc20NBEX,0)+IF(ProjType>1,UserComCyc20NBNew,0)","v":0},{"$f":"IF(OR(ProjType=1,ProjType=3),UserComCyc20BEX,0)+IF(ProjType>1,UserComCyc20BNew,0)","v":0},{"$f":"D24-C24","v":0},{"$f":"E24*AnnSickDays*PerSickDaysLeave*PerSickDaysRed","v":0},{"$f":"WageStatewide*8","v":218.7112540192926},{"$f":"G24*F24*(1+TTUprater)^($B24+Construct-1)","v":0},{"$f":"$H24/(1+DiscRate)^($B24+Construct-1)","v":0},null,20,{"$f":"IF(OR(ProjType=1,ProjType=3),UserComPed20NBEX,0)+IF(ProjType>1,UserComPed20NBNew,0)","v":0},{"$f":"IF(OR(ProjType=1,ProjType=3),UserComPed20BEX,0)+IF(ProjType>1,UserComPed20BNew,0)","v":0},{"$f":"M24-L24","v":0},{"$f":"N24*AnnSickDays*PerSickDaysLeave*PerSickDaysRed","v":0},{"$f":"WageStatewide*8","v":218.7112540192926},{"$f":"P24*O24","v":0},{"$f":"$Q24/(1+DiscRate)^($K24+Construct-1)","v":0},null,20,{"$f":"Q24+H24","v":0},{"$f":"R24+I24","v":0}]
[]
[null,1,{"$f":"TREND(C$23:C$24,$B$23:$B$24,$B26)","v":0},{"$f":"TREND(D$23:D$24,$B$23:$B$24,$B26)","v":0},{"$f":"TREND(E$23:E$24,$B$23:$B$24,$B26)","v":0},{"$f":"E26*AnnSickDays*PerSickDaysLeave*PerSickDaysRed","v":0},{"$f":"WageStatewide*8","v":218.7112540192926},{"$f":"G26*F26*(1+TTUprater)^($B26+Construct-1)","v":0},{"$f":"$H26/(1+DiscRate)^($B26+Construct-1)","v":0},null,1,{"$f":"TREND(L$23:L$24,$B$23:$B$24,$B26)","v":0},{"$f":"TREND(M$23:M$24,$B$23:$B$24,$B26)","v":0},{"$f":"TREND(N$23:N$24,$B$23:$B$24,$B26)","v":0},{"$f":"N26*AnnSickDays*PerSickDaysLeave*PerSickDaysRed","v":0},{"$f":"WageStatewide*8","v":218.7112540192926},{"$f":"P26*O26","v":0},{"$f":"$Q26/(1+DiscRate)^($K26+Construct-1)","v":0},null,1,{"$f":"Q26+H26","v":0},{"$f":"R26+I26","v":0}]
[null,2,{"$f":"TREND(C$23:C$24,$B$23:$B$24,$B27)","v":0},0,0,0,218.7112540192926,0,0,null,2,{"$f":"TREND(L$23:L$24,$B$23:$B$24,$B27)","v":0},0,0,0,218.7112540192926,0,0,null,2,0,0]
[null,3,0,0,0,0,218.7112540192926,0,0,null,3,0,0,0,0,218.7112540192926,0,0,null,3,0,0]
[null,4,0,0,0,0,218.7112540192926,0,0,null,4,0,0,0,0,218.7112540192926,0,0,null,4,0,0]
[null,5,0,0,0,0,218.7112540192926,0,0,null,5,0,0,0,0,218.7112540192926,0,0,null,5,0,0]
[null,6,0,0,0,0,218.7112540192926,0,0,null,6,0,0,0,0,218.7112540192926,0,0,null,6,0,0]
[null,7,0,0,0,0,218.7112540192926,0,0,null,7,0,0,0,0,218.7112540192926,0,0,null,7,0,0]
[null,8,0,0,0,0,218.7112540192926,0,0,null,8,0,0,0,0,218.7112540192926,0,0,null,8,0,0]
[null,9,0,0,0,0,218.7112540192926,0,0,null,9,0,0,0,0,218.7112540192926,0,0,null,9,0,0]
[null,10,0,0,0,0,218.7112540192926,0,0,null,10,0,0,0,0,218.7112540192926,0,0,null,10,0,0]
[null,11,0,0,0,0,218.7112540192926,0,0,null,11,0,0,0,0,218.7112540192926,0,0,null,11,0,0]
[null,12,0,0,0,0,218.7112540192926,0,0,null,12,0,0,0,0,218.7112540192926,0,0,null,12,0,0]
[null,13,0,0,0,0,218.7112540192926,0,0,null,13,0,0,0,0,218.7112540192926,0,0,null,13,0,0]
[null,14,0,0,0,0,218.7112540192926,0,0,null,14,0,0,0,0,218.7112540192926,0,0,null,14,0,0]
[null,15,0,0,0,0,218.7112540192926,0,0,null,15,0,0,0,0,218.7112540192926,0,0,null,15,0,0]
[null,16,0,0,0,0,218.7112540192926,0,0,null,16,0,0,0,0,218.7112540192926,0,0,null,16,0,0]
[null,17,0,0,0,0,218.7112540192926,0,0,null,17,0,0,0,0,218.7112540192926,0,0,null,17,0,0]
[null,18,0,0,0,0,218.7112540192926,0,0,null,18,0,0,0,0,218.7112540192926,0,0,null,18,0,0]
[null,19,0,0,0,0,218.7112540192926,0,0,null,19,0,0,0,0,218.7112540192926,0,0,null,19,0,0]
[null,20,0,0,0,0,218.7112540192926,0,0,null,20,0,0,0,0,218.7112540192926,0,0,null,20,0,0]
[]
[null,"Total",null,null,null,null,null,null,{"$f":"SUM(I26:I45)","v":0},null,"Total",null,null,null,null,null,null,{"$f":"SUM(R26:R45)","v":0},null,"Total",null,{"$f":"SUM(V26:V45)","v":0}]

{"sheet":"Health - Reduced Mortality","index":12,"n_rows":94,"n_cols":26,"rows_kept":94,"cut":false,"hidden":false,"merged":[[20,2,20,4],[20,5,20,7],[20,13,20,15],[20,16,20,18],[51,24,51,25],[14,24,14,25],[19,2,19,4],[19,5,19,7],[19,13,19,15],[19,16,19,18],[56,13,56,15],[56,16,56,18],[57,2,57,4],[57,5,57,7],[57,13,57,15],[57,16,57,18],[56,2,56,4],[56,5,56,7]]}
[null,"Health Benefits - Reduced Mortality"]
[]
[null,"This sheet calculates the benefits to cyclists and pedestrians for improved long-term health based on reduced risk of mortality."]
[]
[null,"Formulas:"]
[null,null,null,null,null,null,null,"Number of Expected Deaths in Age Group (Baseline) = Number of Users in Risk-Reducing Age Group * Death Rate (Group)"]
[null,"Number of Induced Users = Users With Project (Improved or New Facility) - Baseline Users (Existing and / or no Facility)",null,null,null,null,null,"# / yr. "]
[null,"# / yr. ",null,null,null,null,null,"Reduced Mortality Risk = Expected Deaths in Age Group * Mortality Risk Reduction (%), as function of annual trip miles"]
[null,null,null,null,null,null,null,"# / yr. "]
[null,"Number of Users in Risk-Reducing Age Group = Number of Induced Users * % of Users (by Mode) in Risk-reducing Age Group",null,null,null,null,null,"Value of Reduced Mortality = Reduced Number of Annual Deaths * Value of Life"]
[null,"# / yr. ",null,null,null,null,null,"$/yr."]
[]
[]
[]
[null,"A","CYCLING BENEFITS",null,null,null,null,null,null,null,null,null,"B","PEDESTRIAN BENEFITS ",null,null,null,null,null,null,null,null,null,"C","TOTAL"]
[]
[]
[null,"Existing",null,null,null,null,null,null,null,null,null,null,"Existing",null,null,null,null,null,null,null,null,null,null,"Existing"]
[]
[null,null,"AVERAGE ANNUAL USERS",null,null,"REDUCED MORTALITY RISK",null,null,"VALUE OF REDUCED MORTALITY",null,null,null,null,"AVERAGE ANNUAL USERS",null,null,"REDUCED MORTALITY RISK",null,null,"VALUE OF REDUCED MORTALITY"]
[null,null,"(Users/yr.)",null,null,"(# of persons)",null,null,"($)",null,null,null,null,"(trips/yr.)",null,null,"(# of persons)",null,null,"($)"]
[null,"Year","Total Users, Existing Facility (Baseline)","Total Users, Improved Facility","Induced Users, Improved Facility","Users in Risk-Reducing Age Group (Ages 20-64)","Expected # of Deaths Among Users","Reduced Mortality Risk (Induced User Trips)","Induced Users","\n\nConstant\nDollars","\n\nPresent\nValue",null,"Year","Total Users, Existing Facility (Baseline)","Total Users, Improved Facility","Induced Users, Improved Facility","Users in Age-Risk Group","Expected # of Deaths Among Users","Reduced Mortality Risk (Induced User Trips)","Induced Users","\n\nConstant\nDollars","\n\nPresent\nValue",null,"Year","\n\nConstant\nDollars","\n\nPresent\nValue"]
[null,1,{"$f":"IF(OR(ProjType=1, ProjType=3),UserComCyc1NBEX+UserODCyc1NBEX+UserRecCyc1NBEX*RecBen,0)","v":0},{"$f":"IF(OR(ProjType=1, ProjType=3),UserComCyc1BEX+UserODCyc1BEX+UserRecCyc1BEX*RecBen,0)","v":0},{"$f":"D23-C23","v":0},{"$f":"E23*PerCycAge","v":0},{"$f":"F23*MortRateCyc/100000","v":0},{"$f":"G23*PerCycRiskRedUsers","v":0},{"$f":"H23*HwyFatCost","v":0},{"$f":"I23","v":0},{"$f":"$J23/(1+DiscRate)^($B23+Construct-1)","v":0},null,1,{"$f":"IF(OR(ProjType=1, ProjType=3),UserComPed1NBEX+UserODPed1NBEX+UserRecPed1NBEX*RecBen,0)","v":0},{"$f":"IF(OR(ProjType=1, ProjType=3),UserComPed1BEX+UserODPed1BEX+UserRecPed1BEX*RecBen,0)","v":0},{"$f":"O23-N23","v":0},{"$f":"P23*PerPedAge","v":0},{"$f":"Q23*MortRatePed/100000","v":0},{"$f":"R23*PerPedRiskRedUsers","v":0},{"$f":"IF(OR(ProjType=1, ProjType=3),S23*HwyFatCost,0)","v":0},{"$f":"T23","v":0},{"$f":"$U23/(1+DiscRate)^($M23+Construct-1)","v":0},null,1,{"$f":"U23+J23","v":0},{"$f":"V23+K23","v":0}]
[null,20,{"$f":"IF(OR(ProjType=1, ProjType=3),UserComCyc20NBEX+UserODCyc20NBEX+UserRecCyc20NBEX*RecBen,0)","v":0},{"$f":"IF(OR(ProjType=1, ProjType=3),UserComCyc20BEX+UserODCyc20BEX+UserRecCyc20BEX*RecBen,0)","v":0},{"$f":"D24-C24","v":0},{"$f":"E24*PerCycAge","v":0},{"$f":"F24*MortRateCyc/100000","v":0},{"$f":"G24*PerCycRiskRedUsers","v":0},{"$f":"H24*HwyFatCost","v":0},{"$f":"I24","v":0},{"$f":"$J24/(1+DiscRate)^($B24+Construct-1)","v":0},null,20,{"$f":"IF(OR(ProjType=1, ProjType=3),UserComPed20NBEX+UserODPed20NBEX+UserRecPed20NBEX*RecBen,0)","v":0},{"$f":"IF(OR(ProjType=1, ProjType=3),UserComPed20BEX+UserODPed20BEX+UserRecPed20BEX*RecBen,0)","v":0},{"$f":"O24-N24","v":0},{"$f":"P24*PerPedAge","v":0},{"$f":"Q24*MortRatePed/100000","v":0},{"$f":"R24*PerPedRiskRedUsers","v":0},{"$f":"IF(OR(ProjType=1, ProjType=3),S24*HwyFatCost,0)","v":0},{"$f":"T24","v":0},{"$f":"$U24/(1+DiscRate)^($M24+Construct-1)","v":0},null,20,{"$f":"U24+J24","v":0},{"$f":"V24+K24","v":0}]
[]
[null,1,{"$f":"TREND(C$23:C$24,$B$23:$B$24,$B26)","v":0},{"$f":"TREND(D$23:D$24,$B$23:$B$24,$B26)","v":0},{"$f":"TREND(E$23:E$24,$B$23:$B$24,$B26)","v":0},{"$f":"E26*PerCycAge","v":0},{"$f":"F26*MortRateCyc/100000","v":0},{"$f":"G26*PerCycRiskRedUsers","v":0},{"$f":"H26*HwyFatCost","v":0},{"$f":"I26","v":0},{"$f":"$J26/(1+DiscRate)^($B26+Construct-1)","v":0},null,1,{"$f":"TREND(N$23:N$24,$M$23:$M$24,$M26)","v":0},0,{"$f":"O26-N26","v":0},{"$f":"P26*PerPedAge","v":0},{"$f":"Q26*MortRatePed/100000","v":0},{"$f":"R26*PerPedRiskRedUsers","v":0},{"$f":"IF(OR(ProjType=1, ProjType=3),S26*HwyFatCost,0)","v":0},{"$f":"T26","v":0},{"$f":"U26/(1+DiscRate)^($B26+Construct-1)","v":0},null,1,{"$f":"U26+J26","v":0},0]
[null,2,{"$f":"TREND(C$23:C$24,$B$23:$B$24,$B27)","v":0},0,0,0,0,0,0,0,0,null,2,0,0,{"$f":"O27-N27","v":0},0,0,0,0,0,0,null,2,0,0]
[null,3,0,0,0,0,0,0,0,0,0,null,3,0,0,0,0,0,0,0,0,0,null,3,0,0]
[null,4,0,0,0,0,0,0,0,0,0,null,4,0,0,0,0,0,0,0,0,0,null,4,0,0]
[null,5,0,0,0,0,0,0,0,0,0,null,5,0,0,0,0,0,0,0,0,0,null,5,0,0]
[null,6,0,0,0,0,0,0,0,0,0,null,6,0,0,0,0,0,0,0,0,0,null,6,0,0]
[null,7,0,0,0,0,0,0,0,0,0,null,7,0,0,0,0,0,0,0,0,0,null,7,0,0]
[null,8,0,0,0,0,0,0,0,0,0,null,8,0,0,0,0,0,0,0,0,0,null,8,0,0]
[null,9,0,0,0,0,0,0,0,0,0,null,9,{"$f":"TREND(N$23:N$24,$M$23:$M$24,$M34)","v":0},{"$f":"TREND(O$23:O$24,$M$23:$M$24,$M34)","v":0},0,0,0,0,0,0,0,null,9,0,0]
[null,10,0,0,0,0,0,0,0,0,0,null,10,{"$f":"TREND(N$23:N$24,$B$23:$B$24,$B35)","v":0},0,0,0,0,0,0,0,0,null,10,0,0]
[null,11,0,0,0,0,0,0,0,0,0,null,11,0,0,0,0,0,0,0,0,0,null,11,0,0]
[null,12,0,0,0,0,0,0,0,0,0,null,12,0,0,0,0,0,0,0,0,0,null,12,0,0]
[null,13,0,0,0,0,0,0,0,0,0,null,13,0,0,0,0,0,0,0,0,0,null,13,0,0]
[null,14,0,0,0,0,0,0,0,0,0,null,14,0,0,0,0,0,0,0,0,0,null,14,0,0]
[null,15,0,0,0,0,0,0,0,0,0,null,15,0,0,0,0,0,0,0,0,0,null,15,0,0]
[null,16,0,0,0,0,0,0,0,0,0,null,16,0,0,0,0,0,0,0,0,0,null,16,0,0]
[null,17,0,0,0,0,0,0,0,0,0,null,17,0,0,0,0,0,0,0,0,0,null,17,0,0]
[null,18,0,0,0,0,0,0,0,0,0,null,18,0,0,0,0,0,0,0,0,0,null,18,0,0]
[null,19,0,0,0,0,0,0,0,0,0,null,19,0,0,0,0,0,0,0,0,0,null,19,0,0]
[null,20,0,0,0,0,0,0,0,0,0,null,20,0,0,0,0,0,0,0,0,0,null,20,0,0]
[]
[null,"Total",null,null,null,null,null,null,null,null,{"$f":"SUM(K26:K45)","v":0},null,"Total",null,null,null,null,null,null,null,null,{"$f":"SUM(V26:V45)","v":0},null,"Total",null,{"$f":"SUM(Z26:Z45)","v":0}]
[]
[]
[]
[]
[null,"D","CYCLING BENEFITS",null,null,null,null,null,null,null,null,null,"E","PEDESTRIAN BENEFITS ",null,null,null,null,null,null,null,null,null,"F","TOTAL"]
[]
[]
[null,"New",null,null,null,null,null,null,null,null,null,null,"New",null,null,null,null,null,null,null,null,null,null,"New"]
[]
[null,null,"AVERAGE ANNUAL USERS",null,null,"REDUCED MORTALITY RISK",null,null,"VALUE OF REDUCED MORTALITY",null,null,null,null,"AVERAGE ANNUAL USERS",null,null,"REDUCED MORTALITY RISK",null,null,"VALUE OF REDUCED MORTALITY"]
[null,null,"(trips/yr.)",null,null,"(# of persons)",null,null,"($)",null,null,null,null,"(trips/yr.)",null,null,"(# of persons)",null,null,"($)"]
[null,"Year","Total Users, Existing Facility (Baseline)","Total Users, Improved Facility","Induced Users, Improved Facility","Users in Age-Risk Group","Expected # of Deaths Among Users","Reduced Mortality Risk (Induced User Trips)","Induced Users","\n\nConstant\nDollars","\n\nPresent\nValue",null,"Year","Total Users, Existing Facility (Baseline)","Total Users, Improved Facility","Induced Users, Improved Facility","Users in Age-Risk Group","Expected # of Deaths Among Users","Reduced Mortality Risk (Induced User Trips)","Induced Users","\n\nConstant\nDollars","\n\nPresent\nValue",null,"Year","\n\nConstant\nDollars","\n\nPresent\nValue"]
[null,1,{"$f":"IF(ProjType>1,UserComCyc1NBNew+UserODCyc1NBNew+UserRecCyc1NBNew*RecBen,0)","v":0},{"$f":"IF(ProjType>1,UserComCyc1BNew+UserODCyc1BNew+UserRecCyc1BNew*RecBen,0)","v":0},{"$f":"D60-C60","v":0},{"$f":"E60*PerCycAge","v":0},{"$f":"F60*MortRateCyc/100000","v":0},{"$f":"G60*PerCycRiskRedUsers","v":0},{"$f":"H60*HwyFatCost","v":0},{"$f":"I60","v":0},{"$f":"$J60/(1+DiscRate)^($B60+Construct-1)","v":0},null,1,{"$f":"IF(ProjType>1,UserComPed1NBNew+UserODPed1NBNew+UserRecPed1NBNew*RecBen,0)","v":0},{"$f":"IF(ProjType>1,UserComPed1BNew+UserODPed1BNew+UserRecPed1BNew*RecBen,0)","v":0},{"$f":"O60-N60","v":0},{"$f":"P60*PerPedAge","v":0},{"$f":"Q60*MortRatePed/100000","v":0},{"$f":"R60*PerPedRiskRedUsers","v":0},{"$f":"IF(ProjType>1,S60*HwyFatCost,0)","v":0},{"$f":"T60","v":0},{"$f":"$U60/(1+DiscRate)^($M60+Construct-1)","v":0},null,1,{"$f":"U60+J60","v":0},{"$f":"V60+K60","v":0}]
[null,20,{"$f":"IF(ProjType>1,UserComCyc20NBNew+UserODCyc20NBNew+UserRecCyc20NBNew*RecBen,0)","v":0},{"$f":"IF(ProjType>1,UserComCyc20BNew+UserODCyc20BNew+UserRecCyc20BNew*RecBen,0)","v":0},{"$f":"D61-C61","v":0},{"$f":"E61*PerCycAge","v":0},{"$f":"F61*MortRateCyc/100000","v":0},{"$f":"G61*PerCycRiskRedUsers","v":0},{"$f":"H61*HwyFatCost","v":0},{"$f":"I61","v":0},{"$f":"$J61/(1+DiscRate)^($B61+Construct-1)","v":0},null,20,{"$f":"IF(ProjType>1,UserComPed20NBNew+UserODPed20NBNew+UserRecPed20NBNew*RecBen,0)","v":0},{"$f":"IF(ProjType>1,UserComPed20BNew+UserODPed20BNew+UserRecPed20BNew*RecBen,0)","v":0},{"$f":"O61-N61","v":0},{"$f":"P61*PerPedAge","v":0},{"$f":"Q61*MortRatePed/100000","v":0},{"$f":"R61*PerPedRiskRedUsers","v":0},{"$f":"IF(ProjType>1,S61*HwyFatCost,0)","v":0},{"$f":"T61","v":0},{"$f":"$U61/(1+DiscRate)^($M61+Construct-1)","v":0},null,20,{"$f":"U61+J61","v":0},{"$f":"V61+K61","v":0}]
[]
[null,1,{"$f":"TREND(C$60:C$61,$B$60:$B$61,$B63)","v":0},{"$f":"TREND(D$60:D$61,$B$60:$B$61,$B63)","v":0},{"$f":"D63-C63","v":0},{"$f":"E63*PerCycAge","v":0},{"$f":"F63*MortRateCyc/100000","v":0},{"$f":"G63*PerCycRiskRedUsers","v":0},{"$f":"H63*HwyFatCost","v":0},{"$f":"I63","v":0},{"$f":"$J63/(1+DiscRate)^($B63+Construct-1)","v":0},null,1,{"$f":"TREND(N$60:N$61,$M$60:$M$61,$M63)","v":0},{"$f":"TREND(O$60:O$61,$M$60:$M$61,$M63)","v":0},{"$f":"O63-N63","v":0},{"$f":"P63*PerPedAge","v":0},{"$f":"Q63*MortRatePed/100000","v":0},{"$f":"R63*PerPedRiskRedUsers","v":0},{"$f":"IF(ProjType>1,S63*HwyFatCost,0)","v":0},{"$f":"T63","v":0},{"$f":"U63/(1+DiscRate)^($B63+Construct-1)","v":0},null,1,{"$f":"U63+J63","v":0},0]
[null,2,{"$f":"TREND(C$60:C$61,$B$60:$B$61,$B64)","v":0},0,{"$f":"D64-C64","v":0},0,0,0,0,0,0,null,2,{"$f":"TREND(N$60:N$61,$M$60:$M$61,$M64)","v":0},0,{"$f":"O64-N64","v":0},0,0,0,0,0,0,null,2,0,0]
[null,3,0,0,0,0,0,0,0,0,0,null,3,0,0,0,0,0,0,0,0,0,null,3,0,0]
[null,4,0,0,0,0,0,0,0,0,0,null,4,0,0,0,0,0,0,0,0,0,null,4,0,0]
[null,5,0,0,0,0,0,0,0,0,0,null,5,0,0,0,0,0,0,0,0,0,null,5,0,0]
[null,6,0,0,0,0,0,0,0,0,0,null,6,0,0,0,0,0,0,0,0,0,null,6,0,0]
[null,7,0,0,0,0,0,0,0,0,0,null,7,0,0,0,0,0,0,0,0,0,null,7,0,0]
[null,8,0,0,0,0,0,0,0,0,0,null,8,0,0,0,0,0,0,0,0,0,null,8,0,0]
[null,9,0,0,0,0,0,0,0,0,0,null,9,0,0,0,0,0,0,0,0,0,null,9,0,0]
[null,10,0,0,0,0,0,0,0,0,0,null,10,0,0,0,0,0,0,0,0,0,null,10,0,0]
[null,11,0,0,0,0,0,0,0,0,0,null,11,0,0,0,0,0,0,0,0,0,null,11,0,0]
[null,12,0,0,0,0,0,0,0,0,0,null,12,0,0,0,0,0,0,0,0,0,null,12,0,0]
[null,13,0,0,0,0,0,0,0,0,0,null,13,0,0,0,0,0,0,0,0,0,null,13,0,0]
[null,14,0,0,0,0,0,0,0,0,0,null,14,0,0,0,0,0,0,0,0,0,null,14,0,0]
[null,15,0,0,0,0,0,0,0,0,0,null,15,0,0,0,0,0,0,0,0,0,null,15,0,0]
[null,16,0,0,0,0,0,0,0,0,0,null,16,0,0,0,0,0,0,0,0,0,null,16,0,0]
[null,17,0,0,0,0,0,0,0,0,0,null,17,0,0,0,0,0,0,0,0,0,null,17,0,0]
[null,18,0,0,0,0,0,0,0,0,0,null,18,0,0,0,0,0,0,0,0,0,null,18,0,0]
[null,19,0,0,0,0,0,0,0,0,0,null,19,0,0,0,0,0,0,0,0,0,null,19,0,0]
[null,20,0,0,0,0,0,0,0,0,0,null,20,0,0,0,0,0,0,0,0,0,null,20,0,0]
[]
[null,"Total",null,null,null,null,null,null,null,null,{"$f":"SUM(K63:K82)","v":0},null,"Total",null,null,null,null,null,null,null,null,{"$f":"SUM(V63:V82)","v":0},null,"Total",null,{"$f":"SUM(Z63:Z82)","v":0}]
[]
[]
[]
[null,null,null,null,null,"Computation of Risk Redution Parameter - Cycling",null,null,null,null,null,null,null,null,null,null,"Computation of Risk Redution Parameter - Walking"]
[]
[null,null,null,null,null,null,"Total Average Annual Miles - Existing",{"$f":"TAvMiCycB*CycleDays","v":905.2},null,null,null,null,null,null,null,null,null,"Total Average Annual Miles - Existing",{"$f":"TAvMiPedB*WalkDays","v":251.85}]
[]
[null,null,null,null,null,null,"Percentage reduction in mortality per 365 annual cycling miles (2) from research",{"$f":"PerCycRiskRed","v":4.4999999999999998E-2},null,null,null,null,null,null,null,null,null,"Percentage reduction in mortality per 365 annual cycling miles (2) from research",{"$f":"PerPedRiskRed","v":0.09}]
[]
[null,null,null,null,null,null,"Actual annual percentage reduction in mortality ",{"$f":"MIN(IFERROR(H90,0)*H92/365,30%)","v":0.1116},"Note: Max risk reduction = 45%, or about 5 miles per trip for 365 days. WHO HEAT Model (2016)",null,null,null,null,null,null,null,null,"Actual annual percentage reduction in mortality ",{"$f":"MIN(IFERROR(S90,0)*S92/365,30%)","v":6.2099999999999995E-2},"Note: Max risk reduction = 30%, or about 1.7 miles per day for 365 days. WHO HEAT Model (2016)"]

{"sheet":"Emissions","index":13,"n_rows":47,"n_cols":12,"rows_kept":47,"cut":false,"hidden":false,"merged":[[19,2,19,3],[20,2,20,3]]}
[null,"Emission Reduction Benefits"]
[]
[null,"This sheet calculates emissions benefits associated with reductions in automobile use due to increased cycling and walking."]
[]
[null,"Formulas:"]
[]
[null,"Vehicle-Miles Traveled = Affected Length x Avg. Annual Volume",null,null,null,null,null,"Veh Em Cost = (Veh-Miles x Rate x Cost/Mile) by Em Type"]
[null,"veh-miles/yr.",null,"miles","vehicles/yr."]
[]
[null," Hwy Emissions Cost = (VMT x Rate x Cost/Mile) by Emissions Type"]
[]
[]
[]
[]
[null,"A","REDUCED EMISSIONS BENEFITS"]
[]
[]
[null,"Total"]
[]
[null,null,"AVERAGE ANNUAL VOLUME",null,"REDUCED VMT","AVERAGE SPEED","RUNNING EMISSIONS",null,null,null,"CO2 EMISSIONS"]
[null,null,"(trip-miles/yr.)",null,"(veh-miles/yr.)","(mph)","($/yr.)",null,null,null,"SAVED"]
[null,"Year","Induced Trips, \nCycling","Induced Trips, \nPedestrians","Induced Trips","Induced Trips","Induced Trips","Constant\nDollars","Present\nValue",null,"tons/yr.","PV $/yr."]
[null,1,{"$f":"IF(OR(ProjType=1,ProjType=3),((TrComCyc1BEX-TrComCyc1NBEX)+(TrODCyc1BEX-TrODCyc1NBEX))*TAvMiCycNB,0)+IF(ProjType>1,((TrComCyc1BNew-TrComCyc1NBNew)+(TrODCyc1BNew-TrODCyc1NBNew))*TAvMiCycNB,0)","v":0},{"$f":"IF(OR(ProjType=1,ProjType=3),((TrComPed1BEX-TrComPed1NBEX)+(TrODPed1BEX-TrODPed1NBEX))*TAvMiPedNB,0)+IF(ProjType>1,((TrComPed1BNew-TrComPed1NBNew)+(TrODPed1BNew-TrODPed1NBNew))*TAvMiPedNB,0)","v":0},{"$f":"(D23*DivCycAutoNB+C23*DivPedAutoNB)/VehOcc","v":0},{"$f":"VehSpeed","v":25},{"$f":"IFERROR(E23*0.00000110231131*(VLOOKUP(F23,EmAuto1,2)*VLOOKUP(ProjLoc,EmCost,2)+VLOOKUP(F23,EmAuto1,3)*VLOOKUP(ProjLoc,EmCost,3)*(1+CO2Uprater)^($B23+Construct-1)+VLOOKUP(F23,EmAuto1,4)*VLOOKUP(ProjLoc,EmCost,4)+VLOOKUP(F23,EmAuto1,5)*VLOOKUP(ProjLoc,EmCost,5)+VLOOKUP(F23,EmAuto1,6)*VLOOKUP(ProjLoc,EmCost,6)+VLOOKUP(F23,EmAuto1,7)*VLOOKUP(ProjLoc,EmCost,7)),0)","v":0},{"$f":"G23","v":0},{"$f":"$H23/(1+DiscRate)^($B23+Construct-1)","v":0},null,{"$f":"0.00000110231131*(E23*VLOOKUP(F23,EmAuto1,3))","v":0},{"$f":"IFERROR(K23*VLOOKUP(ProjLoc,EmCost,3)*(1+CO2Uprater)^($B23+Construct-1)/(1+DiscRate)^($B23+Construct-1),0)","v":0}]
[null,20,{"$f":"IF(OR(ProjType=1,ProjType=3),((TrComCyc20BEX-TrComCyc20NBEX)+(TrODCyc20BEX-TrODCyc20NBEX))*TAvMiCycNB,0)+IF(ProjType>1,((TrComCyc20BNew-TrComCyc20NBNew)+(TrODCyc20BNew-TrODCyc20NBNew))*TAvMiCycNB,0)","v":0},{"$f":"IF(OR(ProjType=1,ProjType=3),((TrComPed20BEX-TrComPed20NBEX)+(TrODPed20BEX-TrODPed20NBEX))*TAvMiPedNB,0)+IF(ProjType>1,((TrComPed20BNew-TrComPed20NBNew)+(TrODPed20BNew-TrODPed20NBNew))*TAvMiPedNB,0)","v":0},{"$f":"(D24*DivCycAutoNB+C24*DivPedAutoNB)/VehOcc","v":0},{"$f":"VehSpeed","v":25},{"$f":"IFERROR(E24*0.00000110231131*(VLOOKUP(F24,EmAuto20,2)*VLOOKUP(ProjLoc,EmCost,2)+VLOOKUP(F24,EmAuto20,3)*VLOOKUP(ProjLoc,EmCost,3)*(1+CO2Uprater)^($B24+Construct-1)+VLOOKUP(F24,EmAuto20,4)*VLOOKUP(ProjLoc,EmCost,4)+VLOOKUP(F24,EmAuto20,5)*VLOOKUP(ProjLoc,EmCost,5)+VLOOKUP(F24,EmAuto20,6)*VLOOKUP(ProjLoc,EmCost,6)+VLOOKUP(F24,EmAuto20,7)*VLOOKUP(ProjLoc,EmCost,7)),0)","v":0},{"$f":"G24","v":0},{"$f":"$H24/(1+DiscRate)^($B24+Construct-1)","v":0},null,{"$f":"0.00000110231131*(E24*VLOOKUP(F24,EmAuto1,3))","v":0},{"$f":"IFERROR(K24*VLOOKUP(ProjLoc,EmCost,3)*(1+CO2Uprater)^($B24+Construct-1)/(1+DiscRate)^($B24+Construct-1),0)","v":0}]
[]
[null,1,{"$f":"TREND(C$23:C$24,$B$23:$B$24,$B26)","v":0},{"$f":"TREND(D$23:D$24,$B$23:$B$24,$B26)","v":0},{"$f":"(D26*DivCycAutoNB+C26*DivPedAutoNB)/VehOcc","v":0},{"$f":"VehSpeed","v":25},{"$f":"G23","v":0},{"$f":"G26","v":0},{"$f":"$H26/(1+DiscRate)^($B26+Construct-1)","v":0},null,{"$f":"0.00000110231131*(E26*VLOOKUP(F26,EmAuto1,3))","v":0},{"$f":"IFERROR(K26*VLOOKUP(ProjLoc,EmCost,3)*(1+CO2Uprater)^($B26+Construct-1)/(1+DiscRate)^($B26+Construct-1),0)","v":0}]
[null,2,{"$f":"TREND(C$23:C$24,$B$23:$B$24,$B27)","v":0},0,0,25,{"$f":"G26","v":0},0,0,null,0,0]
[null,3,0,0,0,25,0,0,0,null,0,0]
[null,4,0,0,0,25,0,0,0,null,0,0]
[null,5,0,0,0,25,0,0,0,null,0,0]
[null,6,0,0,0,25,0,0,0,null,0,0]
[null,7,0,0,0,25,0,0,0,null,0,0]
[null,8,0,0,0,25,{"$f":"G24","v":0},0,0,null,0,0]
[null,9,0,0,0,25,{"$f":"G33","v":0},0,0,null,0,0]
[null,10,0,0,0,25,{"$f":"G34","v":0},0,0,null,0,0]
[null,11,0,0,0,25,0,0,0,null,0,0]
[null,12,0,0,0,25,0,0,0,null,0,0]
[null,13,0,0,0,25,0,0,0,null,0,0]
[null,14,0,0,0,25,0,0,0,null,0,0]
[null,15,0,0,0,25,0,0,0,null,0,0]
[null,16,0,0,0,25,0,0,0,null,0,0]
[null,17,0,0,0,25,0,0,0,null,0,0]
[null,18,0,0,0,25,0,0,0,null,0,0]
[null,19,0,0,0,25,0,0,0,null,0,0]
[null,20,0,0,0,25,0,0,0,null,0,0]
[]
[null,"Total",null,null,null,null,null,null,{"$f":"SUM(I26:I45)","v":0},null,{"$f":"SUM(K26:K45)","v":0},{"$f":"SUM(L26:L45)","v":0}]

{"sheet":"Final Calculations","index":14,"n_rows":60,"n_cols":33,"rows_kept":60,"cut":false,"hidden":false,"merged":[[14,2,14,9],[21,21,23,21],[21,23,23,23],[21,20,23,20],[21,22,23,22],[21,2,23,2],[21,19,23,19],[21,3,23,3],[21,5,23,5],[21,4,23,4],[21,6,23,6],[21,13,23,13],[21,14,23,14],[21,15,23,15],[21,7,23,7],[21,8,23,8],[21,30,23,30],[21,24,23,24],[21,25,23,25],[21,26,23,26],[21,27,23,27],[21,29,23,29]]}
[null,"Final Calculations"]
[]
[null,"This sheet performs the final calculations before presenting the summary results."]
[null,"Both net present value and internal rate of return are calculated."]
[]
[]
[]
[]
[]
[]
[]
[]
[]
[]
[null,"A","NET PRESENT VALUE CALCULATION",null,null,null,null,null,null,null,null,null,"B","SRTS BENEFITS",null,null,null,null,"C","INTERNAL RATE OF RETURN ON INVESTMENT AND PAYBACK PERIOD"]
[]
[]
[]
[]
[null,null,"PRESENT VALUE OF USER BENEFITS",null,null,null,null,null,null,null,null,null,null,"PRESENT VALUE OF USER BENEFITS",null,null,null,null,null,"USER BENEFITS IN CONSTANT DOLLARS"]
[]
[null,null,"Journey Quality","Additional Delay Savings","Additional Safety Benefits","Health Benefits","Emission Cost Savings","Present Value of Total Benefits","Present Value of Total Costs","NET","CUMULATIVE NET",null,null,"Journey Quality","Additional Delay Savings","Additional Safety Benefits",null,null,null,"Journey Quality","Additional Delay Savings","Additional Safety Benefits","Health Benefits","Emission Cost Savings","Total Benefits - Constant Dollars","Total Costs - Constant Dollars","Annual Returns on Investment","Cumulative Costs and Benefits",null,"Years of Project Implementation and Operation","Annual Returns on Investment"]
[null,"Year",null,null,"Absenteeism","Absenteeism",null,null,null,"PRESENT","PRESENT",null,"Year",null,null,"Absenteeism",null,null,"Year",null,null,"Absenteeism","Absenteeism"]
[null,null,null,null,"Reduction","Reduction",null,null,null,"VALUE","VALUE",null,null,null,null,"Reduction",null,null,null,null,null,"Reduction","Reduction"]
[null,"Construction Period",null,null,null,null,null,null,null,null,null,null,"Construction Period",null,null,null,null,null,"Construction Period",null,null,null,null,null,null,null,null,null,null,1,{"$f":"IF(ISNA(IF(AD25<=Construct,AA26,VLOOKUP(AD25-Construct,$S$35:$AA$54,9,FALSE))),0,IF(AD25<=Construct,AA26,VLOOKUP(AD25-Construct,$S$35:$AA$54,9,FALSE)))","v":0}]
[null,1,null,null,null,null,null,{"$f":"SUM(C26:G26)","v":0},{"$f":"'1a) Project Info'!AG15+'1a) Project Info'!AG59","v":0},{"$f":"H26-I26","v":0},{"$f":"J26","v":0},null,1,null,null,null,null,null,1,null,null,null,null,null,{"$f":"SUM(T26:X26)","v":0},{"$f":"'1a) Project Info'!AF15+'1a) Project Info'!AF59","v":0},{"$f":"-Z26","v":0},{"$f":"AA26","v":0},null,2,0]
[null,2,null,null,null,null,null,0,{"$f":"'1a) Project Info'!AG16+'1a) Project Info'!AG60","v":0},{"$f":"H27-I27","v":0},{"$f":"K26+J27","v":0},null,2,null,null,null,null,null,2,null,null,null,null,null,{"$f":"SUM(T27:X27)","v":0},{"$f":"'1a) Project Info'!AF16+'1a) Project Info'!AF60","v":0},{"$f":"-Z27","v":0},{"$f":"AB26+AA27","v":0},null,3,0]
[null,3,null,null,null,null,null,0,{"$f":"'1a) Project Info'!AG17+'1a) Project Info'!AG61","v":0},0,{"$f":"K27+J28","v":0},null,3,null,null,null,null,null,3,null,null,null,null,null,0,{"$f":"'1a) Project Info'!AF17+'1a) Project Info'!AF61","v":0},0,{"$f":"AB27+AA28","v":0},null,4,0]
[null,4,null,null,null,null,null,0,{"$f":"'1a) Project Info'!AG18+'1a) Project Info'!AG62","v":0},0,0,null,4,null,null,null,null,null,4,null,null,null,null,null,0,{"$f":"'1a) Project Info'!AF18+'1a) Project Info'!AF62","v":0},0,0,null,5,0]
[null,5,null,null,null,null,null,0,{"$f":"'1a) Project Info'!AG19+'1a) Project Info'!AG63","v":0},0,0,null,5,null,null,null,null,null,5,null,null,null,null,null,0,{"$f":"'1a) Project Info'!AF19+'1a) Project Info'!AF63","v":0},0,0,null,6,0]
[null,6,null,null,null,null,null,0,{"$f":"'1a) Project Info'!AG20+'1a) Project Info'!AG64","v":0},{"$f":"H31-I31","v":0},0,null,6,null,null,null,null,null,6,null,null,null,null,null,0,{"$f":"'1a) Project Info'!AF20+'1a) Project Info'!AF64","v":0},0,0,null,7,0]
[null,7,null,null,null,null,null,0,{"$f":"'1a) Project Info'!AG21+'1a) Project Info'!AG65","v":0},{"$f":"H32-I32","v":0},0,null,7,null,null,null,null,null,7,null,null,null,null,null,0,{"$f":"'1a) Project Info'!AF21+'1a) Project Info'!AF65","v":0},0,0,null,8,0]
[null,8,null,null,null,null,null,0,{"$f":"'1a) Project Info'!AG22+'1a) Project Info'!AG66","v":0},{"$f":"H33-I33","v":0},0,null,8,null,null,null,null,null,8,null,null,null,null,null,0,{"$f":"'1a) Project Info'!AF22+'1a) Project Info'!AF66","v":0},0,0,null,9,0]
[null,"Project Open",null,null,null,null,null,null,null,null,null,null,"Project Open",null,null,null,null,null,"Project Open",null,null,null,null,null,null,null,null,null,null,10,0]
[null,1,{"$f":"'Journey Quality'!Z26+'Journey Quality'!Z58+'Journey Quality'!Z92+'Journey Quality'!Z128","v":0},{"$f":"'Intersection Delay'!AB26+'Intersection Delay'!AB63","v":0},{"$f":"'Intersection Safety'!AL26+'Auto Accident Costs'!H26","v":0},{"$f":"'Health - Absenteeism'!V26+'Health - Reduced Mortality'!Z26+'Health - Reduced Mortality'!Z63","v":0},{"$f":"Emissions!I26","v":0},{"$f":"SUM(C35:G35)","v":0},{"$f":"'1a) Project Info'!AG24+'1a) Project Info'!AG68","v":0},{"$f":"H35-I35","v":0},{"$f":"J35","v":0},null,1,{"$f":"'Journey Quality'!Z92+'Journey Quality'!Z128","v":0},{"$f":"'Intersection Delay'!AB63","v":0},{"$f":"'Intersection Safety'!AQ26","v":0},null,null,1,{"$f":"'Journey Quality'!Y26+'Journey Quality'!Y58+'Journey Quality'!Y92+'Journey Quality'!Y128","v":0},{"$f":"'Intersection Delay'!AA26+'Intersection Delay'!AA63","v":0},{"$f":"'Intersection Safety'!AK26+'Auto Accident Costs'!G26","v":0},{"$f":"'Health - Absenteeism'!U26+'Health - Reduced Mortality'!Y26+'Health - Reduced Mortality'!Y63","v":0},{"$f":"Emissions!H26","v":0},{"$f":"SUM(T35:X35)","v":0},{"$f":"'1a) Project Info'!AF24+'1a) Project Info'!AF68","v":0},{"$f":"Y35-Z35","v":0},{"$f":"AA35","v":0},null,11,0]
[null,2,{"$f":"'Journey Quality'!Z27+'Journey Quality'!Z59+'Journey Quality'!Z93+'Journey Quality'!Z129","v":0},{"$f":"'Intersection Delay'!AB27+'Intersection Delay'!AB64","v":0},{"$f":"'Intersection Safety'!AL27+'Auto Accident Costs'!H27","v":0},{"$f":"'Health - Absenteeism'!V27+'Health - Reduced Mortality'!Z27+'Health - Reduced Mortality'!Z64","v":0},{"$f":"Emissions!I27","v":0},0,{"$f":"'1a) Project Info'!AG25+'1a) Project Info'!AG69","v":0},{"$f":"H36-I36","v":0},{"$f":"K35+J36","v":0},null,2,{"$f":"'Journey Quality'!Z93+'Journey Quality'!Z129","v":0},{"$f":"'Intersection Delay'!AB64","v":0},{"$f":"'Intersection Safety'!AQ27","v":0},null,null,2,{"$f":"'Journey Quality'!Y27+'Journey Quality'!Y59+'Journey Quality'!Y93+'Journey Quality'!Y129","v":0},{"$f":"'Intersection Delay'!AA27+'Intersection Delay'!AA64","v":0},{"$f":"'Intersection Safety'!AK27+'Auto Accident Costs'!G27","v":0},{"$f":"'Health - Absenteeism'!U27+'Health - Reduced Mortality'!Y27+'Health - Reduced Mortality'!Y64","v":0},{"$f":"Emissions!H27","v":0},0,{"$f":"'1a) Project Info'!AF25+'1a) Project Info'!AF69","v":0},0,{"$f":"AB35+AA36","v":0},null,12,0]
[null,3,{"$f":"'Journey Quality'!Z28+'Journey Quality'!Z60+'Journey Quality'!Z94+'Journey Quality'!Z130","v":0},{"$f":"'Intersection Delay'!AB28+'Intersection Delay'!AB65","v":0},{"$f":"'Intersection Safety'!AL28+'Auto Accident Costs'!H28","v":0},{"$f":"'Health - Absenteeism'!V28+'Health - Reduced Mortality'!Z28+'Health - Reduced Mortality'!Z65","v":0},{"$f":"Emissions!I28","v":0},0,{"$f":"'1a) Project Info'!AG26+'1a) Project Info'!AG70","v":0},{"$f":"H37-I37","v":0},0,null,3,{"$f":"'Journey Quality'!Z94+'Journey Quality'!Z130","v":0},{"$f":"'Intersection Delay'!AB65","v":0},{"$f":"'Intersection Safety'!AQ28","v":0},null,null,3,{"$f":"'Journey Quality'!Y28+'Journey Quality'!Y60+'Journey Quality'!Y94+'Journey Quality'!Y130","v":0},{"$f":"'Intersection Delay'!AA28+'Intersection Delay'!AA65","v":0},{"$f":"'Intersection Safety'!AK28+'Auto Accident Costs'!G28","v":0},{"$f":"'Health - Absenteeism'!U28+'Health - Reduced Mortality'!Y28+'Health - Reduced Mortality'!Y65","v":0},{"$f":"Emissions!H28","v":0},0,{"$f":"'1a) Project Info'!AF26+'1a) Project Info'!AF70","v":0},0,0,null,13,0]
[null,4,{"$f":"'Journey Quality'!Z29+'Journey Quality'!Z61+'Journey Quality'!Z95+'Journey Quality'!Z131","v":0},{"$f":"'Intersection Delay'!AB29+'Intersection Delay'!AB66","v":0},{"$f":"'Intersection Safety'!AL29+'Auto Accident Costs'!H29","v":0},{"$f":"'Health - Absenteeism'!V29+'Health - Reduced Mortality'!Z29+'Health - Reduced Mortality'!Z66","v":0},{"$f":"Emissions!I29","v":0},0,{"$f":"'1a) Project Info'!AG27+'1a) Project Info'!AG71","v":0},{"$f":"H38-I38","v":0},0,null,4,{"$f":"'Journey Quality'!Z95+'Journey Quality'!Z131","v":0},{"$f":"'Intersection Delay'!AB66","v":0},{"$f":"'Intersection Safety'!AQ29","v":0},null,null,4,{"$f":"'Journey Quality'!Y29+'Journey Quality'!Y61+'Journey Quality'!Y95+'Journey Quality'!Y131","v":0},{"$f":"'Intersection Delay'!AA29+'Intersection Delay'!AA66","v":0},{"$f":"'Intersection Safety'!AK29+'Auto Accident Costs'!G29","v":0},{"$f":"'Health - Absenteeism'!U29+'Health - Reduced Mortality'!Y29+'Health - Reduced Mortality'!Y66","v":0},{"$f":"Emissions!H29","v":0},0,{"$f":"'1a) Project Info'!AF27+'1a) Project Info'!AF71","v":0},0,0,null,14,0]
[null,5,{"$f":"'Journey Quality'!Z30+'Journey Quality'!Z62+'Journey Quality'!Z96+'Journey Quality'!Z132","v":0},{"$f":"'Intersection Delay'!AB30+'Intersection Delay'!AB67","v":0},{"$f":"'Intersection Safety'!AL30+'Auto Accident Costs'!H30","v":0},{"$f":"'Health - Absenteeism'!V30+'Health - Reduced Mortality'!Z30+'Health - Reduced Mortality'!Z67","v":0},{"$f":"Emissions!I30","v":0},0,{"$f":"'1a) Project Info'!AG28+'1a) Project Info'!AG72","v":0},0,0,null,5,{"$f":"'Journey Quality'!Z96+'Journey Quality'!Z132","v":0},{"$f":"'Intersection Delay'!AB67","v":0},{"$f":"'Intersection Safety'!AQ30","v":0},null,null,5,{"$f":"'Journey Quality'!Y30+'Journey Quality'!Y62+'Journey Quality'!Y96+'Journey Quality'!Y132","v":0},{"$f":"'Intersection Delay'!AA30+'Intersection Delay'!AA67","v":0},{"$f":"'Intersection Safety'!AK30+'Auto Accident Costs'!G30","v":0},{"$f":"'Health - Absenteeism'!U30+'Health - Reduced Mortality'!Y30+'Health - Reduced Mortality'!Y67","v":0},{"$f":"Emissions!H30","v":0},0,{"$f":"'1a) Project Info'!AF28+'1a) Project Info'!AF72","v":0},0,0,null,15,0]
[null,6,{"$f":"'Journey Quality'!Z31+'Journey Quality'!Z63+'Journey Quality'!Z97+'Journey Quality'!Z133","v":0},{"$f":"'Intersection Delay'!AB31+'Intersection Delay'!AB68","v":0},{"$f":"'Intersection Safety'!AL31+'Auto Accident Costs'!H31","v":0},{"$f":"'Health - Absenteeism'!V31+'Health - Reduced Mortality'!Z31+'Health - Reduced Mortality'!Z68","v":0},{"$f":"Emissions!I31","v":0},0,{"$f":"'1a) Project Info'!AG29+'1a) Project Info'!AG73","v":0},0,0,null,6,{"$f":"'Journey Quality'!Z97+'Journey Quality'!Z133","v":0},{"$f":"'Intersection Delay'!AB68","v":0},{"$f":"'Intersection Safety'!AQ31","v":0},null,null,6,{"$f":"'Journey Quality'!Y31+'Journey Quality'!Y63+'Journey Quality'!Y97+'Journey Quality'!Y133","v":0},{"$f":"'Intersection Delay'!AA31+'Intersection Delay'!AA68","v":0},{"$f":"'Intersection Safety'!AK31+'Auto Accident Costs'!G31","v":0},{"$f":"'Health - Absenteeism'!U31+'Health - Reduced Mortality'!Y31+'Health - Reduced Mortality'!Y68","v":0},{"$f":"Emissions!H31","v":0},0,{"$f":"'1a) Project Info'!AF29+'1a) Project Info'!AF73","v":0},0,0,null,16,0]
[null,7,{"$f":"'Journey Quality'!Z32+'Journey Quality'!Z64+'Journey Quality'!Z98+'Journey Quality'!Z134","v":0},{"$f":"'Intersection Delay'!AB32+'Intersection Delay'!AB69","v":0},{"$f":"'Intersection Safety'!AL32+'Auto Accident Costs'!H32","v":0},{"$f":"'Health - Absenteeism'!V32+'Health - Reduced Mortality'!Z32+'Health - Reduced Mortality'!Z69","v":0},{"$f":"Emissions!I32","v":0},0,{"$f":"'1a) Project Info'!AG30+'1a) Project Info'!AG74","v":0},{"$f":"H41-I41","v":0},0,null,7,{"$f":"'Journey Quality'!Z98+'Journey Quality'!Z134","v":0},{"$f":"'Intersection Delay'!AB69","v":0},{"$f":"'Intersection Safety'!AQ32","v":0},null,null,7,{"$f":"'Journey Quality'!Y32+'Journey Quality'!Y64+'Journey Quality'!Y98+'Journey Quality'!Y134","v":0},{"$f":"'Intersection Delay'!AA32+'Intersection Delay'!AA69","v":0},{"$f":"'Intersection Safety'!AK32+'Auto Accident Costs'!G32","v":0},{"$f":"'Health - Absenteeism'!U32+'Health - Reduced Mortality'!Y32+'Health - Reduced Mortality'!Y69","v":0},{"$f":"Emissions!H32","v":0},0,{"$f":"'1a) Project Info'!AF30+'1a) Project Info'!AF74","v":0},0,0,null,17,0]
[null,8,{"$f":"'Journey Quality'!Z33+'Journey Quality'!Z65+'Journey Quality'!Z99+'Journey Quality'!Z135","v":0},{"$f":"'Intersection Delay'!AB33+'Intersection Delay'!AB70","v":0},{"$f":"'Intersection Safety'!AL33+'Auto Accident Costs'!H33","v":0},{"$f":"'Health - Absenteeism'!V33+'Health - Reduced Mortality'!Z33+'Health - Reduced Mortality'!Z70","v":0},{"$f":"Emissions!I33","v":0},0,{"$f":"'1a) Project Info'!AG31+'1a) Project Info'!AG75","v":0},0,{"$f":"K41+J42","v":0},null,8,{"$f":"'Journey Quality'!Z99+'Journey Quality'!Z135","v":0},{"$f":"'Intersection Delay'!AB70","v":0},{"$f":"'Intersection Safety'!AQ33","v":0},null,null,8,{"$f":"'Journey Quality'!Y33+'Journey Quality'!Y65+'Journey Quality'!Y99+'Journey Quality'!Y135","v":0},{"$f":"'Intersection Delay'!AA33+'Intersection Delay'!AA70","v":0},{"$f":"'Intersection Safety'!AK33+'Auto Accident Costs'!G33","v":0},{"$f":"'Health - Absenteeism'!U33+'Health - Reduced Mortality'!Y33+'Health - Reduced Mortality'!Y70","v":0},{"$f":"Emissions!H33","v":0},0,{"$f":"'1a) Project Info'!AF31+'1a) Project Info'!AF75","v":0},0,{"$f":"AB41+AA42","v":0},null,18,0]
[null,9,{"$f":"'Journey Quality'!Z34+'Journey Quality'!Z66+'Journey Quality'!Z100+'Journey Quality'!Z136","v":0},{"$f":"'Intersection Delay'!AB34+'Intersection Delay'!AB71","v":0},{"$f":"'Intersection Safety'!AL34+'Auto Accident Costs'!H34","v":0},{"$f":"'Health - Absenteeism'!V34+'Health - Reduced Mortality'!Z34+'Health - Reduced Mortality'!Z71","v":0},{"$f":"Emissions!I34","v":0},0,{"$f":"'1a) Project Info'!AG32+'1a) Project Info'!AG76","v":0},0,{"$f":"K42+J43","v":0},null,9,{"$f":"'Journey Quality'!Z100+'Journey Quality'!Z136","v":0},{"$f":"'Intersection Delay'!AB71","v":0},{"$f":"'Intersection Safety'!AQ34","v":0},null,null,9,{"$f":"'Journey Quality'!Y34+'Journey Quality'!Y66+'Journey Quality'!Y100+'Journey Quality'!Y136","v":0},{"$f":"'Intersection Delay'!AA34+'Intersection Delay'!AA71","v":0},{"$f":"'Intersection Safety'!AK34+'Auto Accident Costs'!G34","v":0},{"$f":"'Health - Absenteeism'!U34+'Health - Reduced Mortality'!Y34+'Health - Reduced Mortality'!Y71","v":0},{"$f":"Emissions!H34","v":0},0,{"$f":"'1a) Project Info'!AF32+'1a) Project Info'!AF76","v":0},0,{"$f":"AB42+AA43","v":0},null,19,0]
[null,10,{"$f":"'Journey Quality'!Z35+'Journey Quality'!Z67+'Journey Quality'!Z101+'Journey Quality'!Z137","v":0},{"$f":"'Intersection Delay'!AB35+'Intersection Delay'!AB72","v":0},{"$f":"'Intersection Safety'!AL35+'Auto Accident Costs'!H35","v":0},{"$f":"'Health - Absenteeism'!V35+'Health - Reduced Mortality'!Z35+'Health - Reduced Mortality'!Z72","v":0},{"$f":"Emissions!I35","v":0},0,{"$f":"'1a) Project Info'!AG33+'1a) Project Info'!AG77","v":0},0,{"$f":"K43+J44","v":0},null,10,{"$f":"'Journey Quality'!Z101+'Journey Quality'!Z137","v":0},{"$f":"'Intersection Delay'!AB72","v":0},{"$f":"'Intersection Safety'!AQ35","v":0},null,null,10,{"$f":"'Journey Quality'!Y35+'Journey Quality'!Y67+'Journey Quality'!Y101+'Journey Quality'!Y137","v":0},{"$f":"'Intersection Delay'!AA35+'Intersection Delay'!AA72","v":0},{"$f":"'Intersection Safety'!AK35+'Auto Accident Costs'!G35","v":0},{"$f":"'Health - Absenteeism'!U35+'Health - Reduced Mortality'!Y35+'Health - Reduced Mortality'!Y72","v":0},{"$f":"Emissions!H35","v":0},0,{"$f":"'1a) Project Info'!AF33+'1a) Project Info'!AF77","v":0},0,{"$f":"AB43+AA44","v":0},null,20,0]
[null,11,{"$f":"'Journey Quality'!Z36+'Journey Quality'!Z68+'Journey Quality'!Z102+'Journey Quality'!Z138","v":0},{"$f":"'Intersection Delay'!AB36+'Intersection Delay'!AB73","v":0},{"$f":"'Intersection Safety'!AL36+'Auto Accident Costs'!H36","v":0},{"$f":"'Health - Absenteeism'!V36+'Health - Reduced Mortality'!Z36+'Health - Reduced Mortality'!Z73","v":0},{"$f":"Emissions!I36","v":0},0,{"$f":"'1a) Project Info'!AG34+'1a) Project Info'!AG78","v":0},0,{"$f":"K44+J45","v":0},null,11,{"$f":"'Journey Quality'!Z102+'Journey Quality'!Z138","v":0},{"$f":"'Intersection Delay'!AB73","v":0},{"$f":"'Intersection Safety'!AQ36","v":0},null,null,11,{"$f":"'Journey Quality'!Y36+'Journey Quality'!Y68+'Journey Quality'!Y102+'Journey Quality'!Y138","v":0},{"$f":"'Intersection Delay'!AA36+'Intersection Delay'!AA73","v":0},{"$f":"'Intersection Safety'!AK36+'Auto Accident Costs'!G36","v":0},{"$f":"'Health - Absenteeism'!U36+'Health - Reduced Mortality'!Y36+'Health - Reduced Mortality'!Y73","v":0},{"$f":"Emissions!H36","v":0},0,{"$f":"'1a) Project Info'!AF34+'1a) Project Info'!AF78","v":0},0,{"$f":"AB44+AA45","v":0},null,21,0]
[null,12,{"$f":"'Journey Quality'!Z37+'Journey Quality'!Z69+'Journey Quality'!Z103+'Journey Quality'!Z139","v":0},{"$f":"'Intersection Delay'!AB37+'Intersection Delay'!AB74","v":0},{"$f":"'Intersection Safety'!AL37+'Auto Accident Costs'!H37","v":0},{"$f":"'Health - Absenteeism'!V37+'Health - Reduced Mortality'!Z37+'Health - Reduced Mortality'!Z74","v":0},{"$f":"Emissions!I37","v":0},0,{"$f":"'1a) Project Info'!AG35+'1a) Project Info'!AG79","v":0},0,0,null,12,{"$f":"'Journey Quality'!Z103+'Journey Quality'!Z139","v":0},{"$f":"'Intersection Delay'!AB74","v":0},{"$f":"'Intersection Safety'!AQ37","v":0},null,null,12,{"$f":"'Journey Quality'!Y37+'Journey Quality'!Y69+'Journey Quality'!Y103+'Journey Quality'!Y139","v":0},{"$f":"'Intersection Delay'!AA37+'Intersection Delay'!AA74","v":0},{"$f":"'Intersection Safety'!AK37+'Auto Accident Costs'!G37","v":0},{"$f":"'Health - Absenteeism'!U37+'Health - Reduced Mortality'!Y37+'Health - Reduced Mortality'!Y74","v":0},{"$f":"Emissions!H37","v":0},0,{"$f":"'1a) Project Info'!AF35+'1a) Project Info'!AF79","v":0},0,0,null,22,0]
[null,13,{"$f":"'Journey Quality'!Z38+'Journey Quality'!Z70+'Journey Quality'!Z104+'Journey Quality'!Z140","v":0},{"$f":"'Intersection Delay'!AB38+'Intersection Delay'!AB75","v":0},{"$f":"'Intersection Safety'!AL38+'Auto Accident Costs'!H38","v":0},{"$f":"'Health - Absenteeism'!V38+'Health - Reduced Mortality'!Z38+'Health - Reduced Mortality'!Z75","v":0},{"$f":"Emissions!I38","v":0},0,{"$f":"'1a) Project Info'!AG36+'1a) Project Info'!AG80","v":0},0,{"$f":"K46+J47","v":0},null,13,{"$f":"'Journey Quality'!Z104+'Journey Quality'!Z140","v":0},{"$f":"'Intersection Delay'!AB75","v":0},{"$f":"'Intersection Safety'!AQ38","v":0},null,null,13,{"$f":"'Journey Quality'!Y38+'Journey Quality'!Y70+'Journey Quality'!Y104+'Journey Quality'!Y140","v":0},{"$f":"'Intersection Delay'!AA38+'Intersection Delay'!AA75","v":0},{"$f":"'Intersection Safety'!AK38+'Auto Accident Costs'!G38","v":0},{"$f":"'Health - Absenteeism'!U38+'Health - Reduced Mortality'!Y38+'Health - Reduced Mortality'!Y75","v":0},{"$f":"Emissions!H38","v":0},0,{"$f":"'1a) Project Info'!AF36+'1a) Project Info'!AF80","v":0},0,{"$f":"AB46+AA47","v":0},null,23,0]
[null,14,{"$f":"'Journey Quality'!Z39+'Journey Quality'!Z71+'Journey Quality'!Z105+'Journey Quality'!Z141","v":0},{"$f":"'Intersection Delay'!AB39+'Intersection Delay'!AB76","v":0},{"$f":"'Intersection Safety'!AL39+'Auto Accident Costs'!H39","v":0},{"$f":"'Health - Absenteeism'!V39+'Health - Reduced Mortality'!Z39+'Health - Reduced Mortality'!Z76","v":0},{"$f":"Emissions!I39","v":0},0,{"$f":"'1a) Project Info'!AG37+'1a) Project Info'!AG81","v":0},0,{"$f":"K47+J48","v":0},null,14,{"$f":"'Journey Quality'!Z105+'Journey Quality'!Z141","v":0},{"$f":"'Intersection Delay'!AB76","v":0},{"$f":"'Intersection Safety'!AQ39","v":0},null,null,14,{"$f":"'Journey Quality'!Y39+'Journey Quality'!Y71+'Journey Quality'!Y105+'Journey Quality'!Y141","v":0},{"$f":"'Intersection Delay'!AA39+'Intersection Delay'!AA76","v":0},{"$f":"'Intersection Safety'!AK39+'Auto Accident Costs'!G39","v":0},{"$f":"'Health - Absenteeism'!U39+'Health - Reduced Mortality'!Y39+'Health - Reduced Mortality'!Y76","v":0},{"$f":"Emissions!H39","v":0},0,{"$f":"'1a) Project Info'!AF37+'1a) Project Info'!AF81","v":0},0,{"$f":"AB47+AA48","v":0},null,24,0]
[null,15,{"$f":"'Journey Quality'!Z40+'Journey Quality'!Z72+'Journey Quality'!Z106+'Journey Quality'!Z142","v":0},{"$f":"'Intersection Delay'!AB40+'Intersection Delay'!AB77","v":0},{"$f":"'Intersection Safety'!AL40+'Auto Accident Costs'!H40","v":0},{"$f":"'Health - Absenteeism'!V40+'Health - Reduced Mortality'!Z40+'Health - Reduced Mortality'!Z77","v":0},{"$f":"Emissions!I40","v":0},0,{"$f":"'1a) Project Info'!AG38+'1a) Project Info'!AG82","v":0},0,0,null,15,{"$f":"'Journey Quality'!Z106+'Journey Quality'!Z142","v":0},{"$f":"'Intersection Delay'!AB77","v":0},{"$f":"'Intersection Safety'!AQ40","v":0},null,null,15,{"$f":"'Journey Quality'!Y40+'Journey Quality'!Y72+'Journey Quality'!Y106+'Journey Quality'!Y142","v":0},{"$f":"'Intersection Delay'!AA40+'Intersection Delay'!AA77","v":0},{"$f":"'Intersection Safety'!AK40+'Auto Accident Costs'!G40","v":0},{"$f":"'Health - Absenteeism'!U40+'Health - Reduced Mortality'!Y40+'Health - Reduced Mortality'!Y77","v":0},{"$f":"Emissions!H40","v":0},0,{"$f":"'1a) Project Info'!AF38+'1a) Project Info'!AF82","v":0},0,0,null,25,0]
[null,16,{"$f":"'Journey Quality'!Z41+'Journey Quality'!Z73+'Journey Quality'!Z107+'Journey Quality'!Z143","v":0},{"$f":"'Intersection Delay'!AB41+'Intersection Delay'!AB78","v":0},{"$f":"'Intersection Safety'!AL41+'Auto Accident Costs'!H41","v":0},{"$f":"'Health - Absenteeism'!V41+'Health - Reduced Mortality'!Z41+'Health - Reduced Mortality'!Z78","v":0},{"$f":"Emissions!I41","v":0},0,{"$f":"'1a) Project Info'!AG39+'1a) Project Info'!AG83","v":0},0,{"$f":"K49+J50","v":0},null,16,{"$f":"'Journey Quality'!Z107+'Journey Quality'!Z143","v":0},{"$f":"'Intersection Delay'!AB78","v":0},{"$f":"'Intersection Safety'!AQ41","v":0},null,null,16,{"$f":"'Journey Quality'!Y41+'Journey Quality'!Y73+'Journey Quality'!Y107+'Journey Quality'!Y143","v":0},{"$f":"'Intersection Delay'!AA41+'Intersection Delay'!AA78","v":0},{"$f":"'Intersection Safety'!AK41+'Auto Accident Costs'!G41","v":0},{"$f":"'Health - Absenteeism'!U41+'Health - Reduced Mortality'!Y41+'Health - Reduced Mortality'!Y78","v":0},{"$f":"Emissions!H41","v":0},0,{"$f":"'1a) Project Info'!AF39+'1a) Project Info'!AF83","v":0},0,{"$f":"AB49+AA50","v":0},null,26,0]
[null,17,{"$f":"'Journey Quality'!Z42+'Journey Quality'!Z74+'Journey Quality'!Z108+'Journey Quality'!Z144","v":0},{"$f":"'Intersection Delay'!AB42+'Intersection Delay'!AB79","v":0},{"$f":"'Intersection Safety'!AL42+'Auto Accident Costs'!H42","v":0},{"$f":"'Health - Absenteeism'!V42+'Health - Reduced Mortality'!Z42+'Health - Reduced Mortality'!Z79","v":0},{"$f":"Emissions!I42","v":0},0,{"$f":"'1a) Project Info'!AG40+'1a) Project Info'!AG84","v":0},0,{"$f":"K50+J51","v":0},null,17,{"$f":"'Journey Quality'!Z108+'Journey Quality'!Z144","v":0},{"$f":"'Intersection Delay'!AB79","v":0},{"$f":"'Intersection Safety'!AQ42","v":0},null,null,17,{"$f":"'Journey Quality'!Y42+'Journey Quality'!Y74+'Journey Quality'!Y108+'Journey Quality'!Y144","v":0},{"$f":"'Intersection Delay'!AA42+'Intersection Delay'!AA79","v":0},{"$f":"'Intersection Safety'!AK42+'Auto Accident Costs'!G42","v":0},{"$f":"'Health - Absenteeism'!U42+'Health - Reduced Mortality'!Y42+'Health - Reduced Mortality'!Y79","v":0},{"$f":"Emissions!H42","v":0},0,{"$f":"'1a) Project Info'!AF40+'1a) Project Info'!AF84","v":0},0,{"$f":"AB50+AA51","v":0},null,27,0]
[null,18,{"$f":"'Journey Quality'!Z43+'Journey Quality'!Z75+'Journey Quality'!Z109+'Journey Quality'!Z145","v":0},{"$f":"'Intersection Delay'!AB43+'Intersection Delay'!AB80","v":0},{"$f":"'Intersection Safety'!AL43+'Auto Accident Costs'!H43","v":0},{"$f":"'Health - Absenteeism'!V43+'Health - Reduced Mortality'!Z43+'Health - Reduced Mortality'!Z80","v":0},{"$f":"Emissions!I43","v":0},0,{"$f":"'1a) Project Info'!AG41+'1a) Project Info'!AG85","v":0},0,{"$f":"K51+J52","v":0},null,18,{"$f":"'Journey Quality'!Z109+'Journey Quality'!Z145","v":0},{"$f":"'Intersection Delay'!AB80","v":0},{"$f":"'Intersection Safety'!AQ43","v":0},null,null,18,{"$f":"'Journey Quality'!Y43+'Journey Quality'!Y75+'Journey Quality'!Y109+'Journey Quality'!Y145","v":0},{"$f":"'Intersection Delay'!AA43+'Intersection Delay'!AA80","v":0},{"$f":"'Intersection Safety'!AK43+'Auto Accident Costs'!G43","v":0},{"$f":"'Health - Absenteeism'!U43+'Health - Reduced Mortality'!Y43+'Health - Reduced Mortality'!Y80","v":0},{"$f":"Emissions!H43","v":0},0,{"$f":"'1a) Project Info'!AF41+'1a) Project Info'!AF85","v":0},0,{"$f":"AB51+AA52","v":0},null,28,0]
[null,19,{"$f":"'Journey Quality'!Z44+'Journey Quality'!Z76+'Journey Quality'!Z110+'Journey Quality'!Z146","v":0},{"$f":"'Intersection Delay'!AB44+'Intersection Delay'!AB81","v":0},{"$f":"'Intersection Safety'!AL44+'Auto Accident Costs'!H44","v":0},{"$f":"'Health - Absenteeism'!V44+'Health - Reduced Mortality'!Z44+'Health - Reduced Mortality'!Z81","v":0},{"$f":"Emissions!I44","v":0},0,{"$f":"'1a) Project Info'!AG42+'1a) Project Info'!AG86","v":0},0,0,null,19,{"$f":"'Journey Quality'!Z110+'Journey Quality'!Z146","v":0},{"$f":"'Intersection Delay'!AB81","v":0},{"$f":"'Intersection Safety'!AQ44","v":0},null,null,19,{"$f":"'Journey Quality'!Y44+'Journey Quality'!Y76+'Journey Quality'!Y110+'Journey Quality'!Y146","v":0},{"$f":"'Intersection Delay'!AA44+'Intersection Delay'!AA81","v":0},{"$f":"'Intersection Safety'!AK44+'Auto Accident Costs'!G44","v":0},{"$f":"'Health - Absenteeism'!U44+'Health - Reduced Mortality'!Y44+'Health - Reduced Mortality'!Y81","v":0},{"$f":"Emissions!H44","v":0},0,{"$f":"'1a) Project Info'!AF42+'1a) Project Info'!AF86","v":0},0,0]
[null,20,{"$f":"'Journey Quality'!Z45+'Journey Quality'!Z77+'Journey Quality'!Z111+'Journey Quality'!Z147","v":0},{"$f":"'Intersection Delay'!AB45+'Intersection Delay'!AB82","v":0},{"$f":"'Intersection Safety'!AL45+'Auto Accident Costs'!H45","v":0},{"$f":"'Health - Absenteeism'!V45+'Health - Reduced Mortality'!Z45+'Health - Reduced Mortality'!Z82","v":0},{"$f":"Emissions!I45","v":0},0,{"$f":"'1a) Project Info'!AG43+'1a) Project Info'!AG87","v":0},0,{"$f":"K53+J54","v":0},null,20,{"$f":"'Journey Quality'!Z111+'Journey Quality'!Z147","v":0},{"$f":"'Intersection Delay'!AB82","v":0},{"$f":"'Intersection Safety'!AQ45","v":0},null,null,20,{"$f":"'Journey Quality'!Y45+'Journey Quality'!Y77+'Journey Quality'!Y111+'Journey Quality'!Y147","v":0},{"$f":"'Intersection Delay'!AA45+'Intersection Delay'!AA82","v":0},{"$f":"'Intersection Safety'!AK45+'Auto Accident Costs'!G45","v":0},{"$f":"'Health - Absenteeism'!U45+'Health - Reduced Mortality'!Y45+'Health - Reduced Mortality'!Y82","v":0},{"$f":"Emissions!H45","v":0},0,{"$f":"'1a) Project Info'!AF43+'1a) Project Info'!AF87","v":0},0,{"$f":"AB53+AA54","v":0},null,"Internal Rate",null,null,"The INTERNAL RATE OF RETURN  (IRR)  is the discount rate at which benefits and costs break even (are equal).  For a project"]
[null,null,null,null,null,null,null,null,null,null,null,null,null,null,null,null,null,null,null,null,null,null,null,null,null,null,null,null,null,"of Return",{"$f":"IF(SUM(AE25:AE52)=0,\"N/A\",IRR(AE25:AE52))","v":"N/A"},null,"with an IRR greater than the Discount Rate, benefits are greater than costs, and the project has a positive economic value.  The"]
[null,"Total",{"$f":"SUM(C35:C54)","v":0},{"$f":"SUM(D35:D54)","v":0},{"$f":"SUM(E35:E54)","v":0},{"$f":"SUM(F35:F54)","v":0},{"$f":"SUM(G35:G54)","v":0},{"$f":"SUM(H26:H54)","v":0},{"$f":"SUM(I26:I54)","v":0},{"$f":"SUM(J26:J54)","v":0},null,null,"Total",{"$f":"SUM(N35:N54)","v":0},{"$f":"SUM(O35:O54)","v":0},{"$f":"SUM(P35:P54)","v":0},null,null,"Total",{"$f":"SUM(T35:T54)","v":0},{"$f":"SUM(U35:U54)","v":0},{"$f":"SUM(V35:V54)","v":0},{"$f":"SUM(W35:W54)","v":0},{"$f":"SUM(X35:X54)","v":0},{"$f":"SUM(Y26:Y54)","v":0},{"$f":"SUM(Z26:Z54)","v":0},0,null,null,null,null,null,"IRR allows projects with different costs, different benefit flows, and different time periods to be compared."]
[]
[null,null,null,null,null,null,null,null,null,null,null,null,null,null,null,null,null,null,null,null,null,null,null,null,null,null,null,null,null,"Payback",null,null,"The PAYBACK PERIOD is the number of years it takes for the net benefits (benefits minus costs) to equal, or payback, the initial"]
[null,null,{"$f":"Emissions!K47","v":0},"CO2 Emissions Saved (tons)",null,null,null,null,null,"Total Construction Costs",{"$f":"-(SUM(J26:J33))","v":0},null,null,null,null,null,null,null,null,null,null,null,null,null,null,null,"Total Construction Costs",{"$f":"ABS(SUM(AA26:AA33))","v":0},null,"Period",{"$f":"IF(AB59=0,\"N/A\",IF(AB59<AB35,\"1 year\",IF(AB59>AB54,\"20+\",(LOOKUP(AB59,AB35:AB54,S35:S54)+1))&\" years\"))","v":"N/A"},null,"construction costs.  For a project with a Payback Period longer than the life-cycle of the project, initial construction costs are not"]
[null,null,{"$f":"Emissions!L47","v":0},"CO2 Emissions Saved ($ PV)",null,null,null,null,null,null,null,null,null,null,null,null,null,null,null,null,null,null,null,null,null,null,null,null,null,null,null,null,"recovered.  The Payback Period varies inversely with the Benefit-Cost Ratio: shorter Payback Period yields higher Benefit-Cost."]

{"sheet":"PARAMETERS","index":15,"n_rows":219,"n_cols":133,"rows_kept":219,"cut":false,"hidden":false,"merged":[]}
[null,"Parameters"]
[]
[null,"This page contains all economic values and rate tables."]
[null,"To update economic values automatically, change \"Economic Update Factor.\"",null,null,null,null,null,null,null,null,null,null,null,null,null,null,null,null,null,null,null,null,null,null,null,null,null,null,null,null,null,"Travel Demand Tables",null,null,null,null,null,null,null,null,null,null,"Operating Cost Tables",null,null,null,null,null,null,"Accident Tables",null,null,null,null,null,null,null,null,null,null,null,null,null,null,null,"Emissions Tables",null,null,null,null,null,null,null,null,null,null,null,null,null,null,null,null,null,null,null,null,null,null,null,null,null,null,null,null,null,null,null,null,null,null,"Pavement Adjustments (used only for pavement projects)",null,null,null,null,null,null,null,null,null,null,null,null,null,"Weaving Adjustments (used only for freeway",null,null,null,null,null,null,"TMS Adjustments (used only for ramp metering, ramp metering signal coordination, incident"]
[null,null,null,null,null,null,null,null,null,null,null,null,null,null,null,null,null,null,null,null,null,null,null,null,null,null,null,null,null,null,null,null,null,null,null,null,null,null,null,null,null,null,null,null,null,null,null,null,null,null,null,null,null,null,null,null,null,null,null,null,null,null,null,null,null,null,null,null,null,null,null,null,null,null,null,null,null,null,null,null,null,null,null,null,null,null,null,null,null,null,null,null,null,null,null,null,null,null,null,null,null,null,null,null,null,null,null,null,null,null,null,null,null,null,"connector, HOV connector, and HOV drop ramp projects)",null,null,null,null,null,null,"management, traveler information projects, AVL, transit priority, and BRT projects)"]
[]
[null,"General Economic Parameters",null,null,null,null,null,null,null,null,null,null,null,null,null,null,null,null,null,null,null,null,null,null,"Project Types"]
[null,null,null,null,null,null,null,null,null,null,null,null,null,null,null,null,null,null,null,null,null,null,null,null,null,null,null,null,null,null,null,null,"DEMAND FOR TRAVEL IN PEAK PERIOD",null,null,null,null,null,null,null,null,null,null,"FUEL CONSUMPTION RATES",null,null,null,null,null,null,"HIGHWAY INJURY SEVERITY FREQUENCY",null,null,null,null,null,null,null,"RATES FOR TRANSIT ACCIDENT EVENTS",null,null,null,null,null,null,null,"HIGHWAY EMISSIONS FACTORS (g/mi)",null,null,null,null,null,null,null,null,null,null,"HIGHWAY EMISSIONS FACTORS (g/mi)",null,null,null,null,null,null,null,null,null,null,null,"HEALTH COST OF TRANSPORTATION EMISSIONS",null,null,null,null,null,null,null,null,null,null,null,"PAVEMENT DETERIORATION",null,null,null,null,null,null,"VEHICLE OPERATING SPEED",null,null,null,null,null,null,"VEHICLE OPERATING SPEED",null,null,null,null,null,null,"PEAK PERIOD SPEED, VOLUME, AND NON-HIGHWAY BENEFITS"]
[null,null,"Year of Current Dollars for Model",null,null,2016,null,null,null,null,null,null,null,null,null,null,null,null,null,null,null,null,null,null,null,"Highway Capacity Expansion",null,null,"Please select a type of highway project",null,null,null,"(percent of total daily travel)",null,null,null,null,null,null,null,null,null,null,"(gal/veh-mi)",null,null,null,null,null,null,"(percent of injuries)",null,null,null,null,null,null,null,"(events/million veh-mi)",null,null,null,null,null,null,null,"Model Year 2016",null,null,null,null,null,null,null,null,null,null,"Model Year 2036",null,null,null,null,null,null,null,null,null,null,null,"($/ton)",null,null,null,null,null,null,null,null,null,null,null,"(IRI in inches/mile)",null,null,null,null,null,null,"(percent adjustment)",null,null,null,null,null,null,"(percent adjustment)",null,null,null,null,null,null,"(percent adjustment)"]
[null,null,"Economic Update Factor (Using GDP Deflator)",null,null,1,null,1,null,null,null,null,null,null,null,null,null,null,null,null,null,null,null,null,null,"    General Highway",{"$f":"IF(ProjType=Z10,TRUE)","v":false},"GenHwy"]
[null,null,null,null,null,null,null,null,null,null,null,null,null,null,null,null,null,null,null,null,null,null,null,null,null,"    HOV Lane Addition",false,"HOV","Enter HOV restriction in section 1B",null,null,null,"Number of","Urban",null,null,null,null,null,null,null,null,null,"Speed","Auto*","Truck",null,null,null,null,"Event","Urban","Suburban","Rural","Average",null,null,null,"Event","Pass Train","Light Rail","Bus",null,null,null,null,"Mode","Speed","CO","CO2","NOX","PM10","SOX","VOC",null,null,null,"Mode","Speed","CO","CO2","NOX","PM10","SOX","VOC",null,null,null,null,"Area","Proj Loc","CO","CO2e","NOX","PM10","SOX","VOC",null,null,null,null,null,"Year 20, By Loading",null,null,null,null,null,null,null,null,null,null,null,null,"Percent","Freeway","HOV",null,null,null,null,"TMS","Without",null,"With",null,"Non-Highway Benefits",null,null,"Total"]
[null,null,"Real Discount Rate",null,null,0.04,null,2,null,null,null,null,null,null,null,null,null,null,null,null,null,null,null,null,null,"    HOT Lane Addition",false,"HOT","Include toll payers as HOVs & check AVOs",null,null,null,"Hours in","So. California",null,"No. California",null,"Rural",null,null,null,null,null,5,0.1024,0.2112,null,null,null,null,"Severe Injury (A)",{"$f":"ROUND(10664/223128,4)","v":4.7800000000000002E-2},{"$f":"ROUND(10664/223128,4)","v":4.7800000000000002E-2},{"$f":"ROUND(10664/223128,4)","v":4.7800000000000002E-2},{"$f":"ROUND(10664/223128,4)","v":4.7800000000000002E-2},null,null,null,"Fatality",5.5500000000000001E-2,0.248,3.49E-2,null,null,null,null,"Auto",0,0.53800000000000003,13.0731,0.04,5.0000000000000001E-4,1E-4,4.4400000000000002E-2,null,null,null,"Auto",0,0.12670000000000001,8.2936999999999994,5.4000000000000003E-3,2.9999999999999997E-4,1E-4,8.6999999999999994E-3,null,null,null,null,"LA/South Coast",1,{"$f":"ROUND(115*(1.1164/0.8147)*ValueUpdate/5,0)*5","v":160},{"$f":"ROUND(36*(1+2%)^(2016-2015)*(1.1164/0.9684)/1.10231*ValueUpdate,0)","v":38},{"$f":"ROUND(46615*(1.1164/0.8147)*ValueUpdate,-2)","v":63900},{"$f":"ROUND(381859*(1.1164/0.8147)*ValueUpdate,-2)","v":523300},{"$f":"ROUND(143469*(1.1164/0.8147)*ValueUpdate,-2)","v":196600},{"$f":"ROUND(2898*(1.1164/0.8147)*ValueUpdate/5,0)*5","v":3970},null,null,null,null,"Year 0","Light","Medium","Heavy",null,null,null,"IRI","Auto","Truck",null,null,null,null,"Weaving","Conn","Project",null,null,null,null,"Strategy","Speed","Volume","Speed","Volume","TT","VOC","Em","Benefit"]
[null,null,null,null,null,null,null,null,null,null,null,null,null,null,null,null,null,null,null,null,null,null,null,null,null,"    Passing Lane",false,"Passing","Enter a truck speed in section 1B",null,null,null,"Peak Period","Fwy/Exp","Other","Fwy/Exp","Other","Fwy/Exp","Other",null,null,null,null,6,9.7100000000000006E-2,0.2056,null,null,null,null,"Other Visible Injury (B)",{"$f":"ROUND(56986/223128,4)","v":0.25540000000000002},{"$f":"ROUND(56986/223128,4)","v":0.25540000000000002},{"$f":"ROUND(56986/223128,4)","v":0.25540000000000002},{"$f":"ROUND(56986/223128,4)","v":0.25540000000000002},null,null,null,"Injury",0.25190000000000001,3.9468999999999999,3.6535000000000002,null,null,null,null,null,5,3.4738000000000002,1116.2988,0.3085,1.37E-2,1.12E-2,0.32569999999999999,null,null,null,null,5,0.91239999999999999,621.32259999999997,6.1699999999999998E-2,5.8999999999999999E-3,6.1999999999999998E-3,0.11169999999999999,null,null,null,null,"CA Urban Area",2,{"$f":"ROUND(60*(1.1164/0.8147)*ValueUpdate/5,0)*5","v":80},{"$f":"ROUND(36*(1+2%)^(2016-2015)*(1.1164/0.9684)/1.10231*ValueUpdate,0)","v":38},{"$f":"ROUND(13646*(1.1164/0.8147)*ValueUpdate,-2)","v":18700},{"$f":"ROUND(110258*(1.1164/0.8147)*ValueUpdate,-2)","v":151100},{"$f":"ROUND(55069*(1.1164/0.8147)*ValueUpdate,-2)","v":75500},{"$f":"ROUND(954*(1.1164/0.8147)*ValueUpdate/5,0)*5","v":1305},null,null,null,null,0,125,150,350,null,null,null,0,1,1.0249999999999999,null,null,null,null,0,1,1,null,null,null,null,"AMoth",1.024390243902439,0.95033206287590888,1.0226480836236935,0.95024785653448107,-5.0482654714564399,12.812004768254743,1.3685377639581497,0.73649754500818332]
[null,null,null,null,null,null,null,null,null,null,null,null,null,null,null,null,null,null,null,null,null,null,null,null,null,"    Intersection",false,"Intersect","Remember to run model for both roads",null,null,null,1,8.5000000000000006E-2,8.5000000000000006E-2,8.5000000000000006E-2,8.5000000000000006E-2,8.5000000000000006E-2,8.5000000000000006E-2,null,null,null,null,7,9.1899999999999996E-2,0.2,null,null,null,null,"Complaint of Pain (C) ",{"$f":"ROUND(155478/223128,4)","v":0.69679999999999997},{"$f":"ROUND(155478/223128,4)","v":0.69679999999999997},{"$f":"ROUND(155478/223128,4)","v":0.69679999999999997},{"$f":"ROUND(155478/223128,4)","v":0.69679999999999997},null,null,null,"All Accidents",0.27750000000000002,5.3817000000000004,2.6732999999999998,null,null,null,null,null,6,3.3149999999999999,1059.1874,0.2954,1.2699999999999999E-2,1.06E-2,0.2994,null,null,null,null,6,0.88590000000000002,589.85400000000004,6.0199999999999997E-2,5.4999999999999997E-3,5.8999999999999999E-3,0.10390000000000001,null,null,null,null,"CA Rural Area",3,{"$f":"ROUND(54*(1.1164/0.8147)*ValueUpdate/5,0)*5","v":75},{"$f":"ROUND(36*(1+2%)^(2016-2015)*(1.1164/0.9684)/1.10231*ValueUpdate,0)","v":38},{"$f":"ROUND(10144*(1.1164/0.8147)*ValueUpdate,-2)","v":13900},{"$f":"ROUND(78618*(1.1164/0.8147)*ValueUpdate,-2)","v":107700},{"$f":"ROUND(39732*(1.1164/0.8147)*ValueUpdate,-2)","v":54400},{"$f":"ROUND(749*(1.1164/0.8147)*ValueUpdate/5,0)*5","v":1025},null,null,null,null,25,150,200,500,null,null,null,25,1,1.0249999999999999,null,null,null,null,2E-3,0.98199999999999998,0.98799999999999999,null,null,null,null,"AMsev",1.5309734513274336,0.93858158077544918,1.5339233038348083,0.93652523253026121,1.2055967118725646,1.3795286778842835,-0.36526583947602581,1]
[null,null,null,null,null,null,null,null,null,null,null,null,null,null,null,null,null,null,null,null,null,null,null,null,null,"    Bypass",false,"Bypass","Remember to run model for both roads",null,null,null,2,0.16800000000000001,0.16800000000000001,0.16800000000000001,0.16800000000000001,0.16800000000000001,0.16800000000000001,null,null,null,null,8,8.6699999999999999E-2,0.19439999999999999,null,null,null,null,null,null,null,null,null,null,null,null,null,null,null,null,null,null,null,null,null,7,3.1562999999999999,1002.0759,0.2823,1.18E-2,1.01E-2,0.2732,null,null,null,null,7,0.85940000000000005,558.3854,5.8799999999999998E-2,5.0000000000000001E-3,5.5999999999999999E-3,9.6000000000000002E-2,null,null,null,null,null,null,null,null,null,null,null,null,null,null,null,null,50,175,250,675,null,null,null,50,1,1.0249999999999999,null,null,null,null,4.0000000000000001E-3,0.96399999999999997,0.97599999999999998,null,null,null,null,"IMoth",0.87631975867269996,1.1787414968749441,0.97934595524956969,0.95560600171461807,0.51279967249004688,0.14821287797598934,5.8798924429168148E-2,0.73649754500818332]
[null,null,null,null,null,null,null,null,null,null,null,null,null,null,null,null,null,null,null,null,null,null,null,null,null,"    Queuing",false,"Queuing","Add arrival rate & check departure rate in 1B",null,null,null,3,0.25,0.25,0.25,0.25,0.25,0.25,null,null,null,null,9,8.1500000000000003E-2,0.1888,null,null,null,null,null,null,null,null,null,null,null,null,null,null,null,null,null,null,null,null,null,8,2.9975000000000001,944.96450000000004,0.26919999999999999,1.0800000000000001E-2,9.4999999999999998E-3,0.24690000000000001,null,null,null,null,8,0.83279999999999998,526.91679999999997,5.74E-2,4.5999999999999999E-3,5.3E-3,8.8200000000000001E-2,null,null,null,null,null,null,"CO2e Uprater",0.02,"increase in value per year",null,null,null,null,null,null,null,75,200,300,750,null,null,null,75,1,1.0249999999999999,null,null,null,null,6.0000000000000001E-3,0.94499999999999995,0.96399999999999997,null,null,null,null,"IMsev",1.0063897763578276,0.97248628615245469,1.0095846645367412,0.94610556221859576,0.29570448855547743,0.31261145032655596,0.3020072068746259,1]
[null,"Travel Time Parameters",null,null,null,null,null,null,"Highway Operations Parameters",null,null,null,null,null,null,null,null,"Active Transportation Parameters",null,null,null,null,null,null,null,"    Pavement",false,"Pavement","Enter pavement condition in section 1B",null,null,null,4,0.32800000000000001,0.32800000000000001,0.32800000000000001,0.32800000000000001,0.32800000000000001,0.32800000000000001,null,null,null,null,10,7.6300000000000007E-2,0.1832,null,null,null,"Source: 2013 SWITRS Annual Report, Table 8C",null,null,null,null,null,null,null,"Source: USDOT,Transportation Statistics Annual Report, Table 2-33,",null,null,null,null,null,null,null,null,null,9,2.8386999999999998,887.85310000000004,0.25600000000000001,9.7999999999999997E-3,8.8999999999999999E-3,0.22070000000000001,null,null,null,null,9,0.80630000000000002,495.44810000000001,5.6000000000000001E-2,4.1999999999999997E-3,5.0000000000000001E-3,8.0399999999999999E-2,null,null,null,null,null,null,null,null,null,null,null,null,null,null,null,null,100,275,400,750,null,null,null,100,1,1.0249999999999999,null,null,null,null,8.0000000000000002E-3,0.92700000000000005,0.95199999999999996,null,null,null,null,"NoAdj",1,1,1,1,0,0,0,1]
[null,null,null,null,"Value","Units",null,null,null,null,null,null,"Value","Units",null,null,null,null,null,null,null,null,null,null,null,null,null,null,null,null,null,null,5,0.40300000000000002,0.40300000000000002,0.40300000000000002,0.40300000000000002,0.40300000000000002,0.40300000000000002,null,null,null,null,11,7.2700000000000001E-2,0.17069999999999999,null,null,null,null,null,null,null,null,null,null,null,null,"2003 to 2012 average",null,null,null,null,null,null,null,null,10,2.68,830.74159999999995,0.2429,8.8000000000000005E-3,8.3000000000000001E-3,0.19439999999999999,null,null,null,null,10,0.77980000000000005,463.97949999999997,5.4600000000000003E-2,3.7000000000000002E-3,4.5999999999999999E-3,7.2599999999999998E-2,null,null,null,null,null,null,null,null,null,null,null,null,null,null,null,null,125,325,475,750,null,null,null,125,1,1.0249999999999999,null,null,null,null,0.01,0.90900000000000003,0.93899999999999995,null,null,null,null,"ORoth",{"$f":"1/1.025","v":0.97560975609756106},{"$f":"1/0.967507287790243","v":1.0335839456919951},1,1,-7.3566477910576925E-2,-3.0716152193242731E-2,-6.9602992603797764E-2,null,null,29]
[null,null,"Statewide Average Hourly Wage",null,{"$f":"26.57*(128/124.4)*ValueUpdate","v":27.338906752411575},"$/hr",null,3,null,"Maximum V/C Ratio",null,null,1.56,"-",null,null,16,null,"General Travel Activity Characteristics Parameters",null,"Value","Units",null,null,null,"Rail or Transit Cap Expansion",null,null,"Please select a type of rail or transit project",null,null,null,6,0.47400000000000003,0.47400000000000003,0.47400000000000003,0.47400000000000003,0.47400000000000003,0.47400000000000003,null,null,null,null,12,6.9099999999999995E-2,0.1583,null,null,null,null,null,null,null,null,null,null,null,null,null,null,null,null,null,null,null,null,null,11,2.6065,791.69079999999997,0.2349,8.2000000000000007E-3,7.9000000000000008E-3,0.1825,null,null,null,null,11,0.76149999999999995,442.22140000000002,5.2699999999999997E-2,3.5000000000000001E-3,4.4000000000000003E-3,6.8000000000000005E-2,null,null,null,"Sources: McCubbin and Delucchi, 1996 for emissions other than CO2e",null,null,null,null,null,null,null,null,null,null,null,null,150,400,575,750,null,null,null,150,1,1.0129999999999999,null,null,null,null,1.2E-2,0.89100000000000001,0.92700000000000005,null,null,null,null,"ORsev",{"$f":"1/1.05014749262537","v":0.95224719101123478},{"$f":"1/0.972697289554735","v":1.0280690721958967},1,1,-1.4815053347415766E-3,-1.3238335688661946E-3,5.6743741804302186,null,null,29]
[null,null,null,null,null,null,null,null,null,null,null,null,null,null,null,null,null,null,null,"Cycling Days per Year",365,"days",null,null,null,"    Passenger Rail",{"$f":"IF(ProjType=Z20,TRUE)","v":false},"PassRail","Enter data in both sections 1B & 1E",null,null,null,7,0.54200000000000004,0.54200000000000004,0.54200000000000004,0.54200000000000004,0.54200000000000004,0.54200000000000004,null,null,null,null,13,6.5600000000000006E-2,0.1459,null,null,null,null,null,null,null,null,null,null,null,null,null,null,null,null,null,null,null,null,null,12,2.5329999999999999,752.63990000000001,0.22689999999999999,7.6E-3,7.6E-3,0.17069999999999999,null,null,null,null,12,0.74319999999999997,420.46319999999997,5.0900000000000001E-2,3.2000000000000002E-3,4.1999999999999997E-3,6.3500000000000001E-2,null,null,null,null,"Interagency Working Group on Social Cost of Carbon, United States Government, 2016 for CO2e",null,null,null,null,null,null,null,null,null,null,null,175,500,700,750,null,null,null,175,1,1,null,null,null,null,1.4E-2,0.873,0.91500000000000004,null,null,null,null,"RMoth",1,1,1.0249999999999999,0.96750728779024331,-7.3566477910576925E-2,-3.0716152193242731E-2,-6.9602992603797764E-2,1]
[null,null,"Heavy and Light Truck Drivers",null,null,null,null,null,null,"Percent ADT in Peak Period",null,null,null,"%",null,null,null,null,null,"Walking Days per Year",365,"days",null,null,null,"    Light-Rail (LRT)",{"$f":"IF(ProjType=Z21,TRUE)","v":false},"LRT","Enter data in both sections 1B & 1E",null,null,null,8,0.6080000000000001,0.6080000000000001,0.6080000000000001,0.6080000000000001,0.6080000000000001,0.6080000000000001,null,null,null,null,14,6.2E-2,0.13350000000000001,null,null,null,null,null,null,null,null,null,null,null,null,null,null,null,null,null,null,null,null,null,13,2.4594999999999998,713.58900000000006,0.219,7.0000000000000001E-3,7.1999999999999998E-3,0.1588,null,null,null,null,13,0.72489999999999999,398.70510000000002,4.9099999999999998E-2,3.0000000000000001E-3,4.0000000000000001E-3,5.8900000000000001E-2,null,null,null,null,null,null,null,null,null,null,null,null,null,null,null,null,200,575,750,750,null,null,null,200,1,0.98,null,null,null,null,1.6E-2,0.85499999999999998,0.90300000000000002,null,null,null,null,"RMsev",1,1,1.0501474926253689,0.97269728955473456,-1.4815053347415766E-3,-1.3238335688661946E-3,5.6743741804302186,1]
[null,null,null,"Average Hourly Wage",{"$f":"(21.17*129170+17.98*89230)/(129170+89230)*(128/124.4)*ValueUpdate","v":20.44160653922712},"$/hr",null,3,null,"Percent ADT in Average Peak Hour",null,null,null,"%",null,null,null,null,null,"School Days per Year",180,"days",null,null,null,"    Bus",{"$f":"IF(ProjType=Z22,TRUE)","v":false},"Bus","Enter data in both sections 1B & 1E",null,null,null,9,0.67100000000000004,0.67100000000000004,0.67100000000000004,0.67100000000000004,0.67100000000000004,0.67100000000000004,null,null,null,null,15,5.8400000000000001E-2,0.1211,null,null,null,null,"NUMBER OF FATALITIES",null,null,null,null,null,null,null,"COST OF TRANSIT ACCIDENT EVENTS",null,null,null,null,null,null,null,null,14,2.3860000000000001,674.53819999999996,0.21099999999999999,6.4000000000000003E-3,6.7999999999999996E-3,0.1469,null,null,null,null,14,0.70660000000000001,376.94690000000003,4.7199999999999999E-2,2.7000000000000001E-3,3.8E-3,5.4399999999999997E-2,null,null,null,null,null,null,null,null,null,null,null,null,null,null,null,null,225,650,750,750,null,null,null,225,1,0.94899999999999995,null,null,null,null,1.7999999999999999E-2,0.83599999999999997,0.89100000000000001,null,null,null,null,"TIoth",1,1,1.0154639175257731,0.96913081774301524,-0.11026585870451545,-0.11872704768355995,-0.35180024680500832,1]
[null,null,null,"Benefits and Costs",{"$f":"WageTruck*(27.84/18.12-1)*ValueUpdate","v":10.9653650972013},"$/hr",null,4,null,null,null,null,null,null,null,null,null,null,null,null,null,null,null,null,null,"    Hwy-Rail Grade Crossing",{"$f":"IF(ProjType=Z23,TRUE)","v":false},"HwyRail","Put hwy design in 1B, safety in 1C & crossing in 1D",null,null,null,10,0.73399999999999999,0.73399999999999999,0.73399999999999999,0.73399999999999999,0.73399999999999999,0.73399999999999999,null,null,null,null,16,5.6000000000000001E-2,0.1181,null,null,null,null,"(events/accident)",null,null,null,null,null,null,null,"($/event)",null,null,null,null,null,null,null,null,15,2.3125,635.4873,0.20300000000000001,5.7999999999999996E-3,6.4000000000000003E-3,0.1351,null,null,null,null,15,0.68830000000000002,355.18880000000001,4.5400000000000003E-2,2.5000000000000001E-3,3.5999999999999999E-3,4.99E-2,null,null,null,null,null,null,null,null,null,null,null,null,null,null,null,null,250,750,750,750,null,null,null,250,1,0.91900000000000004,null,null,null,null,0.02,0.78900000000000003,0.879,null,null,null,null,"TIsev",1,1,1.0058997050147493,0.97183048805227856,-0.39122572597877792,-0.39160228819315196,-0.35180024680500832,1]
[null,null,null,null,null,null,null,null,null,"Annualization Factor",null,null,365,"days/yr",null,null,null,null,"Vehicle Statistics",null,null,null,null,null,null,null,null,null,null,null,null,null,11,0.79,0.79,0.79,0.79,0.79,0.79,null,null,null,null,17,5.3600000000000002E-2,0.115,null,null,null,null,null,null,null,null,null,null,null,null,null,null,null,null,null,null,null,null,null,16,2.2482000000000002,609.41579999999999,0.1973,5.4999999999999997E-3,6.1000000000000004E-3,0.127,null,null,null,null,16,0.6724,340.75049999999999,4.4200000000000003E-2,2.3E-3,3.3999999999999998E-3,4.6899999999999997E-2,null,null,null,null,"PASSENGER TRAIN EMISSIONS FACTORS",null,null,null,null,null,null,null,null,null,null,null,275,750,750,750,null,null,null,275,0.99099999999999999,0.89,null,null,null,null,2.1999999999999999E-2,0.747,0.86699999999999999]
[null,null,"Value of Time",null,null,null,null,null,null,null,null,null,null,null,null,null,null,null,null,"Average Vehicle Speed",25,"mph",null,null,null,"Hwy Operational Improvement",null,null,"Please select a type of op. improvement",null,null,null,12,0.84300000000000008,0.84300000000000008,0.84300000000000008,0.84300000000000008,0.84300000000000008,0.84300000000000008,null,null,null,null,18,5.1299999999999998E-2,0.112,null,null,null,null,"Accident Type","Urban","Suburban","Rural","Average",null,null,null,"Event","Pass Train","Light Rail","Bus",null,null,null,null,null,17,2.1838000000000002,583.34429999999998,0.19159999999999999,5.1000000000000004E-3,5.8999999999999999E-3,0.11890000000000001,null,null,null,null,17,0.65659999999999996,326.31209999999999,4.3099999999999999E-2,2.2000000000000001E-3,3.3E-3,4.3900000000000002E-2,null,null,null,null,"(g/train-mile)",null,null,null,null,null,null,null,null,null,null,null,300,750,750,750,null,null,null,300,0.98099999999999998,0.86199999999999999,null,null,null,null,2.4E-2,0.70599999999999996,0.85499999999999998]
[null,null,null,"Automobile",{"$f":"ROUND(WageStatewide*0.5/5,2)*5","v":13.65},"$/hr/per",null,5,null,null,null,null,null,"Capacity","Dep. Rate",null,null,null,null,"Average Vehicle Occupancy",1.25,"persons / veh",null,19,null,"    Auxiliary Lane",{"$f":"IF(ProjType=Z26,TRUE)","v":false},"AuxLane","Enter ramp design speed & on-ramp volume",null,null,null,13,0.88600000000000012,0.88600000000000012,0.88600000000000012,0.88600000000000012,0.88600000000000012,0.88600000000000012,null,null,null,null,19,4.8899999999999999E-2,0.1089,null,null,null,null,"Fatal Accident",1.0900000000000001,1.08,1.1399999999999999,1.1100000000000001,null,null,null,"Fatality",{"$f":"FatValue","v":9800000},{"$f":"FatValue","v":9800000},{"$f":"FatValue","v":9800000},null,null,null,null,null,18,2.1194999999999999,557.27269999999999,0.18590000000000001,4.7999999999999996E-3,5.5999999999999999E-3,0.1108,null,null,null,null,18,0.64070000000000005,311.87380000000002,4.2000000000000003E-2,2E-3,3.0999999999999999E-3,4.1000000000000002E-2,null,null,null,null,null,null,null,null,null,null,null,null,null,null,null,null,325,750,750,750,null,null,null,325,0.97099999999999997,0.83399999999999996,null,null,null,null,2.5999999999999999E-2,0.66400000000000003,0.84199999999999997,null,null,null,"Source: California Department of Transportation TMS Master Plan, 2003"]
[null,null,null,"Truck",{"$f":"ROUND((WageTruck+FringeTruck)/5,2)*5","v":31.400000000000002},"$/hr/veh",null,5,null,null,null,"Alpha","Beta","(vphpl)","(vphpl)",null,null,null,null,null,null,null,null,null,null,"    Freeway Connector",false,"FreeConn","Check percent traffic in weave in section 1B",null,null,null,14,0.91600000000000015,0.91600000000000015,0.91600000000000015,0.91600000000000015,0.91600000000000015,0.91600000000000015,null,null,null,null,20,4.65E-2,0.10589999999999999,null,null,null,null,null,null,null,null,null,null,null,null,"Injury",{"$f":"ROUND((BC12*InjAValue+BC13*InjBValue)/SUM(BC12:BC13),-2)","v":180500},{"$f":"ROUND((BC12*InjAValue+BC13*InjBValue)/SUM(BC12:BC13),-2)","v":180500},{"$f":"ROUND((BC12*InjAValue+BC13*InjBValue)/SUM(BC12:BC13),-2)","v":180500},null,null,null,null,null,19,2.0550999999999999,531.20119999999997,0.18029999999999999,4.4000000000000003E-3,5.3E-3,0.1027,null,null,null,null,19,0.62490000000000001,297.43549999999999,4.0899999999999999E-2,1.9E-3,3.0000000000000001E-3,3.7999999999999999E-2,null,null,null,null,"Mode","Year","CO","CO2","NOX","PM10","SOX","VOC",null,null,null,null,350,750,750,750,null,null,null,350,0.96099999999999997,0.80800000000000005,null,null,null,null,2.8000000000000001E-2,0.623,0.81699999999999995,null,null,null,null,"29) Chaudhary and Messer, 2000"]
[null,null,null,"Auto & Truck Composite",{"$f":"ROUND((1.3*ValTimeAuto*0.91+ValTimeTruck*0.09)/5,2)*5","v":18.95},"$/hr/veh",null,6,null,"Freeway",null,0.2,10,2000,1800,null,"16, 17",null,"Active Transportation User Characteristics",null,null,null,null,null,null,"    HOV Connector",false,"HOVConn","Check percent traffic in weave in section 1B",null,null,null,15,0.94300000000000017,0.94300000000000017,0.94300000000000017,0.94300000000000017,0.94300000000000017,0.94300000000000017,null,null,null,null,21,4.4900000000000002E-2,0.1011,null,null,null,null,null,null,null,null,null,null,null,null,"Prop Damage",{"$f":"ROUND(18130110/230,-2)","v":78800},{"$f":"ROUND(5179121/418,-2)","v":12400},{"$f":"ROUND(22564745/6008,-2)","v":3800},null,null,null,null,null,20,1.9906999999999999,505.12970000000001,0.17460000000000001,4.1000000000000003E-3,5.1000000000000004E-3,9.4600000000000004E-2,null,null,null,null,20,0.60899999999999999,282.99720000000002,3.9699999999999999E-2,1.6999999999999999E-3,2.8E-3,3.5000000000000003E-2,null,null,null,null,"Passenger Train",2002,45.67,null,583.58000000000004,62.02,null,19.73,null,null,null,null,375,750,750,750,null,null,null,375,0.95199999999999996,0.78200000000000003,null,null,null,null,0.03,0.58099999999999996,0.78900000000000003]
[null,null,null,"Transit",{"$f":"ROUND(WageStatewide*0.5/5,2)*5","v":13.65},"$/hr/per",null,5,null,"Expressway",null,0.2,10,2000,1800,null,"16, 17",null,null,"Average Cycling Speed",11.8,"mph",null,20,null,"    HOV Drop Ramp",false,"HOVDrop","Check percent traffic in weave in section 1B",null,null,null,16,0.96400000000000019,0.96400000000000019,0.96400000000000019,0.96400000000000019,0.96400000000000019,0.96400000000000019,null,null,null,null,22,4.3299999999999998E-2,9.6299999999999997E-2,null,null,null,null,"NUMBER OF INJURIES",null,null,null,null,null,null,null,null,null,null,null,null,null,null,null,null,21,1.9371,487.67090000000002,0.1701,3.8999999999999998E-3,4.8999999999999998E-3,8.9499999999999996E-2,null,null,null,null,21,0.59730000000000005,273.20850000000002,3.9E-2,1.6000000000000001E-3,2.7000000000000001E-3,3.3300000000000003E-2,null,null,null,null,null,2022,45.67,null,250.11,31.01,null,19.73,null,null,null,null,400,750,750,750,null,null,null,400,0.94199999999999995,0.75800000000000001,null,null,null,null,3.2000000000000001E-2,0.54,0.76100000000000001]
[null,null,null,"Out-of-Vehicle Travel",2,"times",null,5,null,"Conventional Highway",null,0.05,10,800,1400,null,17,null,null,"Average Walking Speed",3,"mph",null,21,null,"    Off-Ramp Widening",false,"OffRamp","Check percent traffic in weave in section 1B",null,null,null,17,0.9760000000000002,0.9760000000000002,0.9760000000000002,0.9760000000000002,0.9760000000000002,0.9760000000000002,null,null,null,null,23,4.1700000000000001E-2,9.1600000000000001E-2,null,null,null,null,"(events/accident)",null,null,null,null,null,null,null,null,null,null,null,null,null,null,null,null,22,1.8834,470.21210000000002,0.1656,3.5999999999999999E-3,4.7000000000000002E-3,8.4500000000000006E-2,null,null,null,null,22,0.58550000000000002,263.41989999999998,3.8300000000000001E-2,1.5E-3,2.5999999999999999E-3,3.1600000000000003E-2,null,null,null,null,null,null,null,null,null,null,null,null,null,null,null,null,425,750,750,750,null,null,null,425,0.93200000000000005,0.73399999999999999,null,null,null,null,3.4000000000000002E-2,0.498,0.73399999999999999]
[null,null,null,"Incident-Related Travel",3,"times",null,7,null,"HOV Lanes",null,0.55000000000000004,8,1600,null,null,18,null,null,"Percentage of Cycling Trips with Return Trips",0.95,"%",null,19,null,"    On-Ramp Widening",false,"OnRamp","Enter on-ramp volume & metering strategy",null,null,null,18,0.98500000000000021,0.98500000000000021,0.98500000000000021,0.98500000000000021,0.98500000000000021,0.98500000000000021,null,null,null,null,24,4.0099999999999997E-2,8.6800000000000002E-2,null,null,null,null,null,null,null,null,null,null,null,"Source: FTA, Transit Safety & Security Statistics, 2002 to 2011 average",null,null,null,null,null,null,null,null,null,23,1.8297000000000001,452.75330000000002,0.16109999999999999,3.3999999999999998E-3,4.4999999999999997E-3,7.9399999999999998E-2,null,null,null,null,23,0.57369999999999999,253.63130000000001,3.7600000000000001E-2,1.5E-3,2.5000000000000001E-3,2.9899999999999999E-2,null,null,null,null,null,null,null,null,null,null,null,null,null,null,null,null,450,750,750,750,null,null,null,450,0.92300000000000004,0.70899999999999996,null,null,null,null,3.5999999999999997E-2,0.47599999999999998,0.70599999999999996]
[null,null,null,"Travel Time Uprater",0,"annual incr",null,null,null,null,null,null,null,null,null,null,null,null,null,"Percentage of Pedestrian Trips with Return Trips",0.9,"%",null,19,null,"    HOV-2 to HOV-3 Conv",false,"HOV2to3","Check AVOs & trips in sections 1B & 2D ",null,null,null,19,0.99100000000000021,0.99100000000000021,0.99100000000000021,0.99100000000000021,0.99100000000000021,0.99100000000000021,null,null,null,null,25,3.8399999999999997E-2,8.2100000000000006E-2,null,null,null,null,"Accident Type","Urban","Suburban","Rural","Average",null,null,null,null,null,null,null,null,null,null,null,null,24,1.776,435.29450000000003,0.15659999999999999,3.2000000000000002E-3,4.4000000000000003E-3,7.4399999999999994E-2,null,null,null,null,24,0.56189999999999996,243.8426,3.6900000000000002E-2,1.4E-3,2.3999999999999998E-3,2.8199999999999999E-2,null,null,null,null,"LIGHT RAIL EMISSIONS FACTORS",null,null,null,null,null,null,null,null,null,null,null,null,null,null,null,null,null,null,null,null,null,null,null,null,null,3.7999999999999999E-2,0.47299999999999998,0.67800000000000005,null,null,null,null,"TRANSIT TRAVEL TIME AND AGENCY COST SAVINGS"]
[null,null,null,null,null,null,null,null,null,null,null,null,null,"Capacity",null,null,null,null,null,"Diversion of Cyclists from Personal Vehicles",0.5,"assumption",null,null,null,"    HOT Lane Conversion",false,"HOTConv","Check AVOs & trips in sections 1B & 2D ",null,null,null,20,0.99400000000000022,0.99400000000000022,0.99400000000000022,0.99400000000000022,0.99400000000000022,0.99400000000000022,null,null,null,null,26,3.7400000000000003E-2,8.0399999999999999E-2,null,null,null,null,"Fatal Accident",0.81,0.82,1.1200000000000001,0.95,null,null,null,null,null,null,null,null,null,null,null,null,25,1.7222999999999999,417.8356,0.1522,3.0000000000000001E-3,4.1999999999999997E-3,6.93E-2,null,null,null,null,25,0.55020000000000002,234.054,3.6200000000000003E-2,1.2999999999999999E-3,2.3E-3,2.64E-2,null,null,null,null,"(g/veh-mile)",null,null,null,null,null,null,null,null,null,null,null,null,null,null,null,null,null,null,null,null,null,null,null,null,null,0.04,0.47099999999999997,0.65,null,null,null,null,"(percent savings)"]
[null,"Vehicle Operating Cost Parameters",null,null,null,null,null,null,null,"Non-HOV Lanes",null,"Alpha","Beta","(vphpl)",null,null,null,null,null,"Diversion of Pedestrians from Personal Vehicles",0.5,"assumption",null,null,null,null,null,null,null,null,null,null,21,0.99700000000000022,0.99700000000000022,0.99700000000000022,0.99700000000000022,0.99700000000000022,0.99700000000000022,null,null,null,null,27,3.6299999999999999E-2,7.8799999999999995E-2,null,null,null,null,"Injury Accident",1.44,1.43,1.5,1.44,null,null,null,null,null,null,null,null,null,null,null,null,26,1.6875,406.01639999999998,0.14990000000000001,2.8999999999999998E-3,4.1000000000000003E-3,6.6500000000000004E-2,null,null,null,null,26,0.53949999999999998,227.3537,3.56E-2,1.1999999999999999E-3,2.3E-3,2.53E-2,null,null,null,null,null,null,null,null,null,null,null,null,null,null,null,"Source: Paterson, 1987",null,null,null,null,null,null,"Source: Botterill, 1996 and 1997",null,null,null,null,null,null,null,4.2000000000000003E-2,0.46800000000000003,0.623]
[null,null,null,null,null,null,null,null,null,null,"No Build",null,null,null,null,null,null,null,null,null,null,null,null,null,null,"Transp Mgmt Systems (TMS)",null,null,"Please select a type of TMS project",null,null,null,22,0.99800000000000022,0.99800000000000022,0.99800000000000022,0.99800000000000022,0.99800000000000022,0.99800000000000022,null,null,null,null,28,3.5200000000000002E-2,7.7100000000000002E-2,null,null,null,null,null,null,null,null,null,null,null,null,"COSTS OF TRANSIT ACCIDENTS",null,null,null,null,null,null,null,null,27,1.6528,394.19709999999998,0.14760000000000001,2.7000000000000001E-3,4.0000000000000001E-3,6.3700000000000007E-2,null,null,null,null,27,0.52890000000000004,220.65350000000001,3.49E-2,1.1999999999999999E-3,2.2000000000000001E-3,2.4199999999999999E-2,null,null,null,null,"Mode","Year","CO","CO2","NOX","PM10","SOX","VOC",null,null,null,null,null,null,null,null,null,null,null,null,null,null,null,null,null,null,4.3999999999999997E-2,0.46600000000000003,0.59499999999999997,null,null,null,null,null,null,null,"Travel","Agency Costs"]
[null,null,"Average Fuel Price",null,null,null,null,null,null,null,"Build",null,null,null,null,null,null,null,"Value of Travel Time",null,null,null,null,null,null,"    Ramp Metering",{"$f":"IF(ProjType=Z36,TRUE)","v":false},"RM","Enter model data, if avail, in sections 2A & 2C",null,null,null,23,0.99900000000000022,0.99900000000000022,0.99900000000000022,0.99900000000000022,0.99900000000000022,0.99900000000000022,null,null,null,null,29,3.4099999999999998E-2,7.5499999999999998E-2,null,null,null,null,null,null,null,null,null,null,null,null,"($/million veh-mi)",null,null,null,null,null,null,null,null,28,1.6180000000000001,382.37779999999998,0.14530000000000001,2.5999999999999999E-3,3.8E-3,6.0900000000000003E-2,null,null,null,null,28,0.51819999999999999,213.95320000000001,3.4299999999999997E-2,1.1000000000000001E-3,2.0999999999999999E-3,2.3099999999999999E-2,null,null,null,null,"Light Rail",2002,{"$f":"CN28/CS28*CS36","v":0.13888494678155094},null,1.1299999999999999,0.17,null,0.06,null,null,null,null,null,null,null,null,null,null,null,null,null,null,null,null,null,null,4.5999999999999999E-2,0.46300000000000002,0.56699999999999995,null,null,null,null,"TMS Strategy",null,null,"Time","Capital","O&M"]
[null,null,null,"Automobile (regular unleaded)",{"$f":"AVERAGE(3.449,2.901)*ValueUpdate","v":3.1749999999999998},"$/gal",null,8,null,null,null,null,null,null,null,null,null,null,null,"Adults",{"$f":"ValTimeAuto","v":13.65},"$/hr/per",null,null,null,"    Ramp Metering Signal Coord",false,"AM","Enter model data, if avail, in sections 2A & 2C",null,null,null,24,1.0000000000000002,1.0000000000000002,1.0000000000000002,1.0000000000000002,1.0000000000000002,1.0000000000000002,null,null,null,null,30,3.3000000000000002E-2,7.3800000000000004E-2,null,null,null,null,"NUMBER OF VEHICLES INVOLVED",null,null,null,null,null,null,null,null,null,null,null,null,null,null,null,null,29,1.5832999999999999,370.55849999999998,0.14299999999999999,2.5000000000000001E-3,3.7000000000000002E-3,5.8000000000000003E-2,null,null,null,null,29,0.50760000000000005,207.25299999999999,3.3700000000000001E-2,1E-3,2.0999999999999999E-3,2.1899999999999999E-2,null,null,null,null,null,2022,{"$f":"CN29/CS29*CS37","v":0.13888494678155094},null,1.1399999999999999,0.17,null,0.06,null,null,null,null,null,null,null,null,null,null,null,null,null,null,null,null,null,null,4.8000000000000001E-2,0.46,0.54,null,null,null,null,"Transit Vehicle Location (AVL)",null,null,0.15,0.02,0.08]
[null,null,null,"Truck (diesel)",{"$f":"AVERAGE(3.19,2.81)*ValueUpdate","v":3},"$/gal",null,8,null,null,null,null,null,null,null,null,null,null,null,"Children",{"$f":"ValTimeAuto","v":13.65},"$/hr/per",null,null,null,"    Incident Management",false,"IM","Enter model data, if avail, in sections 2A & 2C",null,null,null,null,null,null,null,null,null,null,null,null,null,null,31,3.2300000000000002E-2,7.4999999999999997E-2,null,null,null,null,"(events/accident)",null,null,null,null,null,null,null,"Value","Pass Train","Light Rail","Bus",null,null,null,null,null,30,1.5486,358.73919999999998,0.14069999999999999,2.3E-3,3.5999999999999999E-3,5.5199999999999999E-2,null,null,null,null,30,0.497,200.55269999999999,3.3099999999999997E-2,1E-3,2E-3,2.0799999999999999E-2,null,null,null,null,null,null,null,null,null,null,null,null,null,null,null,null,"FUEL CONSUMPTION",null,null,null,null,null,null,"NON-FUEL COSTS",null,null,null,null,null,null,0.05,0.45800000000000002,0.51200000000000001,null,null,null,null,"Transit Vehicle Signal Priority",null,null,0.1,"-","-"]
[null,null,null,null,null,null,null,null,"Sources: 16) Highway Capacity Manual, 17) NCHRP 387, 18) PeMS data",null,null,null,null,null,null,null,null,null,null,null,null,null,null,null,null,"    Traveler Information",false,"TI","Enter model data, if avail, in sections 2A & 2C",null,null,null,null,null,null,null,null,null,null,null,null,null,null,32,3.1600000000000003E-2,7.6300000000000007E-2,null,null,null,null,null,null,null,null,null,null,null,null,"Cost",{"$f":"ROUND(BH12*BH26+BH13*BH27+BH14*BH28,-2)","v":611200},{"$f":"ROUND(BI12*BI26+BI13*BI27+BI14*BI28,-2)","v":3209500},{"$f":"ROUND(BJ12*BJ26+BJ13*BJ27+BJ14*BJ28,-2)","v":1011600},null,null,null,null,null,31,1.5319,351.41640000000001,0.1404,2.3E-3,3.5000000000000001E-3,5.3800000000000001E-2,null,null,null,null,31,0.49059999999999998,196.37790000000001,3.3000000000000002E-2,1E-3,2E-3,2.01E-2,null,null,null,null,null,null,null,null,null,null,null,null,null,null,null,null,"(percent adjustment)",null,null,null,null,null,null,"(percent adjustment)",null,null,null,null,null,null,5.1999999999999998E-2,0.45500000000000002,0.48399999999999999,null,null,null,null,"Bus Rapid Transit (BRT)",null,null,0.28999999999999998,"-","-"]
[null,null,"Sales and Fuel Taxes",null,null,null,null,null,null,null,null,null,null,null,null,null,null,null,"Cycling Journey Quality - Facility Preference Factors as Function of Distance by Facility Class",null,null,null,null,null,null,"    Arterial Signal Management",false,"ASM","Complete only sections 1A, 1E & 2C",null,null,"Source: California Department of Transportation, 2010-2012 California Household Travel",null,null,null,null,null,null,null,null,null,null,null,33,3.1E-2,7.7399999999999997E-2,null,null,null,null,"Accident Type","Urban","Suburban","Rural","Average",null,null,null,null,null,null,null,null,null,null,null,null,32,1.5153000000000001,344.09350000000001,0.14000000000000001,2.2000000000000001E-3,3.5000000000000001E-3,5.2499999999999998E-2,null,null,null,null,32,0.48420000000000002,192.20310000000001,3.2800000000000003E-2,8.9999999999999998E-4,1.9E-3,1.9400000000000001E-2,null,null,null,"Source: California Air Resources Board",null,null,null,null,null,null,null,null,null,null,null,null,null,null,null,null,null,null,null,null,null,null,null,null,null,null,5.3999999999999999E-2,0.45300000000000001,0.47599999999999998]
[null,null,null,"State Sales Tax (gasoline)",2.2499999999999999E-2,"%",null,9,null,null,null,null,null,null,null,null,null,null,null,"Class I",0.56999999999999995,"-",null,20,null,"    Transit Vehicle Location (AVL)",false,"AVL","Enter transit agency costs in section 1D",null,null,"Survey, Final Report Appendix, June 2013",null,null,null,null,null,null,null,null,null,null,null,34,3.0300000000000001E-2,7.8600000000000003E-2,null,null,null,null,"Fatal Accident",1.51,1.69,1.58,1.63,null,null,null,null,null,null,null,null,null,null,null,null,33,1.4986999999999999,336.7706,0.1396,2.0999999999999999E-3,3.3999999999999998E-3,5.11E-2,null,null,null,null,33,0.47789999999999999,188.0283,3.27E-2,8.9999999999999998E-4,1.9E-3,1.8700000000000001E-2,null,null,null,null,null,null,null,null,null,null,null,null,null,null,null,null,"IRI","Auto","Truck",null,null,null,null,"IRI","Auto","Truck",null,null,null,null,5.6000000000000001E-2,0.45300000000000001,0.47399999999999998]
[null,null,null,"State Sales Tax (diesel)",{"$f":"5.75%+1.75%","v":7.5000000000000011E-2},"%",null,9,null,null,null,null,null,null,null,null,null,null,null,"Class II",0.49,"-",null,20,null,"    Transit Vehicle Signal Priority",false,"SigPriority","Check travel time in section 1D",null,null,null,null,null,null,null,null,null,null,null,null,null,null,35,2.9600000000000001E-2,7.9899999999999999E-2,null,null,null,null,"Injury Accident",1.82,2.1,1.59,1.99,null,null,"Source: Combination of above two tables",null,null,null,null,null,null,null,null,null,34,1.4821,329.44779999999997,0.13919999999999999,2E-3,3.3E-3,4.9700000000000001E-2,null,null,null,null,34,0.47149999999999997,183.8535,3.2500000000000001E-2,8.9999999999999998E-4,1.8E-3,1.8100000000000002E-2,null,null,null,null,null,null,null,null,null,null,null,null,null,null,null,null,0,0.97099999999999997,0.96099999999999997,null,null,null,null,0,1,1,null,null,null,null,5.8000000000000003E-2,0.45300000000000001,0.47299999999999998,null,null,null,"Sources: FHWA ITS Deployment Analysis System (IDAS), California PATH"]
[null,null,null,"Average Local Sales Tax",5.0000000000000001E-3,"%",null,9,null,null,null,null,null,null,null,null,null,null,null,"Class III",0.92,"-",null,20,null,"    Bus Rapid Transit (BRT)",false,"BRT","Enter free-flow bus lane speed in section 1B",null,null,null,null,null,null,null,null,null,null,null,null,null,null,36,2.92E-2,7.9600000000000004E-2,null,null,null,null,"PDO Accident",1.8,2.0299999999999998,1.59,1.96,null,null,null,null,null,null,null,null,null,null,null,null,35,1.4654,322.12490000000003,0.1389,2E-3,3.2000000000000002E-3,4.8300000000000003E-2,null,null,null,null,35,0.4652,179.67869999999999,3.2399999999999998E-2,8.0000000000000004E-4,1.8E-3,1.7399999999999999E-2,null,null,null,null,null,null,null,null,null,null,null,null,null,null,null,null,25,0.97699999999999998,0.96499999999999997,null,null,null,null,25,1,1,null,null,null,null,0.06,0.45300000000000001,0.47099999999999997]
[null,null,null,"Federal Fuel Excise Tax (gasoline)",0.184,"$/gal",null,9,null,null,null,null,null,null,null,null,null,null,null,"Class IV",{"$f":"CLASS2MRS","v":0.49},"-",null,20,null,null,null,null,null,null,null,null,null,null,null,null,null,null,null,null,null,null,null,37,2.8799999999999999E-2,7.9399999999999998E-2,null,null,null,null,null,null,null,null,null,null,null,null,null,null,null,null,null,null,null,null,null,36,1.4530000000000001,317.70389999999998,0.1389,1.9E-3,3.2000000000000002E-3,4.7500000000000001E-2,null,null,null,null,36,0.45900000000000002,177.15270000000001,3.2199999999999999E-2,8.0000000000000004E-4,1.8E-3,1.6899999999999998E-2,null,null,null,null,null,null,null,null,null,null,null,null,null,null,null,null,50,0.98,0.97,null,null,null,null,50,1,1,null,null,null,null,6.2E-2,0.45300000000000001,0.46899999999999997]
[null,null,null,"Federal Fuel Excise Tax (diesel)",0.24399999999999999,"$/gal",null,9,null,null,null,null,null,null,null,null,null,null,null,"Note: Class IV assumed to be the same as Class II",null,null,null,null,null,"    TMS Lookup Code",null,"TMSLookup",null,null,null,null,null,null,null,null,null,null,null,null,null,null,null,38,2.8400000000000002E-2,7.9200000000000007E-2,null,null,null,null,null,null,null,null,null,null,null,null,null,null,null,null,null,null,null,null,null,37,1.4406000000000001,313.28300000000002,0.13900000000000001,1.9E-3,3.2000000000000002E-3,4.6699999999999998E-2,null,null,null,null,37,0.45279999999999998,174.6268,3.2000000000000001E-2,8.0000000000000004E-4,1.8E-3,1.6500000000000001E-2,null,null,null,null,null,null,null,null,null,null,null,null,null,null,null,null,75,0.98199999999999998,0.97499999999999998,null,null,null,null,75,1,1,null,null,null,null,6.4000000000000001E-2,0.45300000000000001,0.46700000000000003]
[null,null,null,"State Fuel Excise Tax (gasoline)",{"$f":"0.18+0.098","v":0.27800000000000002},"$/gal",null,9,null,null,null,null,null,null,null,null,null,null,null,null,null,null,null,null,null,"    User Modified Inputs",null,"UserAdjInputs",null,null,null,null,"AGE COHORTS FOR MORTALITY RISK REDUCTION",null,null,null,null,null,null,null,null,null,null,39,2.8000000000000001E-2,7.9000000000000001E-2,null,null,null,null,"DISTRIBUTION OF ACCIDENT TYPES",null,null,null,null,null,null,null,"HIGHWAY-RAIL GRADE CROSSING INCIDENTS",null,null,null,null,null,null,null,null,38,1.4281999999999999,308.8621,0.1391,1.8E-3,3.0999999999999999E-3,4.58E-2,null,null,null,null,38,0.4466,172.10079999999999,3.1800000000000002E-2,8.0000000000000004E-4,1.6999999999999999E-3,1.6E-2,null,null,null,null,null,null,null,null,null,null,null,null,null,null,null,null,100,0.98499999999999999,0.98,null,null,null,null,100,1,1,null,null,null,null,6.6000000000000003E-2,0.45300000000000001,0.46600000000000003]
[null,null,null,"State Fuel Excise Tax (diesel)",0.16,"$/gal",null,9,null,null,null,null,null,null,null,null,null,null,"Walking Journey Quality Values per Mile by Amentity",null,null,null,null,null,null,null,null,null,null,null,null,null,"(percent of population)",null,null,null,null,null,null,null,null,null,null,40,2.76E-2,7.8799999999999995E-2,null,null,null,null,"(percent of accidents)",null,null,null,null,null,null,null,"(units in table)",null,null,null,null,null,null,null,null,39,1.4157,304.44110000000001,0.13919999999999999,1.8E-3,3.0999999999999999E-3,4.4999999999999998E-2,null,null,null,null,39,0.4405,169.57480000000001,3.1600000000000003E-2,6.9999999999999999E-4,1.6999999999999999E-3,1.5599999999999999E-2,null,null,null,null,null,null,null,null,null,null,null,null,null,null,null,null,125,0.99,0.98599999999999999,null,null,null,null,125,1,1,null,null,null,null,6.8000000000000005E-2,0.45300000000000001,0.46400000000000002]
[null,null,null,null,null,null,null,null,null,null,null,null,null,null,null,null,null,null,null,"Street Lighting ",0.11,"$/mi",null,22,null,null,null,null,null,null,null,null,null,null,null,null,null,null,null,null,null,null,null,41,2.7400000000000001E-2,7.9600000000000004E-2,null,null,null,null,null,null,null,null,null,null,null,null,null,null,null,null,null,null,null,null,null,40,1.4033,300.02019999999999,0.13919999999999999,1.6999999999999999E-3,3.0000000000000001E-3,4.4200000000000003E-2,null,null,null,null,40,0.43430000000000002,167.0488,3.1399999999999997E-2,6.9999999999999999E-4,1.6999999999999999E-3,1.52E-2,null,null,null,null,null,null,null,null,null,null,null,null,null,null,null,null,150,0.995,0.99299999999999999,null,null,null,null,150,1.0169999999999999,1.018,null,null,null,null,7.0000000000000007E-2,0.45300000000000001,0.46200000000000002]
[null,null,"Fuel Cost Per Gallon (Exclude Taxes)",null,null,null,null,null,null,null,null,null,null,null,null,null,null,null,null,"Curb Level ",7.8E-2,"$/mi",null,22,null,null,null,null,null,null,null,null,null,null,null,"Urban",null,null,null,null,null,null,null,42,2.7199999999999998E-2,8.0399999999999999E-2,null,null,null,null,"Accident Type","Urban","Suburban","Rural","Average",null,null,null,"Value","Incident","Fatality","Injury",null,null,null,null,null,41,1.393,297.83789999999999,0.1396,1.6999999999999999E-3,3.0000000000000001E-3,4.3900000000000002E-2,null,null,null,null,41,0.43059999999999998,165.86429999999999,3.1399999999999997E-2,6.9999999999999999E-4,1.6999999999999999E-3,1.4999999999999999E-2,null,null,null,null,null,null,null,null,null,null,null,null,null,null,null,null,175,1,1,null,null,null,null,175,1.034,1.038,null,null,null,null,7.1999999999999995E-2,0.45300000000000001,0.46]
[null,null,null,"Automobile",{"$f":"ROUND((FuelPriceAuto/(1+SalesTaxGasState+SalesTaxLocal)-ExciseTaxGasFed-ExciseTaxGasState)/5,2)*5","v":2.6500000000000004},"$/gal",null,null,null,null,null,null,null,null,null,null,null,null,null,"Crowding ",5.5E-2,"$/mi",null,22,null,null,null,null,null,null,null,null,"Mode","Age Cohort",null,"South","North","Rural",null,null,null,null,null,43,2.7E-2,8.1199999999999994E-2,null,null,null,null,"Fatal Accident",1.18E-2,4.4999999999999997E-3,1.9199999999999998E-2,7.1000000000000004E-3,null,null,null,"Total Events",799,94,515,null,null,null,null,null,42,1.3827,295.65559999999999,0.1399,1.6999999999999999E-3,3.0000000000000001E-3,4.3499999999999997E-2,null,null,null,null,42,0.4269,164.6798,3.1399999999999997E-2,6.9999999999999999E-4,1.6999999999999999E-3,1.49E-2,null,null,null,null,null,null,null,null,null,null,null,null,null,null,null,null,200,1.0049999999999999,1.0069999999999999,null,null,null,null,200,1.052,1.0580000000000001,null,null,null,null,7.3999999999999996E-2,0.45300000000000001,0.45900000000000002]
[null,null,null,"Truck",{"$f":"ROUND((FuelPriceTruck/(1+SalesTaxDieselState)-ExciseTaxDieselFed-ExciseTaxDieselState)/5,2)*5","v":2.4},"$/gal",null,null,null,null,null,null,null,null,null,null,null,null,null,"Pavement Evenness ",2.5999999999999999E-2,"$/mi",null,22,null,null,null,null,null,null,null,null,"Cycling","Age 16-64",null,0.70499999999999996,0.73399999999999999,0.66,null,null,null,null,null,44,2.6800000000000001E-2,8.2000000000000003E-2,null,null,null,null,"Injury Accident",0.3493,0.33090000000000003,0.38250000000000001,0.33979999999999999,null,null,null,"Avg per Incident",null,{"$f":"ROUND(BI50/BH50,4)","v":0.1176},{"$f":"ROUND(BJ50/BH50,4)","v":0.64459999999999995},null,null,null,null,null,43,1.3724000000000001,293.47340000000003,0.14019999999999999,1.6999999999999999E-3,3.0000000000000001E-3,4.3200000000000002E-2,null,null,null,null,43,0.42320000000000002,163.49529999999999,3.1399999999999997E-2,6.9999999999999999E-4,1.6000000000000001E-3,1.4800000000000001E-2,null,null,null,null,null,null,null,null,null,null,null,null,null,null,null,null,225,1.012,1.0169999999999999,null,null,null,null,225,1.07,1.0780000000000001,null,null,null,null,7.5999999999999998E-2,0.45300000000000001,0.45700000000000002]
[null,null,null,null,null,null,null,null,null,null,null,null,null,null,null,null,null,null,null,"Information Panels ",2.5999999999999999E-2,"$/mi",null,22,null,null,null,null,null,null,null,null,"Walking","Age 16-74",null,0.76200000000000001,0.80700000000000005,0.7,null,null,null,null,null,45,2.6599999999999999E-2,8.2799999999999999E-2,null,null,null,null,"PDO Accident",0.63890000000000002,0.66449999999999998,0.59830000000000005,0.65310000000000001,null,null,null,"Cost per Event",null,{"$f":"BH26","v":9800000},{"$f":"BH27","v":180500},null,null,null,null,null,44,1.3621000000000001,291.29109999999997,0.14050000000000001,1.6000000000000001E-3,2.8999999999999998E-3,4.2900000000000001E-2,null,null,null,null,44,0.41949999999999998,162.3108,3.15E-2,6.9999999999999999E-4,1.6000000000000001E-3,1.47E-2,null,null,null,null,null,null,null,null,null,null,null,null,null,null,null,null,250,1.0189999999999999,1.026,null,null,null,null,250,1.0880000000000001,1.097,null,null,null,null,7.8E-2,0.45300000000000001,0.45500000000000002]
[null,null,"Non-Fuel Cost Per Mile",null,null,null,null,null,null,null,null,null,null,null,null,null,null,null,null,"Benches ",1.7000000000000001E-2,"$/mi",null,22,null,null,null,null,null,null,null,null,null,null,null,null,null,null,null,null,null,null,null,46,2.6599999999999999E-2,8.2600000000000007E-2,null,null,null,null,null,null,null,null,null,null,null,null,null,null,null,null,null,null,null,null,null,45,1.3517999999999999,289.10879999999997,0.14080000000000001,1.6000000000000001E-3,2.8999999999999998E-3,4.2500000000000003E-2,null,null,null,null,45,0.4158,161.12629999999999,3.15E-2,6.9999999999999999E-4,1.6000000000000001E-3,1.4500000000000001E-2,null,null,null,null,null,null,null,null,null,null,null,null,null,null,null,null,275,1.0269999999999999,1.036,null,null,null,null,275,1.105,1.117,null,null,null,null,0.08,0.45300000000000001,0.45300000000000001]
[null,null,null,"Automobile",{"$f":"ROUND((0.0528+0.01+0.2506)*ValueUpdate,3)","v":0.313},"$/mi",null,10,null,null,null,null,null,null,null,null,null,null,null,"Directional Signage ",1.7000000000000001E-2,"$/mi",null,22,null,null,null,null,null,null,null,null,null,null,null,null,null,null,null,null,null,null,null,47,2.6599999999999999E-2,8.2400000000000001E-2,null,null,null,null,null,null,null,null,null,null,null,null,null,null,null,null,null,null,null,null,null,46,1.3461000000000001,289.16629999999998,0.1416,1.6000000000000001E-3,2.8999999999999998E-3,4.2500000000000003E-2,null,null,null,null,46,0.41210000000000002,161.14080000000001,3.15E-2,5.9999999999999995E-4,1.6000000000000001E-3,1.4500000000000001E-2,null,null,null,null,null,null,null,null,null,null,null,null,null,null,null,null,300,1.034,1.0469999999999999,null,null,null,null,300,1.123,1.137]
[null,null,null,"Truck",{"$f":"ROUND((0.158+0.044+0.215)*(1.1164/1.0843)*ValueUpdate,3)","v":0.42899999999999999},"$/mi",null,11,null,null,null,null,null,null,null,null,null,null,null,null,null,null,null,null,null,null,null,null,null,null,null,null,"AVERAGE DISTANCE PER ACTIVE TRANSPORTATION TRIP",null,null,null,null,null,null,null,null,null,null,48,2.6599999999999999E-2,8.2100000000000006E-2,null,null,null,"Source: California Department of Transportation,TASAS Unit, 2010 to 2013 average",null,null,null,null,null,null,null,"Source: FRA, Office of Safety Analysis, 5.10 - Hwy/Rail Incidents Summary",null,null,null,null,null,null,null,null,null,47,1.3403,289.22379999999998,0.1424,1.6000000000000001E-3,2.8999999999999998E-3,4.2599999999999999E-2,null,null,null,null,47,0.4083,161.15520000000001,3.15E-2,5.9999999999999995E-4,1.6000000000000001E-3,1.44E-2,null,null,null,null,null,null,null,null,null,null,null,null,null,null,null,null,325,1.0409999999999999,1.0580000000000001,null,null,null,null,325,1.141,1.1559999999999999]
[null,null,null,null,null,null,null,null,null,null,null,null,null,null,null,null,null,null,"Health (Absenteeism Reduction)",null,null,null,null,null,null,null,null,null,null,null,null,null,"(miles/trip)",null,null,null,null,null,null,null,null,null,null,49,2.6599999999999999E-2,8.1900000000000001E-2,null,null,null,null,null,null,null,null,null,null,null,null,"Table, California, Motor Vehicles, Public Crossings, Jan 2007 to Dec 2016",null,null,null,null,null,null,null,null,48,1.3346,289.28129999999999,0.14319999999999999,1.6000000000000001E-3,2.8999999999999998E-3,4.2599999999999999E-2,null,null,null,null,48,0.40460000000000002,161.16970000000001,3.1600000000000003E-2,5.9999999999999995E-4,1.6000000000000001E-3,1.43E-2,null,null,null,null,null,null,null,null,null,null,null,null,null,null,null,null,350,1.05,1.07,null,null,null,null,350,1.159,1.1759999999999999,null,null,null,"Source: Fitzpatrick, Brewer, and Venglar, 2003"]
[null,null,"Idling Speed for Op. Costs and Emissions",null,5,"mph",null,null,null,null,null,null,null,null,null,null,null,null,null,"Average Absence of Employees",3.6,"days/yr",null,23,null,null,null,null,null,null,null,null,null,null,null,null,null,null,null,null,null,null,null,50,2.6599999999999999E-2,8.1699999999999995E-2,null,null,null,null,null,null,null,null,null,null,null,null,null,null,null,null,null,null,null,null,null,49,1.3288,289.33879999999999,0.14399999999999999,1.6000000000000001E-3,2.8999999999999998E-3,4.2599999999999999E-2,null,null,null,null,49,0.40089999999999998,161.1841,3.1600000000000003E-2,5.9999999999999995E-4,1.6000000000000001E-3,1.43E-2,null,null,null,null,null,null,null,null,null,null,null,null,null,null,null,null,375,1.0609999999999999,1.085,null,null,null,null,375,1.1759999999999999,1.196]
[null,null,null,null,null,null,null,null,null,null,null,null,null,null,null,null,null,null,null,"Percentage Covered by Short-Term Sick Leave",0.95,"%",null,24,null,null,null,null,null,null,null,null,null,null,null,"Urban",null,null,null,null,null,null,null,51,2.6800000000000001E-2,8.2600000000000007E-2,null,null,null,null,null,null,null,null,null,null,null,null,null,null,null,null,null,null,null,null,null,50,1.3230999999999999,289.39620000000002,0.14480000000000001,1.6000000000000001E-3,2.8999999999999998E-3,4.2599999999999999E-2,null,null,null,null,50,0.39710000000000001,161.1986,3.1699999999999999E-2,5.9999999999999995E-4,1.6000000000000001E-3,1.4200000000000001E-2,null,null,null,null,null,null,null,null,null,null,null,null,null,null,null,null,400,1.0720000000000001,1.1000000000000001,null,null,null,null,400,1.194,1.216]
[null,"Accident Cost Parameters",null,null,null,null,null,null,null,null,null,null,null,null,null,null,null,null,null,"Percentage of Sick Days Reduced When Active at Least 30 Minutes per Day",0.06,"%",null,25,null,null,null,null,null,null,null,null,"Mode","Age Cohort",null,"South","North","Rural",null,null,null,null,null,52,2.7E-2,8.3400000000000002E-2,null,null,null,null,null,null,null,null,null,null,null,null,null,null,null,null,null,null,null,null,null,51,1.3173999999999999,291.46409999999997,0.1457,1.6000000000000001E-3,2.8999999999999998E-3,4.2900000000000001E-2,null,null,null,null,51,0.39340000000000003,162.3502,3.1600000000000003E-2,5.9999999999999995E-4,1.6000000000000001E-3,1.4200000000000001E-2,null,null,null,null,null,null,null,null,null,null,null,null,null,null,null,null,425,1.0820000000000001,1.1140000000000001,null,null,null,null,425,1.212,1.2350000000000001]
[null,null,null,null,null,null,null,null,null,null,null,null,null,null,null,null,null,null,null,null,null,null,null,null,null,null,null,null,null,null,null,null,"Cycling","Adults",null,2.5099999999999998,2.21,2.48,null,null,null,null,null,53,2.7199999999999998E-2,8.4199999999999997E-2,null,null,null,null,"COST OF HIGHWAY ACCIDENTS",null,null,null,null,null,null,null,"PASSING LANE ACCIDENT REDUCTION FACTORS",null,null,null,null,null,null,null,null,52,1.3117000000000001,293.53210000000001,0.14660000000000001,1.6000000000000001E-3,3.0000000000000001E-3,4.3099999999999999E-2,null,null,null,null,52,0.38969999999999999,163.50190000000001,3.1600000000000003E-2,5.9999999999999995E-4,1.6000000000000001E-3,1.43E-2,null,null,null,null,null,null,null,null,null,null,null,null,null,null,null,null,450,1.093,1.129,null,null,null,null,450,1.23,1.2549999999999999]
[null,null,"Cost of a Fatality",null,{"$f":"ROUND(9600000*(1.1164/1.099)*ValueUpdate,-5)","v":9800000},"$/event",null,12,null,null,null,null,null,null,null,null,null,null,"Health (Mortality Reduction)",null,null,null,null,null,null,null,null,null,null,null,null,null,null,"Children <16",null,1.57,1.1000000000000001,1.1200000000000001,null,null,null,null,null,54,2.7400000000000001E-2,8.5000000000000006E-2,null,null,null,null,"($/accident)",null,null,null,null,null,null,null,"(rate with passing lane/rate without passing lane)",null,null,null,null,null,null,null,null,53,1.3061,295.60000000000002,0.14760000000000001,1.6000000000000001E-3,3.0000000000000001E-3,4.3400000000000001E-2,null,null,null,null,53,0.38590000000000002,164.65360000000001,3.1600000000000003E-2,5.9999999999999995E-4,1.6000000000000001E-3,1.44E-2]
[null,null,null,null,null,null,null,null,null,null,null,null,null,null,null,null,null,null,null,"Percentage of Cyclists Aged 16-64",{"$f":"IF(ProjLoc=1,AJ51,IF(ProjLoc=2,AK51,AL51))","v":0.66},"%",null,26,null,null,null,null,null,null,null,null,"Walking","Adults",null,0.65,0.77,0.69,null,null,null,null,null,55,2.75E-2,8.5800000000000001E-2,null,null,null,null,null,null,null,null,null,null,null,null,null,null,null,null,null,null,null,null,null,54,1.3004,297.66789999999997,0.14849999999999999,1.6000000000000001E-3,3.0000000000000001E-3,4.3700000000000003E-2,null,null,null,null,54,0.38219999999999998,165.80520000000001,3.1600000000000003E-2,5.9999999999999995E-4,1.6999999999999999E-3,1.44E-2]
[null,null,"Cost of an Injury",null,null,null,null,null,null,null,null,null,null,null,null,null,null,null,null,"Percentage of Pedestrians Aged 16-74",{"$f":"IF(ProjLoc=1,AJ52,IF(ProjLoc=2,AK52,AL52))","v":0.7},"%",null,26,null,null,null,null,null,null,null,null,null,"Children <16",null,0.6,0.59,0.56999999999999995,null,null,null,null,null,56,2.7900000000000001E-2,8.3900000000000002E-2,null,null,null,null,"Accident Type","Urban","Suburban","Rural","Average",null,null,null,"Minimum ADT","Fatality","Injury","PDO",null,null,null,null,null,55,1.2947,299.73579999999998,0.14940000000000001,1.6999999999999999E-3,3.0000000000000001E-3,4.3900000000000002E-2,null,null,null,null,55,0.3785,166.95689999999999,3.1600000000000003E-2,5.9999999999999995E-4,1.6999999999999999E-3,1.4500000000000001E-2,null,null,null,null,null,null,null,null,null,null,null,null,null,null,null,"Source: Texas Transportation Institute, 1994",null,null,null,null,null,null,"Source: ARRB Research Board TR VOC Model"]
[null,null,null,"Level A (Severe)",{"$f":"ROUND(459120*(1.1164/1.099)*ValueUpdate,-2)","v":466400},"$/event",null,12,null,null,null,null,null,null,null,null,null,null,null,null,null,null,null,null,null,null,null,null,null,null,null,null,null,null,null,null,null,null,null,null,null,null,null,57,2.8299999999999999E-2,8.2000000000000003E-2,null,null,null,null,"Fatal Accident",{"$f":"ROUND(FatValue*AZ26+(InjAValue*AZ$12+InjBValue*AZ$13+InjCValue*AZ$14)*AZ33+NoInjValue*AZ41,-5)","v":10800000},{"$f":"ROUND(FatValue*BA26+(InjAValue*BA$12+InjBValue*BA$13+InjCValue*BA$14)*BA33+NoInjValue*BA41,-5)","v":10700000},{"$f":"ROUND(FatValue*BB26+(InjAValue*BB$12+InjBValue*BB$13+InjCValue*BB$14)*BB33+NoInjValue*BB41,-5)","v":11300000},{"$f":"ROUND(FatValue*BC26+(InjAValue*BC$12+InjBValue*BC$13+InjCValue*BC$14)*BC33+NoInjValue*BC41,-5)","v":11000000},null,null,null,0,0.25,0.69399999999999995,0.92600000000000005,null,null,null,null,null,56,1.2785,303.63299999999998,0.1482,1.6999999999999999E-3,3.0999999999999999E-3,4.3900000000000002E-2,null,null,null,null,56,0.37490000000000001,169.17850000000001,3.15E-2,6.9999999999999999E-4,1.6999999999999999E-3,1.47E-2]
[null,null,null,"Level B (Moderate)",{"$f":"ROUND(125050*(1.1164/1.099)*ValueUpdate,-2)","v":127000},"$/event",null,12,null,null,null,null,null,null,null,null,null,null,null,"Percentage Reduction in Mortality per 365 Annual Cycling Miles",4.4999999999999998E-2,"%",null,27,null,null,null,null,null,null,null,null,null,null,null,null,null,null,null,null,null,null,null,58,2.86E-2,8.0199999999999994E-2,null,null,null,null,"Injury Accident",{"$f":"ROUND((InjAValue*AZ$12+InjBValue*AZ$13+InjCValue*AZ$14)*AZ34+NoInjValue*AZ42,-2)","v":148800},{"$f":"ROUND((InjAValue*BA$12+InjBValue*BA$13+InjCValue*BA$14)*BA34+NoInjValue*BA42,-2)","v":148600},{"$f":"ROUND((InjAValue*BB$12+InjBValue*BB$13+InjCValue*BB$14)*BB34+NoInjValue*BB42,-2)","v":154200},{"$f":"ROUND((InjAValue*BC$12+InjBValue*BC$13+InjCValue*BC$14)*BC34+NoInjValue*BC42,-2)","v":149300},null,null,null,5000,0.192,0.80300000000000005,0.96499999999999997,null,null,null,null,null,57,1.2623,307.53019999999998,0.1469,1.6999999999999999E-3,3.0999999999999999E-3,4.3900000000000002E-2,null,null,null,null,57,0.37119999999999997,171.4,3.1399999999999997E-2,6.9999999999999999E-4,1.6999999999999999E-3,1.49E-2]
[null,null,null,"Level C (Minor)",{"$f":"ROUND(63854*(1.1164/1.099)*ValueUpdate,-2)","v":64900},"$/event",null,12,null,null,null,null,null,null,null,null,null,null,null,"Percentage Reduction in Mortality per 365 Annual Walking Miles",0.09,"%",null,27,null,null,null,null,null,null,null,null,"TRIP PURPOSE FOR ACTIVE TRANSPORTATION TRIPS",null,null,null,null,null,null,null,null,null,null,59,2.9000000000000001E-2,7.8299999999999995E-2,null,null,null,null,"PDO Accident",{"$f":"ROUND(NoInjValue*AZ43*2,-2)","v":9700},{"$f":"ROUND(NoInjValue*BA43*2,-2)","v":11000},{"$f":"ROUND(NoInjValue*BB43*2,-2)","v":8600},{"$f":"ROUND(NoInjValue*BC43*2,-2)","v":10600},null,null,null,10000,0.84,0.57699999999999996,0.97799999999999998,null,null,null,null,null,58,1.246,311.42739999999998,0.1457,1.6999999999999999E-3,3.0999999999999999E-3,4.3900000000000002E-2,null,null,null,null,58,0.36759999999999998,173.6216,3.1300000000000001E-2,6.9999999999999999E-4,1.6999999999999999E-3,1.5100000000000001E-2]
[null,null,null,null,null,null,null,null,null,null,null,null,null,null,null,null,null,null,null,null,null,null,null,null,null,null,null,null,null,null,null,null,"(percent of trips)",null,null,null,null,null,null,null,null,null,null,60,2.93E-2,7.6399999999999996E-2,null,null,null,null,"All Types",{"$f":"ROUND(AZ50*AZ64+AZ51*AZ65+AZ52*AZ66,-2)","v":185600},{"$f":"ROUND(BA50*BA64+BA51*BA65+BA52*BA66,-2)","v":104600},{"$f":"ROUND(BB50*BB64+BB51*BB65+BB52*BB66,-2)","v":281100},{"$f":"ROUND(BC50*BC64+BC51*BC65+BC52*BC66,-2)","v":135800},null,null,null,null,null,null,null,null,null,null,null,null,59,1.2298,315.32459999999998,0.14449999999999999,1.6999999999999999E-3,3.2000000000000002E-3,4.3900000000000002E-2,null,null,null,null,59,0.36399999999999999,175.8432,3.1199999999999999E-2,6.9999999999999999E-4,1.8E-3,1.52E-2]
[null,null,"Cost of Property Damage",null,{"$f":"ROUND(2444*(1.1164/1.0088)*ValueUpdate,-2)","v":2700},"$/event",null,13,null,null,null,null,null,null,null,null,null,null,null,"Morality Rate - All Causes (Aged 20-64)",266,"#/100,000 people",null,28,null,null,null,null,null,null,null,null,null,null,null,null,null,null,null,null,null,null,null,61,0.03,7.5600000000000001E-2,null,null,null,null,null,null,null,null,null,null,null,null,null,null,null,null,null,null,null,null,null,60,1.2136,319.2217,0.14319999999999999,1.6999999999999999E-3,3.2000000000000002E-3,4.3900000000000002E-2,null,null,null,null,60,0.36030000000000001,178.06469999999999,3.1099999999999999E-2,6.9999999999999999E-4,1.8E-3,1.54E-2]
[null,null,null,null,null,null,null,null,null,null,null,null,null,null,null,null,null,null,null,"Morality Rate - All Causes (Aged 20-74)",395,"#/100,000 people",null,28,null,null,null,null,null,null,null,null,null,null,null,"Urban",null,null,null,null,null,null,null,62,3.0599999999999999E-2,7.4899999999999994E-2,null,null,null,null,null,null,null,null,null,null,null,null,null,null,null,null,null,null,null,null,null,61,1.2210000000000001,326.28620000000001,0.1444,1.8E-3,3.3E-3,4.53E-2,null,null,null,null,61,0.3639,181.7269,3.2000000000000001E-2,6.9999999999999999E-4,1.8E-3,1.61E-2]
[null,null,"Cost of Highway Accident",null,null,null,null,null,null,null,null,null,null,null,null,null,null,null,null,null,null,null,null,null,null,null,null,null,null,null,null,null,"Mode","Trip Purpose",null,"South","North","Rural",null,null,null,null,null,63,3.1199999999999999E-2,7.4099999999999999E-2,null,null,null,"Source: Combination of above four tables",null,null,null,null,null,null,null,"Source: Taylor and Jain, 1991",null,null,null,null,null,null,null,null,null,62,1.2283999999999999,333.35070000000002,0.14549999999999999,1.8E-3,3.3E-3,4.6800000000000001E-2,null,null,null,null,62,0.36759999999999998,185.38910000000001,3.2899999999999999E-2,6.9999999999999999E-4,1.9E-3,1.6799999999999999E-2]
[null,null,null,"Fatal Accident",{"$f":"IF(ProjLoc=3,HwyFatCostR,HwyFatCostU)","v":10800000},"$/accident",null,null,null,null,null,null,null,null,null,null,null,null,null,null,null,null,null,null,null,null,null,null,null,null,null,null,"Cycling","Commuting",null,0.08,0.11,7.0000000000000007E-2,null,null,null,null,null,64,3.1899999999999998E-2,7.3400000000000007E-2,null,null,null,null,null,null,null,null,null,null,null,null,null,null,null,null,null,null,null,null,null,63,1.2358,340.41520000000003,0.1467,1.8E-3,3.3999999999999998E-3,4.8300000000000003E-2,null,null,null,null,63,0.37119999999999997,189.0513,3.3799999999999997E-2,6.9999999999999999E-4,1.9E-3,1.7500000000000002E-2]
[null,null,null,"Injury Accident",{"$f":"IF(ProjLoc=3,HwyInjCostR,HwyInjCostU)","v":148800},"$/accident",null,null,null,null,null,null,null,null,null,null,null,"Sources: 19) 2000-2001 California Statewide Travel Survey, 20) Hood et al., 2011, 21) WHO HEAT Model, 2012, 22) Heuman et al., 2005, ",null,null,null,null,null,null,null,null,null,null,null,null,null,null,null,"Recreation",null,0.15,0.13,0.15,null,null,null,null,null,65,3.2500000000000001E-2,7.2599999999999998E-2,null,null,null,null,null,null,null,null,null,null,null,null,null,null,null,null,null,null,null,null,null,64,1.2432000000000001,347.47969999999998,0.1479,1.8E-3,3.5000000000000001E-3,4.9700000000000001E-2,null,null,null,null,64,0.37480000000000002,192.71340000000001,3.4700000000000002E-2,8.0000000000000004E-4,1.9E-3,1.8200000000000001E-2]
[null,null,null,"PDO Accident",{"$f":"IF(ProjLoc=3,HwyPDOCostR,HwyPDOCostU)","v":9700},"$/accident",null,null,null,null,null,null,null,null,null,null,null,"23) CDC, 2007, 24) UK TAG, 2014, 25) WHO, 2003, 26) 2010-2012 California Household Transporation Survey, 27) WHO HEAT Model, 2016,",null,null,null,null,null,null,null,null,null,null,null,null,null,null,null,"Other Destination",null,0.77,0.76,0.78,null,null,null,null,null,66,3.3099999999999997E-2,7.6499999999999999E-2,null,null,null,null,null,null,null,null,null,null,null,null,null,null,null,null,null,null,null,null,null,65,1.2505999999999999,354.54419999999999,0.14899999999999999,1.9E-3,3.5999999999999999E-3,5.1200000000000002E-2,null,null,null,null,65,0.37840000000000001,196.37559999999999,3.56E-2,8.0000000000000004E-4,2E-3,1.89E-2]
[null,null,null,"Average Cost",{"$f":"IF(ProjLoc=3,AvgAccCostR,AvgAccCostU)","v":185600},"$/accident",null,null,null,null,null,null,null,null,null,null,null,"28) California Department of Health, 2010-2014 Death Rates, Table 5.2",null,null,null,null,null,null,null,null,null,null,null,null,null,null,"Walking","Commuting",null,0.05,0.09,0.04,null,null,null,null,null,67,3.3700000000000001E-2,8.0399999999999999E-2,null,null,null,null,null,null,null,null,null,null,null,null,null,null,null,null,null,null,null,null,null,66,1.2948,361.2833,0.15240000000000001,1.9E-3,3.5999999999999999E-3,5.3699999999999998E-2,null,null,null,null,66,0.38040000000000002,200.17910000000001,3.5000000000000003E-2,8.0000000000000004E-4,2E-3,1.9099999999999999E-2]
[null,null,null,null,null,null,null,null,null,null,null,null,null,null,null,null,null,null,null,null,null,null,null,null,null,null,null,null,null,null,null,null,null,"Recreation",null,0.1,0.1,0.15,null,null,null,null,null,68,3.4299999999999997E-2,8.4199999999999997E-2,null,null,null,null,null,null,null,null,null,null,null,null,null,null,null,null,null,null,null,null,null,67,1.3391,368.02229999999997,0.15590000000000001,2E-3,3.7000000000000002E-3,5.6300000000000003E-2,null,null,null,null,67,0.38229999999999997,203.98269999999999,3.44E-2,8.0000000000000004E-4,2E-3,1.9400000000000001E-2]
[null,null,"Statewide Highway Accident Rates",null,null,null,null,null,null,null,null,null,null,null,null,null,null,null,null,null,null,null,null,null,null,null,null,null,null,null,null,null,null,"Other Destination",null,0.85,0.81,0.81,null,null,null,null,null,69,3.5000000000000003E-2,8.8099999999999998E-2,null,null,null,null,null,null,null,null,null,null,null,null,null,null,null,null,null,null,null,null,null,68,1.3833,374.76139999999998,0.1593,2E-3,3.8E-3,5.8799999999999998E-2,null,null,null,null,68,0.38429999999999997,207.78620000000001,3.3799999999999997E-2,8.0000000000000004E-4,2.0999999999999999E-3,1.9699999999999999E-2]
[null,null,null,"Fatal Accident",{"$f":"ROUND(1105/178281.76,3)","v":6.0000000000000001E-3},"per mil veh-mi",null,14,null,null,null,null,null,null,null,null,null,null,null,null,null,null,null,null,null,null,null,null,null,null,null,null,null,null,null,null,null,null,null,null,null,null,null,70,3.56E-2,9.1999999999999998E-2,null,null,null,null,null,null,null,null,null,null,null,null,null,null,null,null,null,null,null,null,null,69,1.4275,381.50040000000001,0.16270000000000001,2E-3,3.8E-3,6.13E-2,null,null,null,null,69,0.38629999999999998,211.58969999999999,3.3300000000000003E-2,8.0000000000000004E-4,2.0999999999999999E-3,1.9900000000000001E-2]
[null,null,null,"Injury Accident",{"$f":"ROUND(51378/178281.76,2)","v":0.28999999999999998},"per mil veh-mi",null,14,null,null,null,null,null,null,null,null,null,null,null,null,null,null,null,null,null,null,null,null,null,null,null,null,null,null,null,null,null,null,null,null,null,null,null,null,null,null,null,null,null,null,null,null,null,null,null,null,null,null,null,null,null,null,null,null,null,null,null,70,1.4718,388.23950000000002,0.1661,2.0999999999999999E-3,3.8999999999999998E-3,6.3799999999999996E-2,null,null,null,null,70,0.38819999999999999,215.39320000000001,3.27E-2,8.0000000000000004E-4,2.2000000000000001E-3,2.0199999999999999E-2]
[null,null,null,"PDO Accident",{"$f":"ROUND(98338/178281.76,2)","v":0.55000000000000004},"per mil veh-mi",null,14,null,null,null,null,null,null,null,null,null,null,null,null,null,null,null,null,null,null,null,null,null,null,null,"Source: California Department of Transportation, 2010-2012 California Household Travel",null,null,null,null,null,null,null,null,null,null,"* Includes motorcycles & motorhomes"]
[null,null,null,"Non-Freeway",1.05,"per mil veh-mi",null,15,null,null,null,null,null,null,null,null,null,null,null,null,null,null,null,null,null,null,null,null,null,null,null,"Survey database, 2012",null,null,null,null,null,null,null,null,null,null,"Note: Five mph is best estimate for idling",null,null,null,null,null,null,null,null,null,null,null,null,null,null,null,null,null,null,null,null,null,null,null,"Truck",0,0.88400000000000001,15.894299999999999,0.16980000000000001,4.0000000000000002E-4,2.0000000000000001E-4,7.46E-2,null,null,null,"Truck",0,0.20150000000000001,9.6105,0.16200000000000001,2.0000000000000001E-4,1E-4,1.18E-2]
[null,null,null,null,null,null,null,null,null,null,null,null,null,null,null,null,null,null,null,null,null,null,null,null,null,null,null,null,null,null,null,null,null,null,null,null,null,null,null,null,null,null,null,null,null,null,null,null,null,null,null,null,null,null,null,null,null,null,null,null,null,null,null,null,null,null,null,5,5.1981000000000002,2078.7487000000001,6.0007000000000001,8.6599999999999996E-2,1.9599999999999999E-2,0.88629999999999998,null,null,null,null,5,3.5072000000000001,1907.1744000000001,6.8606999999999996,1.0999999999999999E-2,1.6799999999999999E-2,0.32090000000000002]
[null,null,null,null,null,null,null,null,null,null,null,null,null,null,null,null,null,null,null,null,null,null,null,null,null,null,null,null,null,null,null,null,null,null,null,null,null,null,null,null,null,null,"Source: California Air Resources Board,",null,null,null,null,null,null,null,null,null,null,null,null,null,null,null,null,null,null,null,null,null,null,null,null,6,4.9645999999999999,2025.2270000000001,5.9078999999999997,8.6599999999999996E-2,1.9099999999999999E-2,0.8538,null,null,null,null,6,3.3250999999999999,1859.4917,6.5674999999999999,1.0500000000000001E-2,1.6500000000000001E-2,0.30640000000000001]
[null,"Sources: 1) Office of Management and Budget (OMB), 2) Review of OMB and State",null,null,null,null,null,null,null,null,null,null,null,null,null,null,null,null,null,null,null,null,null,null,null,null,null,null,null,null,null,null,null,null,null,null,null,null,null,null,null,null,"EMFAC2014, 2016 & 2036 average",null,null,null,null,null,null,null,null,null,null,null,null,null,null,null,null,null,null,null,null,null,null,null,null,7,4.7312000000000003,1971.7054000000001,5.8151000000000002,8.6699999999999999E-2,1.8599999999999998E-2,0.82130000000000003,null,null,null,null,7,3.1431,1811.8090999999999,6.2744,1.01E-2,1.61E-2,0.29189999999999999]
[null,"Treasurer's Office data, 3) Bureau of Labor Statistics (BLS) OES, 4) BLS Employment",null,null,null,null,null,null,null,null,null,null,null,null,null,null,null,null,null,null,null,null,null,null,null,null,null,null,null,null,null,null,null,null,null,null,null,null,null,null,null,null,null,null,null,null,null,null,null,null,null,null,null,null,null,null,null,null,null,null,null,null,null,null,null,null,null,8,4.4977,1918.1838,5.7222999999999997,8.6800000000000002E-2,1.8100000000000002E-2,0.78879999999999995,null,null,null,null,8,2.9609999999999999,1764.1265000000001,5.9812000000000003,9.5999999999999992E-3,1.5699999999999999E-2,0.27739999999999998]
[null,"Cost Index, 5) USDOT Department Guidance, 6) California Department of Transportation",null,null,null,null,null,null,null,null,null,null,null,null,null,null,null,null,null,null,null,null,null,null,null,null,null,null,null,null,null,null,null,null,null,null,null,null,null,null,null,null,null,null,null,null,null,null,null,null,null,null,null,null,null,null,null,null,null,null,null,null,null,null,null,null,null,9,4.2641999999999998,1864.6622,5.6295000000000002,8.6900000000000005E-2,1.7600000000000001E-2,0.75629999999999997,null,null,null,null,9,2.7789999999999999,1716.4439,5.6879999999999997,9.1999999999999998E-3,1.5299999999999999E-2,0.26290000000000002]
[null,"TSI and Traffic Operations, 7) IDAS model, 8) AAA Daily Fuel Gauge Report, 9) California",null,null,null,null,null,null,null,null,null,null,null,null,null,null,null,null,null,null,null,null,null,null,null,null,null,null,null,null,null,null,null,null,null,null,null,null,null,null,null,null,null,null,null,null,null,null,null,null,null,null,null,null,null,null,null,null,null,null,null,null,null,null,null,null,null,10,4.0308000000000002,1811.1405999999999,5.5366999999999997,8.6900000000000005E-2,1.7100000000000001E-2,0.72389999999999999,null,null,null,null,10,2.597,1668.7612999999999,5.3948,8.6999999999999994E-3,1.4999999999999999E-2,0.24840000000000001]
[null,"Board of Equalization, 10) AAA Your Driving Costs, 11) American Transportation Research",null,null,null,null,null,null,null,null,null,null,null,null,null,null,null,null,null,null,null,null,null,null,null,null,null,null,null,null,null,null,null,null,null,null,null,null,null,null,null,null,null,null,null,null,null,null,null,null,null,null,null,null,null,null,null,null,null,null,null,null,null,null,null,null,null,11,3.8317999999999999,1684.0728999999999,5.0221999999999998,7.8899999999999998E-2,1.6E-2,0.65110000000000001,null,null,null,null,11,2.3246000000000002,1549.8034,4.7725,8.3000000000000001E-3,1.4E-2,0.2253]
[null,"Institute, 12) USDOT VSL, 13) NHTSA, 14) TASAS summary 2013, 15) TASAS summary 2009",null,null,null,null,null,null,null,null,null,null,null,null,null,null,null,null,null,null,null,null,null,null,null,null,null,null,null,null,null,null,null,null,null,null,null,null,null,null,null,null,null,null,null,null,null,null,null,null,null,null,null,null,null,null,null,null,null,null,null,null,null,null,null,null,null,12,3.6328,1557.0053,4.5077999999999996,7.0900000000000005E-2,1.49E-2,0.57840000000000003,null,null,null,null,12,2.0522,1430.8453999999999,4.1501000000000001,7.9000000000000008E-3,1.2999999999999999E-2,0.20230000000000001]
[null,null,null,null,null,null,null,null,null,null,null,null,null,null,null,null,null,null,null,null,null,null,null,null,null,null,null,null,null,null,null,null,null,null,null,null,null,null,null,null,null,null,null,null,null,null,null,null,null,null,null,null,null,null,null,null,null,null,null,null,null,null,null,null,null,null,null,13,3.4338000000000002,1429.9376,3.9933000000000001,6.2799999999999995E-2,1.37E-2,0.50560000000000005,null,null,null,null,13,1.7799,1311.8875,3.5278,7.4999999999999997E-3,1.21E-2,0.1792]
[null,null,null,null,null,null,null,null,null,null,null,null,null,null,null,null,null,null,null,null,null,null,null,null,null,null,null,null,null,null,null,null,null,null,null,null,null,null,null,null,null,null,null,null,null,null,null,null,null,null,null,null,null,null,null,null,null,null,null,null,null,null,null,null,null,null,null,14,3.2347999999999999,1302.8698999999999,3.4788000000000001,5.4800000000000001E-2,1.26E-2,0.43290000000000001,null,null,null,null,14,1.5075000000000001,1192.9295999999999,2.9055,7.1000000000000004E-3,1.11E-2,0.15609999999999999]
[null,null,null,null,null,null,null,null,null,null,null,null,null,null,null,null,null,null,null,null,null,null,null,null,null,null,null,null,null,null,null,null,null,null,null,null,null,null,null,null,null,null,null,null,null,null,null,null,null,null,null,null,null,null,null,null,null,null,null,null,null,null,null,null,null,null,null,15,3.0358000000000001,1175.8022000000001,2.9643000000000002,4.6800000000000001E-2,1.14E-2,0.36009999999999998,null,null,null,null,15,1.2352000000000001,1073.9717000000001,2.2831000000000001,6.7000000000000002E-3,1.0200000000000001E-2,0.1331]
[null,null,null,null,null,null,null,null,null,null,null,null,null,null,null,null,null,null,null,null,null,null,null,null,null,null,null,null,null,null,null,null,null,null,null,null,null,null,null,null,null,null,null,null,null,null,null,null,null,null,null,null,null,null,null,null,null,null,null,null,null,null,null,null,null,null,null,16,2.9594,1149.78,2.8980999999999999,4.5199999999999997E-2,1.12E-2,0.33639999999999998,null,null,null,null,16,1.1707000000000001,1044.4852000000001,2.1133000000000002,6.3E-3,9.9000000000000008E-3,0.1231]
[null,null,null,null,null,null,null,null,null,null,null,null,null,null,null,null,null,null,null,null,null,null,null,null,null,null,null,null,null,null,null,null,null,null,null,null,null,null,null,null,null,null,null,null,null,null,null,null,null,null,null,null,null,null,null,null,null,null,null,null,null,null,null,null,null,null,null,17,2.883,1123.7577000000001,2.8317999999999999,4.36E-2,1.0999999999999999E-2,0.31259999999999999,null,null,null,null,17,1.1062000000000001,1014.9987,1.9435,5.8999999999999999E-3,9.7000000000000003E-3,0.113]
[null,null,null,null,null,null,null,null,null,null,null,null,null,null,null,null,null,null,null,null,null,null,null,null,null,null,null,null,null,null,null,null,null,null,null,null,null,null,null,null,null,null,null,null,null,null,null,null,null,null,null,null,null,null,null,null,null,null,null,null,null,null,null,null,null,null,null,18,2.8066,1097.7354,2.7656000000000001,4.2000000000000003E-2,1.0699999999999999E-2,0.2888,null,null,null,null,18,1.0418000000000001,985.51220000000001,1.7737000000000001,5.4999999999999997E-3,9.4000000000000004E-3,0.10299999999999999]
[null,null,null,null,null,null,null,null,null,null,null,null,null,null,null,null,null,null,null,null,null,null,null,null,null,null,null,null,null,null,null,null,null,null,null,null,null,null,null,null,null,null,null,null,null,null,null,null,null,null,null,null,null,null,null,null,null,null,null,null,null,null,null,null,null,null,null,19,2.7302,1071.7130999999999,2.6993999999999998,4.0500000000000001E-2,1.0500000000000001E-2,0.26500000000000001,null,null,null,null,19,0.97729999999999995,956.02570000000003,1.6039000000000001,5.1000000000000004E-3,9.1999999999999998E-3,9.2999999999999999E-2]
[null,null,null,null,null,null,null,null,null,null,null,null,null,null,null,null,null,null,null,null,null,null,null,null,null,null,null,null,null,null,null,null,null,null,null,null,null,null,null,null,null,null,null,null,null,null,null,null,null,null,null,null,null,null,null,null,null,null,null,null,null,null,null,null,null,null,null,20,2.6537999999999999,1045.6908000000001,2.6332,3.8899999999999997E-2,1.0200000000000001E-2,0.24129999999999999,null,null,null,null,20,0.91279999999999994,926.53909999999996,1.4340999999999999,4.7000000000000002E-3,8.8999999999999999E-3,8.3000000000000004E-2]
[null,null,null,null,null,null,null,null,null,null,null,null,null,null,null,null,null,null,null,null,null,null,null,null,null,null,null,null,null,null,null,null,null,null,null,null,null,null,null,null,null,null,null,null,null,null,null,null,null,null,null,null,null,null,null,null,null,null,null,null,null,null,null,null,null,null,null,21,2.6002999999999998,1002.0956,2.4211,3.5000000000000003E-2,9.7999999999999997E-3,0.22159999999999999,null,null,null,null,21,0.87780000000000002,874.51620000000003,1.2529999999999999,4.4000000000000003E-3,8.3999999999999995E-3,7.4800000000000005E-2]
[null,null,null,null,null,null,null,null,null,null,null,null,null,null,null,null,null,null,null,null,null,null,null,null,null,null,null,null,null,null,null,null,null,null,null,null,null,null,null,null,null,null,null,null,null,null,null,null,null,null,null,null,null,null,null,null,null,null,null,null,null,null,null,null,null,null,null,22,2.5468000000000002,958.50049999999999,2.2090999999999998,3.1099999999999999E-2,9.4000000000000004E-3,0.2019,null,null,null,null,22,0.84279999999999999,822.49329999999998,1.0718000000000001,4.1000000000000003E-3,7.9000000000000008E-3,6.6600000000000006E-2]
[null,null,null,null,null,null,null,null,null,null,null,null,null,null,null,null,null,null,null,null,null,null,null,null,null,null,null,null,null,null,null,null,null,null,null,null,null,null,null,null,null,null,null,null,null,null,null,null,null,null,null,null,null,null,null,null,null,null,null,null,null,null,null,null,null,null,null,23,2.4933000000000001,914.90530000000001,1.9971000000000001,2.7199999999999998E-2,8.9999999999999993E-3,0.1822,null,null,null,null,23,0.80769999999999997,770.47040000000004,0.89070000000000005,3.8E-3,7.4000000000000003E-3,5.8400000000000001E-2]
[null,null,null,null,null,null,null,null,null,null,null,null,null,null,null,null,null,null,null,null,null,null,null,null,null,null,null,null,null,null,null,null,null,null,null,null,null,null,null,null,null,null,null,null,null,null,null,null,null,null,null,null,null,null,null,null,null,null,null,null,null,null,null,null,null,null,null,24,2.4398,871.31010000000003,1.7849999999999999,2.3300000000000001E-2,8.6E-3,0.16259999999999999,null,null,null,null,24,0.77270000000000005,718.44759999999997,0.70960000000000001,3.5000000000000001E-3,6.8999999999999999E-3,5.0200000000000002E-2]
[null,null,null,null,null,null,null,null,null,null,null,null,null,null,null,null,null,null,null,null,null,null,null,null,null,null,null,null,null,null,null,null,null,null,null,null,null,null,null,null,null,null,null,null,null,null,null,null,null,null,null,null,null,null,null,null,null,null,null,null,null,null,null,null,null,null,null,25,2.3864000000000001,827.71500000000003,1.573,1.9400000000000001E-2,8.0999999999999996E-3,0.1429,null,null,null,null,25,0.73770000000000002,666.42470000000003,0.52839999999999998,3.0999999999999999E-3,6.4000000000000003E-3,4.2000000000000003E-2]
[null,null,null,null,null,null,null,null,null,null,null,null,null,null,null,null,null,null,null,null,null,null,null,null,null,null,null,null,null,null,null,null,null,null,null,null,null,null,null,null,null,null,null,null,null,null,null,null,null,null,null,null,null,null,null,null,null,null,null,null,null,null,null,null,null,null,null,26,2.3439999999999999,810.58399999999995,1.532,1.8700000000000001E-2,8.0000000000000002E-3,0.13639999999999999,null,null,null,null,26,0.72070000000000001,654.11829999999998,0.49490000000000001,3.0000000000000001E-3,6.3E-3,3.9899999999999998E-2]
[null,null,null,null,null,null,null,null,null,null,null,null,null,null,null,null,null,null,null,null,null,null,null,null,null,null,null,null,null,null,null,null,null,null,null,null,null,null,null,null,null,null,null,null,null,null,null,null,null,null,null,null,null,null,null,null,null,null,null,null,null,null,null,null,null,null,null,27,2.3016999999999999,793.45299999999997,1.4911000000000001,1.7999999999999999E-2,7.7999999999999996E-3,0.12989999999999999,null,null,null,null,27,0.70379999999999998,641.81200000000001,0.46129999999999999,2.8999999999999998E-3,6.1999999999999998E-3,3.78E-2]
[null,null,null,null,null,null,null,null,null,null,null,null,null,null,null,null,null,null,null,null,null,null,null,null,null,null,null,null,null,null,null,null,null,null,null,null,null,null,null,null,null,null,null,null,null,null,null,null,null,null,null,null,null,null,null,null,null,null,null,null,null,null,null,null,null,null,null,28,2.2593000000000001,776.322,1.4500999999999999,1.7299999999999999E-2,7.6E-3,0.1234,null,null,null,null,28,0.68689999999999996,629.50570000000005,0.42780000000000001,2.8E-3,6.1000000000000004E-3,3.5799999999999998E-2]
[null,null,null,null,null,null,null,null,null,null,null,null,null,null,null,null,null,null,null,null,null,null,null,null,null,null,null,null,null,null,null,null,null,null,null,null,null,null,null,null,null,null,null,null,null,null,null,null,null,null,null,null,null,null,null,null,null,null,null,null,null,null,null,null,null,null,null,29,2.2170000000000001,759.19100000000003,1.4092,1.67E-2,7.4999999999999997E-3,0.1169,null,null,null,null,29,0.67,617.19939999999997,0.39419999999999999,2.5999999999999999E-3,6.0000000000000001E-3,3.3700000000000001E-2]
[null,null,null,null,null,null,null,null,null,null,null,null,null,null,null,null,null,null,null,null,null,null,null,null,null,null,null,null,null,null,null,null,null,null,null,null,null,null,null,null,null,null,null,null,null,null,null,null,null,null,null,null,null,null,null,null,null,null,null,null,null,null,null,null,null,null,null,30,2.1747000000000001,742.06,1.3682000000000001,1.6E-2,7.3000000000000001E-3,0.1104,null,null,null,null,30,0.65310000000000001,604.8931,0.36070000000000002,2.5000000000000001E-3,5.7999999999999996E-3,3.1600000000000003E-2]
[null,null,null,null,null,null,null,null,null,null,null,null,null,null,null,null,null,null,null,null,null,null,null,null,null,null,null,null,null,null,null,null,null,null,null,null,null,null,null,null,null,null,null,null,null,null,null,null,null,null,null,null,null,null,null,null,null,null,null,null,null,null,null,null,null,null,null,31,2.1326000000000001,752.04190000000006,1.444,1.6799999999999999E-2,7.4000000000000003E-3,0.1096,null,null,null,null,31,0.64580000000000004,624.58230000000003,0.36459999999999998,2.5000000000000001E-3,6.0000000000000001E-3,3.1800000000000002E-2]
[null,null,null,null,null,null,null,null,null,null,null,null,null,null,null,null,null,null,null,null,null,null,null,null,null,null,null,null,null,null,null,null,null,null,null,null,null,null,null,null,null,null,null,null,null,null,null,null,null,null,null,null,null,null,null,null,null,null,null,null,null,null,null,null,null,null,null,32,2.0905,762.02380000000005,1.5198,1.77E-2,7.4999999999999997E-3,0.1087,null,null,null,null,32,0.63859999999999995,644.27149999999995,0.36849999999999999,2.5999999999999999E-3,6.1999999999999998E-3,3.2000000000000001E-2]
[null,null,null,null,null,null,null,null,null,null,null,null,null,null,null,null,null,null,null,null,null,null,null,null,null,null,null,null,null,null,null,null,null,null,null,null,null,null,null,null,null,null,null,null,null,null,null,null,null,null,null,null,null,null,null,null,null,null,null,null,null,null,null,null,null,null,null,33,2.0484,772.00570000000005,1.5954999999999999,1.8499999999999999E-2,7.4999999999999997E-3,0.1079,null,null,null,null,33,0.63129999999999997,663.96069999999997,0.3725,2.5999999999999999E-3,6.3E-3,3.2199999999999999E-2]
[null,null,null,null,null,null,null,null,null,null,null,null,null,null,null,null,null,null,null,null,null,null,null,null,null,null,null,null,null,null,null,null,null,null,null,null,null,null,null,null,null,null,null,null,null,null,null,null,null,null,null,null,null,null,null,null,null,null,null,null,null,null,null,null,null,null,null,34,2.0064000000000002,781.98770000000002,1.6713,1.9400000000000001E-2,7.6E-3,0.1071,null,null,null,null,34,0.62409999999999999,683.6499,0.37640000000000001,2.5999999999999999E-3,6.4999999999999997E-3,3.2399999999999998E-2]
[null,null,null,null,null,null,null,null,null,null,null,null,null,null,null,null,null,null,null,null,null,null,null,null,null,null,null,null,null,null,null,null,null,null,null,null,null,null,null,null,null,null,null,null,null,null,null,null,null,null,null,null,null,null,null,null,null,null,null,null,null,null,null,null,null,null,null,35,1.9642999999999999,791.96960000000001,1.7471000000000001,2.0199999999999999E-2,7.7000000000000002E-3,0.1062,null,null,null,null,35,0.61680000000000001,703.33910000000003,0.38030000000000003,2.5999999999999999E-3,6.7000000000000002E-3,3.2599999999999997E-2]
[null,null,null,null,null,null,null,null,null,null,null,null,null,null,null,null,null,null,null,null,null,null,null,null,null,null,null,null,null,null,null,null,null,null,null,null,null,null,null,null,null,null,null,null,null,null,null,null,null,null,null,null,null,null,null,null,null,null,null,null,null,null,null,null,null,null,null,36,1.9353,788.75580000000002,1.7522,2.06E-2,7.7000000000000002E-3,0.10390000000000001,null,null,null,null,36,0.59889999999999999,704.5951,0.36659999999999998,2.5999999999999999E-3,6.7000000000000002E-3,3.1399999999999997E-2]
[null,null,null,null,null,null,null,null,null,null,null,null,null,null,null,null,null,null,null,null,null,null,null,null,null,null,null,null,null,null,null,null,null,null,null,null,null,null,null,null,null,null,null,null,null,null,null,null,null,null,null,null,null,null,null,null,null,null,null,null,null,null,null,null,null,null,null,37,1.9064000000000001,785.54200000000003,1.7573000000000001,2.1000000000000001E-2,7.6E-3,0.10150000000000001,null,null,null,null,37,0.58089999999999997,705.85109999999997,0.35289999999999999,2.5999999999999999E-3,6.7000000000000002E-3,3.0200000000000001E-2]
[null,null,null,null,null,null,null,null,null,null,null,null,null,null,null,null,null,null,null,null,null,null,null,null,null,null,null,null,null,null,null,null,null,null,null,null,null,null,null,null,null,null,null,null,null,null,null,null,null,null,null,null,null,null,null,null,null,null,null,null,null,null,null,null,null,null,null,38,1.8774,782.32820000000004,1.7624,2.1299999999999999E-2,7.6E-3,9.9099999999999994E-2,null,null,null,null,38,0.56289999999999996,707.10709999999995,0.3392,2.5999999999999999E-3,6.7000000000000002E-3,2.9100000000000001E-2]
[null,null,null,null,null,null,null,null,null,null,null,null,null,null,null,null,null,null,null,null,null,null,null,null,null,null,null,null,null,null,null,null,null,null,null,null,null,null,null,null,null,null,null,null,null,null,null,null,null,null,null,null,null,null,null,null,null,null,null,null,null,null,null,null,null,null,null,39,1.8485,779.11440000000005,1.7676000000000001,2.1700000000000001E-2,7.6E-3,9.6699999999999994E-2,null,null,null,null,39,0.54500000000000004,708.36300000000006,0.32550000000000001,2.5000000000000001E-3,6.7000000000000002E-3,2.7900000000000001E-2]
[null,null,null,null,null,null,null,null,null,null,null,null,null,null,null,null,null,null,null,null,null,null,null,null,null,null,null,null,null,null,null,null,null,null,null,null,null,null,null,null,null,null,null,null,null,null,null,null,null,null,null,null,null,null,null,null,null,null,null,null,null,null,null,null,null,null,null,40,1.8194999999999999,775.90060000000005,1.7726999999999999,2.2100000000000002E-2,7.4999999999999997E-3,9.4399999999999998E-2,null,null,null,null,40,0.52700000000000002,709.61900000000003,0.31180000000000002,2.5000000000000001E-3,6.7000000000000002E-3,2.6700000000000002E-2]
[null,null,null,null,null,null,null,null,null,null,null,null,null,null,null,null,null,null,null,null,null,null,null,null,null,null,null,null,null,null,null,null,null,null,null,null,null,null,null,null,null,null,null,null,null,null,null,null,null,null,null,null,null,null,null,null,null,null,null,null,null,null,null,null,null,null,null,41,1.7830999999999999,783.24540000000002,1.8214999999999999,2.2800000000000001E-2,7.6E-3,9.3399999999999997E-2,null,null,null,null,41,0.51180000000000003,720.80370000000005,0.30769999999999997,2.5000000000000001E-3,6.8999999999999999E-3,2.6200000000000001E-2]
[null,null,null,null,null,null,null,null,null,null,null,null,null,null,null,null,null,null,null,null,null,null,null,null,null,null,null,null,null,null,null,null,null,null,null,null,null,null,null,null,null,null,null,null,null,null,null,null,null,null,null,null,null,null,null,null,null,null,null,null,null,null,null,null,null,null,null,42,1.7465999999999999,790.59019999999998,1.8703000000000001,2.3400000000000001E-2,7.7000000000000002E-3,9.2299999999999993E-2,null,null,null,null,42,0.4965,731.98839999999996,0.30359999999999998,2.5999999999999999E-3,7.0000000000000001E-3,2.5700000000000001E-2]
[null,null,null,null,null,null,null,null,null,null,null,null,null,null,null,null,null,null,null,null,null,null,null,null,null,null,null,null,null,null,null,null,null,null,null,null,null,null,null,null,null,null,null,null,null,null,null,null,null,null,null,null,null,null,null,null,null,null,null,null,null,null,null,null,null,null,null,43,1.7101999999999999,797.93499999999995,1.9191,2.41E-2,7.7000000000000002E-3,9.1300000000000006E-2,null,null,null,null,43,0.48130000000000001,743.17309999999998,0.29949999999999999,2.5999999999999999E-3,7.1000000000000004E-3,2.52E-2]
[null,null,null,null,null,null,null,null,null,null,null,null,null,null,null,null,null,null,null,null,null,null,null,null,null,null,null,null,null,null,null,null,null,null,null,null,null,null,null,null,null,null,null,null,null,null,null,null,null,null,null,null,null,null,null,null,null,null,null,null,null,null,null,null,null,null,null,44,1.6737,805.27970000000005,1.9679,2.4799999999999999E-2,7.7999999999999996E-3,9.0300000000000005E-2,null,null,null,null,44,0.46600000000000003,754.3578,0.2954,2.5999999999999999E-3,7.1999999999999998E-3,2.47E-2]
[null,null,null,null,null,null,null,null,null,null,null,null,null,null,null,null,null,null,null,null,null,null,null,null,null,null,null,null,null,null,null,null,null,null,null,null,null,null,null,null,null,null,null,null,null,null,null,null,null,null,null,null,null,null,null,null,null,null,null,null,null,null,null,null,null,null,null,45,1.6373,812.62450000000001,2.0167999999999999,2.5499999999999998E-2,7.9000000000000008E-3,8.9300000000000004E-2,null,null,null,null,45,0.45079999999999998,765.54250000000002,0.2913,2.7000000000000001E-3,7.3000000000000001E-3,2.4199999999999999E-2]
[null,null,null,null,null,null,null,null,null,null,null,null,null,null,null,null,null,null,null,null,null,null,null,null,null,null,null,null,null,null,null,null,null,null,null,null,null,null,null,null,null,null,null,null,null,null,null,null,null,null,null,null,null,null,null,null,null,null,null,null,null,null,null,null,null,null,null,46,1.6085,809.08510000000001,2.0512999999999999,2.5899999999999999E-2,7.7999999999999996E-3,8.8499999999999995E-2,null,null,null,null,46,0.43440000000000001,765.44470000000001,0.2853,2.7000000000000001E-3,7.3000000000000001E-3,2.3400000000000001E-2]
[null,null,null,null,null,null,null,null,null,null,null,null,null,null,null,null,null,null,null,null,null,null,null,null,null,null,null,null,null,null,null,null,null,null,null,null,null,null,null,null,null,null,null,null,null,null,null,null,null,null,null,null,null,null,null,null,null,null,null,null,null,null,null,null,null,null,null,47,1.5797000000000001,805.54560000000004,2.0859000000000001,2.64E-2,7.7999999999999996E-3,8.7599999999999997E-2,null,null,null,null,47,0.41810000000000003,765.34680000000003,0.27939999999999998,2.7000000000000001E-3,7.3000000000000001E-3,2.2599999999999999E-2]
[null,null,null,null,null,null,null,null,null,null,null,null,null,null,null,null,null,null,null,null,null,null,null,null,null,null,null,null,null,null,null,null,null,null,null,null,null,null,null,null,null,null,null,null,null,null,null,null,null,null,null,null,null,null,null,null,null,null,null,null,null,null,null,null,null,null,null,48,1.5509999999999999,802.00620000000004,2.1204999999999998,2.6800000000000001E-2,7.7999999999999996E-3,8.6800000000000002E-2,null,null,null,null,48,0.4017,765.24900000000002,0.27339999999999998,2.8E-3,7.3000000000000001E-3,2.18E-2]
[null,null,null,null,null,null,null,null,null,null,null,null,null,null,null,null,null,null,null,null,null,null,null,null,null,null,null,null,null,null,null,null,null,null,null,null,null,null,null,null,null,null,null,null,null,null,null,null,null,null,null,null,null,null,null,null,null,null,null,null,null,null,null,null,null,null,null,49,1.5222,798.46669999999995,2.1549999999999998,2.7300000000000001E-2,7.7999999999999996E-3,8.5999999999999993E-2,null,null,null,null,49,0.38540000000000002,765.15110000000004,0.26750000000000002,2.8E-3,7.3000000000000001E-3,2.1000000000000001E-2]
[null,null,null,null,null,null,null,null,null,null,null,null,null,null,null,null,null,null,null,null,null,null,null,null,null,null,null,null,null,null,null,null,null,null,null,null,null,null,null,null,null,null,null,null,null,null,null,null,null,null,null,null,null,null,null,null,null,null,null,null,null,null,null,null,null,null,null,50,1.4935,794.92729999999995,2.1896,2.7699999999999999E-2,7.7000000000000002E-3,8.5199999999999998E-2,null,null,null,null,50,0.36899999999999999,765.05330000000004,0.26150000000000001,2.8E-3,7.3000000000000001E-3,2.0199999999999999E-2]
[null,null,null,null,null,null,null,null,null,null,null,null,null,null,null,null,null,null,null,null,null,null,null,null,null,null,null,null,null,null,null,null,null,null,null,null,null,null,null,null,null,null,null,null,null,null,null,null,null,null,null,null,null,null,null,null,null,null,null,null,null,null,null,null,null,null,null,51,1.4732000000000001,804.87220000000002,2.2174,2.93E-2,7.7999999999999996E-3,8.5099999999999995E-2,null,null,null,null,51,0.3589,772.93799999999999,0.25540000000000002,2.8E-3,7.4000000000000003E-3,1.9599999999999999E-2]
[null,null,null,null,null,null,null,null,null,null,null,null,null,null,null,null,null,null,null,null,null,null,null,null,null,null,null,null,null,null,null,null,null,null,null,null,null,null,null,null,null,null,null,null,null,null,null,null,null,null,null,null,null,null,null,null,null,null,null,null,null,null,null,null,null,null,null,52,1.4529000000000001,814.81709999999998,2.2452999999999999,3.0800000000000001E-2,7.9000000000000008E-3,8.5000000000000006E-2,null,null,null,null,52,0.3488,780.82270000000005,0.24929999999999999,2.8E-3,7.4999999999999997E-3,1.9E-2]
[null,null,null,null,null,null,null,null,null,null,null,null,null,null,null,null,null,null,null,null,null,null,null,null,null,null,null,null,null,null,null,null,null,null,null,null,null,null,null,null,null,null,null,null,null,null,null,null,null,null,null,null,null,null,null,null,null,null,null,null,null,null,null,null,null,null,null,53,1.4326000000000001,824.76199999999994,2.2730999999999999,3.2300000000000002E-2,8.0000000000000002E-3,8.4900000000000003E-2,null,null,null,null,53,0.33879999999999999,788.70749999999998,0.24329999999999999,2.8E-3,7.6E-3,1.84E-2]
[null,null,null,null,null,null,null,null,null,null,null,null,null,null,null,null,null,null,null,null,null,null,null,null,null,null,null,null,null,null,null,null,null,null,null,null,null,null,null,null,null,null,null,null,null,null,null,null,null,null,null,null,null,null,null,null,null,null,null,null,null,null,null,null,null,null,null,54,1.4124000000000001,834.70690000000002,2.3010000000000002,3.3799999999999997E-2,8.0999999999999996E-3,8.4900000000000003E-2,null,null,null,null,54,0.32869999999999999,796.59220000000005,0.23719999999999999,2.8E-3,7.7000000000000002E-3,1.78E-2]
[null,null,null,null,null,null,null,null,null,null,null,null,null,null,null,null,null,null,null,null,null,null,null,null,null,null,null,null,null,null,null,null,null,null,null,null,null,null,null,null,null,null,null,null,null,null,null,null,null,null,null,null,null,null,null,null,null,null,null,null,null,null,null,null,null,null,null,55,1.3920999999999999,844.65179999999998,2.3288000000000002,3.5299999999999998E-2,8.2000000000000007E-3,8.48E-2,null,null,null,null,55,0.31859999999999999,804.4769,0.2311,2.8E-3,7.7000000000000002E-3,1.7100000000000001E-2]
[null,null,null,null,null,null,null,null,null,null,null,null,null,null,null,null,null,null,null,null,null,null,null,null,null,null,null,null,null,null,null,null,null,null,null,null,null,null,null,null,null,null,null,null,null,null,null,null,null,null,null,null,null,null,null,null,null,null,null,null,null,null,null,null,null,null,null,56,1.4034,827.19539999999995,2.2073,3.4500000000000003E-2,8.0000000000000002E-3,8.3199999999999996E-2,null,null,null,null,56,0.31340000000000001,779.81060000000002,0.21729999999999999,2.7000000000000001E-3,7.4999999999999997E-3,1.6299999999999999E-2]
[null,null,null,null,null,null,null,null,null,null,null,null,null,null,null,null,null,null,null,null,null,null,null,null,null,null,null,null,null,null,null,null,null,null,null,null,null,null,null,null,null,null,null,null,null,null,null,null,null,null,null,null,null,null,null,null,null,null,null,null,null,null,null,null,null,null,null,57,1.4147000000000001,809.73910000000001,2.0857999999999999,3.3799999999999997E-2,7.9000000000000008E-3,8.1500000000000003E-2,null,null,null,null,57,0.30819999999999997,755.14419999999996,0.2034,2.5999999999999999E-3,7.3000000000000001E-3,1.54E-2]
[null,null,null,null,null,null,null,null,null,null,null,null,null,null,null,null,null,null,null,null,null,null,null,null,null,null,null,null,null,null,null,null,null,null,null,null,null,null,null,null,null,null,null,null,null,null,null,null,null,null,null,null,null,null,null,null,null,null,null,null,null,null,null,null,null,null,null,58,1.4259999999999999,792.28269999999998,1.9642999999999999,3.3000000000000002E-2,7.7000000000000002E-3,7.9899999999999999E-2,null,null,null,null,58,0.30299999999999999,730.47789999999998,0.18959999999999999,2.5000000000000001E-3,7.0000000000000001E-3,1.46E-2]
[null,null,null,null,null,null,null,null,null,null,null,null,null,null,null,null,null,null,null,null,null,null,null,null,null,null,null,null,null,null,null,null,null,null,null,null,null,null,null,null,null,null,null,null,null,null,null,null,null,null,null,null,null,null,null,null,null,null,null,null,null,null,null,null,null,null,null,59,1.4373,774.82640000000004,1.8428,3.2199999999999999E-2,7.6E-3,7.8299999999999995E-2,null,null,null,null,59,0.29780000000000001,705.81150000000002,0.17580000000000001,2.3999999999999998E-3,6.7999999999999996E-3,1.37E-2]
[null,null,null,null,null,null,null,null,null,null,null,null,null,null,null,null,null,null,null,null,null,null,null,null,null,null,null,null,null,null,null,null,null,null,null,null,null,null,null,null,null,null,null,null,null,null,null,null,null,null,null,null,null,null,null,null,null,null,null,null,null,null,null,null,null,null,null,60,1.4486000000000001,757.37,1.7213000000000001,3.1399999999999997E-2,7.4000000000000003E-3,7.6600000000000001E-2,null,null,null,null,60,0.29260000000000003,681.14520000000005,0.16189999999999999,2.3E-3,6.6E-3,1.29E-2]
[null,null,null,null,null,null,null,null,null,null,null,null,null,null,null,null,null,null,null,null,null,null,null,null,null,null,null,null,null,null,null,null,null,null,null,null,null,null,null,null,null,null,null,null,null,null,null,null,null,null,null,null,null,null,null,null,null,null,null,null,null,null,null,null,null,null,null,61,1.4697,751.83439999999996,1.6368,2.9000000000000001E-2,7.4000000000000003E-3,7.5600000000000001E-2,null,null,null,null,61,0.29670000000000002,666.11599999999999,0.1573,2.3E-3,6.4000000000000003E-3,1.2800000000000001E-2]
[null,null,null,null,null,null,null,null,null,null,null,null,null,null,null,null,null,null,null,null,null,null,null,null,null,null,null,null,null,null,null,null,null,null,null,null,null,null,null,null,null,null,null,null,null,null,null,null,null,null,null,null,null,null,null,null,null,null,null,null,null,null,null,null,null,null,null,62,1.4908999999999999,746.29880000000003,1.5524,2.6499999999999999E-2,7.3000000000000001E-3,7.4499999999999997E-2,null,null,null,null,62,0.30080000000000001,651.08680000000004,0.1527,2.2000000000000001E-3,6.3E-3,1.2699999999999999E-2]
[null,null,null,null,null,null,null,null,null,null,null,null,null,null,null,null,null,null,null,null,null,null,null,null,null,null,null,null,null,null,null,null,null,null,null,null,null,null,null,null,null,null,null,null,null,null,null,null,null,null,null,null,null,null,null,null,null,null,null,null,null,null,null,null,null,null,null,63,1.512,740.76319999999998,1.468,2.41E-2,7.3000000000000001E-3,7.3400000000000007E-2,null,null,null,null,63,0.30499999999999999,636.0575,0.14810000000000001,2.2000000000000001E-3,6.1999999999999998E-3,1.26E-2]
[null,null,null,null,null,null,null,null,null,null,null,null,null,null,null,null,null,null,null,null,null,null,null,null,null,null,null,null,null,null,null,null,null,null,null,null,null,null,null,null,null,null,null,null,null,null,null,null,null,null,null,null,null,null,null,null,null,null,null,null,null,null,null,null,null,null,null,64,1.5331999999999999,735.22760000000005,1.3835999999999999,2.1600000000000001E-2,7.1999999999999998E-3,7.2400000000000006E-2,null,null,null,null,64,0.30909999999999999,621.02829999999994,0.1434,2.0999999999999999E-3,6.0000000000000001E-3,1.2500000000000001E-2]
[null,null,null,null,null,null,null,null,null,null,null,null,null,null,null,null,null,null,null,null,null,null,null,null,null,null,null,null,null,null,null,null,null,null,null,null,null,null,null,null,null,null,null,null,null,null,null,null,null,null,null,null,null,null,null,null,null,null,null,null,null,null,null,null,null,null,null,65,1.5544,729.69200000000001,1.2991999999999999,1.9099999999999999E-2,7.1999999999999998E-3,7.1300000000000002E-2,null,null,null,null,65,0.31319999999999998,605.9991,0.13880000000000001,2.0999999999999999E-3,5.8999999999999999E-3,1.2500000000000001E-2]
[null,null,null,null,null,null,null,null,null,null,null,null,null,null,null,null,null,null,null,null,null,null,null,null,null,null,null,null,null,null,null,null,null,null,null,null,null,null,null,null,null,null,null,null,null,null,null,null,null,null,null,null,null,null,null,null,null,null,null,null,null,null,null,null,null,null,null,66,1.5251999999999999,769.92759999999998,1.462,2.0299999999999999E-2,7.6E-3,7.3499999999999996E-2,null,null,null,null,66,0.30470000000000003,649.32389999999998,0.15240000000000001,2.2000000000000001E-3,6.3E-3,1.3299999999999999E-2]
[null,null,null,null,null,null,null,null,null,null,null,null,null,null,null,null,null,null,null,null,null,null,null,null,null,null,null,null,null,null,null,null,null,null,null,null,null,null,null,null,null,null,null,null,null,null,null,null,null,null,null,null,null,null,null,null,null,null,null,null,null,null,null,null,null,null,null,67,1.4961,810.16330000000005,1.6247,2.1399999999999999E-2,7.9000000000000008E-3,7.5700000000000003E-2,null,null,null,null,67,0.29620000000000002,692.64869999999996,0.16600000000000001,2.3999999999999998E-3,6.7000000000000002E-3,1.4200000000000001E-2]
[null,null,null,null,null,null,null,null,null,null,null,null,null,null,null,null,null,null,null,null,null,null,null,null,null,null,null,null,null,null,null,null,null,null,null,null,null,null,null,null,null,null,null,null,null,null,null,null,null,null,null,null,null,null,null,null,null,null,null,null,null,null,null,null,null,null,null,68,1.4670000000000001,850.39890000000003,1.7874000000000001,2.2599999999999999E-2,8.3000000000000001E-3,7.7799999999999994E-2,null,null,null,null,68,0.28770000000000001,735.97360000000003,0.17960000000000001,2.5999999999999999E-3,7.1000000000000004E-3,1.4999999999999999E-2]
[null,null,null,null,null,null,null,null,null,null,null,null,null,null,null,null,null,null,null,null,null,null,null,null,null,null,null,null,null,null,null,null,null,null,null,null,null,null,null,null,null,null,null,null,null,null,null,null,null,null,null,null,null,null,null,null,null,null,null,null,null,null,null,null,null,null,null,69,1.4378,890.63459999999998,1.9501999999999999,2.3699999999999999E-2,8.6999999999999994E-3,0.08,null,null,null,null,69,0.27910000000000001,779.29840000000002,0.1933,2.7000000000000001E-3,7.4999999999999997E-3,1.5900000000000001E-2]
[null,null,null,null,null,null,null,null,null,null,null,null,null,null,null,null,null,null,null,null,null,null,null,null,null,null,null,null,null,null,null,null,null,null,null,null,null,null,null,null,null,null,null,null,null,null,null,null,null,null,null,null,null,null,null,null,null,null,null,null,null,null,null,null,null,null,null,70,1.4087000000000001,930.87019999999995,2.1128999999999998,2.4799999999999999E-2,9.1000000000000004E-3,8.2199999999999995E-2,null,null,null,null,70,0.27060000000000001,822.6232,0.2069,2.8999999999999998E-3,7.9000000000000008E-3,1.67E-2]
[]
[null,null,null,null,null,null,null,null,null,null,null,null,null,null,null,null,null,null,null,null,null,null,null,null,null,null,null,null,null,null,null,null,null,null,null,null,null,null,null,null,null,null,null,null,null,null,null,null,null,null,null,null,null,null,null,null,null,null,null,null,null,null,null,null,null,null,"Bus",0,0.91769999999999996,7.0526,0.1729,1E-4,1E-4,5.8900000000000001E-2,null,null,null,"Bus",0,0.58509999999999995,9.1494999999999997,0.29239999999999999,1E-4,1E-4,3.9800000000000002E-2]
[null,null,null,null,null,null,null,null,null,null,null,null,null,null,null,null,null,null,null,null,null,null,null,null,null,null,null,null,null,null,null,null,null,null,null,null,null,null,null,null,null,null,null,null,null,null,null,null,null,null,null,null,null,null,null,null,null,null,null,null,null,null,null,null,null,null,null,5,19.5716,3427.7168999999999,22.0898,0.41560000000000002,2.7199999999999998E-2,3.1109,null,null,null,null,5,9.8073999999999995,2999.6012000000001,5.2920999999999996,3.6799999999999999E-2,2.3900000000000001E-2,0.38700000000000001]
[null,null,null,null,null,null,null,null,null,null,null,null,null,null,null,null,null,null,null,null,null,null,null,null,null,null,null,null,null,null,null,null,null,null,null,null,null,null,null,null,null,null,null,null,null,null,null,null,null,null,null,null,null,null,null,null,null,null,null,null,null,null,null,null,null,null,null,6,18.614000000000001,3345.9708000000001,21.156199999999998,0.39700000000000002,2.6700000000000002E-2,2.9232999999999998,null,null,null,null,6,9.1891999999999996,2922.623,5.0911999999999997,3.4799999999999998E-2,2.3400000000000001E-2,0.3644]
[null,null,null,null,null,null,null,null,null,null,null,null,null,null,null,null,null,null,null,null,null,null,null,null,null,null,null,null,null,null,null,null,null,null,null,null,null,null,null,null,null,null,null,null,null,null,null,null,null,null,null,null,null,null,null,null,null,null,null,null,null,null,null,null,null,null,null,7,17.656400000000001,3264.2247000000002,20.2227,0.3785,2.6100000000000002E-2,2.7357,null,null,null,null,7,8.5709999999999997,2845.6446999999998,4.8902999999999999,3.2899999999999999E-2,2.2800000000000001E-2,0.3417]
[null,null,null,null,null,null,null,null,null,null,null,null,null,null,null,null,null,null,null,null,null,null,null,null,null,null,null,null,null,null,null,null,null,null,null,null,null,null,null,null,null,null,null,null,null,null,null,null,null,null,null,null,null,null,null,null,null,null,null,null,null,null,null,null,null,null,null,8,16.698799999999999,3182.4787000000001,19.289200000000001,0.36,2.5499999999999998E-2,2.548,null,null,null,null,8,7.9528999999999996,2768.6664999999998,4.6894,3.09E-2,2.23E-2,0.31909999999999999]
[null,null,null,null,null,null,null,null,null,null,null,null,null,null,null,null,null,null,null,null,null,null,null,null,null,null,null,null,null,null,null,null,null,null,null,null,null,null,null,null,null,null,null,null,null,null,null,null,null,null,null,null,null,null,null,null,null,null,null,null,null,null,null,null,null,null,null,9,15.741099999999999,3100.7325999999998,18.355599999999999,0.34150000000000003,2.5000000000000001E-2,2.3603999999999998,null,null,null,null,9,7.3346999999999998,2691.6882999999998,4.4885999999999999,2.8899999999999999E-2,2.18E-2,0.2964]
[null,null,null,null,null,null,null,null,null,null,null,null,null,null,null,null,null,null,null,null,null,null,null,null,null,null,null,null,null,null,null,null,null,null,null,null,null,null,null,null,null,null,null,null,null,null,null,null,null,null,null,null,null,null,null,null,null,null,null,null,null,null,null,null,null,null,null,10,14.7835,3018.9865,17.4221,0.32300000000000001,2.4400000000000002E-2,2.1728000000000001,null,null,null,null,10,6.7165999999999997,2614.71,4.2877000000000001,2.7E-2,2.12E-2,0.27379999999999999]
[null,null,null,null,null,null,null,null,null,null,null,null,null,null,null,null,null,null,null,null,null,null,null,null,null,null,null,null,null,null,null,null,null,null,null,null,null,null,null,null,null,null,null,null,null,null,null,null,null,null,null,null,null,null,null,null,null,null,null,null,null,null,null,null,null,null,null,11,13.961600000000001,2881.3137999999999,16.5063,0.3034,2.3199999999999998E-2,1.9877,null,null,null,null,11,6.1349,2484.7098000000001,3.9697,2.52E-2,2.01E-2,0.25119999999999998]
[null,null,null,null,null,null,null,null,null,null,null,null,null,null,null,null,null,null,null,null,null,null,null,null,null,null,null,null,null,null,null,null,null,null,null,null,null,null,null,null,null,null,null,null,null,null,null,null,null,null,null,null,null,null,null,null,null,null,null,null,null,null,null,null,null,null,null,12,13.1396,2743.6410999999998,15.5905,0.2838,2.1999999999999999E-2,1.8026,null,null,null,null,12,5.5533000000000001,2354.7094999999999,3.6516999999999999,2.3400000000000001E-2,1.89E-2,0.2286]
[null,null,null,null,null,null,null,null,null,null,null,null,null,null,null,null,null,null,null,null,null,null,null,null,null,null,null,null,null,null,null,null,null,null,null,null,null,null,null,null,null,null,null,null,null,null,null,null,null,null,null,null,null,null,null,null,null,null,null,null,null,null,null,null,null,null,null,13,12.3177,2605.9684000000002,14.674799999999999,0.26419999999999999,2.0799999999999999E-2,1.6174999999999999,null,null,null,null,13,4.9715999999999996,2224.7093,3.3336999999999999,2.1700000000000001E-2,1.78E-2,0.20599999999999999]
[null,null,null,null,null,null,null,null,null,null,null,null,null,null,null,null,null,null,null,null,null,null,null,null,null,null,null,null,null,null,null,null,null,null,null,null,null,null,null,null,null,null,null,null,null,null,null,null,null,null,null,null,null,null,null,null,null,null,null,null,null,null,null,null,null,null,null,14,11.495699999999999,2468.2957000000001,13.759,0.24460000000000001,1.9599999999999999E-2,1.4323999999999999,null,null,null,null,14,4.3899999999999997,2094.7089999999998,3.0156999999999998,1.9900000000000001E-2,1.66E-2,0.18329999999999999]
[null,null,null,null,null,null,null,null,null,null,null,null,null,null,null,null,null,null,null,null,null,null,null,null,null,null,null,null,null,null,null,null,null,null,null,null,null,null,null,null,null,null,null,null,null,null,null,null,null,null,null,null,null,null,null,null,null,null,null,null,null,null,null,null,null,null,null,15,10.6738,2330.623,12.8432,0.22500000000000001,1.84E-2,1.2474000000000001,null,null,null,null,15,3.8083,1964.7088000000001,2.6977000000000002,1.8200000000000001E-2,1.54E-2,0.16070000000000001]
[null,null,null,null,null,null,null,null,null,null,null,null,null,null,null,null,null,null,null,null,null,null,null,null,null,null,null,null,null,null,null,null,null,null,null,null,null,null,null,null,null,null,null,null,null,null,null,null,null,null,null,null,null,null,null,null,null,null,null,null,null,null,null,null,null,null,null,16,10.623100000000001,2266.5115999999998,12.7714,0.21929999999999999,1.7500000000000002E-2,1.1679999999999999,null,null,null,null,16,3.6564000000000001,1904.7757999999999,2.5065,1.7999999999999999E-2,1.4500000000000001E-2,0.1489]
[null,null,null,null,null,null,null,null,null,null,null,null,null,null,null,null,null,null,null,null,null,null,null,null,null,null,null,null,null,null,null,null,null,null,null,null,null,null,null,null,null,null,null,null,null,null,null,null,null,null,null,null,null,null,null,null,null,null,null,null,null,null,null,null,null,null,null,17,10.5725,2202.4002,12.6995,0.21360000000000001,1.67E-2,1.0887,null,null,null,null,17,3.5045000000000002,1844.8427999999999,2.3153000000000001,1.7899999999999999E-2,1.35E-2,0.13700000000000001]
[null,null,null,null,null,null,null,null,null,null,null,null,null,null,null,null,null,null,null,null,null,null,null,null,null,null,null,null,null,null,null,null,null,null,null,null,null,null,null,null,null,null,null,null,null,null,null,null,null,null,null,null,null,null,null,null,null,null,null,null,null,null,null,null,null,null,null,18,10.521800000000001,2138.2887000000001,12.627700000000001,0.2079,1.5800000000000002E-2,1.0093000000000001,null,null,null,null,18,3.3525999999999998,1784.9097999999999,2.1240999999999999,1.78E-2,1.26E-2,0.12509999999999999]
[null,null,null,null,null,null,null,null,null,null,null,null,null,null,null,null,null,null,null,null,null,null,null,null,null,null,null,null,null,null,null,null,null,null,null,null,null,null,null,null,null,null,null,null,null,null,null,null,null,null,null,null,null,null,null,null,null,null,null,null,null,null,null,null,null,null,null,19,10.4712,2074.1772999999998,12.5558,0.20219999999999999,1.4999999999999999E-2,0.93,null,null,null,null,19,3.2006000000000001,1724.9766999999999,1.9328000000000001,1.7600000000000001E-2,1.1599999999999999E-2,0.1133]
[null,null,null,null,null,null,null,null,null,null,null,null,null,null,null,null,null,null,null,null,null,null,null,null,null,null,null,null,null,null,null,null,null,null,null,null,null,null,null,null,null,null,null,null,null,null,null,null,null,null,null,null,null,null,null,null,null,null,null,null,null,null,null,null,null,null,null,20,10.420500000000001,2010.0658000000001,12.484,0.19650000000000001,1.41E-2,0.85060000000000002,null,null,null,null,20,3.0487000000000002,1665.0436999999999,1.7416,1.7500000000000002E-2,1.0699999999999999E-2,0.1014]
[null,null,null,null,null,null,null,null,null,null,null,null,null,null,null,null,null,null,null,null,null,null,null,null,null,null,null,null,null,null,null,null,null,null,null,null,null,null,null,null,null,null,null,null,null,null,null,null,null,null,null,null,null,null,null,null,null,null,null,null,null,null,null,null,null,null,null,21,8.8915000000000006,1886.2217000000001,11.133100000000001,0.16900000000000001,1.3899999999999999E-2,0.73109999999999997,null,null,null,null,21,2.5386000000000002,1582.5119999999999,1.601,1.4800000000000001E-2,1.09E-2,9.2899999999999996E-2]
[null,null,null,null,null,null,null,null,null,null,null,null,null,null,null,null,null,null,null,null,null,null,null,null,null,null,null,null,null,null,null,null,null,null,null,null,null,null,null,null,null,null,null,null,null,null,null,null,null,null,null,null,null,null,null,null,null,null,null,null,null,null,null,null,null,null,null,22,7.3624999999999998,1762.3776,9.7822999999999993,0.1416,1.37E-2,0.61150000000000004,null,null,null,null,22,2.0285000000000002,1499.9802999999999,1.4603999999999999,1.2200000000000001E-2,1.11E-2,8.43E-2]
[null,null,null,null,null,null,null,null,null,null,null,null,null,null,null,null,null,null,null,null,null,null,null,null,null,null,null,null,null,null,null,null,null,null,null,null,null,null,null,null,null,null,null,null,null,null,null,null,null,null,null,null,null,null,null,null,null,null,null,null,null,null,null,null,null,null,null,23,5.8334000000000001,1638.5335,8.4314,0.1142,1.34E-2,0.49199999999999999,null,null,null,null,23,1.5183,1417.4485999999999,1.3197000000000001,9.4999999999999998E-3,1.14E-2,7.5800000000000006E-2]
[null,null,null,null,null,null,null,null,null,null,null,null,null,null,null,null,null,null,null,null,null,null,null,null,null,null,null,null,null,null,null,null,null,null,null,null,null,null,null,null,null,null,null,null,null,null,null,null,null,null,null,null,null,null,null,null,null,null,null,null,null,null,null,null,null,null,null,24,4.3044000000000002,1514.6894,7.0805999999999996,8.6800000000000002E-2,1.32E-2,0.37240000000000001,null,null,null,null,24,1.0082,1334.9168999999999,1.1791,6.7999999999999996E-3,1.1599999999999999E-2,6.7299999999999999E-2]
[null,null,null,null,null,null,null,null,null,null,null,null,null,null,null,null,null,null,null,null,null,null,null,null,null,null,null,null,null,null,null,null,null,null,null,null,null,null,null,null,null,null,null,null,null,null,null,null,null,null,null,null,null,null,null,null,null,null,null,null,null,null,null,null,null,null,null,25,2.7753999999999999,1390.8452,5.7297000000000002,5.9400000000000001E-2,1.2999999999999999E-2,0.25290000000000001,null,null,null,null,25,0.49809999999999999,1252.3851999999999,1.0385,4.1000000000000003E-3,1.18E-2,5.8700000000000002E-2]
[null,null,null,null,null,null,null,null,null,null,null,null,null,null,null,null,null,null,null,null,null,null,null,null,null,null,null,null,null,null,null,null,null,null,null,null,null,null,null,null,null,null,null,null,null,null,null,null,null,null,null,null,null,null,null,null,null,null,null,null,null,null,null,null,null,null,null,26,2.7002000000000002,1372.4617000000001,5.6623000000000001,5.7599999999999998E-2,1.2800000000000001E-2,0.2422,null,null,null,null,26,0.47760000000000002,1237.6052,0.97540000000000004,4.0000000000000001E-3,1.17E-2,5.5899999999999998E-2]
[null,null,null,null,null,null,null,null,null,null,null,null,null,null,null,null,null,null,null,null,null,null,null,null,null,null,null,null,null,null,null,null,null,null,null,null,null,null,null,null,null,null,null,null,null,null,null,null,null,null,null,null,null,null,null,null,null,null,null,null,null,null,null,null,null,null,null,27,2.625,1354.0781999999999,5.5949,5.5800000000000002E-2,1.26E-2,0.23150000000000001,null,null,null,null,27,0.45710000000000001,1222.8253,0.91239999999999999,3.8999999999999998E-3,1.15E-2,5.3100000000000001E-2]
[null,null,null,null,null,null,null,null,null,null,null,null,null,null,null,null,null,null,null,null,null,null,null,null,null,null,null,null,null,null,null,null,null,null,null,null,null,null,null,null,null,null,null,null,null,null,null,null,null,null,null,null,null,null,null,null,null,null,null,null,null,null,null,null,null,null,null,28,2.5497999999999998,1335.6947,5.5274000000000001,5.3900000000000003E-2,1.24E-2,0.2208,null,null,null,null,28,0.43659999999999999,1208.0454,0.84930000000000005,3.8E-3,1.14E-2,5.0299999999999997E-2]
[null,null,null,null,null,null,null,null,null,null,null,null,null,null,null,null,null,null,null,null,null,null,null,null,null,null,null,null,null,null,null,null,null,null,null,null,null,null,null,null,null,null,null,null,null,null,null,null,null,null,null,null,null,null,null,null,null,null,null,null,null,null,null,null,null,null,null,29,2.4746999999999999,1317.3112000000001,5.46,5.21E-2,1.23E-2,0.2102,null,null,null,null,29,0.41620000000000001,1193.2654,0.7863,3.7000000000000002E-3,1.1299999999999999E-2,4.7399999999999998E-2]
[null,null,null,null,null,null,null,null,null,null,null,null,null,null,null,null,null,null,null,null,null,null,null,null,null,null,null,null,null,null,null,null,null,null,null,null,null,null,null,null,null,null,null,null,null,null,null,null,null,null,null,null,null,null,null,null,null,null,null,null,null,null,null,null,null,null,null,30,2.3995000000000002,1298.9277,5.3925999999999998,5.0299999999999997E-2,1.21E-2,0.19950000000000001,null,null,null,null,30,0.3957,1178.4855,0.72330000000000005,3.5999999999999999E-3,1.11E-2,4.4600000000000001E-2]
[null,null,null,null,null,null,null,null,null,null,null,null,null,null,null,null,null,null,null,null,null,null,null,null,null,null,null,null,null,null,null,null,null,null,null,null,null,null,null,null,null,null,null,null,null,null,null,null,null,null,null,null,null,null,null,null,null,null,null,null,null,null,null,null,null,null,null,31,2.3420000000000001,1282.7141999999999,5.3486000000000002,4.9200000000000001E-2,1.2E-2,0.19159999999999999,null,null,null,null,31,0.37990000000000002,1165.3188,0.68730000000000002,3.5000000000000001E-3,1.0999999999999999E-2,4.24E-2]
[null,null,null,null,null,null,null,null,null,null,null,null,null,null,null,null,null,null,null,null,null,null,null,null,null,null,null,null,null,null,null,null,null,null,null,null,null,null,null,null,null,null,null,null,null,null,null,null,null,null,null,null,null,null,null,null,null,null,null,null,null,null,null,null,null,null,null,32,2.2845,1266.5008,5.3047000000000004,4.8000000000000001E-2,1.18E-2,0.18360000000000001,null,null,null,null,32,0.36420000000000002,1152.1522,0.65129999999999999,3.5000000000000001E-3,1.09E-2,4.0099999999999997E-2]
[null,null,null,null,null,null,null,null,null,null,null,null,null,null,null,null,null,null,null,null,null,null,null,null,null,null,null,null,null,null,null,null,null,null,null,null,null,null,null,null,null,null,null,null,null,null,null,null,null,null,null,null,null,null,null,null,null,null,null,null,null,null,null,null,null,null,null,33,2.2269999999999999,1250.2873999999999,5.2607999999999997,4.6899999999999997E-2,1.17E-2,0.1757,null,null,null,null,33,0.34849999999999998,1138.9856,0.61539999999999995,3.3999999999999998E-3,1.0800000000000001E-2,3.7900000000000003E-2]
[null,null,null,null,null,null,null,null,null,null,null,null,null,null,null,null,null,null,null,null,null,null,null,null,null,null,null,null,null,null,null,null,null,null,null,null,null,null,null,null,null,null,null,null,null,null,null,null,null,null,null,null,null,null,null,null,null,null,null,null,null,null,null,null,null,null,null,34,2.1695000000000002,1234.0739000000001,5.2168999999999999,4.5699999999999998E-2,1.1599999999999999E-2,0.1678,null,null,null,null,34,0.3327,1125.819,0.57940000000000003,3.3E-3,1.06E-2,3.56E-2]
[null,null,null,null,null,null,null,null,null,null,null,null,null,null,null,null,null,null,null,null,null,null,null,null,null,null,null,null,null,null,null,null,null,null,null,null,null,null,null,null,null,null,null,null,null,null,null,null,null,null,null,null,null,null,null,null,null,null,null,null,null,null,null,null,null,null,null,35,2.1120000000000001,1217.8605,5.1729000000000003,4.4499999999999998E-2,1.14E-2,0.1598,null,null,null,null,35,0.317,1112.6523,0.54349999999999998,3.3E-3,1.0500000000000001E-2,3.3399999999999999E-2]
[null,null,null,null,null,null,null,null,null,null,null,null,null,null,null,null,null,null,null,null,null,null,null,null,null,null,null,null,null,null,null,null,null,null,null,null,null,null,null,null,null,null,null,null,null,null,null,null,null,null,null,null,null,null,null,null,null,null,null,null,null,null,null,null,null,null,null,36,2.0857000000000001,1213.3793000000001,5.0994000000000002,4.3700000000000003E-2,1.14E-2,0.15570000000000001,null,null,null,null,36,0.30980000000000002,1109.2246,0.52249999999999996,3.2000000000000002E-3,1.0500000000000001E-2,3.1899999999999998E-2]
[null,null,null,null,null,null,null,null,null,null,null,null,null,null,null,null,null,null,null,null,null,null,null,null,null,null,null,null,null,null,null,null,null,null,null,null,null,null,null,null,null,null,null,null,null,null,null,null,null,null,null,null,null,null,null,null,null,null,null,null,null,null,null,null,null,null,null,37,2.0594999999999999,1208.8979999999999,5.0259,4.2900000000000001E-2,1.1299999999999999E-2,0.15160000000000001,null,null,null,null,37,0.30259999999999998,1105.7968000000001,0.50149999999999995,3.2000000000000002E-3,1.04E-2,3.0499999999999999E-2]
[null,null,null,null,null,null,null,null,null,null,null,null,null,null,null,null,null,null,null,null,null,null,null,null,null,null,null,null,null,null,null,null,null,null,null,null,null,null,null,null,null,null,null,null,null,null,null,null,null,null,null,null,null,null,null,null,null,null,null,null,null,null,null,null,null,null,null,38,2.0331999999999999,1204.4168,4.9523999999999999,4.2099999999999999E-2,1.1299999999999999E-2,0.14749999999999999,null,null,null,null,38,0.29549999999999998,1102.3689999999999,0.48049999999999998,3.0999999999999999E-3,1.04E-2,2.9000000000000001E-2]
[null,null,null,null,null,null,null,null,null,null,null,null,null,null,null,null,null,null,null,null,null,null,null,null,null,null,null,null,null,null,null,null,null,null,null,null,null,null,null,null,null,null,null,null,null,null,null,null,null,null,null,null,null,null,null,null,null,null,null,null,null,null,null,null,null,null,null,39,2.0068999999999999,1199.9356,4.8788,4.1300000000000003E-2,1.12E-2,0.1434,null,null,null,null,39,0.2883,1098.9412,0.45950000000000002,3.0999999999999999E-3,1.04E-2,2.76E-2]
[null,null,null,null,null,null,null,null,null,null,null,null,null,null,null,null,null,null,null,null,null,null,null,null,null,null,null,null,null,null,null,null,null,null,null,null,null,null,null,null,null,null,null,null,null,null,null,null,null,null,null,null,null,null,null,null,null,null,null,null,null,null,null,null,null,null,null,40,1.9805999999999999,1195.4543000000001,4.8052999999999999,4.0500000000000001E-2,1.12E-2,0.13930000000000001,null,null,null,null,40,0.28110000000000002,1095.5135,0.4385,3.0000000000000001E-3,1.03E-2,2.6200000000000001E-2]
[null,null,null,null,null,null,null,null,null,null,null,null,null,null,null,null,null,null,null,null,null,null,null,null,null,null,null,null,null,null,null,null,null,null,null,null,null,null,null,null,null,null,null,null,null,null,null,null,null,null,null,null,null,null,null,null,null,null,null,null,null,null,null,null,null,null,null,41,1.9689000000000001,1187.5853999999999,4.7070999999999996,3.9699999999999999E-2,1.11E-2,0.13619999999999999,null,null,null,null,41,0.2757,1088.6622,0.42170000000000002,3.0000000000000001E-3,1.03E-2,2.4899999999999999E-2]
[null,null,null,null,null,null,null,null,null,null,null,null,null,null,null,null,null,null,null,null,null,null,null,null,null,null,null,null,null,null,null,null,null,null,null,null,null,null,null,null,null,null,null,null,null,null,null,null,null,null,null,null,null,null,null,null,null,null,null,null,null,null,null,null,null,null,null,42,1.9571000000000001,1179.7165,4.6089000000000002,3.8899999999999997E-2,1.0999999999999999E-2,0.13300000000000001,null,null,null,null,42,0.2702,1081.8108999999999,0.40500000000000003,2.8999999999999998E-3,1.0200000000000001E-2,2.3699999999999999E-2]
[null,null,null,null,null,null,null,null,null,null,null,null,null,null,null,null,null,null,null,null,null,null,null,null,null,null,null,null,null,null,null,null,null,null,null,null,null,null,null,null,null,null,null,null,null,null,null,null,null,null,null,null,null,null,null,null,null,null,null,null,null,null,null,null,null,null,null,43,1.9453,1171.8476000000001,4.5106000000000002,3.8199999999999998E-2,1.09E-2,0.1298,null,null,null,null,43,0.26479999999999998,1074.9595999999999,0.38829999999999998,2.8999999999999998E-3,1.01E-2,2.24E-2]
[null,null,null,null,null,null,null,null,null,null,null,null,null,null,null,null,null,null,null,null,null,null,null,null,null,null,null,null,null,null,null,null,null,null,null,null,null,null,null,null,null,null,null,null,null,null,null,null,null,null,null,null,null,null,null,null,null,null,null,null,null,null,null,null,null,null,null,44,1.9336,1163.9786999999999,4.4123999999999999,3.7400000000000003E-2,1.0800000000000001E-2,0.12670000000000001,null,null,null,null,44,0.25929999999999997,1068.1083000000001,0.3715,2.8E-3,0.01,2.12E-2]
[null,null,null,null,null,null,null,null,null,null,null,null,null,null,null,null,null,null,null,null,null,null,null,null,null,null,null,null,null,null,null,null,null,null,null,null,null,null,null,null,null,null,null,null,null,null,null,null,null,null,null,null,null,null,null,null,null,null,null,null,null,null,null,null,null,null,null,45,1.9218,1156.1098,4.3141999999999996,3.6700000000000003E-2,1.0800000000000001E-2,0.1235,null,null,null,null,45,0.25390000000000001,1061.2570000000001,0.3548,2.7000000000000001E-3,0.01,1.9900000000000001E-2]
[null,null,null,null,null,null,null,null,null,null,null,null,null,null,null,null,null,null,null,null,null,null,null,null,null,null,null,null,null,null,null,null,null,null,null,null,null,null,null,null,null,null,null,null,null,null,null,null,null,null,null,null,null,null,null,null,null,null,null,null,null,null,null,null,null,null,null,46,1.8909,1152.6296,4.2858000000000001,3.6900000000000002E-2,1.0699999999999999E-2,0.1221,null,null,null,null,46,0.2475,1059.087,0.34510000000000002,2.7000000000000001E-3,0.01,1.9300000000000001E-2]
[null,null,null,null,null,null,null,null,null,null,null,null,null,null,null,null,null,null,null,null,null,null,null,null,null,null,null,null,null,null,null,null,null,null,null,null,null,null,null,null,null,null,null,null,null,null,null,null,null,null,null,null,null,null,null,null,null,null,null,null,null,null,null,null,null,null,null,47,1.86,1149.1493,4.2572999999999999,3.7100000000000001E-2,1.0699999999999999E-2,0.1208,null,null,null,null,47,0.24099999999999999,1056.9170999999999,0.33539999999999998,2.7000000000000001E-3,9.9000000000000008E-3,1.8700000000000001E-2]
[null,null,null,null,null,null,null,null,null,null,null,null,null,null,null,null,null,null,null,null,null,null,null,null,null,null,null,null,null,null,null,null,null,null,null,null,null,null,null,null,null,null,null,null,null,null,null,null,null,null,null,null,null,null,null,null,null,null,null,null,null,null,null,null,null,null,null,48,1.8290999999999999,1145.6691000000001,4.2289000000000003,3.73E-2,1.0699999999999999E-2,0.11940000000000001,null,null,null,null,48,0.2346,1054.7471,0.32569999999999999,2.7000000000000001E-3,9.9000000000000008E-3,1.8100000000000002E-2]
[null,null,null,null,null,null,null,null,null,null,null,null,null,null,null,null,null,null,null,null,null,null,null,null,null,null,null,null,null,null,null,null,null,null,null,null,null,null,null,null,null,null,null,null,null,null,null,null,null,null,null,null,null,null,null,null,null,null,null,null,null,null,null,null,null,null,null,49,1.7982,1142.1889000000001,4.2004000000000001,3.7499999999999999E-2,1.06E-2,0.11799999999999999,null,null,null,null,49,0.2281,1052.5771,0.316,2.7000000000000001E-3,9.9000000000000008E-3,1.7500000000000002E-2]
[null,null,null,null,null,null,null,null,null,null,null,null,null,null,null,null,null,null,null,null,null,null,null,null,null,null,null,null,null,null,null,null,null,null,null,null,null,null,null,null,null,null,null,null,null,null,null,null,null,null,null,null,null,null,null,null,null,null,null,null,null,null,null,null,null,null,null,50,1.7673000000000001,1138.7085999999999,4.1719999999999997,3.7699999999999997E-2,1.06E-2,0.1166,null,null,null,null,50,0.22170000000000001,1050.4072000000001,0.30630000000000002,2.7000000000000001E-3,9.9000000000000008E-3,1.6899999999999998E-2]
[null,null,null,null,null,null,null,null,null,null,null,null,null,null,null,null,null,null,null,null,null,null,null,null,null,null,null,null,null,null,null,null,null,null,null,null,null,null,null,null,null,null,null,null,null,null,null,null,null,null,null,null,null,null,null,null,null,null,null,null,null,null,null,null,null,null,null,51,1.7407999999999999,1137.0732,4.2359,3.8899999999999997E-2,1.06E-2,0.1169,null,null,null,null,51,0.21640000000000001,1048.78,0.30349999999999999,2.7000000000000001E-3,9.7999999999999997E-3,1.6500000000000001E-2]
[null,null,null,null,null,null,null,null,null,null,null,null,null,null,null,null,null,null,null,null,null,null,null,null,null,null,null,null,null,null,null,null,null,null,null,null,null,null,null,null,null,null,null,null,null,null,null,null,null,null,null,null,null,null,null,null,null,null,null,null,null,null,null,null,null,null,null,52,1.7142999999999999,1135.4377999999999,4.2999000000000001,4.02E-2,1.06E-2,0.1172,null,null,null,null,52,0.21110000000000001,1047.1529,0.30059999999999998,2.7000000000000001E-3,9.7999999999999997E-3,1.61E-2]
[null,null,null,null,null,null,null,null,null,null,null,null,null,null,null,null,null,null,null,null,null,null,null,null,null,null,null,null,null,null,null,null,null,null,null,null,null,null,null,null,null,null,null,null,null,null,null,null,null,null,null,null,null,null,null,null,null,null,null,null,null,null,null,null,null,null,null,53,1.6878,1133.8024,4.3638000000000003,4.1399999999999999E-2,1.0500000000000001E-2,0.11749999999999999,null,null,null,null,53,0.2059,1045.5256999999999,0.29770000000000002,2.8E-3,9.7999999999999997E-3,1.5699999999999999E-2]
[null,null,null,null,null,null,null,null,null,null,null,null,null,null,null,null,null,null,null,null,null,null,null,null,null,null,null,null,null,null,null,null,null,null,null,null,null,null,null,null,null,null,null,null,null,null,null,null,null,null,null,null,null,null,null,null,null,null,null,null,null,null,null,null,null,null,null,54,1.6613,1132.1669999999999,4.4278000000000004,4.2700000000000002E-2,1.0500000000000001E-2,0.1178,null,null,null,null,54,0.2006,1043.8985,0.29480000000000001,2.8E-3,9.7999999999999997E-3,1.52E-2]
[null,null,null,null,null,null,null,null,null,null,null,null,null,null,null,null,null,null,null,null,null,null,null,null,null,null,null,null,null,null,null,null,null,null,null,null,null,null,null,null,null,null,null,null,null,null,null,null,null,null,null,null,null,null,null,null,null,null,null,null,null,null,null,null,null,null,null,55,1.6348,1130.5315000000001,4.4916999999999998,4.3999999999999997E-2,1.0500000000000001E-2,0.1181,null,null,null,null,55,0.19539999999999999,1042.2714000000001,0.29189999999999999,2.8E-3,9.7999999999999997E-3,1.4800000000000001E-2]
[null,null,null,null,null,null,null,null,null,null,null,null,null,null,null,null,null,null,null,null,null,null,null,null,null,null,null,null,null,null,null,null,null,null,null,null,null,null,null,null,null,null,null,null,null,null,null,null,null,null,null,null,null,null,null,null,null,null,null,null,null,null,null,null,null,null,null,56,1.6585000000000001,1135.2651000000001,4.5275999999999996,4.5100000000000001E-2,1.0500000000000001E-2,0.1215,null,null,null,null,56,0.19589999999999999,1045.1079999999999,0.29339999999999999,2.8999999999999998E-3,9.7999999999999997E-3,1.4800000000000001E-2]
[null,null,null,null,null,null,null,null,null,null,null,null,null,null,null,null,null,null,null,null,null,null,null,null,null,null,null,null,null,null,null,null,null,null,null,null,null,null,null,null,null,null,null,null,null,null,null,null,null,null,null,null,null,null,null,null,null,null,null,null,null,null,null,null,null,null,null,57,1.6821999999999999,1139.9987000000001,4.5636000000000001,4.6300000000000001E-2,1.0500000000000001E-2,0.1249,null,null,null,null,57,0.1963,1047.9446,0.2949,2.8999999999999998E-3,9.7999999999999997E-3,1.49E-2]
[null,null,null,null,null,null,null,null,null,null,null,null,null,null,null,null,null,null,null,null,null,null,null,null,null,null,null,null,null,null,null,null,null,null,null,null,null,null,null,null,null,null,null,null,null,null,null,null,null,null,null,null,null,null,null,null,null,null,null,null,null,null,null,null,null,null,null,58,1.7059,1144.7322999999999,4.5994999999999999,4.7399999999999998E-2,1.06E-2,0.1283,null,null,null,null,58,0.1968,1050.7811999999999,0.29649999999999999,3.0000000000000001E-3,9.7999999999999997E-3,1.49E-2]
[null,null,null,null,null,null,null,null,null,null,null,null,null,null,null,null,null,null,null,null,null,null,null,null,null,null,null,null,null,null,null,null,null,null,null,null,null,null,null,null,null,null,null,null,null,null,null,null,null,null,null,null,null,null,null,null,null,null,null,null,null,null,null,null,null,null,null,59,1.7297,1149.4658999999999,4.6355000000000004,4.8599999999999997E-2,1.06E-2,0.13170000000000001,null,null,null,null,59,0.1973,1053.6178,0.29799999999999999,3.0999999999999999E-3,9.7999999999999997E-3,1.49E-2]
[null,null,null,null,null,null,null,null,null,null,null,null,null,null,null,null,null,null,null,null,null,null,null,null,null,null,null,null,null,null,null,null,null,null,null,null,null,null,null,null,null,null,null,null,null,null,null,null,null,null,null,null,null,null,null,null,null,null,null,null,null,null,null,null,null,null,null,60,1.7534000000000001,1154.1994999999999,4.6714000000000002,4.9700000000000001E-2,1.06E-2,0.1351,null,null,null,null,60,0.1978,1056.4544000000001,0.29949999999999999,3.0999999999999999E-3,9.7999999999999997E-3,1.49E-2]
[null,null,null,null,null,null,null,null,null,null,null,null,null,null,null,null,null,null,null,null,null,null,null,null,null,null,null,null,null,null,null,null,null,null,null,null,null,null,null,null,null,null,null,null,null,null,null,null,null,null,null,null,null,null,null,null,null,null,null,null,null,null,null,null,null,null,null,61,1.7948,1155.8367000000001,4.5967000000000002,4.8899999999999999E-2,1.0500000000000001E-2,0.13800000000000001,null,null,null,null,61,0.20100000000000001,1057.3520000000001,0.29520000000000002,3.0999999999999999E-3,9.7999999999999997E-3,1.5100000000000001E-2]
[null,null,null,null,null,null,null,null,null,null,null,null,null,null,null,null,null,null,null,null,null,null,null,null,null,null,null,null,null,null,null,null,null,null,null,null,null,null,null,null,null,null,null,null,null,null,null,null,null,null,null,null,null,null,null,null,null,null,null,null,null,null,null,null,null,null,null,62,1.8361000000000001,1157.4739,4.5218999999999996,4.8099999999999997E-2,1.0500000000000001E-2,0.1409,null,null,null,null,62,0.20419999999999999,1058.2497000000001,0.29089999999999999,3.0000000000000001E-3,9.7999999999999997E-3,1.5299999999999999E-2]
[null,null,null,null,null,null,null,null,null,null,null,null,null,null,null,null,null,null,null,null,null,null,null,null,null,null,null,null,null,null,null,null,null,null,null,null,null,null,null,null,null,null,null,null,null,null,null,null,null,null,null,null,null,null,null,null,null,null,null,null,null,null,null,null,null,null,null,63,1.8774999999999999,1159.1110000000001,4.4471999999999996,4.7300000000000002E-2,1.0500000000000001E-2,0.1439,null,null,null,null,63,0.20730000000000001,1059.1473000000001,0.28670000000000001,3.0000000000000001E-3,9.7999999999999997E-3,1.54E-2]
[null,null,null,null,null,null,null,null,null,null,null,null,null,null,null,null,null,null,null,null,null,null,null,null,null,null,null,null,null,null,null,null,null,null,null,null,null,null,null,null,null,null,null,null,null,null,null,null,null,null,null,null,null,null,null,null,null,null,null,null,null,null,null,null,null,null,null,64,1.9189000000000001,1160.7482,4.3723999999999998,4.65E-2,1.0500000000000001E-2,0.14680000000000001,null,null,null,null,64,0.21049999999999999,1060.0449000000001,0.28239999999999998,3.0000000000000001E-3,9.7999999999999997E-3,1.5599999999999999E-2]
[null,null,null,null,null,null,null,null,null,null,null,null,null,null,null,null,null,null,null,null,null,null,null,null,null,null,null,null,null,null,null,null,null,null,null,null,null,null,null,null,null,null,null,null,null,null,null,null,null,null,null,null,null,null,null,null,null,null,null,null,null,null,null,null,null,null,null,65,1.9602999999999999,1162.3852999999999,4.2976999999999999,4.5699999999999998E-2,1.04E-2,0.1497,null,null,null,null,65,0.2137,1060.9425000000001,0.27810000000000001,2.8999999999999998E-3,9.7999999999999997E-3,1.5800000000000002E-2]
[null,null,null,null,null,null,null,null,null,null,null,null,null,null,null,null,null,null,null,null,null,null,null,null,null,null,null,null,null,null,null,null,null,null,null,null,null,null,null,null,null,null,null,null,null,null,null,null,null,null,null,null,null,null,null,null,null,null,null,null,null,null,null,null,null,null,null,66,2.1295999999999999,1155.4963,4.0816999999999997,4.2700000000000002E-2,1.03E-2,0.1552,null,null,null,null,66,0.22989999999999999,1055.1939,0.27810000000000001,2.8999999999999998E-3,9.5999999999999992E-3,1.6199999999999999E-2]
[null,null,null,null,null,null,null,null,null,null,null,null,null,null,null,null,null,null,null,null,null,null,null,null,null,null,null,null,null,null,null,null,null,null,null,null,null,null,null,null,null,null,null,null,null,null,null,null,null,null,null,null,null,null,null,null,null,null,null,null,null,null,null,null,null,null,null,67,2.2989999999999999,1148.6072999999999,3.8656999999999999,3.9600000000000003E-2,1.0200000000000001E-2,0.16059999999999999,null,null,null,null,67,0.24610000000000001,1049.4452000000001,0.27800000000000002,2.8E-3,9.4999999999999998E-3,1.66E-2]
[null,null,null,null,null,null,null,null,null,null,null,null,null,null,null,null,null,null,null,null,null,null,null,null,null,null,null,null,null,null,null,null,null,null,null,null,null,null,null,null,null,null,null,null,null,null,null,null,null,null,null,null,null,null,null,null,null,null,null,null,null,null,null,null,null,null,null,68,2.4683000000000002,1141.7183,3.6497000000000002,3.6600000000000001E-2,1.01E-2,0.16600000000000001,null,null,null,null,68,0.26229999999999998,1043.6965,0.27800000000000002,2.8E-3,9.4000000000000004E-3,1.7000000000000001E-2]
[null,null,null,null,null,null,null,null,null,null,null,null,null,null,null,null,null,null,null,null,null,null,null,null,null,null,null,null,null,null,null,null,null,null,null,null,null,null,null,null,null,null,null,null,null,null,null,null,null,null,null,null,null,null,null,null,null,null,null,null,null,null,null,null,null,null,null,69,2.6377000000000002,1134.8293000000001,3.4338000000000002,3.3599999999999998E-2,0.01,0.17150000000000001,null,null,null,null,69,0.27850000000000003,1037.9477999999999,0.27800000000000002,2.7000000000000001E-3,9.2999999999999992E-3,1.7399999999999999E-2]
[null,null,null,null,null,null,null,null,null,null,null,null,null,null,null,null,null,null,null,null,null,null,null,null,null,null,null,null,null,null,null,null,null,null,null,null,null,null,null,null,null,null,null,null,null,null,null,null,null,null,null,null,null,null,null,null,null,null,null,null,null,null,null,null,null,null,null,70,2.8069999999999999,1127.9403,3.2178,3.0599999999999999E-2,9.9000000000000008E-3,0.1769,null,null,null,null,70,0.29470000000000002,1032.1991,0.27789999999999998,2.7000000000000001E-3,9.1999999999999998E-3,1.78E-2]
[]
[]
[null,null,null,null,null,null,null,null,null,null,null,null,null,null,null,null,null,null,null,null,null,null,null,null,null,null,null,null,null,null,null,null,null,null,null,null,null,null,null,null,null,null,null,null,null,null,null,null,null,null,null,null,null,null,null,null,null,null,null,null,null,null,null,null,null,"Source: California Air Resources Board, EMFAC 2014"]
[]
[null,null,null,null,null,null,null,null,null,null,null,null,null,null,null,null,null,null,null,null,null,null,null,null,null,null,null,null,null,null,null,null,null,null,null,null,null,null,null,null,null,null,null,null,null,null,null,null,null,null,null,null,null,null,null,null,null,null,null,null,null,null,null,null,null,"Notes: 1) Zero mph corresponds to starts, 2) Other emissions factors include idling emissions and exclude diurnal and evaporative emissions, 3) Five mph is best estimate for idling"]